Workbook

Sheet Hoja1 (hidden)
A3: Cuenta de Nombre del partido político | B3: Etiquetas de columna
A4: Etiquetas de fila | B4: Julio-Setiembre, 2021 | C4: Noviembre, 2021 | D4: Octubre, 2021 | E4: (en blanco) | F4: Diciembre, 2021 | G4: Enero, 2022 | H4: Febrero, 2022 | I4: Marzo, 2022 | J4: Total general | K4: Noviembre, 2021 | L4: (en blanco) | M4: Total general
A5: Accesibilidad sin Exclusión (PASE) | B5: 1 | C5: 1 | D5: 1 | F5: 1 | J5: 4 | K5: ingresado | M5: =+COUNTA(I5:L5) -> 2
A6: Acción Ciudadana (PAC) | B6: 1 | C6: 1 | D6: 1 | F6: 1 | G6: 1 | H6: 1 | I6: 1 | J6: 7 | K6: ingresado | M6: =+COUNTA(I6:L6) -> 3
A7: Actuemos Ya (Cartago) (PAY) | B7: 1 | C7: 1 | D7: 1 | G7: 1 | H7: 1 | J7: 5 | K7: ingresado | M7: 2
A8: Anticorrupción Costarricense (San José) (PACO) | C8: 1 | F8: 1 | G8: 1 | H8: 1 | I8: 1 | J8: 5 | K8: ingresado | M8: 3
A9: Costa Rica Justa (CRJ) | B9: 1 | C9: 1 | D9: 1 | F9: 1 | J9: 4 | K9: ingresado | M9: 2
A10: De los Trabajadores (PT) | B10: 1 | C10: 1 | D10: 1 | F10: 1 | J10: 4 | K10: ingresado | M10: 2
A11: Encuentro Nacional (PEN) | B11: 1 | C11: 1 | D11: 1 | F11: 1 | J11: 4 | K11: ingresado | M11: 2
A12: Frente Amplio (FA) | B12: 1 | C12: 1 | D12: 1 | F12: 1 | G12: 1 | H12: 1 | I12: 1 | J12: 7 | K12: ingresado | M12: 3
A13: Fuerza Nacional (PFN) | B13: 1 | C13: 1 | D13: 1 | F13: 1 | G13: 1 | J13: 5 | K13: ingresado | M13: 2
A14: Integración Nacional (PIN) | B14: 1 | C14: 1 | D14: 1 | F14: 1 | G14: 1 | H14: 1 | J14: 6 | K14: ingresado | M14: 2
A15: Izquierda Costarricense (Limón) (IZCO) | B15: 1 | D15: 1 | H15: 1 | I15: 1 | J15: 4 | K15: ingresado | M15: 3
A16: Justicia Social Costarricense (PJSC) | B16: 1 | C16: 1 | D16: 1 | F16: 1 | G16: 1 | H16: 1 | J16: 6 | K16: ingresado | M16: 2
A17: Liberación Nacional (PLN) | B17: 1 | C17: 1 | D17: 1 | F17: 1 | G17: 1 | H17: 1 | I17: 1 | J17: 7 | K17: ingresado | M17: 3
A18: Liberal Progresista (PLP) | B18: 1 | C18: 1 | D18: 1 | F18: 1 | G18: 1 | H18: 1 | I18: 1 | J18: 7 | K18: ingresado | M18: 3
A19: Movimiento Libertario (PML) | B19: 1 | C19: 1 | D19: 1 | F19: 1 | G19: 1 | J19: 5 | K19: ingresado | M19: 2
A20: Movimiento Social Demócrata Costarricense (MSDC) | B20: 1 | C20: 1 | D20: 1 | J20: 3 | K20: ingresado | M20: 2
A21: Nuestro Pueblo (PNP) | B21: 1 | C21: 1 | D21: 1 | F21: 1 | G21: 1 | H21: 1 | J21: 6 | K21: ingresado | M21: 2
A22: Nueva Generación (PNG) | B22: 1 | C22: 2 | D22: 1 | F22: 1 | G22: 1 | H22: 1 | I22: 1 | J22: 8 | M22: 2
A23: Nueva República (PNR) | B23: 1 | C23: 1 | D23: 1 | F23: 1 | G23: 1 | H23: 1 | I23: 1 | J23: 7 | K23: ingresado | M23: 3
A24: Nuevo Partido Socialista (Cartago) (NPS-C) | B24: 2 | C24: 1 | D24: 1 | F24: 1 | G24: 1 | H24: 1 | J24: 7 | K24: ingresado | M24: 2
A25: Nuevo Partido Socialista (San José) (NPS-SJ) | B25: 2 | C25: 1 | D25: 1 | F25: 1 | G25: 1 | H25: 1 | J25: 7 | K25: ingresado | M25: 2
A26: Progreso Social Democrático (PSD) | C26: 1 | D26: 1 | F26: 1 | G26: 1 | H26: 1 | I26: 1 | J26: 6 | K26: ingresado | M26: 3
A27: Pueblo Unido (PU) | B27: 1 | C27: 1 | D27: 1 | F27: 1 | G27: 1 | H27: 1 | I27: 1 | J27: 7 | K27: ingresado | M27: 3
A28: Recuperando Valores (Limón) (PAREVA) | B28: 1 | C28: 1 | D28: 1 | F28: 1 | G28: 1 | H28: 1 | I28: 1 | J28: 7 | K28: ingresado | M28: 3
A29: Renovación Cartago (Cartago) (PRCA) | B29: 1 | C29: 1 | D29: 1 | F29: 1 | G29: 1 | H29: 1 | I29: 1 | J29: 7 | M29: 2
A30: Republicano Social Cristiano (PRSC) | B30: 1 | C30: 1 | D30: 1 | F30: 1 | G30: 1 | H30: 1 | J30: 6 | K30: ingresado | M30: 2
A31: Restauración Nacional (PRN) | B31: 1 | C31: 1 | D31: 1 | F31: 1 | G31: 1 | H31: 1 | I31: 1 | J31: 7 | K31: ingresado | M31: 3
A32: Somos (Alajuela) (SOMOS) | B32: 1 | C32: 1 | D32: 1 | F32: 1 | G32: 1 | H32: 1 | I32: 1 | J32: 7 | K32: ingresado | M32: 3
A33: Unidad Social Cristiana (PUSC) | B33: 1 | C33: 1 | D33: 1 | F33: 1 | G33: 1 | H33: 1 | I33: 1 | J33: 7 | K33: ingresado | M33: 3
A34: Unidos Podemos (UP) | B34: 1 | C34: 1 | D34: 1 | F34: 1 | G34: 1 | H34: 1 | I34: 1 | J34: 7 | K34: ingresado | M34: 3
A35: Unidos por Costa Rica (San José) (PUPCR) | B35: 1 | C35: 1 | F35: 1 | J35: 3 | K35: ingresado | M35: 2
A36: Unión Costarricense Democrática (PUCD) | B36: 1 | C36: 1 | D36: 1 | F36: 1 | H36: 1 | I36: 1 | J36: 6 | K36: ingresado | M36: 3
A37: Unión Guanacasteca (Guanacaste) (PUG) | B37: 1 | C37: 1 | D37: 1 | F37: 1 | G37: 1 | H37: 1 | J37: 6 | K37: ingresado | M37: 2
A38: Unión Liberal (PUL) | B38: 1 | C38: 1 | D38: 1 | F38: 1 | G38: 1 | H38: 1 | J38: 6 | K38: ingresado | M38: 2
A39: (en blanco) | M39: 0
A40: Alianza Demócrata Cristiana (ADC) | B40: 1 | C40: 1 | D40: 1 | F40: 1 | G40: 1 | H40: 1 | I40: 1 | J40: 7 | K40: =+COUNTA(K5:K39) -> 32 | M40: =+SUM(M5:M39) -> 83
A41: Vamos (San José) (VAMOS) | B41: 1 | C41: 1 | D41: 1 | F41: 1 | J41: 4
A42: Total general | B42: 36 | C42: 36 | D42: 34 | F42: 33 | G42: 27 | H42: 27 | I42: 18 | J42: 211

Sheet Hoja3 (hidden)
A1: periodo | B1: (Varios elementos)
A3: Etiquetas de fila | B3: Suma de Monto de donaciones recibidas | C3: Suma de Monto de Ingresos Recibidos | D3: Suma de Incremento en el rubro de pasivo | E3: Suma de Monto de activos utilizado | F3: Suma de Origen
A4: 1. Nacional | B4: 1165541714 | C4: 6858729233 | D4: 1.152325084e+10 | E4: 3982371059 | F4: 2.354640229e+10
A5: Accesibilidad sin Exclusión (PASE) | B5: 5697120 | C5: 0 | D5: 0 | E5: 0 | F5: 5697120
A6: Acción Ciudadana (PAC) | B6: 36372824 | C6: 713164351 | D6: 0 | E6: 118018898 | F6: 867556073
A7: Alianza Demócrata Cristiana (ADC) | B7: 4280689 | C7: 78000000 | D7: 73286286.82 | E7: 11104177.31 | F7: 167416092
A8: Costa Rica Justa (CRJ) | B8: 35092 | C8: 10286.2 | D8: 208448037.4 | E8: 0 | F8: 208493415.6
A9: De los Trabajadores (PT) | B9: 0 | C9: 0 | D9: 0 | E9: 0 | F9: 0
A10: Encuentro Nacional (PEN) | B10: 0 | C10: 0 | D10: 0 | E10: 0 | F10: 0
A11: Frente Amplio (FA) | B11: 20407325 | C11: 89717179.48 | D11: 576699237.5 | E11: 159487711.7 | F11: 846311453.6
A12: Fuerza Nacional (PFN) | B12: 1568146 | C12: 11900000 | D12: 57460041.86 | E12: 114045.26 | F12: 71042233.12
A13: Integración Nacional (PIN) | B13: 6145039 | C13: 34784511.58 | D13: 61642752.32 | E13: 35477438.07 | F13: 138140731
A14: Justicia Social Costarricense (PJSC) | B14: 4881667.72 | C14: 56110000 | D14: 2487123.28 | E14: 43063891.61 | F14: 106542682.6
A15: Liberación Nacional (PLN) | B15: 718390257 | C15: 249695388 | D15: 4564083419 | E15: 382077202 | F15: 5914675234
A16: Liberal Progresista (PLP) | B16: 113696069.3 | C16: 768819434.8 | D16: 105751636.3 | E16: 193226100.9 | F16: 1181493241
A17: Movimiento Libertario (PML) | B17: 0 | C17: 20814.17 | D17: 207279761.8 | E17: 1936792.98 | F17: 209237369
A18: Movimiento Social Demócrata Costarricense (MSDC) | B18: 0 | C18: 0 | D18: 0 | E18: 0 | F18: 0
A19: Nuestro Pueblo (PNP) | B19: 648215 | C19: 303162016.6 | D19: 133032664.5 | E19: 11004078.19 | F19: 447846974.3
A20: Nueva Generación (PNG) | B20: 7721141.56 | C20: 0.87 | D20: 0 | E20: 7248129.93 | F20: 14969272.36
A21: Nueva República (PNR) | B21: 17344177.38 | C21: 361851178.6 | D21: 2953983177 | E21: 1842542275 | F21: 5175720808
A22: Progreso Social Democrático (PSD) | B22: 128594486.5 | C22: 2011259965 | D22: 104558743.9 | E22: 0 | F22: 2244413195
A23: Pueblo Unido (PU) | B23: 3151755 | C23: 1635 | D23: 0 | E23: 463506.21 | F23: 3616896.21
A24: Republicano Social Cristiano (PRSC) | B24: 422144.34 | C24: 282082787.9 | D24: 16739307.09 | E24: 36158764.66 | F24: 350647545.2
A25: Restauración Nacional (PRN) | B25: 4428464 | C25: 1410888091 | D25: 379800611.7 | E25: 552605908 | F25: 2347723075
A26: Unidad Social Cristiana (PUSC) | B26: 60257849.03 | C26: 220589036 | D26: 2005379164 | E26: 557054164.2 | F26: 2843280214
A27: Unidos Podemos (UP) | B27: 10431637.6 | C27: 214250000 | D27: 69113334.97 | E27: 22653711.55 | F27: 316448684.1
A28: Unión Costarricense Democrática (PUCD) | B28: 0 | C28: 0 | D28: 0 | E28: 0 | F28: 0
A29: Unión Liberal (PUL) | B29: 21067615 | C29: 52422557 | D29: 3505545 | E29: 8134264 | F29: 85129981
A30: 2. Provincial | B30: 3222777.5 | C30: 97758753.73 | D30: 53895250.61 | E30: 30310742.67 | F30: 185187524.5
A31: Actuemos Ya (Cartago) (PAY) | B31: 1258600 | C31: 2400095.54 | D31: 1468841.1 | E31: 311777.87 | F31: 5439314.51
A32: Anticorrupción Costarricense (San José) (PACO) | B32: 0 | C32: 0 | D32: 9130000 | E32: 2055999 | F32: 11185999
A33: Izquierda Costarricense (Limón) (IZCO) | B33: 0 | C33: 0 | D33: 45200 | E33: 0 | F33: 45200
A34: Nuevo Partido Socialista (Cartago) (NPS-C) | B34: 390000 | C34: 0 | D34: 0 | E34: 0 | F34: 390000
A35: Nuevo Partido Socialista (San José) (NPS-SJ) | B35: 360005 | C35: 0 | D35: 0 | E35: 0 | F35: 360005
A36: Recuperando Valores (Limón) (PAREVA) | B36: 0 | C36: 0 | D36: 19845000 | E36: 6926401.51 | F36: 26771401.51
A37: Renovación Cartago (Cartago) (PRCA) | B37: 0 | C37: 0 | D37: 0 | E37: 0 | F37: 0
A38: Somos (Alajuela) (SOMOS) | B38: 2512000 | C38: 13548764.26 | D38: 0 | E38: 339439.5 | F38: 16400203.76
A39: Unidos por Costa Rica (San José) (PUPCR) | B39: 3528000 | C39: 0 | D39: 3754673.02 | E39: 0 | F39: 7282673.02
A40: Unión Guanacasteca (Guanacaste) (PUG) | B40: -8300000 | C40: 81799926.93 | D40: 18806014 | E40: 19765868 | F40: 112071808.9
A41: Vamos (San José) (VAMOS) | B41: 3474172.5 | C41: 9967 | D41: 845522.49 | E41: 911256.79 | F41: 5240918.78
A42: Total general | B42: 1168764492 | C42: 6956487987 | D42: 1.15771461e+10 | E42: 4012681802 | F42: 2.373158981e+10

Sheet Respuestas de formulario 1 (2) (hidden)
A1: Periodo de reporte2 | B1: Nombre del partido político2 | C1: Monto de donaciones recibidas | D1: Incremento en el rubro de pasivo | E1: Monto de Ingresos Recibidos | F1: Monto de activos utilizado | G1: Origen | H1: Monto de gastos | I1: Disminución en el rubro de pasivo | J1: Acumulación de activos | K1: Monto de Ajustes | L1: Aplicación
A2: 01 Abr.-Jun., 2018 | B2: Frente Amplio (FA) | C2: 9114757.5 | D2: 0 | E2: 4370800.73 | F2: 83115335.53 | G2: 96600893.76 | H2: 77631012.78 | I2: 18969880.98 | J2: 0 | K2: 0 | L2: 96600893.76
A3: 01 Abr.-Jun., 2018 | B3: Recuperando Valores (Limón) (PAREVA) | C3: 0 | D3: 0 | E3: 14.86 | F3: 390160.64 | G3: 390175.5 | H3: 359881 | I3: 30294.5 | J3: 0 | K3: 0 | L3: 390175.5
A4: 01 Abr.-Jun., 2018 | B4: Restauración Nacional (PRN) | C4: 0 | D4: 65147703.54 | E4: 251455.66 | F4: 0 | G4: 65399159.2 | H4: 54702025.5 | I4: 0 | J4: 10697133.68 | K4: -2 | L4: 65399161.18
A5: 01 Abr.-Jun., 2018 | B5: Acción Ciudadana (PAC) | C5: 15114360 | D5: 46671130 | E5: 246490269 | F5: 526284070 | G5: 834559829 | H5: 834559829 | I5: 0 | J5: 0 | K5: 0 | L5: 834559829
A6: 01 Abr.-Jun., 2018 | B6: Nueva República (PNR) | C6: 0 | D6: 0 | E6: 0 | F6: 0 | G6: 0 | H6: 0 | I6: 0 | J6: 0 | K6: 0 | L6: 0
A7: 01 Abr.-Jun., 2018 | B7: Progreso Social Democrático (PSD) | C7: 0 | D7: 0 | E7: 0 | F7: 0 | G7: 0 | H7: 0 | I7: 0 | J7: 0 | K7: 0 | L7: 0
A8: 01 Abr.-Jun., 2018 | B8: Unidad Social Cristiana (PUSC) | C8: 2470993.88 | D8: 2825122.36 | E8: 12798434.06 | F8: 201080330.9 | G8: 219174881.2 | H8: 211561615 | I8: 0 | J8: 0 | K8: -7613266.29 | L8: 219174881.2
A9: 01 Abr.-Jun., 2018 | B9: Liberación Nacional (PLN) | C9: 24000 | D9: 0 | E9: 1623544 | F9: 103649366 | G9: 105296910 | H9: 105269555 | I9: 27355 | J9: 0 | K9: 0 | L9: 105296910
A10: 01 Abr.-Jun., 2018 | B10: Integración Nacional (PIN) | C10: 0 | D10: 2672995.44 | E10: 1360646864 | F10: 20872288.22 | G10: 1429615675 | H10: 1429615765 | I10: 0 | J10: 0 | K10: 45423527.74 | L10: 1429615765
A11: 01 Abr.-Jun., 2018 | B11: Auténtico Limonense | C11: 0 | D11: 0 | E11: 3000000 | F11: 135148.33 | G11: 3135148.33 | H11: 1135148.33 | I11: 2000000 | J11: 0 | K11: 0 | L11: 3135148.33
A12: 01 Abr.-Jun., 2018 | B12: Unión Guanacasteca (Guanacaste) (PUG) | C12: 0 | D12: 0 | E12: 0 | F12: 0 | G12: 0 | H12: 0 | I12: 0 | J12: 0 | K12: 0 | L12: 0
A13: 01 Abr.-Jun., 2018 | B13: Republicano Social Cristiano (PRSC) | C13: 272370 | D13: 751500 | E13: 1927.4 | F13: 17778138.35 | G13: 18803935.75 | H13: 18803935.75 | I13: 0 | J13: 0 | K13: 0 | L13: 18803935.75
A14: 05 Abr.-Jun., 2019 | B14: Frente Amplio (FA) | C14: 7523119 | D14: 25774903.97 | E14: 0 | F14: 66645356.76 | G14: 103649212.2 | H14: 103649212.2 | I14: 0 | J14: 0 | K14: 3705832.5 | L14: 103649212.2
A15: 05 Abr.-Jun., 2019 | B15: Recuperando Valores (Limón) (PAREVA) | C15: 0 | D15: 0 | E15: 0 | F15: 0 | G15: 0 | H15: 0 | I15: 0 | J15: 0 | K15: 0 | L15: 0
A16: 05 Abr.-Jun., 2019 | B16: Restauración Nacional (PRN) | C16: 3260192 | D16: 0 | E16: 74090064.32 | F16: 0 | G16: 866764888.9 | H16: 171035735.6 | I16: 677021996.3 | J16: 18707156.99 | K16: 789414632.6 | L16: 866764888.9
A17: 05 Abr.-Jun., 2019 | B17: Nueva República (PNR) | C17: 0 | D17: 0 | E17: 0 | F17: 2839320 | G17: 2839320 | H17: 3496 | I17: 2835824 | J17: 0 | K17: 0 | L17: 2839320
A18: 05 Abr.-Jun., 2019 | B18: Nueva República (PNR) | C18: 0 | D18: 0 | E18: 0 | F18: 0 | G18: 0 | H18: 0 | I18: 0 | J18: 0 | K18: 0 | L18: 0
A19: 05 Abr.-Jun., 2019 | B19: Acción Ciudadana (PAC) | C19: 12535726 | D19: 0 | E19: 1523556040 | F19: 0 | G19: 1536091766 | H19: 144022320 | I19: 1167950379 | J19: 224119066 | K19: 0 | L19: 1536091765
A20: 05 Abr.-Jun., 2019 | B20: Progreso Social Democrático (PSD) | C20: 0 | D20: 0 | E20: 0 | F20: 0 | G20: 0 | H20: 0 | I20: 0 | J20: 0 | K20: 0 | L20: 0
A21: 05 Abr.-Jun., 2019 | B21: Liberación Nacional (PLN) | C21: 59303672 | D21: 0 | E21: 796628796 | F21: 0 | G21: 855932468 | H21: 53883176 | I21: 772643761 | J21: 29405531 | K21: 0 | L21: 855932468
A22: 05 Abr.-Jun., 2019 | B22: Unidad Social Cristiana (PUSC) | C22: 4042756.4 | D22: 18213239.61 | E22: 34678651.63 | F22: 78237.65 | G22: 57420233.34 | H22: 57420233.34 | I22: 0 | J22: 0 | K22: 407348.05 | L22: 57420233.34
A23: 05 Abr.-Jun., 2019 | B23: Integración Nacional (PIN) | C23: 0 | D23: 0 | E23: 11369892.67 | F23: 0 | G23: 11369892.67 | H23: 2644086.22 | I23: 1832942.97 | J23: 6892863.58 | K23: 0 | L23: 11369892.77
A24: 05 Abr.-Jun., 2019 | B24: Auténtico Limonense | C24: 0 | D24: 0 | E24: 0 | F24: 0 | G24: 0 | H24: 0 | I24: 0 | J24: 0 | K24: 0 | L24: 0
A25: 05 Abr.-Jun., 2019 | B25: Unión Guanacasteca (Guanacaste) (PUG) | C25: 0 | D25: 0 | E25: 0 | F25: 0 | G25: 0 | H25: 0 | I25: 0 | J25: 0 | K25: 0 | L25: 0
A26: 05 Abr.-Jun., 2019 | B26: Republicano Social Cristiano (PRSC) | C26: 0 | D26: 55071683.64 | E26: 10530292.42 | F26: 71650933.89 | G26: 137252909.9 | H26: 137252909.9 | I26: 0 | J26: 0 | K26: 0 | L26: 137252909.9
A27: 08 Abr.-Jun., 2020 | B27: Frente Amplio (FA) | C27: 4996150 | D27: 0 | E27: 0 | F27: 70821533.28 | G27: 75817683.28 | H27: 38656427.03 | I27: 37161256.25 | J27: 0 | K27: 0 | L27: 75817683.28
A28: 08 Abr.-Jun., 2020 | B28: Restauración Nacional (PRN) | C28: 3113147 | D28: 136816533.2 | E28: 219028538.4 | F28: 0 | G28: 514165630.1 | H28: 353869431.6 | I28: 0 | J28: 160296198.5 | K28: 155207411.5 | L28: 514165630.1
A29: 08 Abr.-Jun., 2020 | B29: Progreso Social Democrático (PSD) | C29: 71949 | D29: 0 | E29: 0 | F29: 0 | G29: 71949 | H29: 71949 | I29: 0 | J29: 0 | K29: 0 | L29: 71949
A30: 08 Abr.-Jun., 2020 | B30: Acción Ciudadana (PAC) | C30: 16833068.17 | D30: 553904082 | E30: 0 | F30: 64095431 | G30: 634832581.2 | H30: 60052471 | I30: 0 | J30: 0 | K30: -95552978.82 | L30: 155605449.8
A31: 08 Abr.-Jun., 2020 | B31: Recuperando Valores (Limón) (PAREVA) | C31: 0 | D31: 0 | E31: 286.72 | F31: 299713.28 | G31: 300000 | H31: 300000 | I31: 0 | J31: 0 | K31: 0 | L31: 300000
A32: 08 Abr.-Jun., 2020 | B32: Liberal Progresista (PLP) | C32: 952821.1 | D32: 61000 | E32: 3815.2 | F32: 0 | G32: 1496079 | H32: 0 | I32: 0 | J32: 1651282.45 | K32: 478442.7 | L32: 1651282.45
A33: 08 Abr.-Jun., 2020 | B33: Unidad Social Cristiana (PUSC) | C33: 4005704.91 | D33: 0 | E33: 495714.84 | F33: 112022565.8 | G33: 720918532.7 | H33: 98051918.64 | I33: 622866614 | J33: 0 | K33: 604394547.1 | L33: 720918532.7
A34: 08 Abr.-Jun., 2020 | B34: Liberación Nacional (PLN) | C34: 250000 | D34: 0 | E34: 0 | F34: 53114592 | G34: 53364592 | H34: 44748028 | I34: 325864 | J34: 0 | K34: -8290700 | L34: 53364592
A35: 08 Abr.-Jun., 2020 | B35: Auténtico Limonense | C35: 30000 | D35: 724998.96 | E35: 0 | F35: 4995 | G35: 759993.96 | H35: 759993.96 | I35: 0 | J35: 0 | K35: 0 | L35: 759993.96
A36: 08 Abr.-Jun., 2020 | B36: Unión Guanacasteca (Guanacaste) (PUG) | C36: 0 | D36: 0 | E36: 0 | F36: 0 | G36: 0 | H36: 0 | I36: 0 | J36: 0 | K36: 0 | L36: 0
A37: 08 Abr.-Jun., 2020 | B37: Integración Nacional (PIN) | C37: 0 | D37: 0 | E37: 0 | F37: 0 | G37: 0 | H37: 0 | I37: 0 | J37: 0 | K37: 0 | L37: 0
A38: 08 Abr.-Jun., 2020 | B38: Republicano Social Cristiano (PRSC) | C38: 0 | D38: 0 | E38: 32957.53 | F38: 31911505.57 | G38: 31944463.1 | H38: 28382795.1 | I38: 3561668 | J38: 0 | K38: 0 | L38: 31944463.1
A39: 12 Abr.-Jun., 2021 | B39: Frente Amplio (FA) | C39: 2348553 | D39: 0 | E39: 116832855.8 | F39: 5228145.83 | G39: 124409554.7 | H39: 51808817.37 | I39: 41829085.65 | J39: 0 | K39: -30771651.64 | L39: 124409554.7
A40: 12 Abr.-Jun., 2021 | B40: Recuperando Valores (Limón) (PAREVA) | C40: 0 | D40: 0 | E40: 17002208.18 | F40: 30935.72 | G40: 17033143.9 | H40: 11154 | I40: 17021989.9 | J40: 0 | K40: 0 | L40: 17033143.9
A41: 12 Abr.-Jun., 2021 | B41: Restauración Nacional (PRN) | C41: 2611708.76 | D41: 0 | E41: 302716626.3 | F41: 25998880.08 | G41: 341517271 | H41: 187273144.6 | I41: 154244126.4 | J41: 0 | K41: 10190055.81 | L41: 341517271
A42: 12 Abr.-Jun., 2021 | B42: Nueva República (PNR) | C42: 5947323 | D42: 0 | E42: 0 | F42: 0 | G42: 6667323 | H42: 6153277.5 | I42: 0 | J42: 514045.5 | K42: 720000 | L42: 6667323
A43: 12 Abr.-Jun., 2021 | B43: Progreso Social Democrático (PSD) | C43: 370500 | D43: 0 | E43: 0 | F43: 0 | G43: 370500 | H43: 370500 | I43: 0 | J43: 0 | K43: 0 | L43: 370500
A44: 12 Abr.-Jun., 2021 | B44: Acción Ciudadana (PAC) | C44: 5113501 | D44: 0 | E44: 151494403.8 | F44: 0 | G44: 156607904.8 | H44: 93721125.88 | I44: 38760610 | J44: 21425357 | K44: -2700812.32 | L44: 156607905.2
A45: 12 Abr.-Jun., 2021 | B45: Liberal Progresista (PLP) | C45: 21783200 | D45: 0 | E45: 12525733.32 | F45: 0 | G45: 34308933.32 | H45: 14065059.98 | I45: 5613000 | J45: 14630873 | K45: 0 | L45: 34308932.98
A46: 12 Abr.-Jun., 2021 | B46: Unidad Social Cristiana (PUSC) | C46: 25236489.77 | D46: 0 | E46: 699663472.9 | F46: 0 | G46: 724899962.7 | H46: 168801747.7 | I46: 417897528.6 | J46: 138200686.4 | K46: 0 | L46: 724899962.7
A47: 12 Abr.-Jun., 2021 | B47: Liberación Nacional (PLN) | C47: 15128727 | D47: 0 | E47: 1118078008 | F47: 13596114 | G47: 1146802849 | H47: 466337224 | I47: 680465625 | J47: 0 | K47: 0 | L47: 1146802849
A48: 12 Abr.-Jun., 2021 | B48: Auténtico Limonense | C48: 405000 | D48: 0 | E48: 0 | F48: 0 | G48: 405000 | H48: 349011 | I48: 0 | J48: 55989 | K48: 0 | L48: 405000
A49: 12 Abr.-Jun., 2021 | B49: Unión Guanacasteca (Guanacaste) (PUG) | C49: 0 | D49: 8023749.05 | E49: 1656 | F49: 0 | G49: 8025405.05 | H49: 8020752 | I49: 0 | J49: 4653.05 | K49: 0 | L49: 8025405.05
A50: 12 Abr.-Jun., 2021 | B50: Integración Nacional (PIN) | C50: 0 | D50: 169243 | E50: 11007532.79 | F50: 1034609 | G50: 12211384.79 | H50: 12211384.9 | I50: 0 | J50: 0 | K50: 0 | L50: 12211384.9
A51: 12 Abr.-Jun., 2021 | B51: Republicano Social Cristiano (PRSC) | C51: 0 | D51: 0 | E51: 47624388.99 | F51: 0 | G51: 47624388.99 | H51: 14327453.03 | I51: 23441083.15 | J51: 9655852.81 | K51: -200000 | L51: 47624388.99
A52: 07 Campaña 2020 | B52: Frente Amplio (FA) | C52: 24739591.73 | D52: 29775708.8 | E52: 159842087.8 | F52: 0 | G52: 214357388.3 | H52: 163961486 | I52: 0 | J52: 50395902.37 | K52: 0 | L52: 214357388.3
A53: 07 Campaña 2020 | B53: Restauración Nacional (PRN) | C53: 15524317.67 | D53: 350821149.1 | E53: 777696756.5 | F53: 0 | G53: 1349024658 | H53: 1151092109 | I53: 0 | J53: 197932548.6 | K53: 204982434.5 | L53: 1349024658
A54: 07 Campaña 2020 | B54: Nueva República (PNR) | C54: 344837516.3 | D54: 614790052.5 | E54: 0 | F54: 0 | G54: 959627568.8 | H54: 735142731.5 | I54: 0 | J54: 224484837.3 | K54: 0 | L54: 959627568.8
A55: 07 Campaña 2020 | B55: Progreso Social Democrático (PSD) | C55: 119976 | D55: 0 | E55: 0 | F55: 0 | G55: 119976 | H55: 119976 | I55: 0 | J55: 0 | K55: 0 | L55: 119976
A56: 07 Campaña 2020 | B56: Acción Ciudadana (PAC) | C56: 43957907.87 | D56: 605594339.3 | E56: 478620784 | F56: 0 | G56: 1128173031 | H56: 529094575.9 | I56: 0 | J56: 5680250.2 | K56: -593398205 | L56: 1128173031
A57: 07 Campaña 2020 | B57: Recuperando Valores (Limón) (PAREVA) | C57: 80400 | D57: 20966235 | E57: 2543.06 | F57: 0 | G57: 21049178.06 | H57: 21048896.93 | I57: 0 | J57: 281.13 | K57: 0 | L57: 21049178.06
A58: 07 Campaña 2020 | B58: Liberación Nacional (PLN) | C58: 51016534 | D58: 2554119413 | E58: 89109271 | F58: 0 | G58: 2694245218 | H58: 2568418745 | I58: 0 | J58: 125826473 | K58: 0 | L58: 2694245218
A59: 07 Campaña 2020 | B59: Unidad Social Cristiana (PUSC) | C59: 22899232.96 | D59: 1072573402 | E59: 435897535 | F59: 0 | G59: 1531370170 | H59: 1219967407 | I59: 0 | J59: 307371289.5 | K59: -4031473.31 | L59: 1531370170
A60: 07 Campaña 2020 | B60: Auténtico Limonense | C60: 1440001 | D60: 24307247.07 | E60: 0.02 | F60: 0 | G60: 25747248.09 | H60: 25696667.77 | I60: 0 | J60: 50580.32 | K60: 0 | L60: 25747248.09
A61: 07 Campaña 2020 | B61: Unión Guanacasteca (Guanacaste) (PUG) | C61: 0 | D61: 12525000 | E61: 372.81 | F61: 81097.99 | G61: 12606470.8 | H61: 12606470.8 | I61: 0 | J61: 0 | K61: 0 | L61: 12606470.8
A62: 07 Campaña 2020 | B62: Integración Nacional (PIN) | C62: 47759574.76 | D62: 13999009.48 | E62: 42538125.89 | F62: 5653642.28 | G62: 116723344.7 | H62: 116723344.7 | I62: 0 | J62: 0 | K62: 6772992.29 | L62: 116723344.7
A63: 07 Campaña 2020 | B63: Republicano Social Cristiano (PRSC) | C63: 0 | D63: 380126098.6 | E63: 30965427.09 | F63: 0 | G63: 411091525.7 | H63: 376704939.4 | I63: 0 | J63: 34386586.29 | K63: 0 | L63: 411091525.7
A64: 04 Ene.-Mar., 2019 | B64: Frente Amplio (FA) | C64: 7047000 | D64: 0 | E64: 497300 | F64: 105261254.5 | G64: 112805554.5 | H64: 52685554.5 | I64: 59820000 | J64: 0 | K64: -300000 | L64: 112805554.5
A65: 04 Ene.-Mar., 2019 | B65: Recuperando Valores (Limón) (PAREVA) | C65: 0 | D65: 0 | E65: 0 | F65: 0 | G65: 0 | H65: 0 | I65: 0 | J65: 0 | K65: 0 | L65: 0
A66: 04 Ene.-Mar., 2019 | B66: Restauración Nacional (PRN) | C66: 1109494 | D66: 195872653.7 | E66: 1434508.55 | F66: 0 | G66: 198563916.9 | H66: 159083710 | I66: 0 | J66: 39480206.9 | K66: 147260.66 | L66: 198563916.9
A67: 04 Ene.-Mar., 2019 | B67: Acción Ciudadana (PAC) | C67: 14317247 | D67: 0 | E67: 1408941455 | F67: 0 | G67: 1423258702 | H67: 111361939 | I67: 1254076216 | J67: 57820548 | K67: 0 | L67: 1423258703
A68: 04 Ene.-Mar., 2019 | B68: Progreso Social Democrático (PSD) | C68: 0 | D68: 0 | E68: 0 | F68: 0 | G68: 0 | H68: 0 | I68: 0 | J68: 0 | K68: 0 | L68: 0
A69: 04 Ene.-Mar., 2019 | B69: Unidad Social Cristiana (PUSC) | C69: 9147180.17 | D69: 0 | E69: 3494479119 | F69: 131021538.8 | G69: 3634647838 | H69: 190452349.4 | I69: 3444195489 | J69: 0 | K69: 0 | L69: 3634647838
A70: 04 Ene.-Mar., 2019 | B70: Liberación Nacional (PLN) | C70: 0 | D70: 0 | E70: 1898494760 | F70: 10702803 | G70: 1909197563 | H70: 83299447 | I70: 1825898116 | J70: 0 | K70: 0 | L70: 1909197563
A71: 04 Ene.-Mar., 2019 | B71: Integración Nacional (PIN) | C71: 0 | D71: 6574110 | E71: 0 | F71: 131584.54 | G71: 6705694.54 | H71: 6705694.54 | I71: 0 | J71: 0 | K71: 0 | L71: 6705694.54
A72: 04 Ene.-Mar., 2019 | B72: Auténtico Limonense | C72: 0 | D72: 0 | E72: 0 | F72: 0 | G72: 0 | H72: 0 | I72: 0 | J72: 0 | K72: 0 | L72: 0
A73: 04 Ene.-Mar., 2019 | B73: Unión Guanacasteca (Guanacaste) (PUG) | C73: 450000 | D73: 88056087.95 | E73: 0 | F73: 0 | G73: 88506087.95 | H73: 88398834.98 | I73: 0 | J73: 107252.97 | K73: 0 | L73: 88506087.95
A74: 04 Ene.-Mar., 2019 | B74: Republicano Social Cristiano (PRSC) | C74: 62000 | D74: 0 | E74: 219353482.8 | F74: 200810086.3 | G74: 420225569.1 | H74: 197100569.1 | I74: 223125000 | J74: 0 | K74: 0 | L74: 420225569.1
A75: 11 Ene.-Mar., 2021 | B75: Frente Amplio (FA) | C75: 6471777.14 | D75: 17065683.44 | E75: 470000 | F75: 0 | G75: 24007460.58 | H75: 22421346.66 | I75: 0 | J75: 1586113.92 | K75: 0 | L75: 24007460.58
A76: 11 Ene.-Mar., 2021 | B76: Recuperando Valores (Limón) (PAREVA) | C76: 0 | D76: 0 | E76: 0 | F76: 0 | G76: 0 | H76: 0 | I76: 0 | J76: 0 | K76: 0 | L76: 0
A77: 11 Ene.-Mar., 2021 | B77: Restauración Nacional (PRN) | C77: 26285423.08 | D77: 135428732.2 | E77: 630167.94 | F77: 0 | G77: 162344323.2 | H77: 134575965.6 | I77: 0 | J77: 5043357.58 | K77: -22724999 | L77: 162344322.2
A78: 11 Ene.-Mar., 2021 | B78: Nueva República (PNR) | C78: -35000 | D78: 0 | E78: 8874.35 | F78: 215429216.2 | G78: 215403090.6 | H78: 108249645.3 | I78: 107153445.3 | J78: 0 | K78: 0 | L78: 215403090.6
A79: 11 Ene.-Mar., 2021 | B79: Progreso Social Democrático (PSD) | C79: 400050 | D79: 0 | E79: 0 | F79: 0 | G79: 400050 | H79: 400050 | I79: 0 | J79: 0 | K79: 0 | L79: 400050
A80: 11 Ene.-Mar., 2021 | B80: Acción Ciudadana (PAC) | C80: -10598778.17 | D80: 0 | E80: 22209030.25 | F80: 123217195 | G80: 134827447.1 | H80: 91869314.12 | I80: 37355492 | J80: 0 | K80: -5602642 | L80: 134827448.1
A81: 11 Ene.-Mar., 2021 | B81: Liberal Progresista (PLP) | C81: 2157500 | D81: 0 | E81: 17209.3 | F81: 2021228.94 | G81: 4195938.24 | H81: 1705938.24 | I81: 2490000 | J81: 0 | K81: 0 | L81: 4195938.24
A82: 11 Ene.-Mar., 2021 | B82: Unidad Social Cristiana (PUSC) | C82: 4015430 | D82: 0 | E82: 678174355 | F82: 13749383.02 | G82: 695939168 | H82: 65105090.85 | I82: 630834077.2 | J82: 0 | K82: 0 | L82: 695939168.1
A83: 11 Ene.-Mar., 2021 | B83: Liberación Nacional (PLN) | C83: 573000 | D83: 0 | E83: 1173005902 | F83: 70097090 | G83: 1243675992 | H83: 99064860 | I83: 1144611132 | J83: 0 | K83: 0 | L83: 1243675992
A84: 11 Ene.-Mar., 2021 | B84: Auténtico Limonense | C84: 390000 | D84: 0 | E84: 0 | F84: 0 | G84: 390000 | H84: 378235 | I84: 0 | J84: 11765 | K84: 0 | L84: 390000
A85: 11 Ene.-Mar., 2021 | B85: Unión Guanacasteca (Guanacaste) (PUG) | C85: 0 | D85: 0 | E85: 0 | F85: 0 | G85: 0 | H85: 0 | I85: 0 | J85: 0 | K85: 0 | L85: 0
A86: 11 Ene.-Mar., 2021 | B86: Integración Nacional (PIN) | C86: 34000 | D86: 0 | E86: 58545413.85 | F86: 0 | G86: 58579413.85 | H86: 18645054.82 | I86: 24103598.28 | J86: 15830760.75 | K86: 0 | L86: 58579413.85
A87: 11 Ene.-Mar., 2021 | B87: Republicano Social Cristiano (PRSC) | C87: 0 | D87: 3260933.7 | E87: 0 | F87: 1399.52 | G87: 3262333.22 | H87: 3262333.22 | I87: 0 | J87: 0 | K87: 0 | L87: 3262333.22
A88: 02 Jul.-Set., 2018 | B88: Frente Amplio (FA) | C88: 6833115 | D88: 0 | E88: 1324800.87 | F88: 51988078.32 | G88: 60145994.19 | H88: 50186416.07 | I88: 9959578.12 | J88: 0 | K88: 0 | L88: 60145994.19
A89: 02 Jul.-Set., 2018 | B89: Recuperando Valores (Limón) (PAREVA) | C89: 0 | D89: 0 | E89: 0 | F89: 0 | G89: 0 | H89: 0 | I89: 0 | J89: 0 | K89: 0 | L89: 0
A90: 02 Jul.-Set., 2018 | B90: Restauración Nacional (PRN) | C90: 25070914.58 | D90: 245650103.5 | E90: 912883.04 | F90: 0 | G90: 271633901.1 | H90: 152275454.5 | I90: 0 | J90: 119358446.6 | K90: 0 | L90: 271633901.1
A91: 02 Jul.-Set., 2018 | B91: Acción Ciudadana (PAC) | C91: 17550047 | D91: 72888339 | E91: 25625 | F91: 7737750 | G91: 98201761 | H91: 98201762 | I91: 0 | J91: 0 | K91: 0 | L91: 98201762
A92: 02 Jul.-Set., 2018 | B92: Nueva República (PNR) | C92: 0 | D92: 0 | E92: 0 | F92: 0 | G92: 0 | H92: 0 | I92: 0 | J92: 0 | K92: 0 | L92: 0
A93: 02 Jul.-Set., 2018 | B93: Progreso Social Democrático (PSD) | C93: 0 | D93: 0 | E93: 0 | F93: 0 | G93: 0 | H93: 0 | I93: 0 | J93: 0 | K93: 0 | L93: 0
A94: 02 Jul.-Set., 2018 | B94: Unidad Social Cristiana (PUSC) | C94: 0 | D94: 0 | E94: 124953.58 | F94: 193721238 | G94: 193846191.6 | H94: 162398228.3 | I94: 11953501.82 | J94: 0 | K94: -19494461.46 | L94: 193846191.6
A95: 02 Jul.-Set., 2018 | B95: Liberación Nacional (PLN) | C95: -4000 | D95: 9311804 | E95: 18901738 | F95: 46969604 | G95: 75179146 | H95: 75179146 | I95: 0 | J95: 0 | K95: 0 | L95: 75179146
A96: 02 Jul.-Set., 2018 | B96: Integración Nacional (PIN) | C96: 0 | D96: 1643411 | E96: 0 | F96: 612048.63 | G96: 2255459.63 | H96: 2005459.63 | I96: 0 | J96: 0 | K96: -250000 | L96: 2255459.63
A97: 02 Jul.-Set., 2018 | B97: Auténtico Limonense | C97: 0 | D97: 0 | E97: 0 | F97: 0 | G97: 0 | H97: 0 | I97: 0 | J97: 0 | K97: 0 | L97: 0
A98: 02 Jul.-Set., 2018 | B98: Unión Guanacasteca (Guanacaste) (PUG) | C98: 0 | D98: 0 | E98: 0 | F98: 0 | G98: 0 | H98: 0 | I98: 0 | J98: 0 | K98: 0 | L98: 0
A99: 02 Jul.-Set., 2018 | B99: Republicano Social Cristiano (PRSC) | C99: 591000 | D99: 4410000 | E99: 1880.45 | F99: 213782.17 | G99: 5216662.62 | H99: 5216662.62 | I99: 0 | J99: 0 | K99: 0 | L99: 5216662.62
A100: 06 Jul.-Set., 2019 | B100: Recuperando Valores (Limón) (PAREVA) | C100: 0 | D100: 0 | E100: 0 | F100: 0 | G100: 0 | H100: 0 | I100: 0 | J100: 0 | K100: 0 | L100: 0
A101: 06 Jul.-Set., 2019 | B101: Frente Amplio (FA) | C101: 7669103 | D101: 0 | E101: 108455268.6 | F101: 0 | G101: 116124371.6 | H101: 56014551.55 | I101: 22362000 | J101: 37747820.09 | K101: 0 | L101: 116124371.6
A102: 06 Jul.-Set., 2019 | B102: Restauración Nacional (PRN) | C102: 3243147.02 | D102: 43154538.38 | E102: 125778147.3 | F102: 15112654.53 | G102: 188022473.5 | H102: 188022473.5 | I102: 0 | J102: 0 | K102: 733986.24 | L102: 188022473.5
A103: 06 Jul.-Set., 2019 | B103: Nueva República (PNR) | C103: 0 | D103: 0 | E103: 0 | F103: 0 | G103: 0 | H103: 0 | I103: 0 | J103: 0 | K103: 0 | L103: 0
A104: 06 Jul.-Set., 2019 | B104: Acción Ciudadana (PAC) | C104: 9619258 | D104: 0 | E104: 190487322 | F104: 0 | G104: 200106580 | H104: 119546759 | I104: 60486401 | J104: 13153454 | K104: -6919966 | L104: 200106580
A105: 06 Jul.-Set., 2019 | B105: Progreso Social Democrático (PSD) | C105: 0 | D105: 0 | E105: 0 | F105: 0 | G105: 0 | H105: 0 | I105: 0 | J105: 0 | K105: 0 | L105: 0
A106: 06 Jul.-Set., 2019 | B106: Liberación Nacional (PLN) | C106: 0 | D106: 0 | E106: 262789840 | F106: 0 | G106: 262789840 | H106: 148831333 | I106: 76809098 | J106: 37149409 | K106: 0 | L106: 262789840
A107: 06 Jul.-Set., 2019 | B107: Unidad Social Cristiana (PUSC) | C107: 3224093.34 | D107: 0 | E107: 54904530.61 | F107: 3977880.41 | G107: 62106504.36 | H107: 58408165.21 | I107: 3698339.15 | J107: 0 | K107: 0 | L107: 62106504.36
A108: 06 Jul.-Set., 2019 | B108: Integración Nacional (PIN) | C108: 100000 | D108: 0 | E108: 618048.08 | F108: 8715362.21 | G108: 9433410.29 | H108: 6008247.3 | I108: 3097520.56 | J108: 0 | K108: -327642.43 | L108: 9433410.29
A109: 06 Jul.-Set., 2019 | B109: Auténtico Limonense | C109: 0 | D109: 0 | E109: 0 | F109: 0 | G109: 0 | H109: 0 | I109: 0 | J109: 0 | K109: 0 | L109: 0
A110: 06 Jul.-Set., 2019 | B110: Unión Guanacasteca (Guanacaste) (PUG) | C110: 0 | D110: 0 | E110: 0 | F110: 0 | G110: 0 | H110: 0 | I110: 0 | J110: 0 | K110: 0 | L110: 0
A111: 06 Jul.-Set., 2019 | B111: Republicano Social Cristiano (PRSC) | C111: 245000 | D111: 0 | E111: 45997348.63 | F111: 0 | G111: 46242348.63 | H111: 16317379.99 | I111: 26530500 | J111: 3394468.64 | K111: 0 | L111: 46242348.63
A112: 09 Jul.-Set., 2020 | B112: Frente Amplio (FA) | C112: 5474500 | D112: 21632151.55 | E112: 0 | F112: 290513.64 | G112: 27397165.19 | H112: 27397165.19 | I112: 0 | J112: 0 | K112: 0 | L112: 27397165.19
A113: 09 Jul.-Set., 2020 | B113: Recuperando Valores (Limón) (PAREVA) | C113: 0 | D113: 0 | E113: 0 | F113: 0 | G113: 0 | H113: 0 | I113: 0 | J113: 0 | K113: 0 | L113: 0
A114: 09 Jul.-Set., 2020 | B114: Restauración Nacional (PRN) | C114: 2832037.01 | D114: 656318.11 | E114: 597262.03 | F114: 72576516.54 | G114: 76662133.72 | H114: 76662133.72 | I114: 0 | J114: 0 | K114: 0.03 | L114: 76662133.72
A115: 09 Jul.-Set., 2020 | B115: Nueva República (PNR) | C115: 0 | D115: 0 | E115: 0 | F115: 3002400 | G115: 3002400 | H115: 752400 | I115: 2250000 | J115: 0 | K115: 0 | L115: 3002400
A116: 09 Jul.-Set., 2020 | B116: Progreso Social Democrático (PSD) | C116: 67700 | D116: 0 | E116: 0 | F116: 0 | G116: 67700 | H116: 67700 | I116: 0 | J116: 0 | K116: 0 | L116: 67700
A117: 09 Jul.-Set., 2020 | B117: Acción Ciudadana (PAC) | C117: 8626399.19 | D117: 0 | E117: 115320488.3 | F117: 20581929 | G117: 144528816.5 | H117: 112169667.7 | I117: 32246117 | J117: 0 | K117: -113031 | L117: 144528815.7
A118: 09 Jul.-Set., 2020 | B118: Liberal Progresista (PLP) | C118: 469000 | D118: 0 | E118: 11041.65 | F118: 327398.35 | G118: 807440 | H118: 807440 | I118: 0 | J118: 0 | K118: 0 | L118: 807440
A119: 09 Jul.-Set., 2020 | B119: Unidad Social Cristiana (PUSC) | C119: 55000 | D119: 0 | E119: 441743.48 | F119: 72008656.25 | G119: 72505399.73 | H119: 69388369.99 | I119: 207030.39 | J119: 0 | K119: -2909999.35 | L119: 72505399.73
A120: 09 Jul.-Set., 2020 | B120: Liberación Nacional (PLN) | C120: 580400 | D120: 1884220 | E120: 4630171 | F120: 51341445 | G120: 58436236 | H120: 58436236 | I120: 0 | J120: 0 | K120: 0 | L120: 58436236
A121: 09 Jul.-Set., 2020 | B121: Auténtico Limonense | C121: 0 | D121: 0 | E121: 0 | F121: 0 | G121: 0 | H121: 0 | I121: 0 | J121: 0 | K121: 0 | L121: 0
A122: 09 Jul.-Set., 2020 | B122: Unión Guanacasteca (Guanacaste) (PUG) | C122: 0 | D122: 0 | E122: 0 | F122: 0 | G122: 0 | H122: 0 | I122: 0 | J122: 0 | K122: 0 | L122: 0
A123: 09 Jul.-Set., 2020 | B123: Integración Nacional (PIN) | C123: 0 | D123: 0 | E123: 7341563.81 | F123: 5046790.74 | G123: 12388354.55 | H123: 8753454.62 | I123: 3634900 | J123: 0 | K123: 0 | L123: 12388354.62
A124: 09 Jul.-Set., 2020 | B124: Republicano Social Cristiano (PRSC) | C124: 0 | D124: 0 | E124: 9072763.19 | F124: 0 | G124: 9072793.19 | H124: 8933107.84 | I124: 128741 | J124: 10944.35 | K124: 30 | L124: 9072793.19
A125: 13 Jul.-Set., 2021 | B125: Nuevo Partido Socialista (San José) (NPS-SJ) | C125: 0 | D125: 0 | E125: 0 | F125: 0 | G125: 0 | H125: 0 | I125: 0 | J125: 0 | K125: 0 | L125: 0
A126: 13 Jul.-Set., 2021 | B126: Nuevo Partido Socialista (Cartago) (NPS-C) | C126: 0 | D126: 0 | E126: 0 | F126: 0 | G126: 0 | H126: 0 | I126: 0 | J126: 0 | K126: 0 | L126: 0
A127: 13 Jul.-Set., 2021 | B127: Acción Ciudadana (PAC) | C127: 5448495 | D127: 0 | E127: 435684077 | F127: 0 | G127: 441132572 | H127: 154965945 | I127: 268885697.7 | J127: 13779148 | K127: -3501780.59 | L127: 441132571.3
A128: 13 Jul.-Set., 2021 | B128: Integración Nacional (PIN) | C128: 0 | D128: 0 | E128: 13995297.93 | F128: 1573500.33 | G128: 15568798.26 | H128: 14785104.06 | I128: 783694.2 | J128: 0 | K128: 0 | L128: 15568798.26
A129: 13 Jul.-Set., 2021 | B129: Nuestro Pueblo (PNP) | C129: 0 | D129: 0 | E129: 0 | F129: 0 | G129: 0 | H129: 0 | I129: 0 | J129: 0 | K129: 0 | L129: 0
A130: 13 Jul.-Set., 2021 | B130: Liberal Progresista (PLP) | C130: 150834746 | D130: 2531288.45 | E130: 610176.61 | F130: 0 | G130: 153976211.1 | H130: 142976321.5 | I130: 0 | J130: 10999889.57 | K130: 0 | L130: 153976211.1
A131: 13 Jul.-Set., 2021 | B131: Fuerza Nacional (PFN) | C131: 10380000 | D131: 7950809.77 | E131: 0.07 | F131: 0 | G131: 18330809.84 | H131: 16997646.59 | I131: 0 | J131: 1333163.25 | K131: 0 | L131: 18330809.84
A132: 13 Jul.-Set., 2021 | B132: Actuemos Ya (Cartago) (PAY) | C132: 216000 | D132: 150000 | E132: 109.71 | F132: 356341.43 | G132: 722451.14 | H132: 722451.14 | I132: 0 | J132: 0 | K132: 0 | L132: 722451.14
A133: 13 Jul.-Set., 2021 | B133: Unión Liberal (PUL) | C133: 0 | D133: 0 | E133: 1650000 | F133: 0 | G133: 1650000 | H133: 0 | I133: 0 | J133: 1650000 | K133: 0 | L133: 1650000
A134: 13 Jul.-Set., 2021 | B134: Liberación Nacional (PLN) | C134: 97175000 | D134: 0 | E134: 200006072 | F134: 29885994 | G134: 327067397 | H134: 289797554 | I134: 37269843 | J134: 0 | K134: 331 | L134: 327067397
A135: 13 Jul.-Set., 2021 | B135: Republicano Social Cristiano (PRSC) | C135: 493369.38 | D135: 2109508.55 | E135: 936020 | F135: 618080.64 | G135: 4156978.57 | H135: 4156978.57 | I135: 0 | J135: 0 | K135: 0 | L135: 4156978.57
A136: 13 Jul.-Set., 2021 | B136: De los Trabajadores (PT) | C136: 0 | D136: 0 | E136: 0 | F136: 0 | G136: 0 | H136: 0 | I136: 0 | J136: 0 | K136: 0 | L136: 0
A137: 13 Jul.-Set., 2021 | B137: Costa Rica Justa (CRJ) | C137: 2427760.35 | D137: 0 | E137: 0 | F137: 0 | G137: 2427760.35 | H137: 2427760.35 | I137: 0 | J137: 0 | K137: 0 | L137: 2427760.35
A138: 13 Jul.-Set., 2021 | B138: Izquierda Costarricense (Limón) (IZCO) | C138: 0 | D138: 0 | E138: 0 | F138: 0 | G138: 0 | H138: 0 | I138: 0 | J138: 0 | K138: 0 | L138: 0
A139: 13 Jul.-Set., 2021 | B139: Frente Amplio (FA) | C139: 6438100 | D139: 0 | E139: 50664875.82 | F139: 20882035.38 | G139: 77985011.2 | H139: 49490173.69 | I139: 28494837.51 | J139: 0 | K139: 0 | L139: 77985011.2
A140: 13 Jul.-Set., 2021 | B140: Pueblo Unido (PU) | C140: 0 | D140: 0 | E140: 0 | F140: 0 | G140: 0 | H140: 0 | I140: 0 | J140: 0 | K140: 0 | L140: 0
A141: 13 Jul.-Set., 2021 | B141: Unión Costarricense Democrática (PUCD) | C141: 0 | D141: 0 | E141: 0 | F141: 0 | G141: 0 | H141: 0 | I141: 0 | J141: 0 | K141: 0 | L141: 0
A142: 13 Jul.-Set., 2021 | B142: Somos (Alajuela) (SOMOS) | C142: 0 | D142: 0 | E142: 0 | F142: 0 | G142: 0 | H142: 0 | I142: 0 | J142: 0 | K142: 0 | L142: 0
A143: 13 Jul.-Set., 2021 | B143: Restauración Nacional (PRN) | C143: 2570474.04 | D143: 85319589.19 | E143: 94607375.09 | F143: 0 | G143: 182497438.3 | H143: 145811502.6 | I143: 0 | J143: 36591943.69 | K143: -93992.05 | L143: 182497438.3
A144: 13 Jul.-Set., 2021 | B144: Unidad Social Cristiana (PUSC) | C144: 22036160.71 | D144: 0 | E144: 52565605.48 | F144: 53379837.09 | G144: 127981603.3 | H144: 58626038.28 | I144: 69355565 | J144: 0 | K144: 0 | L144: 127981603.3
A145: 13 Jul.-Set., 2021 | B145: Accesibilidad sin Exclusión (PASE) | C145: 0 | D145: 0 | E145: 0 | F145: 0 | G145: 0 | H145: 0 | I145: 0 | J145: 0 | K145: 0 | L145: 0
A146: 13 Jul.-Set., 2021 | B146: Unidos Podemos (UP) | C146: 0 | D146: 228825 | E146: 250000 | F146: 3606087.93 | G146: 4084912.93 | H146: 4084912.93 | I146: 0 | J146: 0 | K146: 0 | L146: 4084912.93
A147: 13 Jul.-Set., 2021 | B147: Renovación Cartago (Cartago) (PRCA) | C147: 0 | D147: 0 | E147: 0 | F147: 0 | G147: 0 | H147: 0 | I147: 0 | J147: 0 | K147: 0 | L147: 0
A148: 13 Jul.-Set., 2021 | B148: Justicia Social Costarricense (PJSC) | C148: 195657.54 | D148: 25307424.65 | E148: 22385204.84 | F148: 0 | G148: 47888287.03 | H148: 1069161.49 | I148: 0 | J148: 46819125.54 | K148: 0 | L148: 47888287.03
A149: 13 Jul.-Set., 2021 | B149: Unidos por Costa Rica (San José) (PUPCR) | C149: 0 | D149: 0 | E149: 0 | F149: 0 | G149: 0 | H149: 0 | I149: 0 | J149: 0 | K149: 0 | L149: 0
A150: 13 Jul.-Set., 2021 | B150: Unión Guanacasteca (Guanacaste) (PUG) | C150: 0 | D150: 0 | E150: 12350698 | F150: 556 | G150: 12351254 | H150: 1501254 | I150: 10850000 | J150: 0 | K150: 0 | L150: 12351254
A151: 13 Jul.-Set., 2021 | B151: Nueva República (PNR) | C151: 8475734.91 | D151: 21786811.56 | E151: 0 | F151: 2871953.56 | G151: 33134500.03 | H151: 33134500.03 | I151: 0 | J151: 0 | K151: 0 | L151: 33134500.03
A152: 13 Jul.-Set., 2021 | B152: Encuentro Nacional (PEN) | C152: 0 | D152: 0 | E152: 0 | F152: 0 | G152: 0 | H152: 0 | I152: 0 | J152: 0 | K152: 0 | L152: 0
A153: 13 Jul.-Set., 2021 | B153: Movimiento Social Demócrata Costarricense (MSDC) | C153: 0 | D153: 0 | E153: 0 | F153: 0 | G153: 0 | H153: 0 | I153: 0 | J153: 0 | K153: 0 | L153: 0
A154: 13 Jul.-Set., 2021 | B154: Nuevo Partido Socialista (San José) (NPS-SJ) | C154: 0 | D154: 0 | E154: 0 | F154: 0 | G154: 0 | H154: 0 | I154: 0 | J154: 0 | K154: 0 | L154: 0
A155: 13 Jul.-Set., 2021 | B155: Nuevo Partido Socialista (Cartago) (NPS-C) | C155: 0 | D155: 0 | E155: 0 | F155: 0 | G155: 0 | H155: 0 | I155: 0 | J155: 0 | K155: 0 | L155: 0
A156: 13 Jul.-Set., 2021 | B156: Vamos (San José) (VAMOS) | C156: 1051010 | D156: 0 | E156: 25829 | F156: 0 | G156: 1076839 | H156: 217400 | I156: 0 | J156: 859439 | K156: 0 | L156: 1076839
A157: 13 Jul.-Set., 2021 | B157: Recuperando Valores (Limón) (PAREVA) | C157: 0 | D157: 17000 | E157: 0 | F157: 0 | G157: 17000 | H157: 14328.4 | I157: 0 | J157: 2671.6 | K157: 0 | L157: 17000
A158: 13 Jul.-Set., 2021 | B158: Movimiento Libertario (PML) | C158: 0 | D158: 479456938.5 | E158: 2876085.74 | F158: 0 | G158: 482333024.3 | H158: 334691922.9 | I158: 0 | J158: 147641101.3 | K158: 0 | L158: 482333024.3
A159: 13 Jul.-Set., 2021 | B159: Alianza Demócrata Cristiana (ADC) | C159: 1547850 | D159: 0 | E159: 0 | F159: 2190919.9 | G159: 3738769.9 | H159: 3738769.9 | I159: 0 | J159: 0 | K159: 0 | L159: 3738769.9
A160: 13 Jul.-Set., 2021 | B160: Nueva Generación (PNG) | C160: 0 | D160: 0 | E160: 7729570.2 | F160: 0 | G160: 7729570.2 | H160: 500000 | I160: 0 | J160: 7229570.2 | K160: 0 | L160: 7729570.2
A161: 13 Jul.-Set., 2021 | B161: Progreso Social Democrático (PSD) | C161: 60083075 | D161: 0 | E161: 0 | F161: 0 | G161: 60083075 | H161: 60063075 | I161: 0 | J161: 20000 | K161: 0 | L161: 60083075
A162: 13 Jul.-Set., 2021 | B162: Auténtico Limonense | C162: 0 | D162: 0 | E162: 734750 | F162: 0 | G162: 734750 | H162: 119904 | I162: 500000 | J162: 114846 | K162: 0 | L162: 734750
A163: 03 Oct.-Dic., 2018 | B163: Frente Amplio (FA) | C163: 7254966.23 | D163: 0 | E163: 576868475.9 | F163: 0 | G163: 584123442.1 | H163: 63484242.8 | I163: 466662985.9 | J163: 53838713.5 | K163: -137500 | L163: 584123442.2
A164: 03 Oct.-Dic., 2018 | B164: Recuperando Valores (Limón) (PAREVA) | C164: 0 | D164: 0 | E164: 0 | F164: 0 | G164: 0 | H164: 0 | I164: 0 | J164: 0 | K164: 0 | L164: 0
A165: 03 Oct.-Dic., 2018 | B165: Restauración Nacional (PRN) | C165: -5000 | D165: 72104154.9 | E165: 1140830.16 | F165: 101912612.5 | G165: 175152597.5 | H165: 175005336.9 | I165: 0 | J165: 0 | K165: -147260.66 | L165: 175152597.5
A166: 03 Oct.-Dic., 2018 | B166: Acción Ciudadana (PAC) | C166: 17986676 | D166: 69536192 | E166: 24030 | F166: 11488051 | G166: 99034949 | H166: 99034948 | I166: 0 | J166: 0 | K166: 0 | L166: 99034948
A167: 03 Oct.-Dic., 2018 | B167: Nueva República (PNR) | C167: 0 | D167: 0 | E167: 0 | F167: 0 | G167: 0 | H167: 0 | I167: 0 | J167: 0 | K167: 0 | L167: 0
A168: 03 Oct.-Dic., 2018 | B168: Progreso Social Democrático (PSD) | C168: 0 | D168: 0 | E168: 0 | F168: 0 | G168: 0 | H168: 0 | I168: 0 | J168: 0 | K168: 0 | L168: 0
A169: 03 Oct.-Dic., 2018 | B169: Unidad Social Cristiana (PUSC) | C169: 0 | D169: 0 | E169: 31935520.23 | F169: 116656764.9 | G169: 257997812.9 | H169: 160817788.7 | I169: 97180024.19 | J169: 0 | K169: 109405527.8 | L169: 257997812.9
A170: 03 Oct.-Dic., 2018 | B170: Liberación Nacional (PLN) | C170: 0 | D170: 0 | E170: 2200036610 | F170: 0 | G170: 2200036610 | H170: 94776400 | I170: 1996224334 | J170: 109035876 | K170: 0 | L170: 2200036610
A171: 03 Oct.-Dic., 2018 | B171: Integración Nacional (PIN) | C171: 0 | D171: 1298545 | E171: 0 | F171: 223566.2 | G171: 1522111.2 | H171: 1522111.2 | I171: 0 | J171: 0 | K171: 0 | L171: 1522111.2
A172: 03 Oct.-Dic., 2018 | B172: Auténtico Limonense | C172: 0 | D172: 0 | E172: 0 | F172: 0 | G172: 0 | H172: 0 | I172: 0 | J172: 0 | K172: 0 | L172: 0
A173: 03 Oct.-Dic., 2018 | B173: Unión Guanacasteca (Guanacaste) (PUG) | C173: 0 | D173: 0 | E173: 0 | F173: 0 | G173: 0 | H173: 0 | I173: 0 | J173: 0 | K173: 0 | L173: 0
A174: 03 Oct.-Dic., 2018 | B174: Republicano Social Cristiano (PRSC) | C174: 537600 | D174: 2519500 | E174: 254.95 | F174: 2977730.04 | G174: 7025584.99 | H174: 7025584.99 | I174: 0 | J174: 0 | K174: 990500 | L174: 7025584.99
A175: 10 Oct.-Dic., 2020 | B175: Frente Amplio (FA) | C175: 6986500 | D175: 26170497.15 | E175: 0 | F175: 7986745.98 | G175: 41143743.13 | H175: 33819661.9 | I175: 0 | J175: 0 | K175: -7324081.23 | L175: 41143743.13
A176: 10 Oct.-Dic., 2020 | B176: Recuperando Valores (Limón) (PAREVA) | C176: 339000 | D176: 0 | E176: 0 | F176: 2456 | G176: 341456 | H176: 341456 | I176: 0 | J176: 0 | K176: 0 | L176: 341456
A177: 10 Oct.-Dic., 2020 | B177: Restauración Nacional (PRN) | C177: 952225.36 | D177: 0 | E177: 625779.19 | F177: 206026157.3 | G177: 208600834.6 | H177: 88819567.67 | I177: 119781267 | J177: 0 | K177: 996672.77 | L177: 208600834.6
A178: 10 Oct.-Dic., 2020 | B178: Nueva República (PNR) | C178: 0 | D178: 0 | E178: 0 | F178: 500000 | G178: 500000 | H178: 500000 | I178: 0 | J178: 0 | K178: 0 | L178: 500000
A179: 10 Oct.-Dic., 2020 | B179: Progreso Social Democrático (PSD) | C179: 272373 | D179: 0 | E179: 0 | F179: 0 | G179: 272373 | H179: 272373 | I179: 0 | J179: 0 | K179: 0 | L179: 272373
A180: 10 Oct.-Dic., 2020 | B180: Acción Ciudadana (PAC) | C180: 10659944.81 | D180: 0 | E180: 210608615.7 | F180: 0 | G180: 221268560.5 | H180: 87778532.35 | I180: 41131029 | J180: 87967085 | K180: -4391914.82 | L180: 221268561.2
A181: 10 Oct.-Dic., 2020 | B181: Liberal Progresista (PLP) | C181: 3419705 | D181: 0 | E181: 232063.95 | F181: 0 | G181: 3651768.95 | H181: 735200 | I181: 0 | J181: 2916568.95 | K181: 0 | L181: 3651768.95
A182: 10 Oct.-Dic., 2020 | B182: Liberación Nacional (PLN) | C182: 3880000 | D182: 0 | E182: 835274271 | F182: 0 | G182: 839154271 | H182: 14672728 | I182: 628779159 | J182: 141896319 | K182: -53806065 | L182: 839154271
A183: 10 Oct.-Dic., 2020 | B183: Unidad Social Cristiana (PUSC) | C183: 0 | D183: 1183998.71 | E183: 14556587.4 | F183: 51488866.03 | G183: 67229452.14 | H183: 67229452.14 | I183: 0 | J183: 0 | K183: 0 | L183: 67229452.14
A184: 10 Oct.-Dic., 2020 | B184: Auténtico Limonense | C184: 415000 | D184: 500000 | E184: 0 | F184: 0 | G184: 915000 | H184: 737192 | I184: 0 | J184: 177808 | K184: 0 | L184: 915000
A185: 10 Oct.-Dic., 2020 | B185: Unión Guanacasteca (Guanacaste) (PUG) | C185: 0 | D185: 1500000 | E185: 0 | F185: 0 | G185: 1500000 | H185: 1500000 | I185: 0 | J185: 0 | K185: 0 | L185: 1500000
A186: 10 Oct.-Dic., 2020 | B186: Integración Nacional (PIN) | C186: 0 | D186: 9776623.48 | E186: 7927730.89 | F186: 0 | G186: 17704354.37 | H186: 13229521.57 | I186: 0 | J186: 4474832.73 | K186: 0 | L186: 17704354.3
A187: 10 Oct.-Dic., 2020 | B187: Republicano Social Cristiano (PRSC) | C187: 0 | D187: 10259493.14 | E187: 6582.18 | F187: 8425781.83 | G187: 18691857.15 | H187: 18691827.15 | I187: 0 | J187: 0 | K187: 0 | L187: 18691827.15

Sheet Hoja5 (hidden)
A1: Nombre del partido político2 | B1: Periodo de reporte2 | C1: Monto de donaciones recibidas | D1: Incremento en el rubro de pasivo | E1: Monto de Ingresos Recibidos | F1: Monto de activos utilizado | G1: Origen | H1: Monto de gastos | I1: Disminución en el rubro de pasivo | J1: Acumulación de activos | K1: Monto de Ajustes | L1: Aplicación
A2: Acción Ciudadana (PAC) | B2: 01 Abr.-Jun., 2018 | C2: 15114360 | D2: 46671130 | E2: 246490269 | F2: 526284070 | G2: 834559829 | H2: 834559829 | I2: 0 | J2: 0 | K2: 0 | L2: 834559829
A3: Acción Ciudadana (PAC) | B3: 02 Jul.-Set., 2018 | C3: 17550047 | D3: 72888339 | E3: 25625 | F3: 7737750 | G3: 98201761 | H3: 98201762 | I3: 0 | J3: 0 | K3: 0 | L3: 98201762
A4: Acción Ciudadana (PAC) | B4: 03 Oct.-Dic., 2018 | C4: 17986676 | D4: 69536192 | E4: 24030 | F4: 11488051 | G4: 99034949 | H4: 99034948 | I4: 0 | J4: 0 | K4: 0 | L4: 99034948
A5: Acción Ciudadana (PAC) | B5: 04 Ene.-Mar., 2019 | C5: 14317247 | D5: 0 | E5: 1408941455 | F5: 0 | G5: 1423258702 | H5: 111361939 | I5: 1254076216 | J5: 57820548 | K5: 0 | L5: 1423258703
A6: Acción Ciudadana (PAC) | B6: 05 Abr.-Jun., 2019 | C6: 12535726 | D6: 0 | E6: 1523556040 | F6: 0 | G6: 1536091766 | H6: 144022320 | I6: 1167950379 | J6: 224119066 | K6: 0 | L6: 1536091765
A7: Acción Ciudadana (PAC) | B7: 06 Jul.-Set., 2019 | C7: 9619258 | D7: 0 | E7: 190487322 | F7: 0 | G7: 200106580 | H7: 119546759 | I7: 60486401 | J7: 13153454 | K7: -6919966 | L7: 200106580
A8: Acción Ciudadana (PAC) | B8: 07 Campaña 2020 | C8: 43957907.87 | D8: 605594339.3 | E8: 478620784 | F8: 0 | G8: 1128173031 | H8: 529094575.9 | I8: 0 | J8: 5680250.2 | K8: -593398205 | L8: 1128173031
A9: Acción Ciudadana (PAC) | B9: 08 Abr.-Jun., 2020 | C9: 16833068.17 | D9: 553904082 | E9: 0 | F9: 64095431 | G9: 634832581.2 | H9: 60052471 | I9: 0 | J9: 0 | K9: -95552978.82 | L9: 155605449.8
A10: Acción Ciudadana (PAC) | B10: 09 Jul.-Set., 2020 | C10: 8626399.19 | D10: 0 | E10: 115320488.3 | F10: 20581929 | G10: 144528816.5 | H10: 112169667.7 | I10: 32246117 | J10: 0 | K10: -113031 | L10: 144528815.7
A11: Acción Ciudadana (PAC) | B11: 10 Oct.-Dic., 2020 | C11: 10659944.81 | D11: 0 | E11: 210608615.7 | F11: 0 | G11: 221268560.5 | H11: 87778532.35 | I11: 41131029 | J11: 87967085 | K11: -4391914.82 | L11: 221268561.2
A12: Acción Ciudadana (PAC) | B12: 11 Ene.-Mar., 2021 | C12: -10598778.17 | D12: 0 | E12: 22209030.25 | F12: 123217195 | G12: 134827447.1 | H12: 91869314.12 | I12: 37355492 | J12: 0 | K12: -5602642 | L12: 134827448.1
A13: Acción Ciudadana (PAC) | B13: 12 Abr.-Jun., 2021 | C13: 5113501 | D13: 0 | E13: 151494403.8 | F13: 0 | G13: 156607904.8 | H13: 93721125.88 | I13: 38760610 | J13: 21425357 | K13: -2700812.32 | L13: 156607905.2
A14: Acción Ciudadana (PAC) | B14: 13 Jul.-Set., 2021 | C14: 5448495 | D14: 0 | E14: 435684077 | F14: 0 | G14: 441132572 | H14: 154965945 | I14: 268885697.7 | J14: 13779148 | K14: -3501780.59 | L14: 441132571.3
A15: Auténtico Limonense | B15: 01 Abr.-Jun., 2018 | C15: 0 | D15: 0 | E15: 3000000 | F15: 135148.33 | G15: 3135148.33 | H15: 1135148.33 | I15: 2000000 | J15: 0 | K15: 0 | L15: 3135148.33
A16: Auténtico Limonense | B16: 02 Jul.-Set., 2018 | C16: 0 | D16: 0 | E16: 0 | F16: 0 | G16: 0 | H16: 0 | I16: 0 | J16: 0 | K16: 0 | L16: 0
A17: Auténtico Limonense | B17: 03 Oct.-Dic., 2018 | C17: 0 | D17: 0 | E17: 0 | F17: 0 | G17: 0 | H17: 0 | I17: 0 | J17: 0 | K17: 0 | L17: 0
A18: Auténtico Limonense | B18: 04 Ene.-Mar., 2019 | C18: 0 | D18: 0 | E18: 0 | F18: 0 | G18: 0 | H18: 0 | I18: 0 | J18: 0 | K18: 0 | L18: 0
A19: Auténtico Limonense | B19: 05 Abr.-Jun., 2019 | C19: 0 | D19: 0 | E19: 0 | F19: 0 | G19: 0 | H19: 0 | I19: 0 | J19: 0 | K19: 0 | L19: 0
A20: Auténtico Limonense | B20: 06 Jul.-Set., 2019 | C20: 0 | D20: 0 | E20: 0 | F20: 0 | G20: 0 | H20: 0 | I20: 0 | J20: 0 | K20: 0 | L20: 0
A21: Auténtico Limonense | B21: 07 Campaña 2020 | C21: 1440001 | D21: 24307247.07 | E21: 0.02 | F21: 0 | G21: 25747248.09 | H21: 25696667.77 | I21: 0 | J21: 50580.32 | K21: 0 | L21: 25747248.09
A22: Auténtico Limonense | B22: 08 Abr.-Jun., 2020 | C22: 30000 | D22: 724998.96 | E22: 0 | F22: 4995 | G22: 759993.96 | H22: 759993.96 | I22: 0 | J22: 0 | K22: 0 | L22: 759993.96
A23: Auténtico Limonense | B23: 09 Jul.-Set., 2020 | C23: 0 | D23: 0 | E23: 0 | F23: 0 | G23: 0 | H23: 0 | I23: 0 | J23: 0 | K23: 0 | L23: 0
A24: Auténtico Limonense | B24: 10 Oct.-Dic., 2020 | C24: 415000 | D24: 500000 | E24: 0 | F24: 0 | G24: 915000 | H24: 737192 | I24: 0 | J24: 177808 | K24: 0 | L24: 915000
A25: Auténtico Limonense | B25: 11 Ene.-Mar., 2021 | C25: 390000 | D25: 0 | E25: 0 | F25: 0 | G25: 390000 | H25: 378235 | I25: 0 | J25: 11765 | K25: 0 | L25: 390000
A26: Auténtico Limonense | B26: 12 Abr.-Jun., 2021 | C26: 405000 | D26: 0 | E26: 0 | F26: 0 | G26: 405000 | H26: 349011 | I26: 0 | J26: 55989 | K26: 0 | L26: 405000
A27: Auténtico Limonense | B27: 13 Jul.-Set., 2021 | C27: 0 | D27: 0 | E27: 734750 | F27: 0 | G27: 734750 | H27: 119904 | I27: 500000 | J27: 114846 | K27: 0 | L27: 734750
A28: Frente Amplio (FA) | B28: 01 Abr.-Jun., 2018 | C28: 9114757.5 | D28: 0 | E28: 4370800.73 | F28: 83115335.53 | G28: 96600893.76 | H28: 77631012.78 | I28: 18969880.98 | J28: 0 | K28: 0 | L28: 96600893.76
A29: Frente Amplio (FA) | B29: 02 Jul.-Set., 2018 | C29: 6833115 | D29: 0 | E29: 1324800.87 | F29: 51988078.32 | G29: 60145994.19 | H29: 50186416.07 | I29: 9959578.12 | J29: 0 | K29: 0 | L29: 60145994.19
A30: Frente Amplio (FA) | B30: 03 Oct.-Dic., 2018 | C30: 7254966.23 | D30: 0 | E30: 576868475.9 | F30: 0 | G30: 584123442.2 | H30: 63484242.8 | I30: 466662985.9 | J30: 53838713.5 | K30: -137500 | L30: 584123442.2
A31: Frente Amplio (FA) | B31: 04 Ene.-Mar., 2019 | C31: 7047000 | D31: 0 | E31: 497300 | F31: 105261254.5 | G31: 112805554.5 | H31: 52685554.5 | I31: 59820000 | J31: 0 | K31: -300000 | L31: 112805554.5
A32: Frente Amplio (FA) | B32: 05 Abr.-Jun., 2019 | C32: 7523119 | D32: 25774903.97 | E32: 0 | F32: 66645356.76 | G32: 103649212.2 | H32: 103649212.2 | I32: 0 | J32: 0 | K32: 3705832.5 | L32: 103649212.2
A33: Frente Amplio (FA) | B33: 06 Jul.-Set., 2019 | C33: 7669103 | D33: 0 | E33: 108455268.6 | F33: 0 | G33: 116124371.6 | H33: 56014551.55 | I33: 22362000 | J33: 37747820.09 | K33: 0 | L33: 116124371.6
A34: Frente Amplio (FA) | B34: 07 Campaña 2020 | C34: 24739591.73 | D34: 29775708.8 | E34: 159842087.8 | F34: 0 | G34: 214357388.3 | H34: 163961486 | I34: 0 | J34: 50395902.37 | K34: 0 | L34: 214357388.3
A35: Frente Amplio (FA) | B35: 08 Abr.-Jun., 2020 | C35: 4996150 | D35: 0 | E35: 0 | F35: 70821533.28 | G35: 75817683.28 | H35: 38656427.03 | I35: 37161256.25 | J35: 0 | K35: 0 | L35: 75817683.28
A36: Frente Amplio (FA) | B36: 09 Jul.-Set., 2020 | C36: 5474500 | D36: 21632151.55 | E36: 0 | F36: 290513.64 | G36: 27397165.19 | H36: 27397165.19 | I36: 0 | J36: 0 | K36: 0 | L36: 27397165.19
A37: Frente Amplio (FA) | B37: 10 Oct.-Dic., 2020 | C37: 6986500 | D37: 26170497.15 | E37: 0 | F37: 7986745.98 | G37: 41143743.13 | H37: 33819661.9 | I37: 0 | J37: 0 | K37: -7324081.23 | L37: 41143743.13
A38: Frente Amplio (FA) | B38: 11 Ene.-Mar., 2021 | C38: 6471777.14 | D38: 17065683.44 | E38: 470000 | F38: 0 | G38: 24007460.58 | H38: 22421346.66 | I38: 0 | J38: 1586113.92 | K38: 0 | L38: 24007460.58
A39: Frente Amplio (FA) | B39: 12 Abr.-Jun., 2021 | C39: 2348553 | D39: 0 | E39: 116832855.8 | F39: 5228145.83 | G39: 124409554.7 | H39: 51808817.37 | I39: 41829085.65 | J39: 0 | K39: -30771651.64 | L39: 124409554.7
A40: Frente Amplio (FA) | B40: 13 Jul.-Set., 2021 | C40: 6438100 | D40: 0 | E40: 50664875.82 | F40: 20882035.38 | G40: 77985011.2 | H40: 49490173.69 | I40: 28494837.51 | J40: 0 | K40: 0 | L40: 77985011.2
A41: Fuerza Nacional (PFN) | B41: 13 Jul.-Set., 2021 | C41: 10380000 | D41: 7950809.77 | E41: 0.07 | F41: 0 | G41: 18330809.84 | H41: 16997646.59 | I41: 0 | J41: 1333163.25 | K41: 0 | L41: 18330809.84
A42: Integración Nacional (PIN) | B42: 01 Abr.-Jun., 2018 | C42: 0 | D42: 2672995.44 | E42: 1360646864 | F42: 20872288.22 | G42: 1429615675 | H42: 1429615765 | I42: 0 | J42: 0 | K42: 45423527.74 | L42: 1429615765
A43: Integración Nacional (PIN) | B43: 02 Jul.-Set., 2018 | C43: 0 | D43: 1643411 | E43: 0 | F43: 612048.63 | G43: 2255459.63 | H43: 2005459.63 | I43: 0 | J43: 0 | K43: -250000 | L43: 2255459.63
A44: Integración Nacional (PIN) | B44: 03 Oct.-Dic., 2018 | C44: 0 | D44: 1298545 | E44: 0 | F44: 223566.2 | G44: 1522111.2 | H44: 1522111.2 | I44: 0 | J44: 0 | K44: 0 | L44: 1522111.2
A45: Integración Nacional (PIN) | B45: 04 Ene.-Mar., 2019 | C45: 0 | D45: 6574110 | E45: 0 | F45: 131584.54 | G45: 6705694.54 | H45: 6705694.54 | I45: 0 | J45: 0 | K45: 0 | L45: 6705694.54
A46: Integración Nacional (PIN) | B46: 05 Abr.-Jun., 2019 | C46: 0 | D46: 0 | E46: 11369892.67 | F46: 0 | G46: 11369892.67 | H46: 2644086.22 | I46: 1832942.97 | J46: 6892863.58 | K46: 0 | L46: 11369892.77
A47: Integración Nacional (PIN) | B47: 06 Jul.-Set., 2019 | C47: 100000 | D47: 0 | E47: 618048.08 | F47: 8715362.21 | G47: 9433410.29 | H47: 6008247.3 | I47: 3097520.56 | J47: 0 | K47: -327642.43 | L47: 9433410.29
A48: Integración Nacional (PIN) | B48: 07 Campaña 2020 | C48: 47759574.76 | D48: 13999009.48 | E48: 42538125.89 | F48: 5653642.28 | G48: 116723344.7 | H48: 116723344.7 | I48: 0 | J48: 0 | K48: 6772992.29 | L48: 116723344.7
A49: Integración Nacional (PIN) | B49: 08 Abr.-Jun., 2020 | C49: 0 | D49: 0 | E49: 0 | F49: 0 | G49: 0 | H49: 0 | I49: 0 | J49: 0 | K49: 0 | L49: 0
A50: Integración Nacional (PIN) | B50: 09 Jul.-Set., 2020 | C50: 0 | D50: 0 | E50: 7341563.81 | F50: 5046790.74 | G50: 12388354.55 | H50: 8753454.62 | I50: 3634900 | J50: 0 | K50: 0 | L50: 12388354.62
A51: Integración Nacional (PIN) | B51: 10 Oct.-Dic., 2020 | C51: 0 | D51: 9776623.48 | E51: 7927730.89 | F51: 0 | G51: 17704354.37 | H51: 13229521.57 | I51: 0 | J51: 4474832.73 | K51: 0 | L51: 17704354.3
A52: Integración Nacional (PIN) | B52: 11 Ene.-Mar., 2021 | C52: 34000 | D52: 0 | E52: 58545413.85 | F52: 0 | G52: 58579413.85 | H52: 18645054.82 | I52: 24103598.28 | J52: 15830760.75 | K52: 0 | L52: 58579413.85
A53: Integración Nacional (PIN) | B53: 12 Abr.-Jun., 2021 | C53: 0 | D53: 169243 | E53: 11007532.79 | F53: 1034609 | G53: 12211384.79 | H53: 12211384.9 | I53: 0 | J53: 0 | K53: 0 | L53: 12211384.9
A54: Integración Nacional (PIN) | B54: 13 Jul.-Set., 2021 | C54: 0 | D54: 0 | E54: 13995297.93 | F54: 1573500.33 | G54: 15568798.26 | H54: 14785104.06 | I54: 783694.2 | J54: 0 | K54: 0 | L54: 15568798.26
A55: Liberación Nacional (PLN) | B55: 01 Abr.-Jun., 2018 | C55: 24000 | D55: 0 | E55: 1623544 | F55: 103649366 | G55: 105296910 | H55: 105269555 | I55: 27355 | J55: 0 | K55: 0 | L55: 105296910
A56: Liberación Nacional (PLN) | B56: 02 Jul.-Set., 2018 | C56: -4000 | D56: 9311804 | E56: 18901738 | F56: 46969604 | G56: 75179146 | H56: 75179146 | I56: 0 | J56: 0 | K56: 0 | L56: 75179146
A57: Liberación Nacional (PLN) | B57: 03 Oct.-Dic., 2018 | C57: 0 | D57: 0 | E57: 2200036610 | F57: 0 | G57: 2200036610 | H57: 94776400 | I57: 1996224334 | J57: 109035876 | K57: 0 | L57: 2200036610
A58: Liberación Nacional (PLN) | B58: 04 Ene.-Mar., 2019 | C58: 0 | D58: 0 | E58: 1898494760 | F58: 10702803 | G58: 1909197563 | H58: 83299447 | I58: 1825898116 | J58: 0 | K58: 0 | L58: 1909197563
A59: Liberación Nacional (PLN) | B59: 05 Abr.-Jun., 2019 | C59: 59303672 | D59: 0 | E59: 796628796 | F59: 0 | G59: 855932468 | H59: 53883176 | I59: 772643761 | J59: 29405531 | K59: 0 | L59: 855932468
A60: Liberación Nacional (PLN) | B60: 06 Jul.-Set., 2019 | C60: 0 | D60: 0 | E60: 262789840 | F60: 0 | G60: 262789840 | H60: 148831333 | I60: 76809098 | J60: 37149409 | K60: 0 | L60: 262789840
A61: Liberación Nacional (PLN) | B61: 07 Campaña 2020 | C61: 51016534 | D61: 2554119413 | E61: 89109271 | F61: 0 | G61: 2694245218 | H61: 2568418745 | I61: 0 | J61: 125826473 | K61: 0 | L61: 2694245218
A62: Liberación Nacional (PLN) | B62: 08 Abr.-Jun., 2020 | C62: 250000 | D62: 0 | E62: 0 | F62: 53114592 | G62: 53364592 | H62: 44748028 | I62: 325864 | J62: 0 | K62: -8290700 | L62: 53364592
A63: Liberación Nacional (PLN) | B63: 09 Jul.-Set., 2020 | C63: 580400 | D63: 1884220 | E63: 4630171 | F63: 51341445 | G63: 58436236 | H63: 58436236 | I63: 0 | J63: 0 | K63: 0 | L63: 58436236
A64: Liberación Nacional (PLN) | B64: 10 Oct.-Dic., 2020 | C64: 3880000 | D64: 0 | E64: 835274271 | F64: 0 | G64: 839154271 | H64: 14672728 | I64: 628779159 | J64: 141896319 | K64: -53806065 | L64: 839154271
A65: Liberación Nacional (PLN) | B65: 11 Ene.-Mar., 2021 | C65: 573000 | D65: 0 | E65: 1173005902 | F65: 70097090 | G65: 1243675992 | H65: 99064860 | I65: 1144611132 | J65: 0 | K65: 0 | L65: 1243675992
A66: Liberación Nacional (PLN) | B66: 12 Abr.-Jun., 2021 | C66: 15128727 | D66: 0 | E66: 1118078008 | F66: 13596114 | G66: 1146802849 | H66: 466337224 | I66: 680465625 | J66: 0 | K66: 0 | L66: 1146802849
A67: Liberación Nacional (PLN) | B67: 13 Jul.-Set., 2021 | C67: 97175000 | D67: 0 | E67: 200006072 | F67: 29885994 | G67: 327067397 | H67: 289797554 | I67: 37269843 | J67: 0 | K67: 331 | L67: 327067397
A68: Liberal Progresista (PLP) | B68: 08 Abr.-Jun., 2020 | C68: 952821.1 | D68: 61000 | E68: 3815.2 | F68: 0 | G68: 1496079 | H68: 0 | I68: 0 | J68: 1651282.45 | K68: 478442.7 | L68: 1651282.45
A69: Liberal Progresista (PLP) | B69: 09 Jul.-Set., 2020 | C69: 469000 | D69: 0 | E69: 11041.65 | F69: 327398.35 | G69: 807440 | H69: 807440 | I69: 0 | J69: 0 | K69: 0 | L69: 807440
A70: Liberal Progresista (PLP) | B70: 10 Oct.-Dic., 2020 | C70: 3419705 | D70: 0 | E70: 232063.95 | F70: 0 | G70: 3651768.95 | H70: 735200 | I70: 0 | J70: 2916568.95 | K70: 0 | L70: 3651768.95
A71: Liberal Progresista (PLP) | B71: 11 Ene.-Mar., 2021 | C71: 2157500 | D71: 0 | E71: 17209.3 | F71: 2021228.94 | G71: 4195938.24 | H71: 1705938.24 | I71: 2490000 | J71: 0 | K71: 0 | L71: 4195938.24
A72: Liberal Progresista (PLP) | B72: 12 Abr.-Jun., 2021 | C72: 21783200 | D72: 0 | E72: 12525733.32 | F72: 0 | G72: 34308933.32 | H72: 14065059.98 | I72: 5613000 | J72: 14630873 | K72: 0 | L72: 34308932.98
A73: Liberal Progresista (PLP) | B73: 13 Jul.-Set., 2021 | C73: 150834746 | D73: 2531288.45 | E73: 610176.61 | F73: 0 | G73: 153976211.1 | H73: 142976321.5 | I73: 0 | J73: 10999889.57 | K73: 0 | L73: 153976211.1
A74: Nueva República (PNR) | B74: 01 Abr.-Jun., 2018 | C74: 0 | D74: 0 | E74: 0 | F74: 0 | G74: 0 | H74: 0 | I74: 0 | J74: 0 | K74: 0 | L74: 0
A75: Nueva República (PNR) | B75: 02 Jul.-Set., 2018 | C75: 0 | D75: 0 | E75: 0 | F75: 0 | G75: 0 | H75: 0 | I75: 0 | J75: 0 | K75: 0 | L75: 0
A76: Nueva República (PNR) | B76: 03 Oct.-Dic., 2018 | C76: 0 | D76: 0 | E76: 0 | F76: 0 | G76: 0 | H76: 0 | I76: 0 | J76: 0 | K76: 0 | L76: 0
A77: Nueva República (PNR) | B77: 05 Abr.-Jun., 2019 | C77: 0 | D77: 0 | E77: 0 | F77: 2839320 | G77: 2839320 | H77: 3496 | I77: 2835824 | J77: 0 | K77: 0 | L77: 2839320
A78: Nueva República (PNR) | B78: 05 Abr.-Jun., 2019 | C78: 0 | D78: 0 | E78: 0 | F78: 0 | G78: 0 | H78: 0 | I78: 0 | J78: 0 | K78: 0 | L78: 0
A79: Nueva República (PNR) | B79: 06 Jul.-Set., 2019 | C79: 0 | D79: 0 | E79: 0 | F79: 0 | G79: 0 | H79: 0 | I79: 0 | J79: 0 | K79: 0 | L79: 0
A80: Nueva República (PNR) | B80: 07 Campaña 2020 | C80: 344837516.3 | D80: 614790052.6 | E80: 0 | F80: 0 | G80: 959627568.8 | H80: 735142731.5 | I80: 0 | J80: 224484837.3 | K80: 0 | L80: 959627568.8
A81: Nueva República (PNR) | B81: 09 Jul.-Set., 2020 | C81: 0 | D81: 0 | E81: 0 | F81: 3002400 | G81: 3002400 | H81: 752400 | I81: 2250000 | J81: 0 | K81: 0 | L81: 3002400
A82: Nueva República (PNR) | B82: 10 Oct.-Dic., 2020 | C82: 0 | D82: 0 | E82: 0 | F82: 500000 | G82: 500000 | H82: 500000 | I82: 0 | J82: 0 | K82: 0 | L82: 500000
A83: Nueva República (PNR) | B83: 11 Ene.-Mar., 2021 | C83: -35000 | D83: 0 | E83: 8874.35 | F83: 215429216.2 | G83: 215403090.6 | H83: 108249645.3 | I83: 107153445.3 | J83: 0 | K83: 0 | L83: 215403090.6
A84: Nueva República (PNR) | B84: 12 Abr.-Jun., 2021 | C84: 5947323 | D84: 0 | E84: 0 | F84: 0 | G84: 6667323 | H84: 6153277.5 | I84: 0 | J84: 514045.5 | K84: 720000 | L84: 6667323
A85: Nueva República (PNR) | B85: 13 Jul.-Set., 2021 | C85: 8475734.91 | D85: 21786811.56 | E85: 0 | F85: 2871953.56 | G85: 33134500.03 | H85: 33134500.03 | I85: 0 | J85: 0 | K85: 0 | L85: 33134500.03
A86: Progreso Social Democrático (PSD) | B86: 01 Abr.-Jun., 2018 | C86: 0 | D86: 0 | E86: 0 | F86: 0 | G86: 0 | H86: 0 | I86: 0 | J86: 0 | K86: 0 | L86: 0
A87: Progreso Social Democrático (PSD) | B87: 02 Jul.-Set., 2018 | C87: 0 | D87: 0 | E87: 0 | F87: 0 | G87: 0 | H87: 0 | I87: 0 | J87: 0 | K87: 0 | L87: 0
A88: Progreso Social Democrático (PSD) | B88: 03 Oct.-Dic., 2018 | C88: 0 | D88: 0 | E88: 0 | F88: 0 | G88: 0 | H88: 0 | I88: 0 | J88: 0 | K88: 0 | L88: 0
A89: Progreso Social Democrático (PSD) | B89: 04 Ene.-Mar., 2019 | C89: 0 | D89: 0 | E89: 0 | F89: 0 | G89: 0 | H89: 0 | I89: 0 | J89: 0 | K89: 0 | L89: 0
A90: Progreso Social Democrático (PSD) | B90: 05 Abr.-Jun., 2019 | C90: 0 | D90: 0 | E90: 0 | F90: 0 | G90: 0 | H90: 0 | I90: 0 | J90: 0 | K90: 0 | L90: 0
A91: Progreso Social Democrático (PSD) | B91: 06 Jul.-Set., 2019 | C91: 0 | D91: 0 | E91: 0 | F91: 0 | G91: 0 | H91: 0 | I91: 0 | J91: 0 | K91: 0 | L91: 0
A92: Progreso Social Democrático (PSD) | B92: 07 Campaña 2020 | C92: 119976 | D92: 0 | E92: 0 | F92: 0 | G92: 119976 | H92: 119976 | I92: 0 | J92: 0 | K92: 0 | L92: 119976
A93: Progreso Social Democrático (PSD) | B93: 08 Abr.-Jun., 2020 | C93: 71949 | D93: 0 | E93: 0 | F93: 0 | G93: 71949 | H93: 71949 | I93: 0 | J93: 0 | K93: 0 | L93: 71949
A94: Progreso Social Democrático (PSD) | B94: 09 Jul.-Set., 2020 | C94: 67700 | D94: 0 | E94: 0 | F94: 0 | G94: 67700 | H94: 67700 | I94: 0 | J94: 0 | K94: 0 | L94: 67700
A95: Progreso Social Democrático (PSD) | B95: 10 Oct.-Dic., 2020 | C95: 272373 | D95: 0 | E95: 0 | F95: 0 | G95: 272373 | H95: 272373 | I95: 0 | J95: 0 | K95: 0 | L95: 272373
A96: Progreso Social Democrático (PSD) | B96: 11 Ene.-Mar., 2021 | C96: 400050 | D96: 0 | E96: 0 | F96: 0 | G96: 400050 | H96: 400050 | I96: 0 | J96: 0 | K96: 0 | L96: 400050
A97: Progreso Social Democrático (PSD) | B97: 12 Abr.-Jun., 2021 | C97: 370500 | D97: 0 | E97: 0 | F97: 0 | G97: 370500 | H97: 370500 | I97: 0 | J97: 0 | K97: 0 | L97: 370500
A98: Progreso Social Democrático (PSD) | B98: 13 Jul.-Set., 2021 | C98: 60083075 | D98: 0 | E98: 0 | F98: 0 | G98: 60083075 | H98: 60063075 | I98: 0 | J98: 20000 | K98: 0 | L98: 60083075
A99: Recuperando Valores (Limón) (PAREVA) | B99: 01 Abr.-Jun., 2018 | C99: 0 | D99: 0 | E99: 14.86 | F99: 390160.64 | G99: 390175.5 | H99: 359881 | I99: 30294.5 | J99: 0 | K99: 0 | L99: 390175.5
A100: Recuperando Valores (Limón) (PAREVA) | B100: 02 Jul.-Set., 2018 | C100: 0 | D100: 0 | E100: 0 | F100: 0 | G100: 0 | H100: 0 | I100: 0 | J100: 0 | K100: 0 | L100: 0
A101: Recuperando Valores (Limón) (PAREVA) | B101: 03 Oct.-Dic., 2018 | C101: 0 | D101: 0 | E101: 0 | F101: 0 | G101: 0 | H101: 0 | I101: 0 | J101: 0 | K101: 0 | L101: 0
A102: Recuperando Valores (Limón) (PAREVA) | B102: 04 Ene.-Mar., 2019 | C102: 0 | D102: 0 | E102: 0 | F102: 0 | G102: 0 | H102: 0 | I102: 0 | J102: 0 | K102: 0 | L102: 0
A103: Recuperando Valores (Limón) (PAREVA) | B103: 05 Abr.-Jun., 2019 | C103: 0 | D103: 0 | E103: 0 | F103: 0 | G103: 0 | H103: 0 | I103: 0 | J103: 0 | K103: 0 | L103: 0
A104: Recuperando Valores (Limón) (PAREVA) | B104: 06 Jul.-Set., 2019 | C104: 0 | D104: 0 | E104: 0 | F104: 0 | G104: 0 | H104: 0 | I104: 0 | J104: 0 | K104: 0 | L104: 0
A105: Recuperando Valores (Limón) (PAREVA) | B105: 07 Campaña 2020 | C105: 80400 | D105: 20966235 | E105: 2543.06 | F105: 0 | G105: 21049178.06 | H105: 21048896.93 | I105: 0 | J105: 281.13 | K105: 0 | L105: 21049178.06
A106: Recuperando Valores (Limón) (PAREVA) | B106: 08 Abr.-Jun., 2020 | C106: 0 | D106: 0 | E106: 286.72 | F106: 299713.28 | G106: 300000 | H106: 300000 | I106: 0 | J106: 0 | K106: 0 | L106: 300000
A107: Recuperando Valores (Limón) (PAREVA) | B107: 09 Jul.-Set., 2020 | C107: 0 | D107: 0 | E107: 0 | F107: 0 | G107: 0 | H107: 0 | I107: 0 | J107: 0 | K107: 0 | L107: 0
A108: Recuperando Valores (Limón) (PAREVA) | B108: 10 Oct.-Dic., 2020 | C108: 339000 | D108: 0 | E108: 0 | F108: 2456 | G108: 341456 | H108: 341456 | I108: 0 | J108: 0 | K108: 0 | L108: 341456
A109: Recuperando Valores (Limón) (PAREVA) | B109: 11 Ene.-Mar., 2021 | C109: 0 | D109: 0 | E109: 0 | F109: 0 | G109: 0 | H109: 0 | I109: 0 | J109: 0 | K109: 0 | L109: 0
A110: Recuperando Valores (Limón) (PAREVA) | B110: 12 Abr.-Jun., 2021 | C110: 0 | D110: 0 | E110: 17002208.18 | F110: 30935.72 | G110: 17033143.9 | H110: 11154 | I110: 17021989.9 | J110: 0 | K110: 0 | L110: 17033143.9
A111: Recuperando Valores (Limón) (PAREVA) | B111: 13 Jul.-Set., 2021 | C111: 0 | D111: 17000 | E111: 0 | F111: 0 | G111: 17000 | H111: 14328.4 | I111: 0 | J111: 2671.6 | K111: 0 | L111: 17000
A112: Republicano Social Cristiano (PRSC) | B112: 01 Abr.-Jun., 2018 | C112: 272370 | D112: 751500 | E112: 1927.4 | F112: 17778138.35 | G112: 18803935.75 | H112: 18803935.75 | I112: 0 | J112: 0 | K112: 0 | L112: 18803935.75
A113: Republicano Social Cristiano (PRSC) | B113: 02 Jul.-Set., 2018 | C113: 591000 | D113: 4410000 | E113: 1880.45 | F113: 213782.17 | G113: 5216662.62 | H113: 5216662.62 | I113: 0 | J113: 0 | K113: 0 | L113: 5216662.62
A114: Republicano Social Cristiano (PRSC) | B114: 03 Oct.-Dic., 2018 | C114: 537600 | D114: 2519500 | E114: 254.95 | F114: 2977730.04 | G114: 7025584.99 | H114: 7025584.99 | I114: 0 | J114: 0 | K114: 990500 | L114: 7025584.99
A115: Republicano Social Cristiano (PRSC) | B115: 04 Ene.-Mar., 2019 | C115: 62000 | D115: 0 | E115: 219353482.8 | F115: 200810086.3 | G115: 420225569.1 | H115: 197100569.1 | I115: 223125000 | J115: 0 | K115: 0 | L115: 420225569.1
A116: Republicano Social Cristiano (PRSC) | B116: 05 Abr.-Jun., 2019 | C116: 0 | D116: 55071683.64 | E116: 10530292.42 | F116: 71650933.89 | G116: 137252910 | H116: 137252910 | I116: 0 | J116: 0 | K116: 0 | L116: 137252910
A117: Republicano Social Cristiano (PRSC) | B117: 06 Jul.-Set., 2019 | C117: 245000 | D117: 0 | E117: 45997348.63 | F117: 0 | G117: 46242348.63 | H117: 16317379.99 | I117: 26530500 | J117: 3394468.64 | K117: 0 | L117: 46242348.63
A118: Republicano Social Cristiano (PRSC) | B118: 07 Campaña 2020 | C118: 0 | D118: 380126098.6 | E118: 30965427.09 | F118: 0 | G118: 411091525.7 | H118: 376704939.4 | I118: 0 | J118: 34386586.29 | K118: 0 | L118: 411091525.7
A119: Republicano Social Cristiano (PRSC) | B119: 08 Abr.-Jun., 2020 | C119: 0 | D119: 0 | E119: 32957.53 | F119: 31911505.57 | G119: 31944463.1 | H119: 28382795.1 | I119: 3561668 | J119: 0 | K119: 0 | L119: 31944463.1
A120: Republicano Social Cristiano (PRSC) | B120: 09 Jul.-Set., 2020 | C120: 0 | D120: 0 | E120: 9072763.19 | F120: 0 | G120: 9072793.19 | H120: 8933107.84 | I120: 128741 | J120: 10944.35 | K120: 30 | L120: 9072793.19
A121: Republicano Social Cristiano (PRSC) | B121: 10 Oct.-Dic., 2020 | C121: 0 | D121: 10259493.14 | E121: 6582.18 | F121: 8425781.83 | G121: 18691857.15 | H121: 18691827.15 | I121: 0 | J121: 0 | K121: 0 | L121: 18691827.15
A122: Republicano Social Cristiano (PRSC) | B122: 11 Ene.-Mar., 2021 | C122: 0 | D122: 3260933.7 | E122: 0 | F122: 1399.52 | G122: 3262333.22 | H122: 3262333.22 | I122: 0 | J122: 0 | K122: 0 | L122: 3262333.22
A123: Republicano Social Cristiano (PRSC) | B123: 12 Abr.-Jun., 2021 | C123: 0 | D123: 0 | E123: 47624388.99 | F123: 0 | G123: 47624388.99 | H123: 14327453.03 | I123: 23441083.15 | J123: 9655852.81 | K123: -200000 | L123: 47624388.99
A124: Republicano Social Cristiano (PRSC) | B124: 13 Jul.-Set., 2021 | C124: 493369.38 | D124: 2109508.55 | E124: 936020 | F124: 618080.64 | G124: 4156978.57 | H124: 4156978.57 | I124: 0 | J124: 0 | K124: 0 | L124: 4156978.57
A125: Restauración Nacional (PRN) | B125: 01 Abr.-Jun., 2018 | C125: 0 | D125: 65147703.54 | E125: 251455.66 | F125: 0 | G125: 65399159.2 | H125: 54702025.5 | I125: 0 | J125: 10697133.68 | K125: -2 | L125: 65399161.18
A126: Restauración Nacional (PRN) | B126: 02 Jul.-Set., 2018 | C126: 25070914.58 | D126: 245650103.5 | E126: 912883.04 | F126: 0 | G126: 271633901.1 | H126: 152275454.5 | I126: 0 | J126: 119358446.6 | K126: 0 | L126: 271633901.1
A127: Restauración Nacional (PRN) | B127: 03 Oct.-Dic., 2018 | C127: -5000 | D127: 72104154.9 | E127: 1140830.16 | F127: 101912612.5 | G127: 175152597.5 | H127: 175005336.9 | I127: 0 | J127: 0 | K127: -147260.66 | L127: 175152597.5
A128: Restauración Nacional (PRN) | B128: 04 Ene.-Mar., 2019 | C128: 1109494 | D128: 195872653.7 | E128: 1434508.55 | F128: 0 | G128: 198563916.9 | H128: 159083710 | I128: 0 | J128: 39480206.9 | K128: 147260.66 | L128: 198563916.9
A129: Restauración Nacional (PRN) | B129: 05 Abr.-Jun., 2019 | C129: 3260192 | D129: 0 | E129: 74090064.32 | F129: 0 | G129: 866764888.9 | H129: 171035735.6 | I129: 677021996.3 | J129: 18707156.99 | K129: 789414632.6 | L129: 866764888.9
A130: Restauración Nacional (PRN) | B130: 06 Jul.-Set., 2019 | C130: 3243147.02 | D130: 43154538.38 | E130: 125778147.3 | F130: 15112654.53 | G130: 188022473.5 | H130: 188022473.5 | I130: 0 | J130: 0 | K130: 733986.24 | L130: 188022473.5
A131: Restauración Nacional (PRN) | B131: 07 Campaña 2020 | C131: 15524317.67 | D131: 350821149.1 | E131: 777696756.5 | F131: 0 | G131: 1349024658 | H131: 1151092109 | I131: 0 | J131: 197932548.6 | K131: 204982434.5 | L131: 1349024658
A132: Restauración Nacional (PRN) | B132: 08 Abr.-Jun., 2020 | C132: 3113147 | D132: 136816533.2 | E132: 219028538.4 | F132: 0 | G132: 514165630.1 | H132: 353869431.6 | I132: 0 | J132: 160296198.5 | K132: 155207411.5 | L132: 514165630.1
A133: Restauración Nacional (PRN) | B133: 09 Jul.-Set., 2020 | C133: 2832037.01 | D133: 656318.11 | E133: 597262.03 | F133: 72576516.54 | G133: 76662133.72 | H133: 76662133.72 | I133: 0 | J133: 0 | K133: 0.03 | L133: 76662133.72
A134: Restauración Nacional (PRN) | B134: 10 Oct.-Dic., 2020 | C134: 952225.36 | D134: 0 | E134: 625779.19 | F134: 206026157.3 | G134: 208600834.6 | H134: 88819567.67 | I134: 119781267 | J134: 0 | K134: 996672.77 | L134: 208600834.6
A135: Restauración Nacional (PRN) | B135: 11 Ene.-Mar., 2021 | C135: 26285423.08 | D135: 135428732.2 | E135: 630167.94 | F135: 0 | G135: 162344323.2 | H135: 134575965.6 | I135: 0 | J135: 5043357.58 | K135: -22724999 | L135: 162344322.2
A136: Restauración Nacional (PRN) | B136: 12 Abr.-Jun., 2021 | C136: 2611708.76 | D136: 0 | E136: 302716626.3 | F136: 25998880.08 | G136: 341517271 | H136: 187273144.6 | I136: 154244126.4 | J136: 0 | K136: 10190055.81 | L136: 341517271
A137: Restauración Nacional (PRN) | B137: 13 Jul.-Set., 2021 | C137: 2570474.04 | D137: 85319589.19 | E137: 94607375.09 | F137: 0 | G137: 182497438.3 | H137: 145811502.6 | I137: 0 | J137: 36591943.69 | K137: -93992.05 | L137: 182497438.3
A138: Unidad Social Cristiana (PUSC) | B138: 01 Abr.-Jun., 2018 | C138: 2470993.88 | D138: 2825122.36 | E138: 12798434.06 | F138: 201080331 | G138: 219174881.3 | H138: 211561615 | I138: 0 | J138: 0 | K138: -7613266.29 | L138: 219174881.3
A139: Unidad Social Cristiana (PUSC) | B139: 02 Jul.-Set., 2018 | C139: 0 | D139: 0 | E139: 124953.58 | F139: 193721238 | G139: 193846191.6 | H139: 162398228.3 | I139: 11953501.82 | J139: 0 | K139: -19494461.46 | L139: 193846191.6
A140: Unidad Social Cristiana (PUSC) | B140: 03 Oct.-Dic., 2018 | C140: 0 | D140: 0 | E140: 31935520.23 | F140: 116656764.9 | G140: 257997812.9 | H140: 160817788.7 | I140: 97180024.19 | J140: 0 | K140: 109405527.8 | L140: 257997812.9
A141: Unidad Social Cristiana (PUSC) | B141: 04 Ene.-Mar., 2019 | C141: 9147180.17 | D141: 0 | E141: 3494479119 | F141: 131021538.8 | G141: 3634647838 | H141: 190452349.4 | I141: 3444195489 | J141: 0 | K141: 0 | L141: 3634647838
A142: Unidad Social Cristiana (PUSC) | B142: 05 Abr.-Jun., 2019 | C142: 4042756.4 | D142: 18213239.61 | E142: 34678651.63 | F142: 78237.65 | G142: 57420233.34 | H142: 57420233.34 | I142: 0 | J142: 0 | K142: 407348.05 | L142: 57420233.34
A143: Unidad Social Cristiana (PUSC) | B143: 06 Jul.-Set., 2019 | C143: 3224093.34 | D143: 0 | E143: 54904530.61 | F143: 3977880.41 | G143: 62106504.36 | H143: 58408165.21 | I143: 3698339.15 | J143: 0 | K143: 0 | L143: 62106504.36
A144: Unidad Social Cristiana (PUSC) | B144: 07 Campaña 2020 | C144: 22899232.96 | D144: 1072573402 | E144: 435897535 | F144: 0 | G144: 1531370170 | H144: 1219967407 | I144: 0 | J144: 307371289.5 | K144: -4031473.31 | L144: 1531370170
A145: Unidad Social Cristiana (PUSC) | B145: 08 Abr.-Jun., 2020 | C145: 4005704.91 | D145: 0 | E145: 495714.84 | F145: 112022565.8 | G145: 720918532.7 | H145: 98051918.64 | I145: 622866614.1 | J145: 0 | K145: 604394547.1 | L145: 720918532.7
A146: Unidad Social Cristiana (PUSC) | B146: 09 Jul.-Set., 2020 | C146: 55000 | D146: 0 | E146: 441743.48 | F146: 72008656.25 | G146: 72505399.73 | H146: 69388369.99 | I146: 207030.39 | J146: 0 | K146: -2909999.35 | L146: 72505399.73
A147: Unidad Social Cristiana (PUSC) | B147: 10 Oct.-Dic., 2020 | C147: 0 | D147: 1183998.71 | E147: 14556587.4 | F147: 51488866.03 | G147: 67229452.14 | H147: 67229452.14 | I147: 0 | J147: 0 | K147: 0 | L147: 67229452.14
A148: Unidad Social Cristiana (PUSC) | B148: 11 Ene.-Mar., 2021 | C148: 4015430 | D148: 0 | E148: 678174355 | F148: 13749383.02 | G148: 695939168.1 | H148: 65105090.85 | I148: 630834077.2 | J148: 0 | K148: 0 | L148: 695939168.1
A149: Unidad Social Cristiana (PUSC) | B149: 12 Abr.-Jun., 2021 | C149: 25236489.77 | D149: 0 | E149: 699663472.9 | F149: 0 | G149: 724899962.7 | H149: 168801747.7 | I149: 417897528.6 | J149: 138200686.4 | K149: 0 | L149: 724899962.7
A150: Unidad Social Cristiana (PUSC) | B150: 13 Jul.-Set., 2021 | C150: 22036160.71 | D150: 0 | E150: 52565605.48 | F150: 53379837.09 | G150: 127981603.3 | H150: 58626038.28 | I150: 69355565 | J150: 0 | K150: 0 | L150: 127981603.3
A151: Unidos por Costa Rica (San José) (PUPCR) | B151: 13 Jul.-Set., 2021 | C151: 0 | D151: 0 | E151: 0 | F151: 0 | G151: 0 | H151: 0 | I151: 0 | J151: 0 | K151: 0 | L151: 0
A152: Unión Costarricense Democrática (PUCD) | B152: 13 Jul.-Set., 2021 | C152: 0 | D152: 0 | E152: 0 | F152: 0 | G152: 0 | H152: 0 | I152: 0 | J152: 0 | K152: 0 | L152: 0
A153: Unión Guanacasteca (Guanacaste) (PUG) | B153: 01 Abr.-Jun., 2018 | C153: 0 | D153: 0 | E153: 0 | F153: 0 | G153: 0 | H153: 0 | I153: 0 | J153: 0 | K153: 0 | L153: 0
A154: Unión Guanacasteca (Guanacaste) (PUG) | B154: 02 Jul.-Set., 2018 | C154: 0 | D154: 0 | E154: 0 | F154: 0 | G154: 0 | H154: 0 | I154: 0 | J154: 0 | K154: 0 | L154: 0
A155: Unión Guanacasteca (Guanacaste) (PUG) | B155: 03 Oct.-Dic., 2018 | C155: 0 | D155: 0 | E155: 0 | F155: 0 | G155: 0 | H155: 0 | I155: 0 | J155: 0 | K155: 0 | L155: 0
A156: Unión Guanacasteca (Guanacaste) (PUG) | B156: 04 Ene.-Mar., 2019 | C156: 450000 | D156: 88056087.95 | E156: 0 | F156: 0 | G156: 88506087.95 | H156: 88398834.98 | I156: 0 | J156: 107252.97 | K156: 0 | L156: 88506087.95
A157: Unión Guanacasteca (Guanacaste) (PUG) | B157: 05 Abr.-Jun., 2019 | C157: 0 | D157: 0 | E157: 0 | F157: 0 | G157: 0 | H157: 0 | I157: 0 | J157: 0 | K157: 0 | L157: 0
A158: Unión Guanacasteca (Guanacaste) (PUG) | B158: 06 Jul.-Set., 2019 | C158: 0 | D158: 0 | E158: 0 | F158: 0 | G158: 0 | H158: 0 | I158: 0 | J158: 0 | K158: 0 | L158: 0
A159: Unión Guanacasteca (Guanacaste) (PUG) | B159: 07 Campaña 2020 | C159: 0 | D159: 12525000 | E159: 372.81 | F159: 81097.99 | G159: 12606470.8 | H159: 12606470.8 | I159: 0 | J159: 0 | K159: 0 | L159: 12606470.8
A160: Unión Guanacasteca (Guanacaste) (PUG) | B160: 08 Abr.-Jun., 2020 | C160: 0 | D160: 0 | E160: 0 | F160: 0 | G160: 0 | H160: 0 | I160: 0 | J160: 0 | K160: 0 | L160: 0
A161: Unión Guanacasteca (Guanacaste) (PUG) | B161: 09 Jul.-Set., 2020 | C161: 0 | D161: 0 | E161: 0 | F161: 0 | G161: 0 | H161: 0 | I161: 0 | J161: 0 | K161: 0 | L161: 0
A162: Unión Guanacasteca (Guanacaste) (PUG) | B162: 10 Oct.-Dic., 2020 | C162: 0 | D162: 1500000 | E162: 0 | F162: 0 | G162: 1500000 | H162: 1500000 | I162: 0 | J162: 0 | K162: 0 | L162: 1500000
A163: Unión Guanacasteca (Guanacaste) (PUG) | B163: 11 Ene.-Mar., 2021 | C163: 0 | D163: 0 | E163: 0 | F163: 0 | G163: 0 | H163: 0 | I163: 0 | J163: 0 | K163: 0 | L163: 0
A164: Unión Guanacasteca (Guanacaste) (PUG) | B164: 12 Abr.-Jun., 2021 | C164: 0 | D164: 8023749.05 | E164: 1656 | F164: 0 | G164: 8025405.05 | H164: 8020752 | I164: 0 | J164: 4653.05 | K164: 0 | L164: 8025405.05
A165: Unión Guanacasteca (Guanacaste) (PUG) | B165: 13 Jul.-Set., 2021 | C165: 0 | D165: 0 | E165: 12350698 | F165: 556 | G165: 12351254 | H165: 1501254 | I165: 10850000 | J165: 0 | K165: 0 | L165: 12351254

Sheet Hoja6 (hidden)
A1: Periodo de reporte2 | B1: 01 Abr.-Jun., 2018 | C1: 02 Jul.-Set., 2018 | D1: 03 Oct.-Dic., 2018 | E1: 04 Ene.-Mar., 2019 | F1: 05 Abr.-Jun., 2019 | G1: 06 Jul.-Set., 2019 | H1: 07 Campaña 2020 | I1: 08 Abr.-Jun., 2020 | J1: 09 Jul.-Set., 2020 | K1: 10 Oct.-Dic., 2020 | L1: 11 Ene.-Mar., 2021 | M1: 12 Abr.-Jun., 2021 | N1: 13 Jul.-Set., 2021
A2: Monto de donaciones recibidas | B2: 15114360 | C2: 17550047 | D2: 17986676 | E2: 14317247 | F2: 12535726 | G2: 9619258 | H2: 43957907.87 | I2: 16833068.17 | J2: 8626399.19 | K2: 10659944.81 | L2: -10598778.17 | M2: 5113501 | N2: 5448495
A3: Incremento en el rubro de pasivo | B3: 46671130 | C3: 72888339 | D3: 69536192 | E3: 0 | F3: 0 | G3: 0 | H3: 605594339.3 | I3: 553904082 | J3: 0 | K3: 0 | L3: 0 | M3: 0 | N3: 0
A4: Monto de Ingresos Recibidos | B4: 246490269 | C4: 25625 | D4: 24030 | E4: 1408941455 | F4: 1523556040 | G4: 190487322 | H4: 478620784 | I4: 0 | J4: 115320488.3 | K4: 210608615.7 | L4: 22209030.25 | M4: 151494403.8 | N4: 435684077
A5: Monto de activos utilizado | B5: 526284070 | C5: 7737750 | D5: 11488051 | E5: 0 | F5: 0 | G5: 0 | H5: 0 | I5: 64095431 | J5: 20581929 | K5: 0 | L5: 123217195 | M5: 0 | N5: 0
A6: Origen | B6: 834559829 | C6: 98201761 | D6: 99034949 | E6: 1423258702 | F6: 1536091766 | G6: 200106580 | H6: 1128173031 | I6: 634832581.2 | J6: 144528816.5 | K6: 221268560.5 | L6: 134827447.1 | M6: 156607904.8 | N6: 441132572
A7: Monto de gastos | B7: 834559829 | C7: 98201762 | D7: 99034948 | E7: 111361939 | F7: 144022320 | G7: 119546759 | H7: 529094575.9 | I7: 60052471 | J7: 112169667.7 | K7: 87778532.35 | L7: 91869314.12 | M7: 93721125.88 | N7: 154965945
A8: Disminución en el rubro de pasivo | B8: 0 | C8: 0 | D8: 0 | E8: 1254076216 | F8: 1167950379 | G8: 60486401 | H8: 0 | I8: 0 | J8: 32246117 | K8: 41131029 | L8: 37355492 | M8: 38760610 | N8: 268885697.7
A9: Acumulación de activos | B9: 0 | C9: 0 | D9: 0 | E9: 57820548 | F9: 224119066 | G9: 13153454 | H9: 5680250.2 | I9: 0 | J9: 0 | K9: 87967085 | L9: 0 | M9: 21425357 | N9: 13779148
A10: Monto de Ajustes | B10: 0 | C10: 0 | D10: 0 | E10: 0 | F10: 0 | G10: -6919966 | H10: -593398205 | I10: -95552978.82 | J10: -113031 | K10: -4391914.82 | L10: -5602642 | M10: -2700812.32 | N10: -3501780.59
A11: Aplicación | B11: 834559829 | C11: 98201762 | D11: 99034948 | E11: 1423258703 | F11: 1536091765 | G11: 200106580 | H11: 1128173031 | I11: 155605449.8 | J11: 144528815.7 | K11: 221268561.2 | L11: 134827448.1 | M11: 156607905.2 | N11: 441132571.3
A14: 01 Abr.-Jun., 2018 | B14: 02 Jul.-Set., 2018 | C14: 03 Oct.-Dic., 2018 | D14: 04 Ene.-Mar., 2019 | E14: 05 Abr.-Jun., 2019 | F14: 06 Jul.-Set., 2019 | G14: 07 Campaña 2020 | H14: 08 Abr.-Jun., 2020 | I14: 09 Jul.-Set., 2020 | J14: 10 Oct.-Dic., 2020 | K14: 11 Ene.-Mar., 2021 | L14: 12 Abr.-Jun., 2021 | M14: 13 Jul.-Set., 2021
A15: 0 | B15: 0 | C15: 0 | D15: 0 | E15: 0 | F15: 0 | G15: 1440001 | H15: 30000 | I15: 0 | J15: 415000 | K15: 390000 | L15: 405000 | M15: 0
A16: 0 | B16: 0 | C16: 0 | D16: 0 | E16: 0 | F16: 0 | G16: 24307247.07 | H16: 724998.96 | I16: 0 | J16: 500000 | K16: 0 | L16: 0 | M16: 0
A17: 3000000 | B17: 0 | C17: 0 | D17: 0 | E17: 0 | F17: 0 | G17: 0.02 | H17: 0 | I17: 0 | J17: 0 | K17: 0 | L17: 0 | M17: 734750
A18: 135148.33 | B18: 0 | C18: 0 | D18: 0 | E18: 0 | F18: 0 | G18: 0 | H18: 4995 | I18: 0 | J18: 0 | K18: 0 | L18: 0 | M18: 0
A19: 3135148.33 | B19: 0 | C19: 0 | D19: 0 | E19: 0 | F19: 0 | G19: 25747248.09 | H19: 759993.96 | I19: 0 | J19: 915000 | K19: 390000 | L19: 405000 | M19: 734750
A20: 1135148.33 | B20: 0 | C20: 0 | D20: 0 | E20: 0 | F20: 0 | G20: 25696667.77 | H20: 759993.96 | I20: 0 | J20: 737192 | K20: 378235 | L20: 349011 | M20: 119904
A21: 2000000 | B21: 0 | C21: 0 | D21: 0 | E21: 0 | F21: 0 | G21: 0 | H21: 0 | I21: 0 | J21: 0 | K21: 0 | L21: 0 | M21: 500000
A22: 0 | B22: 0 | C22: 0 | D22: 0 | E22: 0 | F22: 0 | G22: 50580.32 | H22: 0 | I22: 0 | J22: 177808 | K22: 11765 | L22: 55989 | M22: 114846
A23: 0 | B23: 0 | C23: 0 | D23: 0 | E23: 0 | F23: 0 | G23: 0 | H23: 0 | I23: 0 | J23: 0 | K23: 0 | L23: 0 | M23: 0
A24: 3135148.33 | B24: 0 | C24: 0 | D24: 0 | E24: 0 | F24: 0 | G24: 25747248.09 | H24: 759993.96 | I24: 0 | J24: 915000 | K24: 390000 | L24: 405000 | M24: 734750
A26: 01 Abr.-Jun., 2018 | B26: 02 Jul.-Set., 2018 | C26: 03 Oct.-Dic., 2018 | D26: 04 Ene.-Mar., 2019 | E26: 05 Abr.-Jun., 2019 | F26: 06 Jul.-Set., 2019 | G26: 07 Campaña 2020 | H26: 08 Abr.-Jun., 2020 | I26: 09 Jul.-Set., 2020 | J26: 10 Oct.-Dic., 2020 | K26: 11 Ene.-Mar., 2021 | L26: 12 Abr.-Jun., 2021 | M26: 13 Jul.-Set., 2021
A27: 9114757.5 | B27: 6833115 | C27: 7254966.23 | D27: 7047000 | E27: 7523119 | F27: 7669103 | G27: 24739591.73 | H27: 4996150 | I27: 5474500 | J27: 6986500 | K27: 6471777.14 | L27: 2348553 | M27: 6438100
A28: 0 | B28: 0 | C28: 0 | D28: 0 | E28: 25774903.97 | F28: 0 | G28: 29775708.8 | H28: 0 | I28: 21632151.55 | J28: 26170497.15 | K28: 17065683.44 | L28: 0 | M28: 0
A29: 4370800.73 | B29: 1324800.87 | C29: 576868475.9 | D29: 497300 | E29: 0 | F29: 108455268.6 | G29: 159842087.8 | H29: 0 | I29: 0 | J29: 0 | K29: 470000 | L29: 116832855.8 | M29: 50664875.82
A30: 83115335.53 | B30: 51988078.32 | C30: 0 | D30: 105261254.5 | E30: 66645356.76 | F30: 0 | G30: 0 | H30: 70821533.28 | I30: 290513.64 | J30: 7986745.98 | K30: 0 | L30: 5228145.83 | M30: 20882035.38
A31: 96600893.76 | B31: 60145994.19 | C31: 584123442.2 | D31: 112805554.5 | E31: 103649212.2 | F31: 116124371.6 | G31: 214357388.3 | H31: 75817683.28 | I31: 27397165.19 | J31: 41143743.13 | K31: 24007460.58 | L31: 124409554.7 | M31: 77985011.2
A32: 77631012.78 | B32: 50186416.07 | C32: 63484242.8 | D32: 52685554.5 | E32: 103649212.2 | F32: 56014551.55 | G32: 163961486 | H32: 38656427.03 | I32: 27397165.19 | J32: 33819661.9 | K32: 22421346.66 | L32: 51808817.37 | M32: 49490173.69
A33: 18969880.98 | B33: 9959578.12 | C33: 466662985.9 | D33: 59820000 | E33: 0 | F33: 22362000 | G33: 0 | H33: 37161256.25 | I33: 0 | J33: 0 | K33: 0 | L33: 41829085.65 | M33: 28494837.51
A34: 0 | B34: 0 | C34: 53838713.5 | D34: 0 | E34: 0 | F34: 37747820.09 | G34: 50395902.37 | H34: 0 | I34: 0 | J34: 0 | K34: 1586113.92 | L34: 0 | M34: 0
A35: 0 | B35: 0 | C35: -137500 | D35: -300000 | E35: 3705832.5 | F35: 0 | G35: 0 | H35: 0 | I35: 0 | J35: -7324081.23 | K35: 0 | L35: -30771651.64 | M35: 0
A36: 96600893.76 | B36: 60145994.19 | C36: 584123442.2 | D36: 112805554.5 | E36: 103649212.2 | F36: 116124371.6 | G36: 214357388.3 | H36: 75817683.28 | I36: 27397165.19 | J36: 41143743.13 | K36: 24007460.58 | L36: 124409554.7 | M36: 77985011.2
A38: 01 Abr.-Jun., 2018 | B38: 02 Jul.-Set., 2018 | C38: 03 Oct.-Dic., 2018 | D38: 04 Ene.-Mar., 2019 | E38: 05 Abr.-Jun., 2019 | F38: 06 Jul.-Set., 2019 | G38: 07 Campaña 2020 | H38: 08 Abr.-Jun., 2020 | I38: 09 Jul.-Set., 2020 | J38: 10 Oct.-Dic., 2020 | K38: 11 Ene.-Mar., 2021 | L38: 12 Abr.-Jun., 2021 | M38: 13 Jul.-Set., 2021
A39: 0 | B39: 0 | C39: 0 | D39: 0 | E39: 0 | F39: 100000 | G39: 47759574.76 | H39: 0 | I39: 0 | J39: 0 | K39: 34000 | L39: 0 | M39: 0
A40: 2672995.44 | B40: 1643411 | C40: 1298545 | D40: 6574110 | E40: 0 | F40: 0 | G40: 13999009.48 | H40: 0 | I40: 0 | J40: 9776623.48 | K40: 0 | L40: 169243 | M40: 0
A41: 1360646864 | B41: 0 | C41: 0 | D41: 0 | E41: 11369892.67 | F41: 618048.08 | G41: 42538125.89 | H41: 0 | I41: 7341563.81 | J41: 7927730.89 | K41: 58545413.85 | L41: 11007532.79 | M41: 13995297.93
A42: 20872288.22 | B42: 612048.63 | C42: 223566.2 | D42: 131584.54 | E42: 0 | F42: 8715362.21 | G42: 5653642.28 | H42: 0 | I42: 5046790.74 | J42: 0 | K42: 0 | L42: 1034609 | M42: 1573500.33
A43: 1429615675 | B43: 2255459.63 | C43: 1522111.2 | D43: 6705694.54 | E43: 11369892.67 | F43: 9433410.29 | G43: 116723344.7 | H43: 0 | I43: 12388354.55 | J43: 17704354.37 | K43: 58579413.85 | L43: 12211384.79 | M43: 15568798.26
A44: 1429615765 | B44: 2005459.63 | C44: 1522111.2 | D44: 6705694.54 | E44: 2644086.22 | F44: 6008247.3 | G44: 116723344.7 | H44: 0 | I44: 8753454.62 | J44: 13229521.57 | K44: 18645054.82 | L44: 12211384.9 | M44: 14785104.06
A45: 0 | B45: 0 | C45: 0 | D45: 0 | E45: 1832942.97 | F45: 3097520.56 | G45: 0 | H45: 0 | I45: 3634900 | J45: 0 | K45: 24103598.28 | L45: 0 | M45: 783694.2
A46: 0 | B46: 0 | C46: 0 | D46: 0 | E46: 6892863.58 | F46: 0 | G46: 0 | H46: 0 | I46: 0 | J46: 4474832.73 | K46: 15830760.75 | L46: 0 | M46: 0
A47: 45423527.74 | B47: -250000 | C47: 0 | D47: 0 | E47: 0 | F47: -327642.43 | G47: 6772992.29 | H47: 0 | I47: 0 | J47: 0 | K47: 0 | L47: 0 | M47: 0
A48: 1429615765 | B48: 2255459.63 | C48: 1522111.2 | D48: 6705694.54 | E48: 11369892.77 | F48: 9433410.29 | G48: 116723344.7 | H48: 0 | I48: 12388354.62 | J48: 17704354.3 | K48: 58579413.85 | L48: 12211384.9 | M48: 15568798.26
A50: 01 Abr.-Jun., 2018 | B50: 02 Jul.-Set., 2018 | C50: 03 Oct.-Dic., 2018 | D50: 04 Ene.-Mar., 2019 | E50: 05 Abr.-Jun., 2019 | F50: 06 Jul.-Set., 2019 | G50: 07 Campaña 2020 | H50: 08 Abr.-Jun., 2020 | I50: 09 Jul.-Set., 2020 | J50: 10 Oct.-Dic., 2020 | K50: 11 Ene.-Mar., 2021 | L50: 12 Abr.-Jun., 2021 | M50: 13 Jul.-Set., 2021
A51: 24000 | B51: -4000 | C51: 0 | D51: 0 | E51: 59303672 | F51: 0 | G51: 51016534 | H51: 250000 | I51: 580400 | J51: 3880000 | K51: 573000 | L51: 15128727 | M51: 97175000
A52: 0 | B52: 9311804 | C52: 0 | D52: 0 | E52: 0 | F52: 0 | G52: 2554119413 | H52: 0 | I52: 1884220 | J52: 0 | K52: 0 | L52: 0 | M52: 0
A53: 1623544 | B53: 18901738 | C53: 2200036610 | D53: 1898494760 | E53: 796628796 | F53: 262789840 | G53: 89109271 | H53: 0 | I53: 4630171 | J53: 835274271 | K53: 1173005902 | L53: 1118078008 | M53: 200006072
A54: 103649366 | B54: 46969604 | C54: 0 | D54: 10702803 | E54: 0 | F54: 0 | G54: 0 | H54: 53114592 | I54: 51341445 | J54: 0 | K54: 70097090 | L54: 13596114 | M54: 29885994
A55: 105296910 | B55: 75179146 | C55: 2200036610 | D55: 1909197563 | E55: 855932468 | F55: 262789840 | G55: 2694245218 | H55: 53364592 | I55: 58436236 | J55: 839154271 | K55: 1243675992 | L55: 1146802849 | M55: 327067397
A56: 105269555 | B56: 75179146 | C56: 94776400 | D56: 83299447 | E56: 53883176 | F56: 148831333 | G56: 2568418745 | H56: 44748028 | I56: 58436236 | J56: 14672728 | K56: 99064860 | L56: 466337224 | M56: 289797554
A57: 27355 | B57: 0 | C57: 1996224334 | D57: 1825898116 | E57: 772643761 | F57: 76809098 | G57: 0 | H57: 325864 | I57: 0 | J57: 628779159 | K57: 1144611132 | L57: 680465625 | M57: 37269843
A58: 0 | B58: 0 | C58: 109035876 | D58: 0 | E58: 29405531 | F58: 37149409 | G58: 125826473 | H58: 0 | I58: 0 | J58: 141896319 | K58: 0 | L58: 0 | M58: 0
A59: 0 | B59: 0 | C59: 0 | D59: 0 | E59: 0 | F59: 0 | G59: 0 | H59: -8290700 | I59: 0 | J59: -53806065 | K59: 0 | L59: 0 | M59: 331
A60: 105296910 | B60: 75179146 | C60: 2200036610 | D60: 1909197563 | E60: 855932468 | F60: 262789840 | G60: 2694245218 | H60: 53364592 | I60: 58436236 | J60: 839154271 | K60: 1243675992 | L60: 1146802849 | M60: 327067397
A62: 08 Abr.-Jun., 2020 | B62: 09 Jul.-Set., 2020 | C62: 10 Oct.-Dic., 2020 | D62: 11 Ene.-Mar., 2021 | E62: 12 Abr.-Jun., 2021 | F62: 13 Jul.-Set., 2021
A63: 952821.1 | B63: 469000 | C63: 3419705 | D63: 2157500 | E63: 21783200 | F63: 150834746
A64: 61000 | B64: 0 | C64: 0 | D64: 0 | E64: 0 | F64: 2531288.45
A65: 3815.2 | B65: 11041.65 | C65: 232063.95 | D65: 17209.3 | E65: 12525733.32 | F65: 610176.61
A66: 0 | B66: 327398.35 | C66: 0 | D66: 2021228.94 | E66: 0 | F66: 0
A67: 1496079 | B67: 807440 | C67: 3651768.95 | D67: 4195938.24 | E67: 34308933.32 | F67: 153976211.1
A68: 0 | B68: 807440 | C68: 735200 | D68: 1705938.24 | E68: 14065059.98 | F68: 142976321.5
A69: 0 | B69: 0 | C69: 0 | D69: 2490000 | E69: 5613000 | F69: 0
A70: 1651282.45 | B70: 0 | C70: 2916568.95 | D70: 0 | E70: 14630873 | F70: 10999889.57
A71: 478442.7 | B71: 0 | C71: 0 | D71: 0 | E71: 0 | F71: 0
A72: 1651282.45 | B72: 807440 | C72: 3651768.95 | D72: 4195938.24 | E72: 34308932.98 | F72: 153976211.1
A74: 01 Abr.-Jun., 2018 | B74: 02 Jul.-Set., 2018 | C74: 03 Oct.-Dic., 2018 | D74: 05 Abr.-Jun., 2019 | E74: 05 Abr.-Jun., 2019 | F74: 06 Jul.-Set., 2019 | G74: 07 Campaña 2020 | H74: 09 Jul.-Set., 2020 | I74: 10 Oct.-Dic., 2020 | J74: 11 Ene.-Mar., 2021 | K74: 12 Abr.-Jun., 2021 | L74: 13 Jul.-Set., 2021
A75: 0 | B75: 0 | C75: 0 | D75: 0 | E75: 0 | F75: 0 | G75: 344837516.3 | H75: 0 | I75: 0 | J75: -35000 | K75: 5947323 | L75: 8475734.91
A76: 0 | B76: 0 | C76: 0 | D76: 0 | E76: 0 | F76: 0 | G76: 614790052.6 | H76: 0 | I76: 0 | J76: 0 | K76: 0 | L76: 21786811.56
A77: 0 | B77: 0 | C77: 0 | D77: 0 | E77: 0 | F77: 0 | G77: 0 | H77: 0 | I77: 0 | J77: 8874.35 | K77: 0 | L77: 0
A78: 0 | B78: 0 | C78: 0 | D78: 2839320 | E78: 0 | F78: 0 | G78: 0 | H78: 3002400 | I78: 500000 | J78: 215429216.2 | K78: 0 | L78: 2871953.56
A79: 0 | B79: 0 | C79: 0 | D79: 2839320 | E79: 0 | F79: 0 | G79: 959627568.8 | H79: 3002400 | I79: 500000 | J79: 215403090.6 | K79: 6667323 | L79: 33134500.03
A80: 0 | B80: 0 | C80: 0 | D80: 3496 | E80: 0 | F80: 0 | G80: 735142731.5 | H80: 752400 | I80: 500000 | J80: 108249645.3 | K80: 6153277.5 | L80: 33134500.03
A81: 0 | B81: 0 | C81: 0 | D81: 2835824 | E81: 0 | F81: 0 | G81: 0 | H81: 2250000 | I81: 0 | J81: 107153445.3 | K81: 0 | L81: 0
A82: 0 | B82: 0 | C82: 0 | D82: 0 | E82: 0 | F82: 0 | G82: 224484837.3 | H82: 0 | I82: 0 | J82: 0 | K82: 514045.5 | L82: 0
A83: 0 | B83: 0 | C83: 0 | D83: 0 | E83: 0 | F83: 0 | G83: 0 | H83: 0 | I83: 0 | J83: 0 | K83: 720000 | L83: 0
A84: 0 | B84: 0 | C84: 0 | D84: 2839320 | E84: 0 | F84: 0 | G84: 959627568.8 | H84: 3002400 | I84: 500000 | J84: 215403090.6 | K84: 6667323 | L84: 33134500.03
A86: 01 Abr.-Jun., 2018 | B86: 02 Jul.-Set., 2018 | C86: 03 Oct.-Dic., 2018 | D86: 04 Ene.-Mar., 2019 | E86: 05 Abr.-Jun., 2019 | F86: 06 Jul.-Set., 2019 | G86: 07 Campaña 2020 | H86: 08 Abr.-Jun., 2020 | I86: 09 Jul.-Set., 2020 | J86: 10 Oct.-Dic., 2020 | K86: 11 Ene.-Mar., 2021 | L86: 12 Abr.-Jun., 2021 | M86: 13 Jul.-Set., 2021
A87: 0 | B87: 0 | C87: 0 | D87: 0 | E87: 0 | F87: 0 | G87: 119976 | H87: 71949 | I87: 67700 | J87: 272373 | K87: 400050 | L87: 370500 | M87: 60083075
A88: 0 | B88: 0 | C88: 0 | D88: 0 | E88: 0 | F88: 0 | G88: 0 | H88: 0 | I88: 0 | J88: 0 | K88: 0 | L88: 0 | M88: 0
A89: 0 | B89: 0 | C89: 0 | D89: 0 | E89: 0 | F89: 0 | G89: 0 | H89: 0 | I89: 0 | J89: 0 | K89: 0 | L89: 0 | M89: 0
A90: 0 | B90: 0 | C90: 0 | D90: 0 | E90: 0 | F90: 0 | G90: 0 | H90: 0 | I90: 0 | J90: 0 | K90: 0 | L90: 0 | M90: 0
A91: 0 | B91: 0 | C91: 0 | D91: 0 | E91: 0 | F91: 0 | G91: 119976 | H91: 71949 | I91: 67700 | J91: 272373 | K91: 400050 | L91: 370500 | M91: 60083075
A92: 0 | B92: 0 | C92: 0 | D92: 0 | E92: 0 | F92: 0 | G92: 119976 | H92: 71949 | I92: 67700 | J92: 272373 | K92: 400050 | L92: 370500 | M92: 60063075
A93: 0 | B93: 0 | C93: 0 | D93: 0 | E93: 0 | F93: 0 | G93: 0 | H93: 0 | I93: 0 | J93: 0 | K93: 0 | L93: 0 | M93: 0
A94: 0 | B94: 0 | C94: 0 | D94: 0 | E94: 0 | F94: 0 | G94: 0 | H94: 0 | I94: 0 | J94: 0 | K94: 0 | L94: 0 | M94: 20000
A95: 0 | B95: 0 | C95: 0 | D95: 0 | E95: 0 | F95: 0 | G95: 0 | H95: 0 | I95: 0 | J95: 0 | K95: 0 | L95: 0 | M95: 0
A96: 0 | B96: 0 | C96: 0 | D96: 0 | E96: 0 | F96: 0 | G96: 119976 | H96: 71949 | I96: 67700 | J96: 272373 | K96: 400050 | L96: 370500 | M96: 60083075
A98: 01 Abr.-Jun., 2018 | B98: 02 Jul.-Set., 2018 | C98: 03 Oct.-Dic., 2018 | D98: 04 Ene.-Mar., 2019 | E98: 05 Abr.-Jun., 2019 | F98: 06 Jul.-Set., 2019 | G98: 07 Campaña 2020 | H98: 08 Abr.-Jun., 2020 | I98: 09 Jul.-Set., 2020 | J98: 10 Oct.-Dic., 2020 | K98: 11 Ene.-Mar., 2021 | L98: 12 Abr.-Jun., 2021 | M98: 13 Jul.-Set., 2021
A99: 0 | B99: 0 | C99: 0 | D99: 0 | E99: 0 | F99: 0 | G99: 80400 | H99: 0 | I99: 0 | J99: 339000 | K99: 0 | L99: 0 | M99: 0
A100: 0 | B100: 0 | C100: 0 | D100: 0 | E100: 0 | F100: 0 | G100: 20966235 | H100: 0 | I100: 0 | J100: 0 | K100: 0 | L100: 0 | M100: 17000
A101: 14.86 | B101: 0 | C101: 0 | D101: 0 | E101: 0 | F101: 0 | G101: 2543.06 | H101: 286.72 | I101: 0 | J101: 0 | K101: 0 | L101: 17002208.18 | M101: 0
A102: 390160.64 | B102: 0 | C102: 0 | D102: 0 | E102: 0 | F102: 0 | G102: 0 | H102: 299713.28 | I102: 0 | J102: 2456 | K102: 0 | L102: 30935.72 | M102: 0
A103: 390175.5 | B103: 0 | C103: 0 | D103: 0 | E103: 0 | F103: 0 | G103: 21049178.06 | H103: 300000 | I103: 0 | J103: 341456 | K103: 0 | L103: 17033143.9 | M103: 17000
A104: 359881 | B104: 0 | C104: 0 | D104: 0 | E104: 0 | F104: 0 | G104: 21048896.93 | H104: 300000 | I104: 0 | J104: 341456 | K104: 0 | L104: 11154 | M104: 14328.4
A105: 30294.5 | B105: 0 | C105: 0 | D105: 0 | E105: 0 | F105: 0 | G105: 0 | H105: 0 | I105: 0 | J105: 0 | K105: 0 | L105: 17021989.9 | M105: 0
A106: 0 | B106: 0 | C106: 0 | D106: 0 | E106: 0 | F106: 0 | G106: 281.13 | H106: 0 | I106: 0 | J106: 0 | K106: 0 | L106: 0 | M106: 2671.6
A107: 0 | B107: 0 | C107: 0 | D107: 0 | E107: 0 | F107: 0 | G107: 0 | H107: 0 | I107: 0 | J107: 0 | K107: 0 | L107: 0 | M107: 0
A108: 390175.5 | B108: 0 | C108: 0 | D108: 0 | E108: 0 | F108: 0 | G108: 21049178.06 | H108: 300000 | I108: 0 | J108: 341456 | K108: 0 | L108: 17033143.9 | M108: 17000
A110: 01 Abr.-Jun., 2018 | B110: 02 Jul.-Set., 2018 | C110: 03 Oct.-Dic., 2018 | D110: 04 Ene.-Mar., 2019 | E110: 05 Abr.-Jun., 2019 | F110: 06 Jul.-Set., 2019 | G110: 07 Campaña 2020 | H110: 08 Abr.-Jun., 2020 | I110: 09 Jul.-Set., 2020 | J110: 10 Oct.-Dic., 2020 | K110: 11 Ene.-Mar., 2021 | L110: 12 Abr.-Jun., 2021 | M110: 13 Jul.-Set., 2021
A111: 272370 | B111: 591000 | C111: 537600 | D111: 62000 | E111: 0 | F111: 245000 | G111: 0 | H111: 0 | I111: 0 | J111: 0 | K111: 0 | L111: 0 | M111: 493369.38
A112: 751500 | B112: 4410000 | C112: 2519500 | D112: 0 | E112: 55071683.64 | F112: 0 | G112: 380126098.6 | H112: 0 | I112: 0 | J112: 10259493.14 | K112: 3260933.7 | L112: 0 | M112: 2109508.55
A113: 1927.4 | B113: 1880.45 | C113: 254.95 | D113: 219353482.8 | E113: 10530292.42 | F113: 45997348.63 | G113: 30965427.09 | H113: 32957.53 | I113: 9072763.19 | J113: 6582.18 | K113: 0 | L113: 47624388.99 | M113: 936020
A114: 17778138.35 | B114: 213782.17 | C114: 2977730.04 | D114: 200810086.3 | E114: 71650933.89 | F114: 0 | G114: 0 | H114: 31911505.57 | I114: 0 | J114: 8425781.83 | K114: 1399.52 | L114: 0 | M114: 618080.64
A115: 18803935.75 | B115: 5216662.62 | C115: 7025584.99 | D115: 420225569.1 | E115: 137252910 | F115: 46242348.63 | G115: 411091525.7 | H115: 31944463.1 | I115: 9072793.19 | J115: 18691857.15 | K115: 3262333.22 | L115: 47624388.99 | M115: 4156978.57
A116: 18803935.75 | B116: 5216662.62 | C116: 7025584.99 | D116: 197100569.1 | E116: 137252910 | F116: 16317379.99 | G116: 376704939.4 | H116: 28382795.1 | I116: 8933107.84 | J116: 18691827.15 | K116: 3262333.22 | L116: 14327453.03 | M116: 4156978.57
A117: 0 | B117: 0 | C117: 0 | D117: 223125000 | E117: 0 | F117: 26530500 | G117: 0 | H117: 3561668 | I117: 128741 | J117: 0 | K117: 0 | L117: 23441083.15 | M117: 0
A118: 0 | B118: 0 | C118: 0 | D118: 0 | E118: 0 | F118: 3394468.64 | G118: 34386586.29 | H118: 0 | I118: 10944.35 | J118: 0 | K118: 0 | L118: 9655852.81 | M118: 0
A119: 0 | B119: 0 | C119: 990500 | D119: 0 | E119: 0 | F119: 0 | G119: 0 | H119: 0 | I119: 30 | J119: 0 | K119: 0 | L119: -200000 | M119: 0
A120: 18803935.75 | B120: 5216662.62 | C120: 7025584.99 | D120: 420225569.1 | E120: 137252910 | F120: 46242348.63 | G120: 411091525.7 | H120: 31944463.1 | I120: 9072793.19 | J120: 18691827.15 | K120: 3262333.22 | L120: 47624388.99 | M120: 4156978.57
A122: 01 Abr.-Jun., 2018 | B122: 02 Jul.-Set., 2018 | C122: 03 Oct.-Dic., 2018 | D122: 04 Ene.-Mar., 2019 | E122: 05 Abr.-Jun., 2019 | F122: 06 Jul.-Set., 2019 | G122: 07 Campaña 2020 | H122: 08 Abr.-Jun., 2020 | I122: 09 Jul.-Set., 2020 | J122: 10 Oct.-Dic., 2020 | K122: 11 Ene.-Mar., 2021 | L122: 12 Abr.-Jun., 2021 | M122: 13 Jul.-Set., 2021
A123: 0 | B123: 25070914.58 | C123: -5000 | D123: 1109494 | E123: 3260192 | F123: 3243147.02 | G123: 15524317.67 | H123: 3113147 | I123: 2832037.01 | J123: 952225.36 | K123: 26285423.08 | L123: 2611708.76 | M123: 2570474.04
A124: 65147703.54 | B124: 245650103.5 | C124: 72104154.9 | D124: 195872653.7 | E124: 0 | F124: 43154538.38 | G124: 350821149.1 | H124: 136816533.2 | I124: 656318.11 | J124: 0 | K124: 135428732.2 | L124: 0 | M124: 85319589.19
A125: 251455.66 | B125: 912883.04 | C125: 1140830.16 | D125: 1434508.55 | E125: 74090064.32 | F125: 125778147.3 | G125: 777696756.5 | H125: 219028538.4 | I125: 597262.03 | J125: 625779.19 | K125: 630167.94 | L125: 302716626.3 | M125: 94607375.09
A126: 0 | B126: 0 | C126: 101912612.5 | D126: 0 | E126: 0 | F126: 15112654.53 | G126: 0 | H126: 0 | I126: 72576516.54 | J126: 206026157.3 | K126: 0 | L126: 25998880.08 | M126: 0
A127: 65399159.2 | B127: 271633901.1 | C127: 175152597.5 | D127: 198563916.9 | E127: 866764888.9 | F127: 188022473.5 | G127: 1349024658 | H127: 514165630.1 | I127: 76662133.72 | J127: 208600834.6 | K127: 162344323.2 | L127: 341517271 | M127: 182497438.3
A128: 54702025.5 | B128: 152275454.5 | C128: 175005336.9 | D128: 159083710 | E128: 171035735.6 | F128: 188022473.5 | G128: 1151092109 | H128: 353869431.6 | I128: 76662133.72 | J128: 88819567.67 | K128: 134575965.6 | L128: 187273144.6 | M128: 145811502.6
A129: 0 | B129: 0 | C129: 0 | D129: 0 | E129: 677021996.3 | F129: 0 | G129: 0 | H129: 0 | I129: 0 | J129: 119781267 | K129: 0 | L129: 154244126.4 | M129: 0
A130: 10697133.68 | B130: 119358446.6 | C130: 0 | D130: 39480206.9 | E130: 18707156.99 | F130: 0 | G130: 197932548.6 | H130: 160296198.5 | I130: 0 | J130: 0 | K130: 5043357.58 | L130: 0 | M130: 36591943.69
A131: -2 | B131: 0 | C131: -147260.66 | D131: 147260.66 | E131: 789414632.6 | F131: 733986.24 | G131: 204982434.5 | H131: 155207411.5 | I131: 0.03 | J131: 996672.77 | K131: -22724999 | L131: 10190055.81 | M131: -93992.05
A132: 65399161.18 | B132: 271633901.1 | C132: 175152597.5 | D132: 198563916.9 | E132: 866764888.9 | F132: 188022473.5 | G132: 1349024658 | H132: 514165630.1 | I132: 76662133.72 | J132: 208600834.6 | K132: 162344322.2 | L132: 341517271 | M132: 182497438.3
A134: 01 Abr.-Jun., 2018 | B134: 02 Jul.-Set., 2018 | C134: 03 Oct.-Dic., 2018 | D134: 04 Ene.-Mar., 2019 | E134: 05 Abr.-Jun., 2019 | F134: 06 Jul.-Set., 2019 | G134: 07 Campaña 2020 | H134: 08 Abr.-Jun., 2020 | I134: 09 Jul.-Set., 2020 | J134: 10 Oct.-Dic., 2020 | K134: 11 Ene.-Mar., 2021 | L134: 12 Abr.-Jun., 2021 | M134: 13 Jul.-Set., 2021
A135: 2470993.88 | B135: 0 | C135: 0 | D135: 9147180.17 | E135: 4042756.4 | F135: 3224093.34 | G135: 22899232.96 | H135: 4005704.91 | I135: 55000 | J135: 0 | K135: 4015430 | L135: 25236489.77 | M135: 22036160.71
A136: 2825122.36 | B136: 0 | C136: 0 | D136: 0 | E136: 18213239.61 | F136: 0 | G136: 1072573402 | H136: 0 | I136: 0 | J136: 1183998.71 | K136: 0 | L136: 0 | M136: 0
A137: 12798434.06 | B137: 124953.58 | C137: 31935520.23 | D137: 3494479119 | E137: 34678651.63 | F137: 54904530.61 | G137: 435897535 | H137: 495714.84 | I137: 441743.48 | J137: 14556587.4 | K137: 678174355 | L137: 699663472.9 | M137: 52565605.48
A138: 201080331 | B138: 193721238 | C138: 116656764.9 | D138: 131021538.8 | E138: 78237.65 | F138: 3977880.41 | G138: 0 | H138: 112022565.8 | I138: 72008656.25 | J138: 51488866.03 | K138: 13749383.02 | L138: 0 | M138: 53379837.09
A139: 219174881.3 | B139: 193846191.6 | C139: 257997812.9 | D139: 3634647838 | E139: 57420233.34 | F139: 62106504.36 | G139: 1531370170 | H139: 720918532.7 | I139: 72505399.73 | J139: 67229452.14 | K139: 695939168.1 | L139: 724899962.7 | M139: 127981603.3
A140: 211561615 | B140: 162398228.3 | C140: 160817788.7 | D140: 190452349.4 | E140: 57420233.34 | F140: 58408165.21 | G140: 1219967407 | H140: 98051918.64 | I140: 69388369.99 | J140: 67229452.14 | K140: 65105090.85 | L140: 168801747.7 | M140: 58626038.28
A141: 0 | B141: 11953501.82 | C141: 97180024.19 | D141: 3444195489 | E141: 0 | F141: 3698339.15 | G141: 0 | H141: 622866614.1 | I141: 207030.39 | J141: 0 | K141: 630834077.2 | L141: 417897528.6 | M141: 69355565
A142: 0 | B142: 0 | C142: 0 | D142: 0 | E142: 0 | F142: 0 | G142: 307371289.5 | H142: 0 | I142: 0 | J142: 0 | K142: 0 | L142: 138200686.4 | M142: 0
A143: -7613266.29 | B143: -19494461.46 | C143: 109405527.8 | D143: 0 | E143: 407348.05 | F143: 0 | G143: -4031473.31 | H143: 604394547.1 | I143: -2909999.35 | J143: 0 | K143: 0 | L143: 0 | M143: 0
A144: 219174881.3 | B144: 193846191.6 | C144: 257997812.9 | D144: 3634647838 | E144: 57420233.34 | F144: 62106504.36 | G144: 1531370170 | H144: 720918532.7 | I144: 72505399.73 | J144: 67229452.14 | K144: 695939168.1 | L144: 724899962.7 | M144: 127981603.3
A146: 01 Abr.-Jun., 2018 | B146: 02 Jul.-Set., 2018 | C146: 03 Oct.-Dic., 2018 | D146: 04 Ene.-Mar., 2019 | E146: 05 Abr.-Jun., 2019 | F146: 06 Jul.-Set., 2019 | G146: 07 Campaña 2020 | H146: 08 Abr.-Jun., 2020 | I146: 09 Jul.-Set., 2020 | J146: 10 Oct.-Dic., 2020 | K146: 11 Ene.-Mar., 2021 | L146: 12 Abr.-Jun., 2021 | M146: 13 Jul.-Set., 2021
A147: 0 | B147: 0 | C147: 0 | D147: 450000 | E147: 0 | F147: 0 | G147: 0 | H147: 0 | I147: 0 | J147: 0 | K147: 0 | L147: 0 | M147: 0
A148: 0 | B148: 0 | C148: 0 | D148: 88056087.95 | E148: 0 | F148: 0 | G148: 12525000 | H148: 0 | I148: 0 | J148: 1500000 | K148: 0 | L148: 8023749.05 | M148: 0
A149: 0 | B149: 0 | C149: 0 | D149: 0 | E149: 0 | F149: 0 | G149: 372.81 | H149: 0 | I149: 0 | J149: 0 | K149: 0 | L149: 1656 | M149: 12350698
A150: 0 | B150: 0 | C150: 0 | D150: 0 | E150: 0 | F150: 0 | G150: 81097.99 | H150: 0 | I150: 0 | J150: 0 | K150: 0 | L150: 0 | M150: 556
A151: 0 | B151: 0 | C151: 0 | D151: 88506087.95 | E151: 0 | F151: 0 | G151: 12606470.8 | H151: 0 | I151: 0 | J151: 1500000 | K151: 0 | L151: 8025405.05 | M151: 12351254
A152: 0 | B152: 0 | C152: 0 | D152: 88398834.98 | E152: 0 | F152: 0 | G152: 12606470.8 | H152: 0 | I152: 0 | J152: 1500000 | K152: 0 | L152: 8020752 | M152: 1501254
A153: 0 | B153: 0 | C153: 0 | D153: 0 | E153: 0 | F153: 0 | G153: 0 | H153: 0 | I153: 0 | J153: 0 | K153: 0 | L153: 0 | M153: 10850000
A154: 0 | B154: 0 | C154: 0 | D154: 107252.97 | E154: 0 | F154: 0 | G154: 0 | H154: 0 | I154: 0 | J154: 0 | K154: 0 | L154: 4653.05 | M154: 0
A155: 0 | B155: 0 | C155: 0 | D155: 0 | E155: 0 | F155: 0 | G155: 0 | H155: 0 | I155: 0 | J155: 0 | K155: 0 | L155: 0 | M155: 0
A156: 0 | B156: 0 | C156: 0 | D156: 88506087.95 | E156: 0 | F156: 0 | G156: 12606470.8 | H156: 0 | I156: 0 | J156: 1500000 | K156: 0 | L156: 8025405.05 | M156: 12351254
A159: 05 Abr.-Jun., 2019 | B159: 05 Abr.-Jun., 2019 | C159: 06 Jul.-Set., 2019 | D159: 07 Campaña 2020 | E159: 09 Jul.-Set., 2020 | F159: 10 Oct.-Dic., 2020 | G159: 11 Ene.-Mar., 2021 | H159: 12 Abr.-Jun., 2021 | I159: 13 Jul.-Set., 2021
A160: 0 | B160: 0 | C160: 0 | D160: 344837516.3 | E160: 0 | F160: 0 | G160: -35000 | H160: 5947323 | I160: 8475734.91
A161: 0 | B161: 0 | C161: 0 | D161: 614790052.6 | E161: 0 | F161: 0 | G161: 0 | H161: 0 | I161: 21786811.56
A162: 0 | B162: 0 | C162: 0 | D162: 0 | E162: 0 | F162: 0 | G162: 8874.35 | H162: 0 | I162: 0
A163: 2839320 | B163: 0 | C163: 0 | D163: 0 | E163: 3002400 | F163: 500000 | G163: 215429216.2 | H163: 0 | I163: 2871953.56
A164: 2839320 | B164: 0 | C164: 0 | D164: 959627568.8 | E164: 3002400 | F164: 500000 | G164: 215403090.6 | H164: 6667323 | I164: 33134500.03
A165: 3496 | B165: 0 | C165: 0 | D165: 735142731.5 | E165: 752400 | F165: 500000 | G165: 108249645.3 | H165: 6153277.5 | I165: 33134500.03
A166: 2835824 | B166: 0 | C166: 0 | D166: 0 | E166: 2250000 | F166: 0 | G166: 107153445.3 | H166: 0 | I166: 0
A167: 0 | B167: 0 | C167: 0 | D167: 224484837.3 | E167: 0 | F167: 0 | G167: 0 | H167: 514045.5 | I167: 0
A168: 0 | B168: 0 | C168: 0 | D168: 0 | E168: 0 | F168: 0 | G168: 0 | H168: 720000 | I168: 0
A169: 2839320 | B169: 0 | C169: 0 | D169: 959627568.8 | E169: 3002400 | F169: 500000 | G169: 215403090.6 | H169: 6667323 | I169: 33134500.03

Sheet EN (hidden)
B1: Abr.-Jun., 2018 | C1: Jul.-Set., 2018 | D1: Oct.-Dic., 2018 | E1: Ene.-Mar., 2019 | F1: Abr.-Jun., 2019 | G1: Jul.-Set., 2019 | H1: Oct.19-Mar.20 | I1: Abr.-Jun., 2020 | J1: Jul.-Set., 2020 | K1: Oct.-Dic., 2020 | L1: Ene.-Mar., 2021 | M1: Abr.-Jun., 2021 | N1: Jul.-Set., 2021
A2: Acción Ciudadana
A3: Monto de donaciones recibidas | B3: 15114360 | C3: 17550047 | D3: 17986676 | E3: 14317247 | F3: 12535726 | G3: 9619258 | H3: 43957907.87 | I3: 16833068.17 | J3: 8626399.19 | K3: 10659944.81 | L3: -10598778.17 | M3: 5113501 | N3: 5448495
A4: Incremento en el rubro de pasivo | B4: 46671130 | C4: 72888339 | D4: 69536192 | E4: 0 | F4: 0 | G4: 0 | H4: 605594339.3 | I4: 553904082 | J4: 0 | K4: 0 | L4: 0 | M4: 0 | N4: 0
A5: Monto de Ingresos Recibidos | B5: 246490269 | C5: 25625 | D5: 24030 | E5: 1408941455 | F5: 1523556040 | G5: 190487322 | H5: 478620784 | I5: 0 | J5: 115320488.3 | K5: 210608615.7 | L5: 22209030.25 | M5: 151494403.8 | N5: 435684077
A6: Monto de activos utilizado | B6: 526284070 | C6: 7737750 | D6: 11488051 | E6: 0 | F6: 0 | G6: 0 | H6: 0 | I6: 64095431 | J6: 20581929 | K6: 0 | L6: 123217195 | M6: 0 | N6: 0
A7: Total (origen) | B7: 834559829 | C7: 98201761 | D7: 99034949 | E7: 1423258702 | F7: 1536091766 | G7: 200106580 | H7: 1128173031 | I7: 634832581.2 | J7: 144528816.5 | K7: 221268560.5 | L7: 134827447.1 | M7: 156607904.8 | N7: 441132572
A8: Monto de gastos | B8: 834559829 | C8: 98201762 | D8: 99034948 | E8: 111361939 | F8: 144022320 | G8: 119546759 | H8: 529094575.9 | I8: 60052471 | J8: 112169667.7 | K8: 87778532.35 | L8: 91869314.12 | M8: 93721125.88 | N8: 154965945
A9: Disminución en el rubro de pasivo | B9: 0 | C9: 0 | D9: 0 | E9: 1254076216 | F9: 1167950379 | G9: 60486401 | H9: 0 | I9: 0 | J9: 32246117 | K9: 41131029 | L9: 37355492 | M9: 38760610 | N9: 268885697.7
A10: Acumulación de activos | B10: 0 | C10: 0 | D10: 0 | E10: 57820548 | F10: 224119066 | G10: 13153454 | H10: 5680250.2 | I10: 0 | J10: 0 | K10: 87967085 | L10: 0 | M10: 21425357 | N10: 13779148
A11: Monto de Ajustes | B11: 0 | C11: 0 | D11: 0 | E11: 0 | F11: 0 | G11: -6919966 | H11: -593398205 | I11: -95552978.82 | J11: -113031 | K11: -4391914.82 | L11: -5602642 | M11: -2700812.32 | N11: 3501780.59
A12: Total (Aplicación) | B12: 834559829 | C12: 98201762 | D12: 99034948 | E12: 1423258703 | F12: 1536091765 | G12: 200106580 | H12: 1128173031 | I12: 155605449.8 | J12: 144528815.7 | K12: 221268561.2 | L12: 134827448.1 | M12: 156607905.2 | N12: =+SUM(N8:N11) -> 441132571.3
A14: Frente Amplio
A15: Monto de donaciones recibidas | B15: 9114757.5 | C15: 6833115 | D15: 7254966.23 | E15: 7047000 | F15: 7523119 | G15: 7669103 | H15: 24739591.73 | I15: 4996150 | J15: 5474500 | K15: 6986500 | L15: 6471777.14 | M15: 2348553 | N15: 6438100
A16: Incremento en el rubro de pasivo | B16: 0 | C16: 0 | D16: 0 | E16: 0 | F16: 25774903.97 | G16: 0 | H16: 29775708.8 | I16: 0 | J16: 21632151.55 | K16: 26170497.15 | L16: 17065683.44 | M16: 0 | N16: 0
A17: Monto de Ingresos Recibidos | B17: 4370800.73 | C17: 1324800.87 | D17: 576868475.9 | E17: 497300 | F17: 0 | G17: 108455268.6 | H17: 159842087.8 | I17: 0 | J17: 0 | K17: 0 | L17: 470000 | M17: 116832855.8 | N17: 50664875.82
A18: Monto de activos utilizado | B18: 83115335.53 | C18: 51988078.32 | D18: 0 | E18: 105261254.5 | F18: 66645356.76 | G18: 0 | H18: 0 | I18: 70821533.28 | J18: 290513.64 | K18: 7986745.98 | L18: 0 | M18: 5228145.83 | N18: 20882035.38
A19: Total (origen) | B19: 96600893.76 | C19: 60145994.19 | D19: 584123442.2 | E19: 112805554.5 | F19: 103649212.2 | G19: 116124371.6 | H19: 214357388.3 | I19: 75817683.28 | J19: 27397165.19 | K19: 41143743.13 | L19: 24007460.58 | M19: 124409554.7 | N19: 77985011.2
A20: Monto de gastos | B20: 77631012.78 | C20: 50186416.07 | D20: 63484242.8 | E20: 52685554.5 | F20: 103649212.2 | G20: 56014551.55 | H20: 163961486 | I20: 38656427.03 | J20: 27397165.19 | K20: 33819661.9 | L20: 22421346.66 | M20: 51808817.37 | N20: 49490173.69
A21: Disminución en el rubro de pasivo | B21: 18969880.98 | C21: 9959578.12 | D21: 466662985.9 | E21: 59820000 | F21: 0 | G21: 22362000 | H21: 0 | I21: 37161256.25 | J21: 0 | K21: 0 | L21: 0 | M21: 41829085.65 | N21: 28494837.51
A22: Acumulación de activos | B22: 0 | C22: 0 | D22: 53838713.5 | E22: 0 | F22: 0 | G22: 37747820.09 | H22: 50395902.37 | I22: 0 | J22: 0 | K22: 0 | L22: 1586113.92 | M22: 0 | N22: 0
A23: Monto de Ajustes | B23: 0 | C23: 0 | D23: -137500 | E23: -300000 | F23: 3705832.5 | G23: 0 | H23: 0 | I23: 0 | J23: 0 | K23: -7324081.23 | L23: 0 | M23: -30771651.64 | N23: 0
A24: Total (Aplicación) | B24: 96600893.76 | C24: 60145994.19 | D24: 584123442.2 | E24: 112805554.5 | F24: 103649212.2 | G24: 116124371.6 | H24: 214357388.3 | I24: 75817683.28 | J24: 27397165.19 | K24: 41143743.13 | L24: 24007460.58 | M24: 124409554.7 | N24: 77985011.2
A26: Integración Nacional
A27: Monto de donaciones recibidas | B27: 0 | C27: 0 | D27: 0 | E27: 0 | F27: 0 | G27: 100000 | H27: 47759574.76 | I27: 0 | J27: 0 | K27: 0 | L27: 34000 | M27: 0 | N27: 0
A28: Incremento en el rubro de pasivo | B28: 2672995.44 | C28: 1643411 | D28: 1298545 | E28: 6574110 | F28: 0 | G28: 0 | H28: 13999009.48 | I28: 0 | J28: 0 | K28: 9776623.48 | L28: 0 | M28: 169243 | N28: 0
A29: Monto de Ingresos Recibidos | B29: 1360646864 | C29: 0 | D29: 0 | E29: 0 | F29: 11369892.67 | G29: 618048.08 | H29: 42538125.89 | I29: 0 | J29: 7341563.81 | K29: 7927730.89 | L29: 58545413.85 | M29: 11007532.79 | N29: 13995297.93
A30: Monto de activos utilizado | B30: 20872288.22 | C30: 612048.63 | D30: 223566.2 | E30: 131584.54 | F30: 0 | G30: 8715362.21 | H30: 5653642.28 | I30: 0 | J30: 5046790.74 | K30: 0 | L30: 0 | M30: 1034609 | N30: 1573500.33
A31: Total (origen) | B31: 1429615675 | C31: 2255459.63 | D31: 1522111.2 | E31: 6705694.54 | F31: 11369892.67 | G31: 9433410.29 | H31: 116723344.7 | I31: 0 | J31: 12388354.55 | K31: 17704354.37 | L31: 58579413.85 | M31: 12211384.79 | N31: 15568798.26
A32: Monto de gastos | B32: 1429615765 | C32: 2005459.63 | D32: 1522111.2 | E32: 6705694.54 | F32: 2644086.22 | G32: 6008247.3 | H32: 116723344.7 | I32: 0 | J32: 8753454.62 | K32: 13229521.57 | L32: 18645054.82 | M32: 12211384.9 | N32: 14785104.06
A33: Disminución en el rubro de pasivo | B33: 0 | C33: 0 | D33: 0 | E33: 0 | F33: 1832942.97 | G33: 3097520.56 | H33: 0 | I33: 0 | J33: 3634900 | K33: 0 | L33: 24103598.28 | M33: 0 | N33: 783694.2
A34: Acumulación de activos | B34: 0 | C34: 0 | D34: 0 | E34: 0 | F34: 6892863.58 | G34: 0 | H34: 0 | I34: 0 | J34: 0 | K34: 4474832.73 | L34: 15830760.75 | M34: 0 | N34: 0
A35: Monto de Ajustes | B35: 45423527.74 | C35: -250000 | D35: 0 | E35: 0 | F35: 0 | G35: -327642.43 | H35: 6772992.29 | I35: 0 | J35: 0 | K35: 0 | L35: 0 | M35: 0 | N35: 0
A36: Total (Aplicación) | B36: 1429615765 | C36: 2255459.63 | D36: 1522111.2 | E36: 6705694.54 | F36: 11369892.77 | G36: 9433410.29 | H36: 116723344.7 | I36: 0 | J36: 12388354.62 | K36: 17704354.3 | L36: 58579413.85 | M36: 12211384.9 | N36: 15568798.26
A38: Liberación Nacional
A39: Monto de donaciones recibidas | B39: 24000 | C39: -4000 | D39: 0 | E39: 0 | F39: 59303672 | G39: 0 | H39: 51016534 | I39: 250000 | J39: 580400 | K39: 3880000 | L39: 573000 | M39: 15128727 | N39: 97175000
A40: Incremento en el rubro de pasivo | B40: 0 | C40: 9311804 | D40: 0 | E40: 0 | F40: 0 | G40: 0 | H40: 2554119413 | I40: 0 | J40: 1884220 | K40: 0 | L40: 0 | M40: 0 | N40: 0
A41: Monto de Ingresos Recibidos | B41: 1623544 | C41: 18901738 | D41: 2200036610 | E41: 1898494760 | F41: 796628796 | G41: 262789840 | H41: 89109271 | I41: 0 | J41: 4630171 | K41: 835274271 | L41: 1173005902 | M41: 1118078008 | N41: 200006072
A42: Monto de activos utilizado | B42: 103649366 | C42: 46969604 | D42: 0 | E42: 10702803 | F42: 0 | G42: 0 | H42: 0 | I42: 53114592 | J42: 51341445 | K42: 0 | L42: 70097090 | M42: 13596114 | N42: 29885994
A43: Total (origen) | B43: 105296910 | C43: 75179146 | D43: 2200036610 | E43: 1909197563 | F43: 855932468 | G43: 262789840 | H43: 2694245218 | I43: 53364592 | J43: 58436236 | K43: 839154271 | L43: 1243675992 | M43: 1146802849 | N43: 327067397
A44: Monto de gastos | B44: 105269555 | C44: 75179146 | D44: 94776400 | E44: 83299447 | F44: 53883176 | G44: 148831333 | H44: 2568418745 | I44: 44748028 | J44: 58436236 | K44: 14672728 | L44: 99064860 | M44: 466337224 | N44: 289797554
A45: Disminución en el rubro de pasivo | B45: 27355 | C45: 0 | D45: 1996224334 | E45: 1825898116 | F45: 772643761 | G45: 76809098 | H45: 0 | I45: 325864 | J45: 0 | K45: 628779159 | L45: 1144611132 | M45: 680465625 | N45: 37269843
A46: Acumulación de activos | B46: 0 | C46: 0 | D46: 109035876 | E46: 0 | F46: 29405531 | G46: 37149409 | H46: 125826473 | I46: 0 | J46: 0 | K46: 141896319 | L46: 0 | M46: 0 | N46: 0
A47: Monto de Ajustes | B47: 0 | C47: 0 | D47: 0 | E47: 0 | F47: 0 | G47: 0 | H47: 0 | I47: -8290700 | J47: 0 | K47: -53806065 | L47: 0 | M47: 0 | N47: 331
A48: Total (Aplicación) | B48: 105296910 | C48: 75179146 | D48: 2200036610 | E48: 1909197563 | F48: 855932468 | G48: 262789840 | H48: 2694245218 | I48: 53364592 | J48: 58436236 | K48: 839154271 | L48: 1243675992 | M48: 1146802849 | N48: 327067397
A50: Liberal Progresista
A51: Monto de donaciones recibidas | I51: 952821.1 | J51: 469000 | K51: 3419705 | L51: 2157500 | M51: 21783200 | N51: 150834746
A52: Incremento en el rubro de pasivo | I52: 61000 | J52: 0 | K52: 0 | L52: 0 | M52: 0 | N52: 2531288.45
A53: Monto de Ingresos Recibidos | I53: 3815.2 | J53: 11041.65 | K53: 232063.95 | L53: 17209.3 | M53: 12525733.32 | N53: 610176.61
A54: Monto de activos utilizado | I54: 0 | J54: 327398.35 | K54: 0 | L54: 2021228.94 | M54: 0 | N54: 0
A55: Total (origen) | I55: 1496079 | J55: 807440 | K55: 3651768.95 | L55: 4195938.24 | M55: 34308933.32 | N55: 153976211.1
A56: Monto de gastos | I56: 0 | J56: 807440 | K56: 735200 | L56: 1705938.24 | M56: 14065059.98 | N56: 142976321.5
A57: Disminución en el rubro de pasivo | I57: 0 | J57: 0 | K57: 0 | L57: 2490000 | M57: 5613000 | N57: 0
A58: Acumulación de activos | I58: 1651282.45 | J58: 0 | K58: 2916568.95 | L58: 0 | M58: 14630873 | N58: 10999889.57
A59: Monto de Ajustes | I59: 478442.7 | J59: 0 | K59: 0 | L59: 0 | M59: 0 | N59: 0
A60: Total (Aplicación) | I60: 1651282.45 | J60: 807440 | K60: 3651768.95 | L60: 4195938.24 | M60: 34308932.98 | N60: 153976211.1
A62: Nueva República
A63: Monto de donaciones recibidas | E63: 0 | F63: 0 | G63: 0 | H63: 0 | I63: 344837516.3 | J63: 0 | K63: 0 | L63: -35000 | M63: 5947323 | N63: 8475734.91
A64: Incremento en el rubro de pasivo | E64: 0 | F64: 0 | G64: 0 | H64: 0 | I64: 614790052.6 | J64: 0 | K64: 0 | L64: 0 | M64: 0 | N64: 21786811.56
A65: Monto de Ingresos Recibidos | E65: 0 | F65: 0 | G65: 0 | H65: 0 | I65: 0 | J65: 0 | K65: 0 | L65: 8874.35 | M65: 0 | N65: 0
A66: Monto de activos utilizado | E66: 0 | F66: 2839320 | G66: 0 | H66: 0 | I66: 0 | J66: 3002400 | K66: 500000 | L66: 215429216.2 | M66: 0 | N66: 2871953.56
A67: Total (origen) | E67: 0 | F67: 2839320 | G67: 0 | H67: 0 | I67: 959627568.8 | J67: 3002400 | K67: 500000 | L67: 215403090.6 | M67: 6667323 | N67: 33134500.03
A68: Monto de gastos | E68: 0 | F68: 3496 | G68: 0 | H68: 0 | I68: 735142731.5 | J68: 752400 | K68: 500000 | L68: 108249645.3 | M68: 6153277.5 | N68: 33134500.03
A69: Disminución en el rubro de pasivo | E69: 0 | F69: 2835824 | G69: 0 | H69: 0 | I69: 0 | J69: 2250000 | K69: 0 | L69: 107153445.3 | M69: 0 | N69: 0
A70: Acumulación de activos | E70: 0 | F70: 0 | G70: 0 | H70: 0 | I70: 224484837.3 | J70: 0 | K70: 0 | L70: 0 | M70: 514045.5 | N70: 0
A71: Monto de Ajustes | E71: 0 | F71: 0 | G71: 0 | H71: 0 | I71: 0 | J71: 0 | K71: 0 | L71: 0 | M71: 720000 | N71: 0
A72: Total (Aplicación) | E72: 0 | F72: 2839320 | G72: 0 | H72: 0 | I72: 959627568.8 | J72: 3002400 | K72: 500000 | L72: 215403090.6 | M72: 6667323 | N72: 33134500.03
A74: Progreso Social Democrático | N74: Información Insuficiente
A75: Monto de donaciones recibidas | B75: 0 | C75: 0 | D75: 0 | E75: 0 | F75: 0 | G75: 0 | H75: 119976 | I75: 71949 | J75: 67700 | K75: 272373 | L75: 400050 | M75: 370500 | N75: 60083075
A76: Incremento en el rubro de pasivo | B76: 0 | C76: 0 | D76: 0 | E76: 0 | F76: 0 | G76: 0 | H76: 0 | I76: 0 | J76: 0 | K76: 0 | L76: 0 | M76: 0 | N76: 0
A77: Monto de Ingresos Recibidos | B77: 0 | C77: 0 | D77: 0 | E77: 0 | F77: 0 | G77: 0 | H77: 0 | I77: 0 | J77: 0 | K77: 0 | L77: 0 | M77: 0 | N77: 0
A78: Monto de activos utilizado | B78: 0 | C78: 0 | D78: 0 | E78: 0 | F78: 0 | G78: 0 | H78: 0 | I78: 0 | J78: 0 | K78: 0 | L78: 0 | M78: 0 | N78: 0
A79: Total (origen) | B79: 0 | C79: 0 | D79: 0 | E79: 0 | F79: 0 | G79: 0 | H79: 119976 | I79: 71949 | J79: 67700 | K79: 272373 | L79: 400050 | M79: 370500 | N79: 60083075
A80: Monto de gastos | B80: 0 | C80: 0 | D80: 0 | E80: 0 | F80: 0 | G80: 0 | H80: 119976 | I80: 71949 | J80: 67700 | K80: 272373 | L80: 400050 | M80: 370500 | N80: 60063075
A81: Disminución en el rubro de pasivo | B81: 0 | C81: 0 | D81: 0 | E81: 0 | F81: 0 | G81: 0 | H81: 0 | I81: 0 | J81: 0 | K81: 0 | L81: 0 | M81: 0 | N81: 0
A82: Acumulación de activos | B82: 0 | C82: 0 | D82: 0 | E82: 0 | F82: 0 | G82: 0 | H82: 0 | I82: 0 | J82: 0 | K82: 0 | L82: 0 | M82: 0 | N82: 20000
A83: Monto de Ajustes | B83: 0 | C83: 0 | D83: 0 | E83: 0 | F83: 0 | G83: 0 | H83: 0 | I83: 0 | J83: 0 | K83: 0 | L83: 0 | M83: 0 | N83: 0
A84: Total (Aplicación) | B84: 0 | C84: 0 | D84: 0 | E84: 0 | F84: 0 | G84: 0 | H84: 119976 | I84: 71949 | J84: 67700 | K84: 272373 | L84: 400050 | M84: 370500 | N84: 60083075
A86: Republicano Social Cristiano
A87: Monto de donaciones recibidas | B87: 272370 | C87: 591000 | D87: 537600 | E87: 62000 | F87: 0 | G87: 245000 | H87: 0 | I87: 0 | J87: 0 | K87: 0 | L87: 0 | M87: 0 | N87: 493369.38
A88: Incremento en el rubro de pasivo | B88: 751500 | C88: 4410000 | D88: 2519500 | E88: 0 | F88: 55071683.64 | G88: 0 | H88: 380126098.6 | I88: 0 | J88: 0 | K88: 10259493.14 | L88: 3260933.7 | M88: 0 | N88: 2109508.55
A89: Monto de Ingresos Recibidos | B89: 1927.4 | C89: 1880.45 | D89: 254.95 | E89: 219353482.8 | F89: 10530292.42 | G89: 45997348.63 | H89: 30965427.09 | I89: 32957.53 | J89: 9072763.19 | K89: 6582.18 | L89: 0 | M89: 47624388.99 | N89: 936020
A90: Monto de activos utilizado | B90: 17778138.35 | C90: 213782.17 | D90: 2977730.04 | E90: 200810086.3 | F90: 71650933.89 | G90: 0 | H90: 0 | I90: 31911505.57 | J90: 0 | K90: 8425781.83 | L90: 1399.52 | M90: 0 | N90: 618080.64
A91: Total (origen) | B91: 18803935.75 | C91: 5216662.62 | D91: 7025584.99 | E91: 420225569.1 | F91: 137252910 | G91: 46242348.63 | H91: 411091525.7 | I91: 31944463.1 | J91: 9072793.19 | K91: 18691857.15 | L91: 3262333.22 | M91: 47624388.99 | N91: 4156978.57
A92: Monto de gastos | B92: 18803935.75 | C92: 5216662.62 | D92: 7025584.99 | E92: 197100569.1 | F92: 137252910 | G92: 16317379.99 | H92: 376704939.4 | I92: 28382795.1 | J92: 8933107.84 | K92: 18691827.15 | L92: 3262333.22 | M92: 14327453.03 | N92: 4156978.57
A93: Disminución en el rubro de pasivo | B93: 0 | C93: 0 | D93: 0 | E93: 223125000 | F93: 0 | G93: 26530500 | H93: 0 | I93: 3561668 | J93: 128741 | K93: 0 | L93: 0 | M93: 23441083.15 | N93: 0
A94: Acumulación de activos | B94: 0 | C94: 0 | D94: 0 | E94: 0 | F94: 0 | G94: 3394468.64 | H94: 34386586.29 | I94: 0 | J94: 10944.35 | K94: 0 | L94: 0 | M94: 9655852.81 | N94: 0
A95: Monto de Ajustes | B95: 0 | C95: 0 | D95: 990500 | E95: 0 | F95: 0 | G95: 0 | H95: 0 | I95: 0 | J95: 30 | K95: 0 | L95: 0 | M95: -200000 | N95: 0
A96: Total (Aplicación) | B96: 18803935.75 | C96: 5216662.62 | D96: 7025584.99 | E96: 420225569.1 | F96: 137252910 | G96: 46242348.63 | H96: 411091525.7 | I96: 31944463.1 | J96: 9072793.19 | K96: 18691827.15 | L96: 3262333.22 | M96: 47624388.99 | N96: 4156978.57
A98: Restauración Nacional
A99: Monto de donaciones recibidas | B99: 0 | C99: 25070914.58 | D99: -5000 | E99: 1109494 | F99: 3260192 | G99: 3243147.02 | H99: 15524317.67 | I99: 3113147 | J99: 2832037.01 | K99: 952225.36 | L99: 26285423.08 | M99: 2611708.76 | N99: 2570474.04
A100: Incremento en el rubro de pasivo | B100: 65147703.54 | C100: 245650103.5 | D100: 72104154.9 | E100: 195872653.7 | F100: 0 | G100: 43154538.38 | H100: 350821149.1 | I100: 136816533.2 | J100: 656318.11 | K100: 0 | L100: 135428732.2 | M100: 0 | N100: 85319589.19
A101: Monto de Ingresos Recibidos | B101: 251455.66 | C101: 912883.04 | D101: 1140830.16 | E101: 1434508.55 | F101: 74090064.32 | G101: 125778147.3 | H101: 777696756.5 | I101: 219028538.4 | J101: 597262.03 | K101: 625779.19 | L101: 630167.94 | M101: 302716626.3 | N101: 94607375.09
A102: Monto de activos utilizado | B102: 0 | C102: 0 | D102: 101912612.5 | E102: 0 | F102: 0 | G102: 15112654.53 | H102: 0 | I102: 0 | J102: 72576516.54 | K102: 206026157.3 | L102: 0 | M102: 25998880.08 | N102: 0
A103: Total (origen) | B103: 65399159.2 | C103: 271633901.1 | D103: 175152597.5 | E103: 198563916.9 | F103: 866764888.9 | G103: 188022473.5 | H103: 1349024658 | I103: 514165630.1 | J103: 76662133.72 | K103: 208600834.6 | L103: 162344323.2 | M103: 341517271 | N103: 182497438.3
A104: Monto de gastos | B104: 54702025.5 | C104: 152275454.5 | D104: 175005336.9 | E104: 159083710 | F104: 171035735.6 | G104: 188022473.5 | H104: 1151092109 | I104: 353869431.6 | J104: 76662133.72 | K104: 88819567.67 | L104: 134575965.6 | M104: 187273144.6 | N104: 145811502.6
A105: Disminución en el rubro de pasivo | B105: 0 | C105: 0 | D105: 0 | E105: 0 | F105: 677021996.3 | G105: 0 | H105: 0 | I105: 0 | J105: 0 | K105: 119781267 | L105: 0 | M105: 154244126.4 | N105: 0
A106: Acumulación de activos | B106: 10697133.68 | C106: 119358446.6 | D106: 0 | E106: 39480206.9 | F106: 18707156.99 | G106: 0 | H106: 197932548.6 | I106: 160296198.5 | J106: 0 | K106: 0 | L106: 5043357.58 | M106: 0 | N106: 36591943.69
A107: Monto de Ajustes | B107: -2 | C107: 0 | D107: -147260.66 | E107: 147260.66 | F107: 789414632.6 | G107: 733986.24 | H107: 204982434.5 | I107: 155207411.5 | J107: 0.03 | K107: 996672.77 | L107: -22724999 | M107: 10190055.81 | N107: -93992.05
A108: Total (Aplicación) | B108: 65399161.18 | C108: 271633901.1 | D108: 175152597.5 | E108: 198563916.9 | F108: 866764888.9 | G108: 188022473.5 | H108: 1349024658 | I108: 514165630.1 | J108: 76662133.72 | K108: 208600834.6 | L108: 162344322.2 | M108: 341517271 | N108: 182497438.3
A110: Unidad Social Cristiana
A111: Monto de donaciones recibidas | B111: 2470993.88 | C111: 0 | D111: 0 | E111: 9147180.17 | F111: 4042756.4 | G111: 3224093.34 | H111: 22899232.96 | I111: 4005704.91 | J111: 55000 | K111: 0 | L111: 4015430 | M111: 25236489.77 | N111: 22036160.71
A112: Incremento en el rubro de pasivo | B112: 2825122.36 | C112: 0 | D112: 0 | E112: 0 | F112: 18213239.61 | G112: 0 | H112: 1072573402 | I112: 0 | J112: 0 | K112: 1183998.71 | L112: 0 | M112: 0 | N112: 0
A113: Monto de Ingresos Recibidos | B113: 12798434.06 | C113: 124953.58 | D113: 31935520.23 | E113: 3494479119 | F113: 34678651.63 | G113: 54904530.61 | H113: 435897535 | I113: 495714.84 | J113: 441743.48 | K113: 14556587.4 | L113: 678174355 | M113: 699663472.9 | N113: 52565605.48
A114: Monto de activos utilizado | B114: 201080331 | C114: 193721238 | D114: 116656764.9 | E114: 131021538.8 | F114: 78237.65 | G114: 3977880.41 | H114: 0 | I114: 112022565.8 | J114: 72008656.25 | K114: 51488866.03 | L114: 13749383.02 | M114: 0 | N114: 53379837.09
A115: Total (origen) | B115: 219174881.3 | C115: 193846191.6 | D115: 257997812.9 | E115: 3634647838 | F115: 57420233.34 | G115: 62106504.36 | H115: 1531370170 | I115: 720918532.7 | J115: 72505399.73 | K115: 67229452.14 | L115: 695939168.1 | M115: 724899962.7 | N115: 127981603.3
A116: Monto de gastos | B116: 211561615 | C116: 162398228.3 | D116: 160817788.7 | E116: 190452349.4 | F116: 57420233.34 | G116: 58408165.21 | H116: 1219967407 | I116: 98051918.64 | J116: 69388369.99 | K116: 67229452.14 | L116: 65105090.85 | M116: 168801747.7 | N116: 58626038.28
A117: Disminución en el rubro de pasivo | B117: 0 | C117: 11953501.82 | D117: 97180024.19 | E117: 3444195489 | F117: 0 | G117: 3698339.15 | H117: 0 | I117: 622866614.1 | J117: 207030.39 | K117: 0 | L117: 630834077.2 | M117: 417897528.6 | N117: 69355565
A118: Acumulación de activos | B118: 0 | C118: 0 | D118: 0 | E118: 0 | F118: 0 | G118: 0 | H118: 307371289.5 | I118: 0 | J118: 0 | K118: 0 | L118: 0 | M118: 138200686.4 | N118: 0
A119: Monto de Ajustes | B119: -7613266.29 | C119: -19494461.46 | D119: 109405527.8 | E119: 0 | F119: 407348.05 | G119: 0 | H119: -4031473.31 | I119: 604394547.1 | J119: -2909999.35 | K119: 0 | L119: 0 | M119: 0 | N119: 0
A120: Total (Aplicación) | B120: 219174881.3 | C120: 193846191.6 | D120: 257997812.9 | E120: 3634647838 | F120: 57420233.34 | G120: 62106504.36 | H120: 1531370170 | I120: 720918532.7 | J120: 72505399.73 | K120: 67229452.14 | L120: 695939168.1 | M120: 724899962.7 | N120: 127981603.3
A122: Recuperando Valores (Limón)
A123: Monto de donaciones recibidas | B123: 0 | C123: 0 | D123: 0 | E123: 0 | F123: 0 | G123: 0 | H123: 80400 | I123: 0 | J123: 0 | K123: 339000 | L123: 0 | M123: 0 | N123: 0
A124: Incremento en el rubro de pasivo | B124: 0 | C124: 0 | D124: 0 | E124: 0 | F124: 0 | G124: 0 | H124: 20966235 | I124: 0 | J124: 0 | K124: 0 | L124: 0 | M124: 0 | N124: 17000
A125: Monto de Ingresos Recibidos | B125: 14.86 | C125: 0 | D125: 0 | E125: 0 | F125: 0 | G125: 0 | H125: 2543.06 | I125: 286.72 | J125: 0 | K125: 0 | L125: 0 | M125: 17002208.18 | N125: 0
A126: Monto de activos utilizado | B126: 390160.64 | C126: 0 | D126: 0 | E126: 0 | F126: 0 | G126: 0 | H126: 0 | I126: 299713.28 | J126: 0 | K126: 2456 | L126: 0 | M126: 30935.72 | N126: 0
A127: Total (origen) | B127: 390175.5 | C127: 0 | D127: 0 | E127: 0 | F127: 0 | G127: 0 | H127: 21049178.06 | I127: 300000 | J127: 0 | K127: 341456 | L127: 0 | M127: 17033143.9 | N127: 17000
A128: Monto de gastos | B128: 359881 | C128: 0 | D128: 0 | E128: 0 | F128: 0 | G128: 0 | H128: 21048896.93 | I128: 300000 | J128: 0 | K128: 341456 | L128: 0 | M128: 11154 | N128: 14328.4
A129: Disminución en el rubro de pasivo | B129: 30294.5 | C129: 0 | D129: 0 | E129: 0 | F129: 0 | G129: 0 | H129: 0 | I129: 0 | J129: 0 | K129: 0 | L129: 0 | M129: 17021989.9 | N129: 0
A130: Acumulación de activos | B130: 0 | C130: 0 | D130: 0 | E130: 0 | F130: 0 | G130: 0 | H130: 281.13 | I130: 0 | J130: 0 | K130: 0 | L130: 0 | M130: 0 | N130: 2671.6
A131: Monto de Ajustes | B131: 0 | C131: 0 | D131: 0 | E131: 0 | F131: 0 | G131: 0 | H131: 0 | I131: 0 | J131: 0 | K131: 0 | L131: 0 | M131: 0 | N131: 0
A132: Total (Aplicación) | B132: 390175.5 | C132: 0 | D132: 0 | E132: 0 | F132: 0 | G132: 0 | H132: 21049178.06 | I132: 300000 | J132: 0 | K132: 341456 | L132: 0 | M132: 17033143.9 | N132: 17000
A134: Unión Guanacasteca (Guanacaste)
A135: Monto de donaciones recibidas | B135: 0 | C135: 0 | D135: 0 | E135: 450000 | F135: 0 | G135: 0 | H135: 0 | I135: 0 | J135: 0 | K135: 0 | L135: 0 | M135: 0 | N135: 0
A136: Incremento en el rubro de pasivo | B136: 0 | C136: 0 | D136: 0 | E136: 88056087.95 | F136: 0 | G136: 0 | H136: 12525000 | I136: 0 | J136: 0 | K136: 1500000 | L136: 0 | M136: 8023749.05 | N136: 0
A137: Monto de Ingresos Recibidos | B137: 0 | C137: 0 | D137: 0 | E137: 0 | F137: 0 | G137: 0 | H137: 372.81 | I137: 0 | J137: 0 | K137: 0 | L137: 0 | M137: 1656 | N137: 12350698
A138: Monto de activos utilizado | B138: 0 | C138: 0 | D138: 0 | E138: 0 | F138: 0 | G138: 0 | H138: 81097.99 | I138: 0 | J138: 0 | K138: 0 | L138: 0 | M138: 0 | N138: 556
A139: Total (origen) | B139: 0 | C139: 0 | D139: 0 | E139: 88506087.95 | F139: 0 | G139: 0 | H139: 12606470.8 | I139: 0 | J139: 0 | K139: 1500000 | L139: 0 | M139: 8025405.05 | N139: 12351254
A140: Monto de gastos | B140: 0 | C140: 0 | D140: 0 | E140: 88398834.98 | F140: 0 | G140: 0 | H140: 12606470.8 | I140: 0 | J140: 0 | K140: 1500000 | L140: 0 | M140: 8020752 | N140: 1501254
A141: Disminución en el rubro de pasivo | B141: 0 | C141: 0 | D141: 0 | E141: 0 | F141: 0 | G141: 0 | H141: 0 | I141: 0 | J141: 0 | K141: 0 | L141: 0 | M141: 0 | N141: 10850000
A142: Acumulación de activos | B142: 0 | C142: 0 | D142: 0 | E142: 107252.97 | F142: 0 | G142: 0 | H142: 0 | I142: 0 | J142: 0 | K142: 0 | L142: 0 | M142: 4653.05 | N142: 0
A143: Monto de Ajustes | B143: 0 | C143: 0 | D143: 0 | E143: 0 | F143: 0 | G143: 0 | H143: 0 | I143: 0 | J143: 0 | K143: 0 | L143: 0 | M143: 0 | N143: 0
A144: Total (Aplicación) | B144: 0 | C144: 0 | D144: 0 | E144: 88506087.95 | F144: 0 | G144: 0 | H144: 12606470.8 | I144: 0 | J144: 0 | K144: 1500000 | L144: 0 | M144: 8025405.05 | N144: 12351254
A146: Auténtico Limonense
A147: Monto de donaciones recibidas | B147: 0 | C147: 0 | D147: 0 | E147: 0 | F147: 0 | G147: 0 | H147: 1440001 | I147: 30000 | J147: 0 | K147: 415000 | L147: 390000 | M147: 405000 | N147: 0
A148: Incremento en el rubro de pasivo | B148: 0 | C148: 0 | D148: 0 | E148: 0 | F148: 0 | G148: 0 | H148: 24307247.07 | I148: 724998.96 | J148: 0 | K148: 500000 | L148: 0 | M148: 0 | N148: 0
A149: Monto de Ingresos Recibidos | B149: 3000000 | C149: 0 | D149: 0 | E149: 0 | F149: 0 | G149: 0 | H149: 0.02 | I149: 0 | J149: 0 | K149: 0 | L149: 0 | M149: 0 | N149: 734750
A150: Monto de activos utilizado | B150: 135148.33 | C150: 0 | D150: 0 | E150: 0 | F150: 0 | G150: 0 | H150: 0 | I150: 4995 | J150: 0 | K150: 0 | L150: 0 | M150: 0 | N150: 0
A151: Total (origen) | B151: 3135148.33 | C151: 0 | D151: 0 | E151: 0 | F151: 0 | G151: 0 | H151: 25747248.09 | I151: 759993.96 | J151: 0 | K151: 915000 | L151: 390000 | M151: 405000 | N151: 734750
A152: Monto de gastos | B152: 1135148.33 | C152: 0 | D152: 0 | E152: 0 | F152: 0 | G152: 0 | H152: 25696667.77 | I152: 759993.96 | J152: 0 | K152: 737192 | L152: 378235 | M152: 349011 | N152: 119904
A153: Disminución en el rubro de pasivo | B153: 2000000 | C153: 0 | D153: 0 | E153: 0 | F153: 0 | G153: 0 | H153: 0 | I153: 0 | J153: 0 | K153: 0 | L153: 0 | M153: 0 | N153: 500000
A154: Acumulación de activos | B154: 0 | C154: 0 | D154: 0 | E154: 0 | F154: 0 | G154: 0 | H154: 50580.32 | I154: 0 | J154: 0 | K154: 177808 | L154: 11765 | M154: 55989 | N154: 114846
A155: Monto de Ajustes | B155: 0 | C155: 0 | D155: 0 | E155: 0 | F155: 0 | G155: 0 | H155: 0 | I155: 0 | J155: 0 | K155: 0 | L155: 0 | M155: 0 | N155: 0
A156: Total (Aplicación) | B156: 3135148.33 | C156: 0 | D156: 0 | E156: 0 | F156: 0 | G156: 0 | H156: 25747248.09 | I156: 759993.96 | J156: 0 | K156: 915000 | L156: 390000 | M156: 405000 | N156: 734750

Sheet WebTSE-formato EN (hidden)
B1: Abr.-Jun., 2018 | C1: Jul.-Set., 2018 | D1: Oct.-Dic., 2018 | E1: Ene.-Mar., 2019 | F1: Abr.-Jun., 2019 | G1: Jul.-Set., 2019 | H1: Oct.19-Mar.20 | I1: Abr.-Jun., 2020 | J1: Jul.-Set., 2020 | K1: Oct.-Dic., 2020 | L1: Ene.-Mar., 2021 | M1: Abr.-Jun., 2021 | N1: Jul.-Set., 2021 | O1: Oct., 2021 | P1: Nov., 2021 | Q1: Dic., 2021 | R1: Ene., 2022 | S1: Feb., 2022 | T1: Mar., 2022
A2: Acción Ciudadana
A3: Monto de donaciones recibidas | B3: 15114360 | C3: 17550047 | D3: 17986676 | E3: 14317247 | F3: 12535726 | G3: 9619258 | H3: 43957907.87 | I3: 16833068.17 | J3: 8626399.19 | K3: 10659944.81 | L3: -10598778.17 | M3: 5113501 | N3: 5448495 | O3: 7240939 | P3: 9945368 | Q3: 5879157 | R3: 7407425.21 | S3: 5048434.99 | T3: 851499.8 | U3: =+SUM(B3:N3) -> 167163851.9
A4: Incremento en el rubro de pasivo | B4: 46671130 | C4: 72888339 | D4: 69536192 | E4: 0 | F4: 0 | G4: 0 | H4: 605594339.3 | I4: 553904082 | J4: 0 | K4: 0 | L4: 0 | M4: 0 | N4: 0 | O4: 0 | P4: 0 | Q4: 0 | R4: 0 | S4: 0 | T4: 0 | U4: =+SUM(B4:N4) -> 1348594082
A5: Monto de Ingresos Recibidos | B5: 246490269 | C5: 25625 | D5: 24030 | E5: 1408941455 | F5: 1523556040 | G5: 190487322 | H5: 478620784 | I5: 0 | J5: 115320488.3 | K5: 210608615.7 | L5: 22209030.25 | M5: 151494403.8 | N5: 435684077 | O5: 51433186 | P5: 3281286 | Q5: 135013850 | R5: 229995049 | S5: 109307932 | T5: 184133048 | U5: 4783462140
A6: Monto de activos utilizado | B6: 526284070 | C6: 7737750 | D6: 11488051 | E6: 0 | F6: 0 | G6: 0 | H6: 0 | I6: 64095431 | J6: 20581929 | K6: 0 | L6: 123217195 | M6: 0 | N6: 0 | O6: 53929268 | P6: 23143987 | Q6: 0 | R6: 0 | S6: 40945643 | T6: 0 | U6: 753404426
A7: Total (origen) | B7: 834559829 | C7: 98201761 | D7: 99034949 | E7: 1423258702 | F7: 1536091766 | G7: 200106580 | H7: 1128173031 | I7: 634832581.2 | J7: 144528816.5 | K7: 221268560.5 | L7: 134827447.1 | M7: 156607904.8 | N7: 441132572 | O7: =+SUM(O3:O6) -> 112603393 | P7: 36370641 | Q7: 140893007 | R7: 237402474.2 | S7: 155302010 | T7: 184984547.8 | U7: 7052624500 | V7: =+U7-U12 -> 479227130.8
A8: Monto de gastos | B8: 834559829 | C8: 98201762 | D8: 99034948 | E8: 111361939 | F8: 144022320 | G8: 119546759 | H8: 529094575.9 | I8: 60052471 | J8: 112169667.7 | K8: 87778532.35 | L8: 91869314.12 | M8: 93721125.88 | N8: 154965945 | O8: 59546982 | P8: 33937118 | Q8: 86836842 | R8: 164468782 | S8: 145245236 | T8: 36166030 | U8: 2536379189
A9: Disminución en el rubro de pasivo | B9: 0 | C9: 0 | D9: 0 | E9: 1254076216 | F9: 1167950379 | G9: 60486401 | H9: 0 | I9: 0 | J9: 32246117 | K9: 41131029 | L9: 37355492 | M9: 38760610 | N9: 268885697.7 | O9: 52158368.33 | P9: 2022455 | Q9: 33270677 | R9: 19385606 | S9: 9645112 | T9: 19042918 | U9: 2900891942
A10: Acumulación de activos | B10: 0 | C10: 0 | D10: 0 | E10: 57820548 | F10: 224119066 | G10: 13153454 | H10: 5680250.2 | I10: 0 | J10: 0 | K10: 87967085 | L10: 0 | M10: 21425357 | N10: 13779148 | O10: 0 | P10: 0 | Q10: 20329717 | R10: 53092316 | S10: 0 | T10: 129319830 | U10: 423944908.2
A11: Monto de Ajustes | B11: 0 | C11: 0 | D11: 0 | E11: 0 | F11: 0 | G11: -6919966 | H11: -593398205 | I11: -95552978.82 | J11: -113031 | K11: -4391914.82 | L11: -5602642 | M11: -2700812.32 | N11: 3501780.59 | O11: 898044 | P11: -411067 | Q11: -455770 | R11: -455769.73 | S11: -411662.98 | T11: -455769.76 | U11: -705177769.4
A12: Total (Aplicación) | B12: 834559829 | C12: 98201762 | D12: 99034948 | E12: 1423258703 | F12: 1536091765 | G12: 200106580 | H12: 1128173031 | I12: 155605449.8 | J12: 144528815.7 | K12: 221268561.2 | L12: 134827448.1 | M12: 156607905.2 | N12: =+SUM(N8:N11) -> 441132571.3 | O12: =+SUM(O8:O11) -> 112603394.3 | P12: 36370640 | Q12: 140893006 | R12: 237402473.7 | S12: 155302011 | T12: 184984547.8 | U12: 6573397369
A14: Frente Amplio
A15: Monto de donaciones recibidas | B15: 9114757.5 | C15: 6833115 | D15: 7254966.23 | E15: 7047000 | F15: 7523119 | G15: 7669103 | H15: 24739591.73 | I15: 4996150 | J15: 5474500 | K15: 6986500 | L15: 6471777.14 | M15: 2348553 | N15: 6438100 | O15: 4419000 | P15: 2405700 | Q15: 3050138 | R15: 5037200 | S15: 2538287 | T15: 2957000 | U15: =+SUM(B15:N15) -> 102897232.6
A16: Incremento en el rubro de pasivo | B16: 0 | C16: 0 | D16: 0 | E16: 0 | F16: 25774903.97 | G16: 0 | H16: 29775708.8 | I16: 0 | J16: 21632151.55 | K16: 26170497.15 | L16: 17065683.44 | M16: 0 | N16: 0 | O16: 7754048.7 | P16: 9730974.11 | Q16: 250072928.3 | R16: 234442145.2 | S16: 74608727.97 | T16: 90413.15 | U16: =+SUM(B16:N16) -> 120418944.9
A17: Monto de Ingresos Recibidos | B17: 4370800.73 | C17: 1324800.87 | D17: 576868475.9 | E17: 497300 | F17: 0 | G17: 108455268.6 | H17: 159842087.8 | I17: 0 | J17: 0 | K17: 0 | L17: 470000 | M17: 116832855.8 | N17: 50664875.82 | O17: 221062.72 | P17: 99000 | Q17: 15000 | R17: 3000000 | S17: 86382116.76 | T17: 0 | U17: 1019326466
A18: Monto de activos utilizado | B18: 83115335.53 | C18: 51988078.32 | D18: 0 | E18: 105261254.5 | F18: 66645356.76 | G18: 0 | H18: 0 | I18: 70821533.28 | J18: 290513.64 | K18: 7986745.98 | L18: 0 | M18: 5228145.83 | N18: 20882035.38 | O18: 472405.5 | P18: 4113041.53 | Q18: 0 | R18: 0 | S18: 85803254.76 | T18: 69099009.89 | U18: 412218999.2
A19: Total (origen) | B19: 96600893.76 | C19: 60145994.19 | D19: 584123442.2 | E19: 112805554.5 | F19: 103649212.2 | G19: 116124371.6 | H19: 214357388.3 | I19: 75817683.28 | J19: 27397165.19 | K19: 41143743.13 | L19: 24007460.58 | M19: 124409554.7 | N19: 77985011.2 | O19: 12866516.92 | P19: 16348715.64 | Q19: 253138066.3 | R19: 242479345.2 | S19: 249332386.5 | T19: 72146423.04 | U19: 1658567475 | V19: =+U19-U24 -> 0
A20: Monto de gastos | B20: 77631012.78 | C20: 50186416.07 | D20: 63484242.8 | E20: 52685554.5 | F20: 103649212.2 | G20: 56014551.55 | H20: 163961486 | I20: 38656427.03 | J20: 27397165.19 | K20: 33819661.9 | L20: 22421346.66 | M20: 51808817.37 | N20: 49490173.69 | O20: 12866516.92 | P20: 16348715.64 | Q20: 118242603.7 | R20: 112004203.8 | S20: 249332386.5 | T20: 72146423.04 | U20: 791206067.7
A21: Disminución en el rubro de pasivo | B21: 18969880.98 | C21: 9959578.12 | D21: 466662985.9 | E21: 59820000 | F21: 0 | G21: 22362000 | H21: 0 | I21: 37161256.25 | J21: 0 | K21: 0 | L21: 0 | M21: 41829085.65 | N21: 28494837.51 | O21: 0 | P21: 0 | Q21: 0 | R21: 0 | S21: 0 | T21: 0 | U21: 685259624.4
A22: Acumulación de activos | B22: 0 | C22: 0 | D22: 53838713.5 | E22: 0 | F22: 0 | G22: 37747820.09 | H22: 50395902.37 | I22: 0 | J22: 0 | K22: 0 | L22: 1586113.92 | M22: 0 | N22: 0 | O22: 0 | P22: 0 | Q22: 134895462.6 | R22: 130475141.4 | S22: 0 | T22: 0 | U22: 143568549.9
A23: Monto de Ajustes | B23: 0 | C23: 0 | D23: -137500 | E23: -300000 | F23: 3705832.5 | G23: 0 | H23: 0 | I23: 0 | J23: 0 | K23: -7324081.23 | L23: 0 | M23: -30771651.64 | N23: 0 | O23: 0 | P23: 0 | Q23: 0 | R23: 0 | S23: 0 | T23: 0 | U23: -34827400.37
A24: Total (Aplicación) | B24: 96600893.76 | C24: 60145994.19 | D24: 584123442.2 | E24: 112805554.5 | F24: 103649212.2 | G24: 116124371.6 | H24: 214357388.3 | I24: 75817683.28 | J24: 27397165.19 | K24: 41143743.13 | L24: 24007460.58 | M24: 124409554.7 | N24: 77985011.2 | O24: 12866516.92 | P24: 16348715.64 | Q24: 253138066.3 | R24: 242479345.2 | S24: 249332386.5 | T24: 72146423.04 | U24: 1658567475
A26: Integración Nacional
A27: Monto de donaciones recibidas | B27: 0 | C27: 0 | D27: 0 | E27: 0 | F27: 0 | G27: 100000 | H27: 47759574.76 | I27: 0 | J27: 0 | K27: 0 | L27: 34000 | M27: 0 | N27: 0 | O27: 10000 | P27: 628408 | Q27: 1392320 | R27: 3114311 | S27: 1000000 | T27: 0 | U27: =+SUM(B27:N27) -> 47893574.76
A28: Incremento en el rubro de pasivo | B28: 2672995.44 | C28: 1643411 | D28: 1298545 | E28: 6574110 | F28: 0 | G28: 0 | H28: 13999009.48 | I28: 0 | J28: 0 | K28: 9776623.48 | L28: 0 | M28: 169243 | N28: 0 | O28: 1351196 | P28: 20571133.05 | Q28: 2345103.13 | R28: 37375320.14 | S28: 0 | T28: 0 | U28: 36133937.4
A29: Monto de Ingresos Recibidos | B29: 1360646864 | C29: 0 | D29: 0 | E29: 0 | F29: 11369892.67 | G29: 618048.08 | H29: 42538125.89 | I29: 0 | J29: 7341563.81 | K29: 7927730.89 | L29: 58545413.85 | M29: 11007532.79 | N29: 13995297.93 | O29: 1003198.83 | P29: 12152492.73 | Q29: 2003295.49 | R29: 19319700.28 | S29: 305824.25 | T29: 88792.42 | U29: 1513990470
A30: Monto de activos utilizado | B30: 20872288.22 | C30: 612048.63 | D30: 223566.2 | E30: 131584.54 | F30: 0 | G30: 8715362.21 | H30: 5653642.28 | I30: 0 | J30: 5046790.74 | K30: 0 | L30: 0 | M30: 1034609 | N30: 1573500.33 | O30: 466549.85 | P30: 0 | Q30: 15280153.36 | R30: 0 | S30: 19730734.86 | T30: 15832956.91 | U30: 43863392.15
A31: Total (origen) | B31: 1429615675 | C31: 2255459.63 | D31: 1522111.2 | E31: 6705694.54 | F31: 11369892.67 | G31: 9433410.29 | H31: 116723344.7 | I31: 0 | J31: 12388354.55 | K31: 17704354.37 | L31: 58579413.85 | M31: 12211384.79 | N31: 15568798.26 | O31: 2830944.68 | P31: 33352033.78 | Q31: 21020871.98 | R31: 59809331.42 | S31: 21127549.11 | T31: 15921749.33 | U31: 1694077894 | V31: =+U31-U36 -> -90.21000004
A32: Monto de gastos | B32: 1429615765 | C32: 2005459.63 | D32: 1522111.2 | E32: 6705694.54 | F32: 2644086.22 | G32: 6008247.3 | H32: 116723344.7 | I32: 0 | J32: 8753454.62 | K32: 13229521.57 | L32: 18645054.82 | M32: 12211384.9 | N32: 14785104.06 | O32: 2830944.68 | P32: 10457174.12 | Q32: 21020871.98 | R32: 29538923.88 | S32: 18244330.93 | T32: 13021749.33 | U32: 1632849229
A33: Disminución en el rubro de pasivo | B33: 0 | C33: 0 | D33: 0 | E33: 0 | F33: 1832942.97 | G33: 3097520.56 | H33: 0 | I33: 0 | J33: 3634900 | K33: 0 | L33: 24103598.28 | M33: 0 | N33: 783694.2 | O33: 0 | P33: 0 | Q33: 0 | R33: 0 | S33: 2883218.18 | T33: 2900000 | U33: 33452656.01
A34: Acumulación de activos | B34: 0 | C34: 0 | D34: 0 | E34: 0 | F34: 6892863.58 | G34: 0 | H34: 0 | I34: 0 | J34: 0 | K34: 4474832.73 | L34: 15830760.75 | M34: 0 | N34: 0 | O34: 0 | P34: 22894859.66 | Q34: 0 | R34: 30270407.54 | S34: 0 | T34: 0 | U34: 27198457.06
A35: Monto de Ajustes | B35: 45423527.74 | C35: -250000 | D35: 0 | E35: 0 | F35: 0 | G35: -327642.43 | H35: 6772992.29 | I35: 0 | J35: 0 | K35: 0 | L35: 0 | M35: 0 | N35: 0 | O35: 0 | P35: 0 | Q35: 0 | R35: 0 | S35: 90990 | T35: 0 | U35: 51618877.6
A36: Total (Aplicación) | B36: 1429615765 | C36: 2255459.63 | D36: 1522111.2 | E36: 6705694.54 | F36: 11369892.77 | G36: 9433410.29 | H36: 116723344.7 | I36: 0 | J36: 12388354.62 | K36: 17704354.3 | L36: 58579413.85 | M36: 12211384.9 | N36: 15568798.26 | O36: 2830944.68 | P36: 33352033.78 | Q36: 21020871.98 | R36: 59809331.42 | S36: 21127549.11 | T36: 15921749.33 | U36: 1694077984
A38: Liberación Nacional
A39: Monto de donaciones recibidas | B39: 24000 | C39: -4000 | D39: 0 | E39: 0 | F39: 59303672 | G39: 0 | H39: 51016534 | I39: 250000 | J39: 580400 | K39: 3880000 | L39: 573000 | M39: 15128727 | N39: 97175000 | O39: 11823475 | P39: 52316589 | Q39: 49927010 | R39: 107001845 | S39: 140683248 | T39: 356638090 | U39: =+SUM(B39:N39) -> 227927333
A40: Incremento en el rubro de pasivo | B40: 0 | C40: 9311804 | D40: 0 | E40: 0 | F40: 0 | G40: 0 | H40: 2554119413 | I40: 0 | J40: 1884220 | K40: 0 | L40: 0 | M40: 0 | N40: 0 | O40: 623135681 | P40: 801584213 | Q40: 0 | R40: 1054613678 | S40: 570353019 | T40: 1514396828 | U40: 2565315437
A41: Monto de Ingresos Recibidos | B41: 1623544 | C41: 18901738 | D41: 2200036610 | E41: 1898494760 | F41: 796628796 | G41: 262789840 | H41: 89109271 | I41: 0 | J41: 4630171 | K41: 835274271 | L41: 1173005902 | M41: 1118078008 | N41: 200006072 | O41: 122015070 | P41: 1033398 | Q41: 1046758 | R41: 2622970 | S41: 69283442 | T41: 53693750 | U41: 8598578983
A42: Monto de activos utilizado | B42: 103649366 | C42: 46969604 | D42: 0 | E42: 10702803 | F42: 0 | G42: 0 | H42: 0 | I42: 53114592 | J42: 51341445 | K42: 0 | L42: 70097090 | M42: 13596114 | N42: 29885994 | O42: 0 | P42: 0 | Q42: 382077202 | R42: 0 | S42: 0 | T42: 0 | U42: 379357008
A43: Total (origen) | B43: 105296910 | C43: 75179146 | D43: 2200036610 | E43: 1909197563 | F43: 855932468 | G43: 262789840 | H43: 2694245218 | I43: 53364592 | J43: 58436236 | K43: 839154271 | L43: 1243675992 | M43: 1146802849 | N43: 327067397 | O43: 756974226 | P43: 854934200 | Q43: 433479938 | R43: 1164238493 | S43: 780319709 | T43: 1924728668 | U43: 11771179092 | V43: =+U43-U48 -> 0
A44: Monto de gastos | B44: 105269555 | C44: 75179146 | D44: 94776400 | E44: 83299447 | F44: 53883176 | G44: 148831333 | H44: 2568418745 | I44: 44748028 | J44: 58436236 | K44: 14672728 | L44: 99064860 | M44: 466337224 | N44: 289797554 | O44: 448730613 | P44: 640171752 | Q44: 403019818 | R44: 834933303 | S44: 702293561 | T44: 1496506719 | U44: 4102714432
A45: Disminución en el rubro de pasivo | B45: 27355 | C45: 0 | D45: 1996224334 | E45: 1825898116 | F45: 772643761 | G45: 76809098 | H45: 0 | I45: 325864 | J45: 0 | K45: 628779159 | L45: 1144611132 | M45: 680465625 | N45: 37269843 | O45: 0 | P45: 0 | Q45: 30460118 | R45: 0 | S45: 0 | T45: 0 | U45: 7163054287
A46: Acumulación de activos | B46: 0 | C46: 0 | D46: 109035876 | E46: 0 | F46: 29405531 | G46: 37149409 | H46: 125826473 | I46: 0 | J46: 0 | K46: 141896319 | L46: 0 | M46: 0 | N46: 0 | O46: 308243613 | P46: 214762448 | Q46: 0 | R46: 329305190 | S46: 78027961 | T46: 428221949 | U46: 443313608
A47: Monto de Ajustes | B47: 0 | C47: 0 | D47: 0 | E47: 0 | F47: 0 | G47: 0 | H47: 0 | I47: -8290700 | J47: 0 | K47: -53806065 | L47: 0 | M47: 0 | N47: 331 | O47: 0 | P47: 0 | Q47: 428968 | R47: 0 | S47: 0 | T47: 0 | U47: -62096434
A48: Total (Aplicación) | B48: 105296910 | C48: 75179146 | D48: 2200036610 | E48: 1909197563 | F48: 855932468 | G48: 262789840 | H48: 2694245218 | I48: 53364592 | J48: 58436236 | K48: 839154271 | L48: 1243675992 | M48: 1146802849 | N48: 327067397 | O48: 756974226 | P48: 854934200 | Q48: 433479936 | R48: 1164238493 | S48: 780321522 | T48: 1924728668 | U48: 11771179092
A50: Liberal Progresista
A51: Monto de donaciones recibidas | I51: 952821.1 | J51: 469000 | K51: 3419705 | L51: 2157500 | M51: 21783200 | N51: 150834746 | O51: 44134736.48 | P51: 13625941 | Q51: 16111569 | R51: 26524472.85 | S51: 13135400 | T51: 163950 | U51: =+SUM(B51:N51) -> 179616972.1
A52: Incremento en el rubro de pasivo | I52: 61000 | J52: 0 | K52: 0 | L52: 0 | M52: 0 | N52: 2531288.45 | O52: 727185.18 | P52: 66277275.38 | Q52: 0 | R52: 38747175.77 | S52: 0 | T52: 0 | U52: 2592288.45
A53: Monto de Ingresos Recibidos | I53: 3815.2 | J53: 11041.65 | K53: 232063.95 | L53: 17209.3 | M53: 12525733.32 | N53: 610176.61 | O53: 114106.98 | P53: 152500002 | Q53: 38125569.6 | R53: 546113497.5 | S53: 15337512.25 | T53: 16628746.4 | U53: 13400040.03
A54: Monto de activos utilizado | I54: 0 | J54: 327398.35 | K54: 0 | L54: 2021228.94 | M54: 0 | N54: 0 | O54: 8855696.79 | P54: 0 | Q54: 70333701.37 | R54: 0 | S54: 61164759.54 | T54: 52871943.19 | U54: 2348627.29
A55: Total (origen) | I55: 1496079 | J55: 807440 | K55: 3651768.95 | L55: 4195938.24 | M55: 34308933.32 | N55: 153976211.1 | O55: 53831725.43 | P55: 232403218.4 | Q55: 124570840 | R55: 611385146.2 | S55: 89637671.79 | T55: 69664639.59 | U55: 198436370.6 | V55: =+U55-U60 -> -155203.11
A56: Monto de gastos | I56: 0 | J56: 807440 | K56: 735200 | L56: 1705938.24 | M56: 14065059.98 | N56: 142976321.5 | O56: 53831725.43 | P56: 146873788.4 | Q56: 101628011.4 | R56: 501135792.5 | S56: 43372463.9 | T56: 35626087.02 | U56: 160289959.7
A57: Disminución en el rubro de pasivo | I57: 0 | J57: 0 | K57: 0 | L57: 2490000 | M57: 5613000 | N57: 0 | O57: 0 | P57: 0 | Q57: 22942828.54 | R57: 0 | S57: 46265207.89 | T57: 34038552.57 | U57: 8103000
A58: Acumulación de activos | I58: 1651282.45 | J58: 0 | K58: 2916568.95 | L58: 0 | M58: 14630873 | N58: 10999889.57 | O58: 0 | P58: 85529430.01 | Q58: 0 | R58: 110249353.7 | S58: 0 | T58: 0 | U58: 30198613.97
A59: Monto de Ajustes | I59: 478442.7 | J59: 0 | K59: 0 | L59: 0 | M59: 0 | N59: 0 | O59: 0 | P59: 0 | Q59: 0 | R59: 0 | S59: 0 | T59: 0 | U59: 478442.7
A60: Total (Aplicación) | I60: 1651282.45 | J60: 807440 | K60: 3651768.95 | L60: 4195938.24 | M60: 34308932.98 | N60: 153976211.1 | O60: 53831725.43 | P60: 232403218.4 | Q60: 124570840 | R60: 611385146.2 | S60: 89637671.79 | T60: 69664639.59 | U60: 198591573.7
A62: Nueva República
A63: Monto de donaciones recibidas | E63: 0 | F63: 0 | G63: 0 | H63: 0 | I63: 344837516.3 | J63: 0 | K63: 0 | L63: -35000 | M63: 5947323 | N63: 8475734.91 | O63: 8995477.29 | P63: 2653250.09 | Q63: 131000 | R63: 47500 | S63: 2516950 | T63: 3000000 | U63: =+SUM(B63:N63) -> 359225574.2
A64: Incremento en el rubro de pasivo | E64: 0 | F64: 0 | G64: 0 | H64: 0 | I64: 614790052.6 | J64: 0 | K64: 0 | L64: 0 | M64: 0 | N64: 21786811.56 | O64: 149919551 | P64: 2383099570 | Q64: 57149704.78 | R64: 249848716.4 | S64: 0 | T64: 113965634.8 | U64: 636576864.2
A65: Monto de Ingresos Recibidos | E65: 0 | F65: 0 | G65: 0 | H65: 0 | I65: 0 | J65: 0 | K65: 0 | L65: 8874.35 | M65: 0 | N65: 0 | O65: 591.36 | P65: 10597.95 | Q65: 345029024.3 | R65: 5806879.51 | S65: 31859.68 | T65: 10972225.89 | U65: 8874.35
A66: Monto de activos utilizado | E66: 0 | F66: 2839320 | G66: 0 | H66: 0 | I66: 0 | J66: 3002400 | K66: 500000 | L66: 215429216.2 | M66: 0 | N66: 2871953.56 | O66: 0 | P66: 0 | Q66: 326077300.2 | R66: 799873843.1 | S66: 670641550.3 | T66: 45949581.28 | U66: 224642889.8
A67: Total (origen) | E67: 0 | F67: 2839320 | G67: 0 | H67: 0 | I67: 959627568.8 | J67: 3002400 | K67: 500000 | L67: 215403090.6 | M67: 6667323 | N67: 33134500.03 | O67: 158915619.6 | P67: 2385763418 | Q67: 728387029.2 | R67: 1055576939 | S67: 673190359.9 | T67: 173887442 | U67: 1221174202 | V67: =+U67-U72 -> 0
A68: Monto de gastos | E68: 0 | F68: 3496 | G68: 0 | H68: 0 | I68: 735142731.5 | J68: 752400 | K68: 500000 | L68: 108249645.3 | M68: 6153277.5 | N68: 33134500.03 | O68: 153792523.9 | P68: 516071922.1 | Q68: 728387029.2 | R68: 1055576939 | S68: 298797368.2 | T68: 173887442 | U68: 883936050.3
A69: Disminución en el rubro de pasivo | E69: 0 | F69: 2835824 | G69: 0 | H69: 0 | I69: 0 | J69: 2250000 | K69: 0 | L69: 107153445.3 | M69: 0 | N69: 0 | O69: 0 | P69: 0 | Q69: 0 | R69: 0 | S69: 374392991.8 | T69: 0 | U69: 112239269.3
A70: Acumulación de activos | E70: 0 | F70: 0 | G70: 0 | H70: 0 | I70: 224484837.3 | J70: 0 | K70: 0 | L70: 0 | M70: 514045.5 | N70: 0 | O70: 5123095.77 | P70: 1869691496 | Q70: 0 | R70: 0 | S70: 0 | T70: 0 | U70: 224998882.8
A71: Monto de Ajustes | E71: 0 | F71: 0 | G71: 0 | H71: 0 | I71: 0 | J71: 0 | K71: 0 | L71: 0 | M71: 720000 | N71: 0 | O71: 0 | P71: 0 | Q71: 0 | R71: 0 | S71: 0 | T71: 0 | U71: 720000
A72: Total (Aplicación) | E72: 0 | F72: 2839320 | G72: 0 | H72: 0 | I72: 959627568.8 | J72: 3002400 | K72: 500000 | L72: 215403090.6 | M72: 6667323 | N72: 33134500.03 | O72: 158915619.6 | P72: 2385763418 | Q72: 728387029.2 | R72: 1055576939 | S72: 673190360 | T72: 173887442 | U72: 1221174202
A74: Progreso Social Democrático | N74: Información Insuficiente
A75: Monto de donaciones recibidas | B75: 0 | C75: 0 | D75: 0 | E75: 0 | F75: 0 | G75: 0 | H75: 119976 | I75: 71949 | J75: 67700 | K75: 272373 | L75: 400050 | M75: 370500 | N75: 60083075 | O75: 14492443.82 | P75: 20180249.21 | Q75: 20939171.56 | R75: 9000852.61 | S75: 14693682.29 | T75: 49288087 | U75: =+SUM(B75:N75) -> 61385623
A76: Incremento en el rubro de pasivo | B76: 0 | C76: 0 | D76: 0 | E76: 0 | F76: 0 | G76: 0 | H76: 0 | I76: 0 | J76: 0 | K76: 0 | L76: 0 | M76: 0 | N76: 0 | O76: 4229014.76 | P76: 71125520.62 | Q76: 0 | R76: 0 | S76: 29204208.52 | T76: 0 | U76: 0
A77: Monto de Ingresos Recibidos | B77: 0 | C77: 0 | D77: 0 | E77: 0 | F77: 0 | G77: 0 | H77: 0 | I77: 0 | J77: 0 | K77: 0 | L77: 0 | M77: 0 | N77: 0 | O77: 0.03 | P77: 0.31 | Q77: 103000000.4 | R77: 638651531 | S77: 563108392.4 | T77: 706500040.9 | U77: 0
A78: Monto de activos utilizado | B78: 0 | C78: 0 | D78: 0 | E78: 0 | F78: 0 | G78: 0 | H78: 0 | I78: 0 | J78: 0 | K78: 0 | L78: 0 | M78: 0 | N78: 0 | O78: 0 | P78: 0 | Q78: 0 | R78: 0 | S78: 0 | T78: 0 | U78: 0
A79: Total (origen) | B79: 0 | C79: 0 | D79: 0 | E79: 0 | F79: 0 | G79: 0 | H79: 119976 | I79: 71949 | J79: 67700 | K79: 272373 | L79: 400050 | M79: 370500 | N79: 60083075 | O79: 18721458.61 | P79: 91305770.14 | Q79: 123939171.9 | R79: 647652383.6 | S79: 607006283.2 | T79: 755788127.9 | U79: 61385623 | V79: =+U79-U84 -> 0
A80: Monto de gastos | B80: 0 | C80: 0 | D80: 0 | E80: 0 | F80: 0 | G80: 0 | H80: 119976 | I80: 71949 | J80: 67700 | K80: 272373 | L80: 400050 | M80: 370500 | N80: 60063075 | O80: 15301014.64 | P80: 76756740.57 | Q80: 105000997.6 | R80: 542431592.5 | S80: 522494912.2 | T80: 696917769.7 | U80: 61365623
A81: Disminución en el rubro de pasivo | B81: 0 | C81: 0 | D81: 0 | E81: 0 | F81: 0 | G81: 0 | H81: 0 | I81: 0 | J81: 0 | K81: 0 | L81: 0 | M81: 0 | N81: 0 | O81: 0 | P81: 0 | Q81: 16195824.25 | R81: 21671849.01 | S81: 0 | T81: 37336802.14 | U81: 0
A82: Acumulación de activos | B82: 0 | C82: 0 | D82: 0 | E82: 0 | F82: 0 | G82: 0 | H82: 0 | I82: 0 | J82: 0 | K82: 0 | L82: 0 | M82: 0 | N82: 20000 | O82: 3420443.97 | P82: 14549029.57 | Q82: 2742350.11 | R82: 83548942.04 | S82: 84511370.92 | T82: 21533556.1 | U82: 20000
A83: Monto de Ajustes | B83: 0 | C83: 0 | D83: 0 | E83: 0 | F83: 0 | G83: 0 | H83: 0 | I83: 0 | J83: 0 | K83: 0 | L83: 0 | M83: 0 | N83: 0 | O83: 0 | P83: 0 | Q83: 0 | R83: 0 | S83: 0 | T83: 0 | U83: 0
A84: Total (Aplicación) | B84: 0 | C84: 0 | D84: 0 | E84: 0 | F84: 0 | G84: 0 | H84: 119976 | I84: 71949 | J84: 67700 | K84: 272373 | L84: 400050 | M84: 370500 | N84: 60083075 | O84: 18721458.61 | P84: 91305770.14 | Q84: 123939171.9 | R84: 647652383.6 | S84: 607006283.2 | T84: 755788127.9 | U84: 61385623
A86: Republicano Social Cristiano
A87: Monto de donaciones recibidas | B87: 272370 | C87: 591000 | D87: 537600 | E87: 62000 | F87: 0 | G87: 245000 | H87: 0 | I87: 0 | J87: 0 | K87: 0 | L87: 0 | M87: 0 | N87: 493369.38 | O87: 0 | P87: 182144.04 | Q87: 240000 | R87: 0 | S87: 0 | U87: =+SUM(B87:N87) -> 2201339.38
A88: Incremento en el rubro de pasivo | B88: 751500 | C88: 4410000 | D88: 2519500 | E88: 0 | F88: 55071683.64 | G88: 0 | H88: 380126098.6 | I88: 0 | J88: 0 | K88: 10259493.14 | L88: 3260933.7 | M88: 0 | N88: 2109508.55 | O88: 16653407.09 | P88: 0 | Q88: 0 | R88: 0 | S88: 85900 | U88: 458508717.6
A89: Monto de Ingresos Recibidos | B89: 1927.4 | C89: 1880.45 | D89: 254.95 | E89: 219353482.8 | F89: 10530292.42 | G89: 45997348.63 | H89: 30965427.09 | I89: 32957.53 | J89: 9072763.19 | K89: 6582.18 | L89: 0 | M89: 47624388.99 | N89: 936020 | O89: 4087.02 | P89: 98123586.98 | Q89: 49678954.8 | R89: 135275879.1 | S89: 280.04 | U89: 364523325.6
A90: Monto de activos utilizado | B90: 17778138.35 | C90: 213782.17 | D90: 2977730.04 | E90: 200810086.3 | F90: 71650933.89 | G90: 0 | H90: 0 | I90: 31911505.57 | J90: 0 | K90: 8425781.83 | L90: 1399.52 | M90: 0 | N90: 618080.64 | O90: 0 | P90: 0 | Q90: 12027847.31 | R90: 20485714.6 | S90: 3645202.75 | U90: 334387438.3
A91: Total (origen) | B91: 18803935.75 | C91: 5216662.62 | D91: 7025584.99 | E91: 420225569.1 | F91: 137252910 | G91: 46242348.63 | H91: 411091525.7 | I91: 31944463.1 | J91: 9072793.19 | K91: 18691857.15 | L91: 3262333.22 | M91: 47624388.99 | N91: 4156978.57 | O91: 31902035.34 | P91: 98305731.02 | Q91: 61946802.11 | R91: 155761593.7 | S91: 3731382.79 | U91: 1160611351 | V91: =+U91-U96 -> 30
A92: Monto de gastos | B92: 18803935.75 | C92: 5216662.62 | D92: 7025584.99 | E92: 197100569.1 | F92: 137252910 | G92: 16317379.99 | H92: 376704939.4 | I92: 28382795.1 | J92: 8933107.84 | K92: 18691827.15 | L92: 3262333.22 | M92: 14327453.03 | N92: 4156978.57 | O92: 18216619.61 | P92: 35544226.72 | Q92: 61104481.23 | R92: 143254652.9 | S92: 3731382.76 | U92: 836176476.8
A93: Disminución en el rubro de pasivo | B93: 0 | C93: 0 | D93: 0 | E93: 223125000 | F93: 0 | G93: 26530500 | H93: 0 | I93: 3561668 | J93: 128741 | K93: 0 | L93: 0 | M93: 23441083.15 | N93: 0 | O93: 0 | P93: 38389128.55 | Q93: 842320.88 | R93: 11506940.78 | S93: 0 | U93: 276786992.1
A94: Acumulación de activos | B94: 0 | C94: 0 | D94: 0 | E94: 0 | F94: 0 | G94: 3394468.64 | H94: 34386586.29 | I94: 0 | J94: 10944.35 | K94: 0 | L94: 0 | M94: 9655852.81 | N94: 0 | O94: 13685415.73 | P94: 24372375.75 | Q94: 0 | R94: 0 | S94: 0 | U94: 47447852.09
A95: Monto de Ajustes | B95: 0 | C95: 0 | D95: 990500 | E95: 0 | F95: 0 | G95: 0 | H95: 0 | I95: 0 | J95: 30 | K95: 0 | L95: 0 | M95: -200000 | N95: 0 | O95: 15244541.23 | P95: 0 | Q95: 0 | R95: 0 | S95: 0 | U95: 790530
A96: Total (Aplicación) | B96: 18803935.75 | C96: 5216662.62 | D96: 7025584.99 | E96: 420225569.1 | F96: 137252910 | G96: 46242348.63 | H96: 411091525.7 | I96: 31944463.1 | J96: 9072793.19 | K96: 18691827.15 | L96: 3262333.22 | M96: 47624388.99 | N96: 4156978.57 | O96: 31902035.34 | P96: 98305731.02 | Q96: 61946802.11 | R96: 154761593.7 | S96: 3731382.76 | U96: 1160611321
A98: Restauración Nacional
A99: Monto de donaciones recibidas | B99: 0 | C99: 25070914.58 | D99: -5000 | E99: 1109494 | F99: 3260192 | G99: 3243147.02 | H99: 15524317.67 | I99: 3113147 | J99: 2832037.01 | K99: 952225.36 | L99: 26285423.08 | M99: 2611708.76 | N99: 2570474.04 | O99: 567994 | P99: 635494 | Q99: 569494 | R99: 1528494 | S99: 563494 | T99: 563494 | U99: =+SUM(B99:N99) -> 86568080.52
A100: Incremento en el rubro de pasivo | B100: 65147703.54 | C100: 245650103.5 | D100: 72104154.9 | E100: 195872653.7 | F100: 0 | G100: 43154538.38 | H100: 350821149.1 | I100: 136816533.2 | J100: 656318.11 | K100: 0 | L100: 135428732.2 | M100: 0 | N100: 85319589.19 | O100: 28045182.75 | P100: 99638998.34 | Q100: 0 | R100: 189493472.3 | S100: 0 | T100: 62622958.3 | U100: 1330971476
A101: Monto de Ingresos Recibidos | B101: 251455.66 | C101: 912883.04 | D101: 1140830.16 | E101: 1434508.55 | F101: 74090064.32 | G101: 125778147.3 | H101: 777696756.5 | I101: 219028538.4 | J101: 597262.03 | K101: 625779.19 | L101: 630167.94 | M101: 302716626.3 | N101: 94607375.09 | O101: 2000016.18 | P101: 508463.91 | Q101: 454980525.2 | R101: 473636942.1 | S101: 409093557.9 | T101: 70668585.78 | U101: 1599510394
A102: Monto de activos utilizado | B102: 0 | C102: 0 | D102: 101912612.5 | E102: 0 | F102: 0 | G102: 15112654.53 | H102: 0 | I102: 0 | J102: 72576516.54 | K102: 206026157.3 | L102: 0 | M102: 25998880.08 | N102: 0 | O102: 26425196.89 | P102: 5491460.38 | Q102: 20472675.22 | R102: 0 | S102: 500216575.5 | T102: 0 | U102: 421626820.9
A103: Total (origen) | B103: 65399159.2 | C103: 271633901.1 | D103: 175152597.5 | E103: 198563916.9 | F103: 866764888.9 | G103: 188022473.5 | H103: 1349024658 | I103: 514165630.1 | J103: 76662133.72 | K103: 208600834.6 | L103: 162344323.2 | M103: 341517271 | N103: 182497438.3 | O103: 57038389.82 | P103: 106274416.6 | Q103: 476022694.4 | R103: 664658908.4 | S103: 909873627.4 | T103: 133855038.1 | U103: 4600349226 | V103: =+U103-U108 -> -0.9799995422
A104: Monto de gastos | B104: 54702025.5 | C104: 152275454.5 | D104: 175005336.9 | E104: 159083710 | F104: 171035735.6 | G104: 188022473.5 | H104: 1151092109 | I104: 353869431.6 | J104: 76662133.72 | K104: 88819567.67 | L104: 134575965.6 | M104: 187273144.6 | N104: 145811502.6 | O104: 57038389.82 | P104: 106274416.6 | Q104: 215883000.4 | R104: 248676515.8 | S104: 55922517.39 | T104: 48321911.2 | U104: 3038228591
A105: Disminución en el rubro de pasivo | B105: 0 | C105: 0 | D105: 0 | E105: 0 | F105: 677021996.3 | G105: 0 | H105: 0 | I105: 0 | J105: 0 | K105: 119781267 | L105: 0 | M105: 154244126.4 | N105: 0 | O105: 0 | P105: 0 | Q105: 260139694.1 | R105: 0 | S105: 853951110 | T105: 0 | U105: 951047389.7
A106: Acumulación de activos | B106: 10697133.68 | C106: 119358446.6 | D106: 0 | E106: 39480206.9 | F106: 18707156.99 | G106: 0 | H106: 197932548.6 | I106: 160296198.5 | J106: 0 | K106: 0 | L106: 5043357.58 | M106: 0 | N106: 36591943.69 | O106: 0 | P106: 0 | Q106: 0 | R106: 415982392.6 | S106: 0 | T106: 85533126.88 | U106: 588106992.5
A107: Monto de Ajustes | B107: -2 | C107: 0 | D107: -147260.66 | E107: 147260.66 | F107: 789414632.6 | G107: 733986.24 | H107: 204982434.5 | I107: 155207411.5 | J107: 0.03 | K107: 996672.77 | L107: -22724999 | M107: 10190055.81 | N107: -93992.05 | O107: 0 | P107: 0 | Q107: 0 | R107: 0 | S107: 0 | T107: 0 | U107: 1138706200
A108: Total (Aplicación) | B108: 65399161.18 | C108: 271633901.1 | D108: 175152597.5 | E108: 198563916.9 | F108: 866764888.9 | G108: 188022473.5 | H108: 1349024658 | I108: 514165630.1 | J108: 76662133.72 | K108: 208600834.6 | L108: 162344322.2 | M108: 341517271 | N108: 182497438.3 | O108: 57038389.82 | P108: 106274416.6 | Q108: 476022694.4 | R108: 664658908.4 | S108: 909873627.4 | T108: 133855038.1 | U108: 4600349227
A110: Unidad Social Cristiana
A111: Monto de donaciones recibidas | B111: 2470993.88 | C111: 0 | D111: 0 | E111: 9147180.17 | F111: 4042756.4 | G111: 3224093.34 | H111: 22899232.96 | I111: 4005704.91 | J111: 55000 | K111: 0 | L111: 4015430 | M111: 25236489.77 | N111: 22036160.71 | O111: 3969512.05 | P111: 16835761.34 | Q111: 21405212.97 | R111: 10199091.77 | S111: 7844263.9 | T111: 4007 | U111: =+SUM(B111:N111) -> 97133042.14
A112: Incremento en el rubro de pasivo | B112: 2825122.36 | C112: 0 | D112: 0 | E112: 0 | F112: 18213239.61 | G112: 0 | H112: 1072573402 | I112: 0 | J112: 0 | K112: 1183998.71 | L112: 0 | M112: 0 | N112: 0 | O112: 398422094.2 | P112: 343550441.7 | Q112: 582379464.3 | R112: 675957674.1 | S112: 5069489.99 | T112: 0 | U112: 1094795763
A113: Monto de Ingresos Recibidos | B113: 12798434.06 | C113: 124953.58 | D113: 31935520.23 | E113: 3494479119 | F113: 34678651.63 | G113: 54904530.61 | H113: 435897535 | I113: 495714.84 | J113: 441743.48 | K113: 14556587.4 | L113: 678174355 | M113: 699663472.9 | N113: 52565605.48 | O113: 131799561.2 | P113: 29840966.7 | Q113: 17425735.32 | R113: 40079969.29 | S113: 1268567.86 | T113: 174235.64 | U113: 5510716223
A114: Monto de activos utilizado | B114: 201080331 | C114: 193721238 | D114: 116656764.9 | E114: 131021538.8 | F114: 78237.65 | G114: 3977880.41 | H114: 0 | I114: 112022565.8 | J114: 72008656.25 | K114: 51488866.03 | L114: 13749383.02 | M114: 0 | N114: 53379837.09 | O114: 0 | P114: 0 | Q114: 0 | R114: 0 | S114: 205294647.7 | T114: 351759516.5 | U114: 949185298.9
A115: Total (origen) | B115: 219174881.3 | C115: 193846191.6 | D115: 257997812.9 | E115: 3634647838 | F115: 57420233.34 | G115: 62106504.36 | H115: 1531370170 | I115: 720918532.7 | J115: 72505399.73 | K115: 67229452.14 | L115: 695939168.1 | M115: 724899962.7 | N115: 127981603.3 | O115: 534191167.5 | P115: 390227169.8 | Q115: 621210412.6 | R115: 726236735.1 | S115: 219476969.5 | T115: 351937759.1 | U115: 8366037750 | V115: =+U115-U120 -> 0
A116: Monto de gastos | B116: 211561615 | C116: 162398228.3 | D116: 160817788.7 | E116: 190452349.4 | F116: 57420233.34 | G116: 58408165.21 | H116: 1219967407 | I116: 98051918.64 | J116: 69388369.99 | K116: 67229452.14 | L116: 65105090.85 | M116: 168801747.7 | N116: 58626038.28 | O116: 74862618.67 | P116: 266295299.8 | Q116: 414338459.1 | R116: 603536815.8 | S116: 219476969.5 | T116: 320050713.2 | U116: 2588228405
A117: Disminución en el rubro de pasivo | B117: 0 | C117: 11953501.82 | D117: 97180024.19 | E117: 3444195489 | F117: 0 | G117: 3698339.15 | H117: 0 | I117: 622866614.1 | J117: 207030.39 | K117: 0 | L117: 630834077.2 | M117: 417897528.6 | N117: 69355565 | O117: 0 | P117: 0 | Q117: 0 | R117: 0 | S117: 0 | T117: 31887045.97 | U117: 5298188169
A118: Acumulación de activos | B118: 0 | C118: 0 | D118: 0 | E118: 0 | F118: 0 | G118: 0 | H118: 307371289.5 | I118: 0 | J118: 0 | K118: 0 | L118: 0 | M118: 138200686.4 | N118: 0 | O118: 459328548.8 | P118: 121305691.6 | Q118: 206871953.5 | R118: 122699919.3 | S118: 0 | T118: 0 | U118: 445571975.9
A119: Monto de Ajustes | B119: -7613266.29 | C119: -19494461.46 | D119: 109405527.8 | E119: 0 | F119: 407348.05 | G119: 0 | H119: -4031473.31 | I119: 604394547.1 | J119: -2909999.35 | K119: 0 | L119: 0 | M119: 0 | N119: 0 | O119: 0 | P119: -2626178.34 | Q119: 0 | R119: 0 | S119: 0 | T119: 0 | U119: 680158222.5
A120: Total (Aplicación) | B120: 219174881.3 | C120: 193846191.6 | D120: 257997812.9 | E120: 3634647838 | F120: 57420233.34 | G120: 62106504.36 | H120: 1531370170 | I120: 720918532.7 | J120: 72505399.73 | K120: 67229452.14 | L120: 695939168.1 | M120: 724899962.7 | N120: 127981603.3 | O120: 534191167.5 | P120: 390227169.8 | Q120: 621210412.6 | R120: 726236735.2 | S120: 219476969.5 | T120: 351937759.1 | U120: 8366037750
A122: Recuperando Valores (Limón)
A123: Monto de donaciones recibidas | B123: 0 | C123: 0 | D123: 0 | E123: 0 | F123: 0 | G123: 0 | H123: 80400 | I123: 0 | J123: 0 | K123: 339000 | L123: 0 | M123: 0 | N123: 0 | O123: 0 | P123: 0 | Q123: 0 | R123: 0 | S123: 0 | T123: 0 | U123: =+SUM(B123:N123) -> 419400
A124: Incremento en el rubro de pasivo | B124: 0 | C124: 0 | D124: 0 | E124: 0 | F124: 0 | G124: 0 | H124: 20966235 | I124: 0 | J124: 0 | K124: 0 | L124: 0 | M124: 0 | N124: 17000 | O124: 1400000 | P124: 300000 | Q124: 3400000 | R124: 4445000 | S124: 9300000 | T124: 1000000 | U124: 20983235
A125: Monto de Ingresos Recibidos | B125: 14.86 | C125: 0 | D125: 0 | E125: 0 | F125: 0 | G125: 0 | H125: 2543.06 | I125: 286.72 | J125: 0 | K125: 0 | L125: 0 | M125: 17002208.18 | N125: 0 | O125: 0 | P125: 0 | Q125: 0 | R125: 0 | S125: 0 | T125: 0 | U125: 17005052.82
A126: Monto de activos utilizado | B126: 390160.64 | C126: 0 | D126: 0 | E126: 0 | F126: 0 | G126: 0 | H126: 0 | I126: 299713.28 | J126: 0 | K126: 2456 | L126: 0 | M126: 30935.72 | N126: 0 | O126: 0 | P126: 125151.2 | Q126: 0 | R126: 0 | S126: 0 | T126: 6801250.31 | U126: 723265.64
A127: Total (origen) | B127: 390175.5 | C127: 0 | D127: 0 | E127: 0 | F127: 0 | G127: 0 | H127: 21049178.06 | I127: 300000 | J127: 0 | K127: 341456 | L127: 0 | M127: 17033143.9 | N127: 17000 | O127: 1400000 | P127: 425151.2 | Q127: 3400000 | R127: 4445000 | S127: 9300000 | T127: 7801250.31 | U127: 39130953.46 | V127: =+U127-U132 -> 0
A128: Monto de gastos | B128: 359881 | C128: 0 | D128: 0 | E128: 0 | F128: 0 | G128: 0 | H128: 21048896.93 | I128: 300000 | J128: 0 | K128: 341456 | L128: 0 | M128: 11154 | N128: 14328.4 | O128: 594651.2 | P128: 425151.2 | Q128: 2737450.16 | R128: 2765500.98 | S128: 5506821.49 | T128: 7801250.31 | U128: 22075716.33
A129: Disminución en el rubro de pasivo | B129: 30294.5 | C129: 0 | D129: 0 | E129: 0 | F129: 0 | G129: 0 | H129: 0 | I129: 0 | J129: 0 | K129: 0 | L129: 0 | M129: 17021989.9 | N129: 0 | O129: 0 | P129: 0 | Q129: 0 | R129: 0 | S129: 0 | T129: 0 | U129: 17052284.4
A130: Acumulación de activos | B130: 0 | C130: 0 | D130: 0 | E130: 0 | F130: 0 | G130: 0 | H130: 281.13 | I130: 0 | J130: 0 | K130: 0 | L130: 0 | M130: 0 | N130: 2671.6 | O130: 805348.8 | P130: 0 | Q130: 662549.84 | R130: 1679499.02 | S130: 3793178.51 | T130: 0 | U130: 2952.73
A131: Monto de Ajustes | B131: 0 | C131: 0 | D131: 0 | E131: 0 | F131: 0 | G131: 0 | H131: 0 | I131: 0 | J131: 0 | K131: 0 | L131: 0 | M131: 0 | N131: 0 | O131: 0 | P131: 0 | Q131: 0 | R131: 0 | S131: 0 | T131: 0 | U131: 0
A132: Total (Aplicación) | B132: 390175.5 | C132: 0 | D132: 0 | E132: 0 | F132: 0 | G132: 0 | H132: 21049178.06 | I132: 300000 | J132: 0 | K132: 341456 | L132: 0 | M132: 17033143.9 | N132: 17000 | O132: 1400000 | P132: 425151.2 | Q132: 3400000 | R132: 4445000 | S132: 9300000 | T132: 7801250.31 | U132: 39130953.46
A134: Unión Guanacasteca (Guanacaste)
A135: Monto de donaciones recibidas | B135: 0 | C135: 0 | D135: 0 | E135: 450000 | F135: 0 | G135: 0 | H135: 0 | I135: 0 | J135: 0 | K135: 0 | L135: 0 | M135: 0 | N135: 0 | O135: -8750000 | P135: 0 | Q135: 0 | R135: 0 | S135: 450000 | U135: =+SUM(B135:N135) -> 450000
A136: Incremento en el rubro de pasivo | B136: 0 | C136: 0 | D136: 0 | E136: 88056087.95 | F136: 0 | G136: 0 | H136: 12525000 | I136: 0 | J136: 0 | K136: 1500000 | L136: 0 | M136: 8023749.05 | N136: 0 | O136: 10500000 | P136: 2756014 | Q136: 3249639 | R136: 2300351 | S136: 0 | U136: 110104837
A137: Monto de Ingresos Recibidos | B137: 0 | C137: 0 | D137: 0 | E137: 0 | F137: 0 | G137: 0 | H137: 372.81 | I137: 0 | J137: 0 | K137: 0 | L137: 0 | M137: 1656 | N137: 12350698 | O137: 8790528.27 | P137: 16001698.39 | Q137: 18003103.4 | R137: 35003362.87 | S137: 4001234 | U137: 12352726.81
A138: Monto de activos utilizado | B138: 0 | C138: 0 | D138: 0 | E138: 0 | F138: 0 | G138: 0 | H138: 81097.99 | I138: 0 | J138: 0 | K138: 0 | L138: 0 | M138: 0 | N138: 556 | O138: 0 | P138: 0 | Q138: 67101 | R138: 0 | S138: 19698767 | U138: 81653.99
A139: Total (origen) | B139: 0 | C139: 0 | D139: 0 | E139: 88506087.95 | F139: 0 | G139: 0 | H139: 12606470.8 | I139: 0 | J139: 0 | K139: 1500000 | L139: 0 | M139: 8025405.05 | N139: 12351254 | O139: 10540528.27 | P139: 18757712.39 | Q139: 21319843.4 | R139: 37303713.87 | S139: 24150001 | U139: 122989217.8 | V139: =+U139-U144 -> 0
A140: Monto de gastos | B140: 0 | C140: 0 | D140: 0 | E140: 88398834.98 | F140: 0 | G140: 0 | H140: 12606470.8 | I140: 0 | J140: 0 | K140: 1500000 | L140: 0 | M140: 8020752 | N140: 1501254 | O140: 10503165 | P140: 18507212 | Q140: 21319853 | R140: 17290008 | S140: 16500352 | U140: 112027311.8
A141: Disminución en el rubro de pasivo | B141: 0 | C141: 0 | D141: 0 | E141: 0 | F141: 0 | G141: 0 | H141: 0 | I141: 0 | J141: 0 | K141: 0 | L141: 0 | M141: 0 | N141: 10850000 | O141: 0 | P141: 0 | Q141: 0 | R141: 0 | S141: 7199649 | U141: 10850000
A142: Acumulación de activos | B142: 0 | C142: 0 | D142: 0 | E142: 107252.97 | F142: 0 | G142: 0 | H142: 0 | I142: 0 | J142: 0 | K142: 0 | L142: 0 | M142: 4653.05 | N142: 0 | O142: 37363 | P142: 250500 | Q142: 0 | R142: 20013705 | S142: 0 | U142: 111906.02
A143: Monto de Ajustes | B143: 0 | C143: 0 | D143: 0 | E143: 0 | F143: 0 | G143: 0 | H143: 0 | I143: 0 | J143: 0 | K143: 0 | L143: 0 | M143: 0 | N143: 0 | O143: 0 | P143: 0 | Q143: 0 | R143: 0 | S143: -450000 | U143: 0
A144: Total (Aplicación) | B144: 0 | C144: 0 | D144: 0 | E144: 88506087.95 | F144: 0 | G144: 0 | H144: 12606470.8 | I144: 0 | J144: 0 | K144: 1500000 | L144: 0 | M144: 8025405.05 | N144: 12351254 | O144: 10540528 | P144: 18757712 | Q144: 21319853 | R144: 37303713 | S144: 24150001 | U144: 122989217.8
A146: Auténtico Limonense
A147: Monto de donaciones recibidas | B147: 0 | C147: 0 | D147: 0 | E147: 0 | F147: 0 | G147: 0 | H147: 1440001 | I147: 30000 | J147: 0 | K147: 415000 | L147: 390000 | M147: 405000 | N147: 0 | O147: 0 | P147: 0 | Q147: 0 | R147: 100000 | S147: 0 | T147: 0 | U147: =+SUM(B147:N147) -> 2680001
A148: Incremento en el rubro de pasivo | B148: 0 | C148: 0 | D148: 0 | E148: 0 | F148: 0 | G148: 0 | H148: 24307247.07 | I148: 724998.96 | J148: 0 | K148: 500000 | L148: 0 | M148: 0 | N148: 0 | O148: 0 | P148: 300000 | Q148: 390000 | R148: 508000 | S148: 0 | T148: 230000 | U148: 25532246.03
A149: Monto de Ingresos Recibidos | B149: 3000000 | C149: 0 | D149: 0 | E149: 0 | F149: 0 | G149: 0 | H149: 0.02 | I149: 0 | J149: 0 | K149: 0 | L149: 0 | M149: 0 | N149: 734750 | O149: 0 | P149: 0 | Q149: 0 | R149: 0 | S149: 0 | T149: 0 | U149: 3734750.02
A150: Monto de activos utilizado | B150: 135148.33 | C150: 0 | D150: 0 | E150: 0 | F150: 0 | G150: 0 | H150: 0 | I150: 4995 | J150: 0 | K150: 0 | L150: 0 | M150: 0 | N150: 0 | O150: 0 | P150: 231538.89 | Q150: 0 | R150: 216684 | S150: 0 | T150: 0 | U150: 140143.33
A151: Total (origen) | B151: 3135148.33 | C151: 0 | D151: 0 | E151: 0 | F151: 0 | G151: 0 | H151: 25747248.09 | I151: 759993.96 | J151: 0 | K151: 915000 | L151: 390000 | M151: 405000 | N151: 734750 | O151: 0 | P151: 531538.89 | Q151: 390000 | R151: 824684 | S151: 0 | T151: 230000 | U151: 32087140.38 | V151: =+U151-U156 -> 0
A152: Monto de gastos | B152: 1135148.33 | C152: 0 | D152: 0 | E152: 0 | F152: 0 | G152: 0 | H152: 25696667.77 | I152: 759993.96 | J152: 0 | K152: 737192 | L152: 378235 | M152: 349011 | N152: 119904 | O152: 0 | P152: 531538.89 | Q152: 338500.11 | R152: 824684 | S152: 0 | T152: 0 | U152: 29176152.06
A153: Disminución en el rubro de pasivo | B153: 2000000 | C153: 0 | D153: 0 | E153: 0 | F153: 0 | G153: 0 | H153: 0 | I153: 0 | J153: 0 | K153: 0 | L153: 0 | M153: 0 | N153: 500000 | O153: 0 | P153: 0 | Q153: 0 | R153: 0 | S153: 0 | T153: 0 | U153: 2500000
A154: Acumulación de activos | B154: 0 | C154: 0 | D154: 0 | E154: 0 | F154: 0 | G154: 0 | H154: 50580.32 | I154: 0 | J154: 0 | K154: 177808 | L154: 11765 | M154: 55989 | N154: 114846 | O154: 0 | P154: 0 | Q154: 51499.89 | R154: 0 | S154: 0 | T154: 230000 | U154: 410988.32
A155: Monto de Ajustes | B155: 0 | C155: 0 | D155: 0 | E155: 0 | F155: 0 | G155: 0 | H155: 0 | I155: 0 | J155: 0 | K155: 0 | L155: 0 | M155: 0 | N155: 0 | O155: 0 | P155: 0 | Q155: 0 | R155: 0 | S155: 0 | T155: 0 | U155: 0
A156: Total (Aplicación) | B156: 3135148.33 | C156: 0 | D156: 0 | E156: 0 | F156: 0 | G156: 0 | H156: 25747248.09 | I156: 759993.96 | J156: 0 | K156: 915000 | L156: 390000 | M156: 405000 | N156: 734750 | O156: =+SUM(O152:O155) -> 0 | P156: 531538.89 | Q156: 390000 | R156: 824684 | S156: =+SUM(S152:S155) -> 0 | T156: 230000 | U156: 32087140.38

Sheet Respuestas de formulario 1 (hidden)
A1: Marca temporal | B1: Dirección de correo electrónico | C1: Nombre del analista | D1: Número de Ingreso | E1: Periodo de reporte | F1: Anote el periodo en formato (mmm.aa-mmm.aa; por ejemplo: oct.20-ene.21.) seguido de la justificación para aplicar el análisis en esos términos. | G1: Nombre del partido político | H1: Cambio en los activos (si es negativo, coloque el signo) | I1: Cambio en los pasivos (si es negativo, coloque el signo) | J1: Cambio en las Donaciones | K1: Cambio en los Ingresos | L1: Cambio en los gastos | M1: Ajustes sobre periodos anteriores (si es negativo, coloque el signo) | N1: Gastos de Organización | O1: Gastos de Propaganda | P1: Gastos de Capacitación | Q1: Gastos no redimibles | R1: Origen | S1: Aplicación | T1: Diferencia no explicada | U1: Comprobar gastos | V1: Derecho | X1: Partido | Y1: Monto de donaciones recibidas | Z1: Incremento en el rubro de pasivo | AA1: Monto de Ingresos Recibidos | AB1: Monto de activos utilizado | AC1: Origen | AD1: vacio | AE1: Monto de gastos | AF1: Disminución en el rubro de pasivo | AG1: Acumulación de activos | AH1: Monto de Ajustes | AI1: Aplicación | AJ1: vacio | AK1: Diferencia | AL1: Escala | AM1: periodo
A2: 2022-07-22T12:01:31.663 | B2: rarias@tse.go.cr | C2: Rigoberto Arias Fajardo | D2: 18-1020 | E2: Abr.-Jun., 2018 | G2: Frente Amplio (FA) | H2: -83115335.53 | I2: -18969880.98 | J2: 9114757.5 | K2: 4370800.73 | L2: 77631012.78 | M2: 0 | N2: 68382593.12 | O2: 7766050.1 | P2: 0 | Q2: 1482369.56 | R2: =+Respuestas_de_formulario_1[[#This Row],[Cambio en las Donaciones]]+Respuestas_de_formulario_1[[#This Row],[Cambio en los Ingresos]]+IF(Respuestas_de_formulario_1[[#This Row],[Cambio en los activos (si es negativo, coloque el signo)]]<0,-Respuestas_de_formulario_1[[#This Row],[Cambio en los activos (si es negativo, coloque el signo)]],0)+IF(Respuestas_de_formulario_1[[#This Row],[Cambio en los pasivos (si es negativo, coloque el signo)]]>0,Respuestas_de_formulario_1[[#This Row],[Cambio en los pasivos (si es negativo, coloque el signo)]],0)+IF(Respuestas_de_formulario_1[[#This Row],[Ajustes sobre periodos anteriores (si es negativo, coloque el signo)]]>0,Respuestas_de_formulario_1[[#This Row],[Ajustes sobre periodos anteriores (si es negativo, coloque el signo)]],0) -> 96600893.76 | S2: =+Respuestas_de_formulario_1[[#This Row],[Cambio en los gastos]]+IF(Respuestas_de_formulario_1[[#This Row],[Cambio en los activos (si es negativo, coloque el signo)]]>0,Respuestas_de_formulario_1[[#This Row],[Cambio en los activos (si es negativo, coloque el signo)]],0)-IF(Respuestas_de_formulario_1[[#This Row],[Cambio en los pasivos (si es negativo, coloque el signo)]]<0,Respuestas_de_formulario_1[[#This Row],[Cambio en los pasivos (si es negativo, coloque el signo)]],0)-IF(Respuestas_de_formulario_1[[#This Row],[Ajustes sobre periodos anteriores (si es negativo, coloque el signo)]]<0,Respuestas_de_formulario_1[[#This Row],[Ajustes sobre periodos anteriores (si es negativo, coloque el signo)]],0) -> 96600893.76 | T2: =+Respuestas_de_formulario_1[[#This Row],[Origen]]-Respuestas_de_formulario_1[[#This Row],[Aplicación]] -> 0 | U2: =+Respuestas_de_formulario_1[[#This Row],[Cambio en los gastos]]-SUM(Respuestas_de_formulario_1[[#This Row],[Gastos de Organización]:[Gastos no redimibles]]) -> 0 | V2: =+VLOOKUP(Respuestas_de_formulario_1[[#This Row],[Nombre del partido político]],$AR$2:$AS$37,2,FALSE) -> Sí | X2: =+Respuestas_de_formulario_1[[#This Row],[Nombre del partido político]] -> Frente Amplio (FA) | Y2: =+Respuestas_de_formulario_1[[#This Row],[Cambio en las Donaciones]] -> 9114757.5 | Z2: =+IF(Respuestas_de_formulario_1[[#This Row],[Cambio en los pasivos (si es negativo, coloque el signo)]]>0,Respuestas_de_formulario_1[[#This Row],[Cambio en los pasivos (si es negativo, coloque el signo)]],0) -> 0 | AA2: =+IF(Respuestas_de_formulario_1[[#This Row],[Cambio en los Ingresos]]>0,Respuestas_de_formulario_1[[#This Row],[Cambio en los Ingresos]],0) -> 4370800.73 | AB2: =-IF(Respuestas_de_formulario_1[[#This Row],[Cambio en los activos (si es negativo, coloque el signo)]]<0,Respuestas_de_formulario_1[[#This Row],[Cambio en los activos (si es negativo, coloque el signo)]],0) -> 83115335.53 | AC2: =+SUM(Y2:AB2)+IF(AH2>0,AH2,0) -> 96600893.76 | AE2: =+IF(Respuestas_de_formulario_1[[#This Row],[Cambio en los gastos]]>0,Respuestas_de_formulario_1[[#This Row],[Cambio en los gastos]],0) -> 77631012.78 | AF2: =-IF(Respuestas_de_formulario_1[[#This Row],[Cambio en los pasivos (si es negativo, coloque el signo)]]<0,Respuestas_de_formulario_1[[#This Row],[Cambio en los pasivos (si es negativo, coloque el signo)]],0) -> 18969880.98 | AG2: =+IF(Respuestas_de_formulario_1[[#This Row],[Cambio en los activos (si es negativo, coloque el signo)]]>0,Respuestas_de_formulario_1[[#This Row],[Cambio en los activos (si es negativo, coloque el signo)]],0) -> 0 | AH2: =+Respuestas_de_formulario_1[[#This Row],[Ajustes sobre periodos anteriores (si es negativo, coloque el signo)]] -> 0 | AI2: =+SUM(AE2:AG2)-IF(AH2<0,AH2,0) -> 96600893.76 | AK2: =+AC2-AI2 -> 0 | AL2: =+INDEX(AO:AP,MATCH(Respuestas_de_formulario_1[[#This Row],[Nombre del partido político]],AO:AO,0),2) -> 1. Nacional | AM2: =+Respuestas_de_formulario_1[[#This Row],[Periodo de reporte]] -> Abr.-Jun., 2018 | AO2: Accesibilidad sin Exclusión (PASE) | AP2: 1. Nacional | AR2: Accesibilidad sin Exclusión (PASE) | AS2: No
A3: 2022-07-22T13:14:02.478 | B3: jgarciad@tse.go.cr | C3: Jessica García Díaz | D3: 18-1027 | E3: Abr.-Jun., 2018 | G3: Recuperando Valores (Limón) (PAREVA) | H3: -390160.64 | I3: -30294.5 | J3: 0 | K3: 14.86 | L3: 359881 | M3: 0 | N3: 359881 | O3: 0 | P3: 0 | Q3: 0 | R3: =+Respuestas_de_formulario_1[[#This Row],[Cambio en las Donaciones]]+Respuestas_de_formulario_1[[#This Row],[Cambio en los Ingresos]]+IF(Respuestas_de_formulario_1[[#This Row],[Cambio en los activos (si es negativo, coloque el signo)]]<0,-Respuestas_de_formulario_1[[#This Row],[Cambio en los activos (si es negativo, coloque el signo)]],0)+IF(Respuestas_de_formulario_1[[#This Row],[Cambio en los pasivos (si es negativo, coloque el signo)]]>0,Respuestas_de_formulario_1[[#This Row],[Cambio en los pasivos (si es negativo, coloque el signo)]],0)+IF(Respuestas_de_formulario_1[[#This Row],[Ajustes sobre periodos anteriores (si es negativo, coloque el signo)]]>0,Respuestas_de_formulario_1[[#This Row],[Ajustes sobre periodos anteriores (si es negativo, coloque el signo)]],0) -> 390175.5 | S3: =+Respuestas_de_formulario_1[[#This Row],[Cambio en los gastos]]+IF(Respuestas_de_formulario_1[[#This Row],[Cambio en los activos (si es negativo, coloque el signo)]]>0,Respuestas_de_formulario_1[[#This Row],[Cambio en los activos (si es negativo, coloque el signo)]],0)-IF(Respuestas_de_formulario_1[[#This Row],[Cambio en los pasivos (si es negativo, coloque el signo)]]<0,Respuestas_de_formulario_1[[#This Row],[Cambio en los pasivos (si es negativo, coloque el signo)]],0)-IF(Respuestas_de_formulario_1[[#This Row],[Ajustes sobre periodos anteriores (si es negativo, coloque el signo)]]<0,Respuestas_de_formulario_1[[#This Row],[Ajustes sobre periodos anteriores (si es negativo, coloque el signo)]],0) -> 390175.5 | T3: =+Respuestas_de_formulario_1[[#This Row],[Origen]]-Respuestas_de_formulario_1[[#This Row],[Aplicación]] -> 0 | U3: =+Respuestas_de_formulario_1[[#This Row],[Cambio en los gastos]]-SUM(Respuestas_de_formulario_1[[#This Row],[Gastos de Organización]:[Gastos no redimibles]]) -> 0 | V3: =+VLOOKUP(Respuestas_de_formulario_1[[#This Row],[Nombre del partido político]],$AR$2:$AS$37,2,FALSE) -> Sí | X3: =+Respuestas_de_formulario_1[[#This Row],[Nombre del partido político]] -> Recuperando Valores (Limón) (PAREVA) | Y3: =+Respuestas_de_formulario_1[[#This Row],[Cambio en las Donaciones]] -> 0 | Z3: =+IF(Respuestas_de_formulario_1[[#This Row],[Cambio en los pasivos (si es negativo, coloque el signo)]]>0,Respuestas_de_formulario_1[[#This Row],[Cambio en los pasivos (si es negativo, coloque el signo)]],0) -> 0 | AA3: =+IF(Respuestas_de_formulario_1[[#This Row],[Cambio en los Ingresos]]>0,Respuestas_de_formulario_1[[#This Row],[Cambio en los Ingresos]],0) -> 14.86 | AB3: =-IF(Respuestas_de_formulario_1[[#This Row],[Cambio en los activos (si es negativo, coloque el signo)]]<0,Respuestas_de_formulario_1[[#This Row],[Cambio en los activos (si es negativo, coloque el signo)]],0) -> 390160.64 | AC3: 390175.5 | AE3: =+IF(Respuestas_de_formulario_1[[#This Row],[Cambio en los gastos]]>0,Respuestas_de_formulario_1[[#This Row],[Cambio en los gastos]],0) -> 359881 | AF3: =-IF(Respuestas_de_formulario_1[[#This Row],[Cambio en los pasivos (si es negativo, coloque el signo)]]<0,Respuestas_de_formulario_1[[#This Row],[Cambio en los pasivos (si es negativo, coloque el signo)]],0) -> 30294.5 | AG3: =+IF(Respuestas_de_formulario_1[[#This Row],[Cambio en los activos (si es negativo, coloque el signo)]]>0,Respuestas_de_formulario_1[[#This Row],[Cambio en los activos (si es negativo, coloque el signo)]],0) -> 0 | AH3: =+Respuestas_de_formulario_1[[#This Row],[Ajustes sobre periodos anteriores (si es negativo, coloque el signo)]] -> 0 | AI3: 390175.5 | AK3: 0 | AL3: =+INDEX(AO:AP,MATCH(Respuestas_de_formulario_1[[#This Row],[Nombre del partido político]],AO:AO,0),2) -> 2. Provincial | AM3: =+Respuestas_de_formulario_1[[#This Row],[Periodo de reporte]] -> Abr.-Jun., 2018 | AO3: Acción Ciudadana (PAC) | AP3: 1. Nacional | AR3: Acción Ciudadana (PAC) | AS3: No
A4: 2022-07-26T08:48:54.023 | B4: rarias@tse.go.cr | C4: Rigoberto Arias Fajardo | D4: 18-1189 | E4: Abr.-Jun., 2018 | G4: Restauración Nacional (PRN) | H4: 10697133.68 | I4: 65147703.54 | J4: 0 | K4: 251455.66 | L4: 54702025.5 | M4: -2 | N4: -67990779.18 | O4: 120582937.2 | P4: 0 | Q4: 2109867.51 | R4: =+Respuestas_de_formulario_1[[#This Row],[Cambio en las Donaciones]]+Respuestas_de_formulario_1[[#This Row],[Cambio en los Ingresos]]+IF(Respuestas_de_formulario_1[[#This Row],[Cambio en los activos (si es negativo, coloque el signo)]]<0,-Respuestas_de_formulario_1[[#This Row],[Cambio en los activos (si es negativo, coloque el signo)]],0)+IF(Respuestas_de_formulario_1[[#This Row],[Cambio en los pasivos (si es negativo, coloque el signo)]]>0,Respuestas_de_formulario_1[[#This Row],[Cambio en los pasivos (si es negativo, coloque el signo)]],0)+IF(Respuestas_de_formulario_1[[#This Row],[Ajustes sobre periodos anteriores (si es negativo, coloque el signo)]]>0,Respuestas_de_formulario_1[[#This Row],[Ajustes sobre periodos anteriores (si es negativo, coloque el signo)]],0) -> 65399159.2 | S4: =+Respuestas_de_formulario_1[[#This Row],[Cambio en los gastos]]+IF(Respuestas_de_formulario_1[[#This Row],[Cambio en los activos (si es negativo, coloque el signo)]]>0,Respuestas_de_formulario_1[[#This Row],[Cambio en los activos (si es negativo, coloque el signo)]],0)-IF(Respuestas_de_formulario_1[[#This Row],[Cambio en los pasivos (si es negativo, coloque el signo)]]<0,Respuestas_de_formulario_1[[#This Row],[Cambio en los pasivos (si es negativo, coloque el signo)]],0)-IF(Respuestas_de_formulario_1[[#This Row],[Ajustes sobre periodos anteriores (si es negativo, coloque el signo)]]<0,Respuestas_de_formulario_1[[#This Row],[Ajustes sobre periodos anteriores (si es negativo, coloque el signo)]],0) -> 65399161.18 | T4: =+Respuestas_de_formulario_1[[#This Row],[Origen]]-Respuestas_de_formulario_1[[#This Row],[Aplicación]] -> -1.980000004 | U4: =+Respuestas_de_formulario_1[[#This Row],[Cambio en los gastos]]-SUM(Respuestas_de_formulario_1[[#This Row],[Gastos de Organización]:[Gastos no redimibles]]) -> 0 | V4: =+VLOOKUP(Respuestas_de_formulario_1[[#This Row],[Nombre del partido político]],$AR$2:$AS$37,2,FALSE) -> No | X4: =+Respuestas_de_formulario_1[[#This Row],[Nombre del partido político]] -> Restauración Nacional (PRN) | Y4: =+Respuestas_de_formulario_1[[#This Row],[Cambio en las Donaciones]] -> 0 | Z4: =+IF(Respuestas_de_formulario_1[[#This Row],[Cambio en los pasivos (si es negativo, coloque el signo)]]>0,Respuestas_de_formulario_1[[#This Row],[Cambio en los pasivos (si es negativo, coloque el signo)]],0) -> 65147703.54 | AA4: =+IF(Respuestas_de_formulario_1[[#This Row],[Cambio en los Ingresos]]>0,Respuestas_de_formulario_1[[#This Row],[Cambio en los Ingresos]],0) -> 251455.66 | AB4: =-IF(Respuestas_de_formulario_1[[#This Row],[Cambio en los activos (si es negativo, coloque el signo)]]<0,Respuestas_de_formulario_1[[#This Row],[Cambio en los activos (si es negativo, coloque el signo)]],0) -> 0 | AC4: 65399159.2 | AE4: =+IF(Respuestas_de_formulario_1[[#This Row],[Cambio en los gastos]]>0,Respuestas_de_formulario_1[[#This Row],[Cambio en los gastos]],0) -> 54702025.5 | AF4: =-IF(Respuestas_de_formulario_1[[#This Row],[Cambio en los pasivos (si es negativo, coloque el signo)]]<0,Respuestas_de_formulario_1[[#This Row],[Cambio en los pasivos (si es negativo, coloque el signo)]],0) -> 0 | AG4: =+IF(Respuestas_de_formulario_1[[#This Row],[Cambio en los activos (si es negativo, coloque el signo)]]>0,Respuestas_de_formulario_1[[#This Row],[Cambio en los activos (si es negativo, coloque el signo)]],0) -> 10697133.68 | AH4: =+Respuestas_de_formulario_1[[#This Row],[Ajustes sobre periodos anteriores (si es negativo, coloque el signo)]] -> -2 | AI4: 65399161.18 | AK4: -1.980000004 | AL4: =+INDEX(AO:AP,MATCH(Respuestas_de_formulario_1[[#This Row],[Nombre del partido político]],AO:AO,0),2) -> 1. Nacional | AM4: =+Respuestas_de_formulario_1[[#This Row],[Periodo de reporte]] -> Abr.-Jun., 2018 | AO4: Costa Rica Justa (CRJ) | AP4: 1. Nacional | AR4: Actuemos Ya (Cartago) (PAY) | AS4: No
A5: 2022-07-26T09:39:42.448 | B5: imadrigalperez@gmail.com | C5: Ileana Madrigal Mora | D5: 18-1022 | E5: Abr.-Jun., 2018 | G5: Acción Ciudadana (PAC) | H5: -526284070 | I5: 46671130 | J5: 15114360 | K5: 246490269 | L5: 834559829 | M5: 0 | N5: 446382158.5 | O5: 382403115.3 | P5: 3000000 | Q5: 2774554.95 | R5: =+Respuestas_de_formulario_1[[#This Row],[Cambio en las Donaciones]]+Respuestas_de_formulario_1[[#This Row],[Cambio en los Ingresos]]+IF(Respuestas_de_formulario_1[[#This Row],[Cambio en los activos (si es negativo, coloque el signo)]]<0,-Respuestas_de_formulario_1[[#This Row],[Cambio en los activos (si es negativo, coloque el signo)]],0)+IF(Respuestas_de_formulario_1[[#This Row],[Cambio en los pasivos (si es negativo, coloque el signo)]]>0,Respuestas_de_formulario_1[[#This Row],[Cambio en los pasivos (si es negativo, coloque el signo)]],0)+IF(Respuestas_de_formulario_1[[#This Row],[Ajustes sobre periodos anteriores (si es negativo, coloque el signo)]]>0,Respuestas_de_formulario_1[[#This Row],[Ajustes sobre periodos anteriores (si es negativo, coloque el signo)]],0) -> 834559829 | S5: =+Respuestas_de_formulario_1[[#This Row],[Cambio en los gastos]]+IF(Respuestas_de_formulario_1[[#This Row],[Cambio en los activos (si es negativo, coloque el signo)]]>0,Respuestas_de_formulario_1[[#This Row],[Cambio en los activos (si es negativo, coloque el signo)]],0)-IF(Respuestas_de_formulario_1[[#This Row],[Cambio en los pasivos (si es negativo, coloque el signo)]]<0,Respuestas_de_formulario_1[[#This Row],[Cambio en los pasivos (si es negativo, coloque el signo)]],0)-IF(Respuestas_de_formulario_1[[#This Row],[Ajustes sobre periodos anteriores (si es negativo, coloque el signo)]]<0,Respuestas_de_formulario_1[[#This Row],[Ajustes sobre periodos anteriores (si es negativo, coloque el signo)]],0) -> 834559829 | T5: =+Respuestas_de_formulario_1[[#This Row],[Origen]]-Respuestas_de_formulario_1[[#This Row],[Aplicación]] -> 0 | U5: =+Respuestas_de_formulario_1[[#This Row],[Cambio en los gastos]]-SUM(Respuestas_de_formulario_1[[#This Row],[Gastos de Organización]:[Gastos no redimibles]]) -> 0.1900000572 | V5: =+VLOOKUP(Respuestas_de_formulario_1[[#This Row],[Nombre del partido político]],$AR$2:$AS$37,2,FALSE) -> No | X5: =+Respuestas_de_formulario_1[[#This Row],[Nombre del partido político]] -> Acción Ciudadana (PAC) | Y5: =+Respuestas_de_formulario_1[[#This Row],[Cambio en las Donaciones]] -> 15114360 | Z5: =+IF(Respuestas_de_formulario_1[[#This Row],[Cambio en los pasivos (si es negativo, coloque el signo)]]>0,Respuestas_de_formulario_1[[#This Row],[Cambio en los pasivos (si es negativo, coloque el signo)]],0) -> 46671130 | AA5: =+IF(Respuestas_de_formulario_1[[#This Row],[Cambio en los Ingresos]]>0,Respuestas_de_formulario_1[[#This Row],[Cambio en los Ingresos]],0) -> 246490269 | AB5: =-IF(Respuestas_de_formulario_1[[#This Row],[Cambio en los activos (si es negativo, coloque el signo)]]<0,Respuestas_de_formulario_1[[#This Row],[Cambio en los activos (si es negativo, coloque el signo)]],0) -> 526284070 | AC5: 834559829 | AE5: =+IF(Respuestas_de_formulario_1[[#This Row],[Cambio en los gastos]]>0,Respuestas_de_formulario_1[[#This Row],[Cambio en los gastos]],0) -> 834559829 | AF5: =-IF(Respuestas_de_formulario_1[[#This Row],[Cambio en los pasivos (si es negativo, coloque el signo)]]<0,Respuestas_de_formulario_1[[#This Row],[Cambio en los pasivos (si es negativo, coloque el signo)]],0) -> 0 | AG5: =+IF(Respuestas_de_formulario_1[[#This Row],[Cambio en los activos (si es negativo, coloque el signo)]]>0,Respuestas_de_formulario_1[[#This Row],[Cambio en los activos (si es negativo, coloque el signo)]],0) -> 0 | AH5: =+Respuestas_de_formulario_1[[#This Row],[Ajustes sobre periodos anteriores (si es negativo, coloque el signo)]] -> 0 | AI5: 834559829 | AK5: =+AC5-AI5 -> 0 | AL5: =+INDEX(AO:AP,MATCH(Respuestas_de_formulario_1[[#This Row],[Nombre del partido político]],AO:AO,0),2) -> 1. Nacional | AM5: =+Respuestas_de_formulario_1[[#This Row],[Periodo de reporte]] -> Abr.-Jun., 2018 | AO5: De los Trabajadores (PT) | AP5: 1. Nacional | AR5: Alianza Demócrata Cristiana (ADC) | AS5: No
A6: 2022-07-26T14:43:09.730 | B6: rarias@tse.go.cr | C6: Rigoberto Arias Fajardo | D6: N/A | E6: Abr.-Jun., 2018 | G6: Nueva República (PNR) | H6: 0 | I6: 0 | J6: 0 | K6: 0 | L6: 0 | M6: 0 | N6: 0 | O6: 0 | P6: 0 | Q6: 0 | R6: =+Respuestas_de_formulario_1[[#This Row],[Cambio en las Donaciones]]+Respuestas_de_formulario_1[[#This Row],[Cambio en los Ingresos]]+IF(Respuestas_de_formulario_1[[#This Row],[Cambio en los activos (si es negativo, coloque el signo)]]<0,-Respuestas_de_formulario_1[[#This Row],[Cambio en los activos (si es negativo, coloque el signo)]],0)+IF(Respuestas_de_formulario_1[[#This Row],[Cambio en los pasivos (si es negativo, coloque el signo)]]>0,Respuestas_de_formulario_1[[#This Row],[Cambio en los pasivos (si es negativo, coloque el signo)]],0)+IF(Respuestas_de_formulario_1[[#This Row],[Ajustes sobre periodos anteriores (si es negativo, coloque el signo)]]>0,Respuestas_de_formulario_1[[#This Row],[Ajustes sobre periodos anteriores (si es negativo, coloque el signo)]],0) -> 0 | S6: =+Respuestas_de_formulario_1[[#This Row],[Cambio en los gastos]]+IF(Respuestas_de_formulario_1[[#This Row],[Cambio en los activos (si es negativo, coloque el signo)]]>0,Respuestas_de_formulario_1[[#This Row],[Cambio en los activos (si es negativo, coloque el signo)]],0)-IF(Respuestas_de_formulario_1[[#This Row],[Cambio en los pasivos (si es negativo, coloque el signo)]]<0,Respuestas_de_formulario_1[[#This Row],[Cambio en los pasivos (si es negativo, coloque el signo)]],0)-IF(Respuestas_de_formulario_1[[#This Row],[Ajustes sobre periodos anteriores (si es negativo, coloque el signo)]]<0,Respuestas_de_formulario_1[[#This Row],[Ajustes sobre periodos anteriores (si es negativo, coloque el signo)]],0) -> 0 | T6: =+Respuestas_de_formulario_1[[#This Row],[Origen]]-Respuestas_de_formulario_1[[#This Row],[Aplicación]] -> 0 | U6: =+Respuestas_de_formulario_1[[#This Row],[Cambio en los gastos]]-SUM(Respuestas_de_formulario_1[[#This Row],[Gastos de Organización]:[Gastos no redimibles]]) -> 0 | V6: =+VLOOKUP(Respuestas_de_formulario_1[[#This Row],[Nombre del partido político]],$AR$2:$AS$37,2,FALSE) -> Sí | X6: =+Respuestas_de_formulario_1[[#This Row],[Nombre del partido político]] -> Nueva República (PNR) | Y6: =+Respuestas_de_formulario_1[[#This Row],[Cambio en las Donaciones]] -> 0 | Z6: =+IF(Respuestas_de_formulario_1[[#This Row],[Cambio en los pasivos (si es negativo, coloque el signo)]]>0,Respuestas_de_formulario_1[[#This Row],[Cambio en los pasivos (si es negativo, coloque el signo)]],0) -> 0 | AA6: =+IF(Respuestas_de_formulario_1[[#This Row],[Cambio en los Ingresos]]>0,Respuestas_de_formulario_1[[#This Row],[Cambio en los Ingresos]],0) -> 0 | AB6: =-IF(Respuestas_de_formulario_1[[#This Row],[Cambio en los activos (si es negativo, coloque el signo)]]<0,Respuestas_de_formulario_1[[#This Row],[Cambio en los activos (si es negativo, coloque el signo)]],0) -> 0 | AC6: 0 | AE6: =+IF(Respuestas_de_formulario_1[[#This Row],[Cambio en los gastos]]>0,Respuestas_de_formulario_1[[#This Row],[Cambio en los gastos]],0) -> 0 | AF6: =-IF(Respuestas_de_formulario_1[[#This Row],[Cambio en los pasivos (si es negativo, coloque el signo)]]<0,Respuestas_de_formulario_1[[#This Row],[Cambio en los pasivos (si es negativo, coloque el signo)]],0) -> 0 | AG6: =+IF(Respuestas_de_formulario_1[[#This Row],[Cambio en los activos (si es negativo, coloque el signo)]]>0,Respuestas_de_formulario_1[[#This Row],[Cambio en los activos (si es negativo, coloque el signo)]],0) -> 0 | AH6: =+Respuestas_de_formulario_1[[#This Row],[Ajustes sobre periodos anteriores (si es negativo, coloque el signo)]] -> 0 | AI6: 0 | AK6: 0 | AL6: =+INDEX(AO:AP,MATCH(Respuestas_de_formulario_1[[#This Row],[Nombre del partido político]],AO:AO,0),2) -> 1. Nacional | AM6: =+Respuestas_de_formulario_1[[#This Row],[Periodo de reporte]] -> Abr.-Jun., 2018 | AO6: Encuentro Nacional (PEN) | AP6: 1. Nacional | AR6: Anticorrupción Costarricense (San José) (PACO) | AS6: No
A7: 2022-07-27T08:38:03.419 | B7: rarias@tse.go.cr | C7: Rigoberto Arias Fajardo | D7: N/A | E7: Abr.-Jun., 2018 | G7: Progreso Social Democrático (PSD) | H7: 0 | I7: 0 | J7: 0 | K7: 0 | L7: 0 | M7: 0 | N7: 0 | O7: 0 | P7: 0 | Q7: 0 | R7: =+Respuestas_de_formulario_1[[#This Row],[Cambio en las Donaciones]]+Respuestas_de_formulario_1[[#This Row],[Cambio en los Ingresos]]+IF(Respuestas_de_formulario_1[[#This Row],[Cambio en los activos (si es negativo, coloque el signo)]]<0,-Respuestas_de_formulario_1[[#This Row],[Cambio en los activos (si es negativo, coloque el signo)]],0)+IF(Respuestas_de_formulario_1[[#This Row],[Cambio en los pasivos (si es negativo, coloque el signo)]]>0,Respuestas_de_formulario_1[[#This Row],[Cambio en los pasivos (si es negativo, coloque el signo)]],0)+IF(Respuestas_de_formulario_1[[#This Row],[Ajustes sobre periodos anteriores (si es negativo, coloque el signo)]]>0,Respuestas_de_formulario_1[[#This Row],[Ajustes sobre periodos anteriores (si es negativo, coloque el signo)]],0) -> 0 | S7: =+Respuestas_de_formulario_1[[#This Row],[Cambio en los gastos]]+IF(Respuestas_de_formulario_1[[#This Row],[Cambio en los activos (si es negativo, coloque el signo)]]>0,Respuestas_de_formulario_1[[#This Row],[Cambio en los activos (si es negativo, coloque el signo)]],0)-IF(Respuestas_de_formulario_1[[#This Row],[Cambio en los pasivos (si es negativo, coloque el signo)]]<0,Respuestas_de_formulario_1[[#This Row],[Cambio en los pasivos (si es negativo, coloque el signo)]],0)-IF(Respuestas_de_formulario_1[[#This Row],[Ajustes sobre periodos anteriores (si es negativo, coloque el signo)]]<0,Respuestas_de_formulario_1[[#This Row],[Ajustes sobre periodos anteriores (si es negativo, coloque el signo)]],0) -> 0 | T7: =+Respuestas_de_formulario_1[[#This Row],[Origen]]-Respuestas_de_formulario_1[[#This Row],[Aplicación]] -> 0 | U7: =+Respuestas_de_formulario_1[[#This Row],[Cambio en los gastos]]-SUM(Respuestas_de_formulario_1[[#This Row],[Gastos de Organización]:[Gastos no redimibles]]) -> 0 | V7: =+VLOOKUP(Respuestas_de_formulario_1[[#This Row],[Nombre del partido político]],$AR$2:$AS$37,2,FALSE) -> Sí | X7: =+Respuestas_de_formulario_1[[#This Row],[Nombre del partido político]] -> Progreso Social Democrático (PSD) | Y7: =+Respuestas_de_formulario_1[[#This Row],[Cambio en las Donaciones]] -> 0 | Z7: =+IF(Respuestas_de_formulario_1[[#This Row],[Cambio en los pasivos (si es negativo, coloque el signo)]]>0,Respuestas_de_formulario_1[[#This Row],[Cambio en los pasivos (si es negativo, coloque el signo)]],0) -> 0 | AA7: =+IF(Respuestas_de_formulario_1[[#This Row],[Cambio en los Ingresos]]>0,Respuestas_de_formulario_1[[#This Row],[Cambio en los Ingresos]],0) -> 0 | AB7: =-IF(Respuestas_de_formulario_1[[#This Row],[Cambio en los activos (si es negativo, coloque el signo)]]<0,Respuestas_de_formulario_1[[#This Row],[Cambio en los activos (si es negativo, coloque el signo)]],0) -> 0 | AC7: 0 | AE7: =+IF(Respuestas_de_formulario_1[[#This Row],[Cambio en los gastos]]>0,Respuestas_de_formulario_1[[#This Row],[Cambio en los gastos]],0) -> 0 | AF7: =-IF(Respuestas_de_formulario_1[[#This Row],[Cambio en los pasivos (si es negativo, coloque el signo)]]<0,Respuestas_de_formulario_1[[#This Row],[Cambio en los pasivos (si es negativo, coloque el signo)]],0) -> 0 | AG7: =+IF(Respuestas_de_formulario_1[[#This Row],[Cambio en los activos (si es negativo, coloque el signo)]]>0,Respuestas_de_formulario_1[[#This Row],[Cambio en los activos (si es negativo, coloque el signo)]],0) -> 0 | AH7: =+Respuestas_de_formulario_1[[#This Row],[Ajustes sobre periodos anteriores (si es negativo, coloque el signo)]] -> 0 | AI7: 0 | AK7: 0 | AL7: =+INDEX(AO:AP,MATCH(Respuestas_de_formulario_1[[#This Row],[Nombre del partido político]],AO:AO,0),2) -> 1. Nacional | AM7: =+Respuestas_de_formulario_1[[#This Row],[Periodo de reporte]] -> Abr.-Jun., 2018 | AO7: Frente Amplio (FA) | AP7: 1. Nacional | AR7: Costa Rica Justa (CRJ) | AS7: No
A8: 2022-07-28T08:31:14.399 | B8: hcordero@tse.go.cr | C8: Humberto Cordero Arguedas | D8: 18-1014 | E8: Abr.-Jun., 2018 | G8: Unidad Social Cristiana (PUSC) | H8: -201080330.9 | I8: 2825122.36 | J8: 2470993.88 | K8: 12798434.06 | L8: 211561615 | M8: -7613266.29 | N8: 169078046.2 | O8: 27309182.28 | P8: 4066996 | Q8: 11107390.46 | R8: =+Respuestas_de_formulario_1[[#This Row],[Cambio en las Donaciones]]+Respuestas_de_formulario_1[[#This Row],[Cambio en los Ingresos]]+IF(Respuestas_de_formulario_1[[#This Row],[Cambio en los activos (si es negativo, coloque el signo)]]<0,-Respuestas_de_formulario_1[[#This Row],[Cambio en los activos (si es negativo, coloque el signo)]],0)+IF(Respuestas_de_formulario_1[[#This Row],[Cambio en los pasivos (si es negativo, coloque el signo)]]>0,Respuestas_de_formulario_1[[#This Row],[Cambio en los pasivos (si es negativo, coloque el signo)]],0)+IF(Respuestas_de_formulario_1[[#This Row],[Ajustes sobre periodos anteriores (si es negativo, coloque el signo)]]>0,Respuestas_de_formulario_1[[#This Row],[Ajustes sobre periodos anteriores (si es negativo, coloque el signo)]],0) -> 219174881.2 | S8: =+Respuestas_de_formulario_1[[#This Row],[Cambio en los gastos]]+IF(Respuestas_de_formulario_1[[#This Row],[Cambio en los activos (si es negativo, coloque el signo)]]>0,Respuestas_de_formulario_1[[#This Row],[Cambio en los activos (si es negativo, coloque el signo)]],0)-IF(Respuestas_de_formulario_1[[#This Row],[Cambio en los pasivos (si es negativo, coloque el signo)]]<0,Respuestas_de_formulario_1[[#This Row],[Cambio en los pasivos (si es negativo, coloque el signo)]],0)-IF(Respuestas_de_formulario_1[[#This Row],[Ajustes sobre periodos anteriores (si es negativo, coloque el signo)]]<0,Respuestas_de_formulario_1[[#This Row],[Ajustes sobre periodos anteriores (si es negativo, coloque el signo)]],0) -> 219174881.2 | T8: =+Respuestas_de_formulario_1[[#This Row],[Origen]]-Respuestas_de_formulario_1[[#This Row],[Aplicación]] -> 0 | U8: =+Respuestas_de_formulario_1[[#This Row],[Cambio en los gastos]]-SUM(Respuestas_de_formulario_1[[#This Row],[Gastos de Organización]:[Gastos no redimibles]]) -> 0 | V8: =+VLOOKUP(Respuestas_de_formulario_1[[#This Row],[Nombre del partido político]],$AR$2:$AS$37,2,FALSE) -> Sí | X8: =+Respuestas_de_formulario_1[[#This Row],[Nombre del partido político]] -> Unidad Social Cristiana (PUSC) | Y8: =+Respuestas_de_formulario_1[[#This Row],[Cambio en las Donaciones]] -> 2470993.88 | Z8: =+IF(Respuestas_de_formulario_1[[#This Row],[Cambio en los pasivos (si es negativo, coloque el signo)]]>0,Respuestas_de_formulario_1[[#This Row],[Cambio en los pasivos (si es negativo, coloque el signo)]],0) -> 2825122.36 | AA8: =+IF(Respuestas_de_formulario_1[[#This Row],[Cambio en los Ingresos]]>0,Respuestas_de_formulario_1[[#This Row],[Cambio en los Ingresos]],0) -> 12798434.06 | AB8: =-IF(Respuestas_de_formulario_1[[#This Row],[Cambio en los activos (si es negativo, coloque el signo)]]<0,Respuestas_de_formulario_1[[#This Row],[Cambio en los activos (si es negativo, coloque el signo)]],0) -> 201080330.9 | AC8: 219174881.2 | AE8: =+IF(Respuestas_de_formulario_1[[#This Row],[Cambio en los gastos]]>0,Respuestas_de_formulario_1[[#This Row],[Cambio en los gastos]],0) -> 211561615 | AF8: =-IF(Respuestas_de_formulario_1[[#This Row],[Cambio en los pasivos (si es negativo, coloque el signo)]]<0,Respuestas_de_formulario_1[[#This Row],[Cambio en los pasivos (si es negativo, coloque el signo)]],0) -> 0 | AG8: =+IF(Respuestas_de_formulario_1[[#This Row],[Cambio en los activos (si es negativo, coloque el signo)]]>0,Respuestas_de_formulario_1[[#This Row],[Cambio en los activos (si es negativo, coloque el signo)]],0) -> 0 | AH8: =+Respuestas_de_formulario_1[[#This Row],[Ajustes sobre periodos anteriores (si es negativo, coloque el signo)]] -> -7613266.29 | AI8: 219174881.2 | AK8: 0 | AL8: =+INDEX(AO:AP,MATCH(Respuestas_de_formulario_1[[#This Row],[Nombre del partido político]],AO:AO,0),2) -> 1. Nacional | AM8: =+Respuestas_de_formulario_1[[#This Row],[Periodo de reporte]] -> Abr.-Jun., 2018 | AO8: Fuerza Democrática (PFD) | AP8: 1. Nacional | AR8: De los Trabajadores (PT) | AS8: No
A9: 2022-07-28T12:26:42.080 | B9: gzelaya@tse.go.cr | C9: Gabriela Zelaya Vallecillo | D9: 18-1023 | E9: Abr.-Jun., 2018 | G9: Liberación Nacional (PLN) | H9: -103649366 | I9: -27355 | J9: 24000 | K9: 1623544 | L9: 105269555 | M9: 0 | N9: 94119266 | O9: 0 | P9: 0 | Q9: 11150289 | R9: =+Respuestas_de_formulario_1[[#This Row],[Cambio en las Donaciones]]+Respuestas_de_formulario_1[[#This Row],[Cambio en los Ingresos]]+IF(Respuestas_de_formulario_1[[#This Row],[Cambio en los activos (si es negativo, coloque el signo)]]<0,-Respuestas_de_formulario_1[[#This Row],[Cambio en los activos (si es negativo, coloque el signo)]],0)+IF(Respuestas_de_formulario_1[[#This Row],[Cambio en los pasivos (si es negativo, coloque el signo)]]>0,Respuestas_de_formulario_1[[#This Row],[Cambio en los pasivos (si es negativo, coloque el signo)]],0)+IF(Respuestas_de_formulario_1[[#This Row],[Ajustes sobre periodos anteriores (si es negativo, coloque el signo)]]>0,Respuestas_de_formulario_1[[#This Row],[Ajustes sobre periodos anteriores (si es negativo, coloque el signo)]],0) -> 105296910 | S9: =+Respuestas_de_formulario_1[[#This Row],[Cambio en los gastos]]+IF(Respuestas_de_formulario_1[[#This Row],[Cambio en los activos (si es negativo, coloque el signo)]]>0,Respuestas_de_formulario_1[[#This Row],[Cambio en los activos (si es negativo, coloque el signo)]],0)-IF(Respuestas_de_formulario_1[[#This Row],[Cambio en los pasivos (si es negativo, coloque el signo)]]<0,Respuestas_de_formulario_1[[#This Row],[Cambio en los pasivos (si es negativo, coloque el signo)]],0)-IF(Respuestas_de_formulario_1[[#This Row],[Ajustes sobre periodos anteriores (si es negativo, coloque el signo)]]<0,Respuestas_de_formulario_1[[#This Row],[Ajustes sobre periodos anteriores (si es negativo, coloque el signo)]],0) -> 105296910 | T9: =+Respuestas_de_formulario_1[[#This Row],[Origen]]-Respuestas_de_formulario_1[[#This Row],[Aplicación]] -> 0 | U9: =+Respuestas_de_formulario_1[[#This Row],[Cambio en los gastos]]-SUM(Respuestas_de_formulario_1[[#This Row],[Gastos de Organización]:[Gastos no redimibles]]) -> 0 | V9: =+VLOOKUP(Respuestas_de_formulario_1[[#This Row],[Nombre del partido político]],$AR$2:$AS$37,2,FALSE) -> Sí | X9: =+Respuestas_de_formulario_1[[#This Row],[Nombre del partido político]] -> Liberación Nacional (PLN) | Y9: =+Respuestas_de_formulario_1[[#This Row],[Cambio en las Donaciones]] -> 24000 | Z9: =+IF(Respuestas_de_formulario_1[[#This Row],[Cambio en los pasivos (si es negativo, coloque el signo)]]>0,Respuestas_de_formulario_1[[#This Row],[Cambio en los pasivos (si es negativo, coloque el signo)]],0) -> 0 | AA9: =+IF(Respuestas_de_formulario_1[[#This Row],[Cambio en los Ingresos]]>0,Respuestas_de_formulario_1[[#This Row],[Cambio en los Ingresos]],0) -> 1623544 | AB9: =-IF(Respuestas_de_formulario_1[[#This Row],[Cambio en los activos (si es negativo, coloque el signo)]]<0,Respuestas_de_formulario_1[[#This Row],[Cambio en los activos (si es negativo, coloque el signo)]],0) -> 103649366 | AC9: 105296910 | AE9: =+IF(Respuestas_de_formulario_1[[#This Row],[Cambio en los gastos]]>0,Respuestas_de_formulario_1[[#This Row],[Cambio en los gastos]],0) -> 105269555 | AF9: =-IF(Respuestas_de_formulario_1[[#This Row],[Cambio en los pasivos (si es negativo, coloque el signo)]]<0,Respuestas_de_formulario_1[[#This Row],[Cambio en los pasivos (si es negativo, coloque el signo)]],0) -> 27355 | AG9: =+IF(Respuestas_de_formulario_1[[#This Row],[Cambio en los activos (si es negativo, coloque el signo)]]>0,Respuestas_de_formulario_1[[#This Row],[Cambio en los activos (si es negativo, coloque el signo)]],0) -> 0 | AH9: =+Respuestas_de_formulario_1[[#This Row],[Ajustes sobre periodos anteriores (si es negativo, coloque el signo)]] -> 0 | AI9: 105296910 | AK9: 0 | AL9: =+INDEX(AO:AP,MATCH(Respuestas_de_formulario_1[[#This Row],[Nombre del partido político]],AO:AO,0),2) -> 1. Nacional | AM9: =+Respuestas_de_formulario_1[[#This Row],[Periodo de reporte]] -> Abr.-Jun., 2018 | AO9: Fuerza Nacional (PFN) | AP9: 1. Nacional | AR9: Encuentro Nacional (PEN) | AS9: No
A10: 2022-08-04T13:40:57.747 | B10: imadrigalperez@gmail.com | C10: Ileana Madrigal Mora | D10: 18-1098 | E10: Abr.-Jun., 2018 | G10: Integración Nacional (PIN) | H10: -20872288.22 | I10: 2672995.44 | J10: 0 | K10: 1360646864 | L10: 1429615765 | M10: 45423527.74 | N10: 854764172.1 | O10: 574851593 | P10: 0 | Q10: 0 | R10: =+Respuestas_de_formulario_1[[#This Row],[Cambio en las Donaciones]]+Respuestas_de_formulario_1[[#This Row],[Cambio en los Ingresos]]+IF(Respuestas_de_formulario_1[[#This Row],[Cambio en los activos (si es negativo, coloque el signo)]]<0,-Respuestas_de_formulario_1[[#This Row],[Cambio en los activos (si es negativo, coloque el signo)]],0)+IF(Respuestas_de_formulario_1[[#This Row],[Cambio en los pasivos (si es negativo, coloque el signo)]]>0,Respuestas_de_formulario_1[[#This Row],[Cambio en los pasivos (si es negativo, coloque el signo)]],0)+IF(Respuestas_de_formulario_1[[#This Row],[Ajustes sobre periodos anteriores (si es negativo, coloque el signo)]]>0,Respuestas_de_formulario_1[[#This Row],[Ajustes sobre periodos anteriores (si es negativo, coloque el signo)]],0) -> 1429615675 | S10: =+Respuestas_de_formulario_1[[#This Row],[Cambio en los gastos]]+IF(Respuestas_de_formulario_1[[#This Row],[Cambio en los activos (si es negativo, coloque el signo)]]>0,Respuestas_de_formulario_1[[#This Row],[Cambio en los activos (si es negativo, coloque el signo)]],0)-IF(Respuestas_de_formulario_1[[#This Row],[Cambio en los pasivos (si es negativo, coloque el signo)]]<0,Respuestas_de_formulario_1[[#This Row],[Cambio en los pasivos (si es negativo, coloque el signo)]],0)-IF(Respuestas_de_formulario_1[[#This Row],[Ajustes sobre periodos anteriores (si es negativo, coloque el signo)]]<0,Respuestas_de_formulario_1[[#This Row],[Ajustes sobre periodos anteriores (si es negativo, coloque el signo)]],0) -> 1429615765 | T10: =+Respuestas_de_formulario_1[[#This Row],[Origen]]-Respuestas_de_formulario_1[[#This Row],[Aplicación]] -> -89.99999976 | U10: =+Respuestas_de_formulario_1[[#This Row],[Cambio en los gastos]]-SUM(Respuestas_de_formulario_1[[#This Row],[Gastos de Organización]:[Gastos no redimibles]]) -> 0 | V10: =+VLOOKUP(Respuestas_de_formulario_1[[#This Row],[Nombre del partido político]],$AR$2:$AS$37,2,FALSE) -> No | X10: =+Respuestas_de_formulario_1[[#This Row],[Nombre del partido político]] -> Integración Nacional (PIN) | Y10: =+Respuestas_de_formulario_1[[#This Row],[Cambio en las Donaciones]] -> 0 | Z10: =+IF(Respuestas_de_formulario_1[[#This Row],[Cambio en los pasivos (si es negativo, coloque el signo)]]>0,Respuestas_de_formulario_1[[#This Row],[Cambio en los pasivos (si es negativo, coloque el signo)]],0) -> 2672995.44 | AA10: =+IF(Respuestas_de_formulario_1[[#This Row],[Cambio en los Ingresos]]>0,Respuestas_de_formulario_1[[#This Row],[Cambio en los Ingresos]],0) -> 1360646864 | AB10: =-IF(Respuestas_de_formulario_1[[#This Row],[Cambio en los activos (si es negativo, coloque el signo)]]<0,Respuestas_de_formulario_1[[#This Row],[Cambio en los activos (si es negativo, coloque el signo)]],0) -> 20872288.22 | AC10: 1429615675 | AE10: =+IF(Respuestas_de_formulario_1[[#This Row],[Cambio en los gastos]]>0,Respuestas_de_formulario_1[[#This Row],[Cambio en los gastos]],0) -> 1429615765 | AF10: =-IF(Respuestas_de_formulario_1[[#This Row],[Cambio en los pasivos (si es negativo, coloque el signo)]]<0,Respuestas_de_formulario_1[[#This Row],[Cambio en los pasivos (si es negativo, coloque el signo)]],0) -> 0 | AG10: =+IF(Respuestas_de_formulario_1[[#This Row],[Cambio en los activos (si es negativo, coloque el signo)]]>0,Respuestas_de_formulario_1[[#This Row],[Cambio en los activos (si es negativo, coloque el signo)]],0) -> 0 | AH10: =+Respuestas_de_formulario_1[[#This Row],[Ajustes sobre periodos anteriores (si es negativo, coloque el signo)]] -> 45423527.74 | AI10: 1429615765 | AK10: -89.99999976 | AL10: =+INDEX(AO:AP,MATCH(Respuestas_de_formulario_1[[#This Row],[Nombre del partido político]],AO:AO,0),2) -> 1. Nacional | AM10: =+Respuestas_de_formulario_1[[#This Row],[Periodo de reporte]] -> Abr.-Jun., 2018 | AO10: Integración Nacional (PIN) | AP10: 1. Nacional | AR10: Frente Amplio (FA) | AS10: Sí
A11: 2022-08-01T12:43:25.081 | B11: ceaguilard@gmail.com | C11: Carlos Aguilar Durán | D11: 18-1038 | E11: Abr.-Jun., 2018 | G11: Auténtico Limonense | H11: -135148.33 | I11: -2000000 | J11: 0 | K11: 3000000 | L11: 1135148.33 | M11: 0 | N11: 1135148.33 | O11: 0 | P11: 0 | Q11: 0 | R11: =+Respuestas_de_formulario_1[[#This Row],[Cambio en las Donaciones]]+Respuestas_de_formulario_1[[#This Row],[Cambio en los Ingresos]]+IF(Respuestas_de_formulario_1[[#This Row],[Cambio en los activos (si es negativo, coloque el signo)]]<0,-Respuestas_de_formulario_1[[#This Row],[Cambio en los activos (si es negativo, coloque el signo)]],0)+IF(Respuestas_de_formulario_1[[#This Row],[Cambio en los pasivos (si es negativo, coloque el signo)]]>0,Respuestas_de_formulario_1[[#This Row],[Cambio en los pasivos (si es negativo, coloque el signo)]],0)+IF(Respuestas_de_formulario_1[[#This Row],[Ajustes sobre periodos anteriores (si es negativo, coloque el signo)]]>0,Respuestas_de_formulario_1[[#This Row],[Ajustes sobre periodos anteriores (si es negativo, coloque el signo)]],0) -> 3135148.33 | S11: =+Respuestas_de_formulario_1[[#This Row],[Cambio en los gastos]]+IF(Respuestas_de_formulario_1[[#This Row],[Cambio en los activos (si es negativo, coloque el signo)]]>0,Respuestas_de_formulario_1[[#This Row],[Cambio en los activos (si es negativo, coloque el signo)]],0)-IF(Respuestas_de_formulario_1[[#This Row],[Cambio en los pasivos (si es negativo, coloque el signo)]]<0,Respuestas_de_formulario_1[[#This Row],[Cambio en los pasivos (si es negativo, coloque el signo)]],0)-IF(Respuestas_de_formulario_1[[#This Row],[Ajustes sobre periodos anteriores (si es negativo, coloque el signo)]]<0,Respuestas_de_formulario_1[[#This Row],[Ajustes sobre periodos anteriores (si es negativo, coloque el signo)]],0) -> 3135148.33 | T11: =+Respuestas_de_formulario_1[[#This Row],[Origen]]-Respuestas_de_formulario_1[[#This Row],[Aplicación]] -> 0 | U11: =+Respuestas_de_formulario_1[[#This Row],[Cambio en los gastos]]-SUM(Respuestas_de_formulario_1[[#This Row],[Gastos de Organización]:[Gastos no redimibles]]) -> 0 | V11: =+VLOOKUP(Respuestas_de_formulario_1[[#This Row],[Nombre del partido político]],$AR$2:$AS$37,2,FALSE) ->  | X11: =+Respuestas_de_formulario_1[[#This Row],[Nombre del partido político]] -> Auténtico Limonense | Y11: =+Respuestas_de_formulario_1[[#This Row],[Cambio en las Donaciones]] -> 0 | Z11: =+IF(Respuestas_de_formulario_1[[#This Row],[Cambio en los pasivos (si es negativo, coloque el signo)]]>0,Respuestas_de_formulario_1[[#This Row],[Cambio en los pasivos (si es negativo, coloque el signo)]],0) -> 0 | AA11: =+IF(Respuestas_de_formulario_1[[#This Row],[Cambio en los Ingresos]]>0,Respuestas_de_formulario_1[[#This Row],[Cambio en los Ingresos]],0) -> 3000000 | AB11: =-IF(Respuestas_de_formulario_1[[#This Row],[Cambio en los activos (si es negativo, coloque el signo)]]<0,Respuestas_de_formulario_1[[#This Row],[Cambio en los activos (si es negativo, coloque el signo)]],0) -> 135148.33 | AC11: 3135148.33 | AE11: =+IF(Respuestas_de_formulario_1[[#This Row],[Cambio en los gastos]]>0,Respuestas_de_formulario_1[[#This Row],[Cambio en los gastos]],0) -> 1135148.33 | AF11: =-IF(Respuestas_de_formulario_1[[#This Row],[Cambio en los pasivos (si es negativo, coloque el signo)]]<0,Respuestas_de_formulario_1[[#This Row],[Cambio en los pasivos (si es negativo, coloque el signo)]],0) -> 2000000 | AG11: =+IF(Respuestas_de_formulario_1[[#This Row],[Cambio en los activos (si es negativo, coloque el signo)]]>0,Respuestas_de_formulario_1[[#This Row],[Cambio en los activos (si es negativo, coloque el signo)]],0) -> 0 | AH11: =+Respuestas_de_formulario_1[[#This Row],[Ajustes sobre periodos anteriores (si es negativo, coloque el signo)]] -> 0 | AI11: 3135148.33 | AK11: 0 | AL11: =+INDEX(AO:AP,MATCH(Respuestas_de_formulario_1[[#This Row],[Nombre del partido político]],AO:AO,0),2) ->  | AM11: =+Respuestas_de_formulario_1[[#This Row],[Periodo de reporte]] -> Abr.-Jun., 2018 | AO11: Justicia Social Costarricense (PJSC) | AP11: 1. Nacional | AR11: Fuerza Nacional (PFN) | AS11: No
A12: 2022-08-01T13:47:04.878 | B12: ceaguilard@gmail.com | C12: Carlos Aguilar Durán | D12: 18-0957 | E12: Abr.-Jun., 2018 | G12: Unión Guanacasteca (Guanacaste) (PUG) | H12: 0 | I12: 0 | J12: 0 | K12: 0 | L12: 0 | M12: 0 | N12: 0 | O12: 0 | P12: 0 | Q12: 0 | R12: =+Respuestas_de_formulario_1[[#This Row],[Cambio en las Donaciones]]+Respuestas_de_formulario_1[[#This Row],[Cambio en los Ingresos]]+IF(Respuestas_de_formulario_1[[#This Row],[Cambio en los activos (si es negativo, coloque el signo)]]<0,-Respuestas_de_formulario_1[[#This Row],[Cambio en los activos (si es negativo, coloque el signo)]],0)+IF(Respuestas_de_formulario_1[[#This Row],[Cambio en los pasivos (si es negativo, coloque el signo)]]>0,Respuestas_de_formulario_1[[#This Row],[Cambio en los pasivos (si es negativo, coloque el signo)]],0)+IF(Respuestas_de_formulario_1[[#This Row],[Ajustes sobre periodos anteriores (si es negativo, coloque el signo)]]>0,Respuestas_de_formulario_1[[#This Row],[Ajustes sobre periodos anteriores (si es negativo, coloque el signo)]],0) -> 0 | S12: =+Respuestas_de_formulario_1[[#This Row],[Cambio en los gastos]]+IF(Respuestas_de_formulario_1[[#This Row],[Cambio en los activos (si es negativo, coloque el signo)]]>0,Respuestas_de_formulario_1[[#This Row],[Cambio en los activos (si es negativo, coloque el signo)]],0)-IF(Respuestas_de_formulario_1[[#This Row],[Cambio en los pasivos (si es negativo, coloque el signo)]]<0,Respuestas_de_formulario_1[[#This Row],[Cambio en los pasivos (si es negativo, coloque el signo)]],0)-IF(Respuestas_de_formulario_1[[#This Row],[Ajustes sobre periodos anteriores (si es negativo, coloque el signo)]]<0,Respuestas_de_formulario_1[[#This Row],[Ajustes sobre periodos anteriores (si es negativo, coloque el signo)]],0) -> 0 | T12: =+Respuestas_de_formulario_1[[#This Row],[Origen]]-Respuestas_de_formulario_1[[#This Row],[Aplicación]] -> 0 | U12: =+Respuestas_de_formulario_1[[#This Row],[Cambio en los gastos]]-SUM(Respuestas_de_formulario_1[[#This Row],[Gastos de Organización]:[Gastos no redimibles]]) -> 0 | V12: =+VLOOKUP(Respuestas_de_formulario_1[[#This Row],[Nombre del partido político]],$AR$2:$AS$37,2,FALSE) -> Sí | X12: =+Respuestas_de_formulario_1[[#This Row],[Nombre del partido político]] -> Unión Guanacasteca (Guanacaste) (PUG) | Y12: =+Respuestas_de_formulario_1[[#This Row],[Cambio en las Donaciones]] -> 0 | Z12: =+IF(Respuestas_de_formulario_1[[#This Row],[Cambio en los pasivos (si es negativo, coloque el signo)]]>0,Respuestas_de_formulario_1[[#This Row],[Cambio en los pasivos (si es negativo, coloque el signo)]],0) -> 0 | AA12: =+IF(Respuestas_de_formulario_1[[#This Row],[Cambio en los Ingresos]]>0,Respuestas_de_formulario_1[[#This Row],[Cambio en los Ingresos]],0) -> 0 | AB12: =-IF(Respuestas_de_formulario_1[[#This Row],[Cambio en los activos (si es negativo, coloque el signo)]]<0,Respuestas_de_formulario_1[[#This Row],[Cambio en los activos (si es negativo, coloque el signo)]],0) -> 0 | AC12: 0 | AE12: =+IF(Respuestas_de_formulario_1[[#This Row],[Cambio en los gastos]]>0,Respuestas_de_formulario_1[[#This Row],[Cambio en los gastos]],0) -> 0 | AF12: =-IF(Respuestas_de_formulario_1[[#This Row],[Cambio en los pasivos (si es negativo, coloque el signo)]]<0,Respuestas_de_formulario_1[[#This Row],[Cambio en los pasivos (si es negativo, coloque el signo)]],0) -> 0 | AG12: =+IF(Respuestas_de_formulario_1[[#This Row],[Cambio en los activos (si es negativo, coloque el signo)]]>0,Respuestas_de_formulario_1[[#This Row],[Cambio en los activos (si es negativo, coloque el signo)]],0) -> 0 | AH12: =+Respuestas_de_formulario_1[[#This Row],[Ajustes sobre periodos anteriores (si es negativo, coloque el signo)]] -> 0 | AI12: 0 | AK12: 0 | AL12: =+INDEX(AO:AP,MATCH(Respuestas_de_formulario_1[[#This Row],[Nombre del partido político]],AO:AO,0),2) -> 2. Provincial | AM12: =+Respuestas_de_formulario_1[[#This Row],[Periodo de reporte]] -> Abr.-Jun., 2018 | AO12: Liberación Nacional (PLN) | AP12: 1. Nacional | AR12: Integración Nacional (PIN) | AS12: No
A13: 2022-08-03T10:42:13.711 | B13: gzelaya@tse.go.cr | C13: Gabriela Zelaya Vallecillo | D13: 18-0961 | E13: Abr.-Jun., 2018 | G13: Republicano Social Cristiano (PRSC) | H13: -17778138.35 | I13: 751500 | J13: 272370 | K13: 1927.4 | L13: 18803935.75 | M13: 0 | N13: 18763435.75 | O13: 0 | P13: 0 | Q13: 40500 | R13: =+Respuestas_de_formulario_1[[#This Row],[Cambio en las Donaciones]]+Respuestas_de_formulario_1[[#This Row],[Cambio en los Ingresos]]+IF(Respuestas_de_formulario_1[[#This Row],[Cambio en los activos (si es negativo, coloque el signo)]]<0,-Respuestas_de_formulario_1[[#This Row],[Cambio en los activos (si es negativo, coloque el signo)]],0)+IF(Respuestas_de_formulario_1[[#This Row],[Cambio en los pasivos (si es negativo, coloque el signo)]]>0,Respuestas_de_formulario_1[[#This Row],[Cambio en los pasivos (si es negativo, coloque el signo)]],0)+IF(Respuestas_de_formulario_1[[#This Row],[Ajustes sobre periodos anteriores (si es negativo, coloque el signo)]]>0,Respuestas_de_formulario_1[[#This Row],[Ajustes sobre periodos anteriores (si es negativo, coloque el signo)]],0) -> 18803935.75 | S13: =+Respuestas_de_formulario_1[[#This Row],[Cambio en los gastos]]+IF(Respuestas_de_formulario_1[[#This Row],[Cambio en los activos (si es negativo, coloque el signo)]]>0,Respuestas_de_formulario_1[[#This Row],[Cambio en los activos (si es negativo, coloque el signo)]],0)-IF(Respuestas_de_formulario_1[[#This Row],[Cambio en los pasivos (si es negativo, coloque el signo)]]<0,Respuestas_de_formulario_1[[#This Row],[Cambio en los pasivos (si es negativo, coloque el signo)]],0)-IF(Respuestas_de_formulario_1[[#This Row],[Ajustes sobre periodos anteriores (si es negativo, coloque el signo)]]<0,Respuestas_de_formulario_1[[#This Row],[Ajustes sobre periodos anteriores (si es negativo, coloque el signo)]],0) -> 18803935.75 | T13: =+Respuestas_de_formulario_1[[#This Row],[Origen]]-Respuestas_de_formulario_1[[#This Row],[Aplicación]] -> 0 | U13: =+Respuestas_de_formulario_1[[#This Row],[Cambio en los gastos]]-SUM(Respuestas_de_formulario_1[[#This Row],[Gastos de Organización]:[Gastos no redimibles]]) -> 0 | V13: =+VLOOKUP(Respuestas_de_formulario_1[[#This Row],[Nombre del partido político]],$AR$2:$AS$37,2,FALSE) -> No | X13: =+Respuestas_de_formulario_1[[#This Row],[Nombre del partido político]] -> Republicano Social Cristiano (PRSC) | Y13: =+Respuestas_de_formulario_1[[#This Row],[Cambio en las Donaciones]] -> 272370 | Z13: =+IF(Respuestas_de_formulario_1[[#This Row],[Cambio en los pasivos (si es negativo, coloque el signo)]]>0,Respuestas_de_formulario_1[[#This Row],[Cambio en los pasivos (si es negativo, coloque el signo)]],0) -> 751500 | AA13: =+IF(Respuestas_de_formulario_1[[#This Row],[Cambio en los Ingresos]]>0,Respuestas_de_formulario_1[[#This Row],[Cambio en los Ingresos]],0) -> 1927.4 | AB13: =-IF(Respuestas_de_formulario_1[[#This Row],[Cambio en los activos (si es negativo, coloque el signo)]]<0,Respuestas_de_formulario_1[[#This Row],[Cambio en los activos (si es negativo, coloque el signo)]],0) -> 17778138.35 | AC13: 18803935.75 | AE13: =+IF(Respuestas_de_formulario_1[[#This Row],[Cambio en los gastos]]>0,Respuestas_de_formulario_1[[#This Row],[Cambio en los gastos]],0) -> 18803935.75 | AF13: =-IF(Respuestas_de_formulario_1[[#This Row],[Cambio en los pasivos (si es negativo, coloque el signo)]]<0,Respuestas_de_formulario_1[[#This Row],[Cambio en los pasivos (si es negativo, coloque el signo)]],0) -> 0 | AG13: =+IF(Respuestas_de_formulario_1[[#This Row],[Cambio en los activos (si es negativo, coloque el signo)]]>0,Respuestas_de_formulario_1[[#This Row],[Cambio en los activos (si es negativo, coloque el signo)]],0) -> 0 | AH13: =+Respuestas_de_formulario_1[[#This Row],[Ajustes sobre periodos anteriores (si es negativo, coloque el signo)]] -> 0 | AI13: 18803935.75 | AK13: 0 | AL13: =+INDEX(AO:AP,MATCH(Respuestas_de_formulario_1[[#This Row],[Nombre del partido político]],AO:AO,0),2) -> 1. Nacional | AM13: =+Respuestas_de_formulario_1[[#This Row],[Periodo de reporte]] -> Abr.-Jun., 2018 | AO13: Liberal Progresista (PLP) | AP13: 1. Nacional | AR13: Izquierda Costarricense (Limón) (IZCO) | AS13: No
A14: 2022-07-22T12:46:23.539 | B14: rarias@tse.go.cr | C14: Rigoberto Arias Fajardo | D14: 19-0846 | E14: Abr.-Jun., 2019 | F14: abr.-jun.19 | G14: Frente Amplio (FA) | H14: -66645356.76 | I14: 25774903.97 | J14: 7523119 | K14: 0 | L14: 103649212.2 | M14: 3705832.5 | N14: 103615417.2 | O14: 0 | P14: 0 | Q14: 33795 | R14: =+Respuestas_de_formulario_1[[#This Row],[Cambio en las Donaciones]]+Respuestas_de_formulario_1[[#This Row],[Cambio en los Ingresos]]+IF(Respuestas_de_formulario_1[[#This Row],[Cambio en los activos (si es negativo, coloque el signo)]]<0,-Respuestas_de_formulario_1[[#This Row],[Cambio en los activos (si es negativo, coloque el signo)]],0)+IF(Respuestas_de_formulario_1[[#This Row],[Cambio en los pasivos (si es negativo, coloque el signo)]]>0,Respuestas_de_formulario_1[[#This Row],[Cambio en los pasivos (si es negativo, coloque el signo)]],0)+IF(Respuestas_de_formulario_1[[#This Row],[Ajustes sobre periodos anteriores (si es negativo, coloque el signo)]]>0,Respuestas_de_formulario_1[[#This Row],[Ajustes sobre periodos anteriores (si es negativo, coloque el signo)]],0) -> 103649212.2 | S14: =+Respuestas_de_formulario_1[[#This Row],[Cambio en los gastos]]+IF(Respuestas_de_formulario_1[[#This Row],[Cambio en los activos (si es negativo, coloque el signo)]]>0,Respuestas_de_formulario_1[[#This Row],[Cambio en los activos (si es negativo, coloque el signo)]],0)-IF(Respuestas_de_formulario_1[[#This Row],[Cambio en los pasivos (si es negativo, coloque el signo)]]<0,Respuestas_de_formulario_1[[#This Row],[Cambio en los pasivos (si es negativo, coloque el signo)]],0)-IF(Respuestas_de_formulario_1[[#This Row],[Ajustes sobre periodos anteriores (si es negativo, coloque el signo)]]<0,Respuestas_de_formulario_1[[#This Row],[Ajustes sobre periodos anteriores (si es negativo, coloque el signo)]],0) -> 103649212.2 | T14: =+Respuestas_de_formulario_1[[#This Row],[Origen]]-Respuestas_de_formulario_1[[#This Row],[Aplicación]] -> 0 | U14: =+Respuestas_de_formulario_1[[#This Row],[Cambio en los gastos]]-SUM(Respuestas_de_formulario_1[[#This Row],[Gastos de Organización]:[Gastos no redimibles]]) -> 0 | V14: =+VLOOKUP(Respuestas_de_formulario_1[[#This Row],[Nombre del partido político]],$AR$2:$AS$37,2,FALSE) -> Sí | X14: =+Respuestas_de_formulario_1[[#This Row],[Nombre del partido político]] -> Frente Amplio (FA) | Y14: =+Respuestas_de_formulario_1[[#This Row],[Cambio en las Donaciones]] -> 7523119 | Z14: =+IF(Respuestas_de_formulario_1[[#This Row],[Cambio en los pasivos (si es negativo, coloque el signo)]]>0,Respuestas_de_formulario_1[[#This Row],[Cambio en los pasivos (si es negativo, coloque el signo)]],0) -> 25774903.97 | AA14: =+IF(Respuestas_de_formulario_1[[#This Row],[Cambio en los Ingresos]]>0,Respuestas_de_formulario_1[[#This Row],[Cambio en los Ingresos]],0) -> 0 | AB14: =-IF(Respuestas_de_formulario_1[[#This Row],[Cambio en los activos (si es negativo, coloque el signo)]]<0,Respuestas_de_formulario_1[[#This Row],[Cambio en los activos (si es negativo, coloque el signo)]],0) -> 66645356.76 | AC14: 103649212.2 | AE14: =+IF(Respuestas_de_formulario_1[[#This Row],[Cambio en los gastos]]>0,Respuestas_de_formulario_1[[#This Row],[Cambio en los gastos]],0) -> 103649212.2 | AF14: =-IF(Respuestas_de_formulario_1[[#This Row],[Cambio en los pasivos (si es negativo, coloque el signo)]]<0,Respuestas_de_formulario_1[[#This Row],[Cambio en los pasivos (si es negativo, coloque el signo)]],0) -> 0 | AG14: =+IF(Respuestas_de_formulario_1[[#This Row],[Cambio en los activos (si es negativo, coloque el signo)]]>0,Respuestas_de_formulario_1[[#This Row],[Cambio en los activos (si es negativo, coloque el signo)]],0) -> 0 | AH14: =+Respuestas_de_formulario_1[[#This Row],[Ajustes sobre periodos anteriores (si es negativo, coloque el signo)]] -> 3705832.5 | AI14: 103649212.2 | AK14: 0 | AL14: =+INDEX(AO:AP,MATCH(Respuestas_de_formulario_1[[#This Row],[Nombre del partido político]],AO:AO,0),2) -> 1. Nacional | AM14: =+Respuestas_de_formulario_1[[#This Row],[Periodo de reporte]] -> Abr.-Jun., 2019 | AO14: Movimiento Libertario (PML) | AP14: 1. Nacional | AR14: Justicia Social Costarricense (PJSC) | AS14: No
A15: 2022-07-22T14:08:34.404 | B15: jgarciad@tse.go.cr | C15: Jessica García Díaz | D15: 19-0772 | E15: Abr.-Jun., 2019 | F15: abr.19-jun.19. | G15: Recuperando Valores (Limón) (PAREVA) | H15: 0 | I15: 0 | J15: 0 | K15: 0 | L15: 0 | M15: 0 | N15: 0 | O15: 0 | P15: 0 | Q15: 0 | R15: =+Respuestas_de_formulario_1[[#This Row],[Cambio en las Donaciones]]+Respuestas_de_formulario_1[[#This Row],[Cambio en los Ingresos]]+IF(Respuestas_de_formulario_1[[#This Row],[Cambio en los activos (si es negativo, coloque el signo)]]<0,-Respuestas_de_formulario_1[[#This Row],[Cambio en los activos (si es negativo, coloque el signo)]],0)+IF(Respuestas_de_formulario_1[[#This Row],[Cambio en los pasivos (si es negativo, coloque el signo)]]>0,Respuestas_de_formulario_1[[#This Row],[Cambio en los pasivos (si es negativo, coloque el signo)]],0)+IF(Respuestas_de_formulario_1[[#This Row],[Ajustes sobre periodos anteriores (si es negativo, coloque el signo)]]>0,Respuestas_de_formulario_1[[#This Row],[Ajustes sobre periodos anteriores (si es negativo, coloque el signo)]],0) -> 0 | S15: =+Respuestas_de_formulario_1[[#This Row],[Cambio en los gastos]]+IF(Respuestas_de_formulario_1[[#This Row],[Cambio en los activos (si es negativo, coloque el signo)]]>0,Respuestas_de_formulario_1[[#This Row],[Cambio en los activos (si es negativo, coloque el signo)]],0)-IF(Respuestas_de_formulario_1[[#This Row],[Cambio en los pasivos (si es negativo, coloque el signo)]]<0,Respuestas_de_formulario_1[[#This Row],[Cambio en los pasivos (si es negativo, coloque el signo)]],0)-IF(Respuestas_de_formulario_1[[#This Row],[Ajustes sobre periodos anteriores (si es negativo, coloque el signo)]]<0,Respuestas_de_formulario_1[[#This Row],[Ajustes sobre periodos anteriores (si es negativo, coloque el signo)]],0) -> 0 | T15: =+Respuestas_de_formulario_1[[#This Row],[Origen]]-Respuestas_de_formulario_1[[#This Row],[Aplicación]] -> 0 | U15: =+Respuestas_de_formulario_1[[#This Row],[Cambio en los gastos]]-SUM(Respuestas_de_formulario_1[[#This Row],[Gastos de Organización]:[Gastos no redimibles]]) -> 0 | V15: =+VLOOKUP(Respuestas_de_formulario_1[[#This Row],[Nombre del partido político]],$AR$2:$AS$37,2,FALSE) -> Sí | X15: =+Respuestas_de_formulario_1[[#This Row],[Nombre del partido político]] -> Recuperando Valores (Limón) (PAREVA) | Y15: =+Respuestas_de_formulario_1[[#This Row],[Cambio en las Donaciones]] -> 0 | Z15: =+IF(Respuestas_de_formulario_1[[#This Row],[Cambio en los pasivos (si es negativo, coloque el signo)]]>0,Respuestas_de_formulario_1[[#This Row],[Cambio en los pasivos (si es negativo, coloque el signo)]],0) -> 0 | AA15: =+IF(Respuestas_de_formulario_1[[#This Row],[Cambio en los Ingresos]]>0,Respuestas_de_formulario_1[[#This Row],[Cambio en los Ingresos]],0) -> 0 | AB15: =-IF(Respuestas_de_formulario_1[[#This Row],[Cambio en los activos (si es negativo, coloque el signo)]]<0,Respuestas_de_formulario_1[[#This Row],[Cambio en los activos (si es negativo, coloque el signo)]],0) -> 0 | AC15: 0 | AE15: =+IF(Respuestas_de_formulario_1[[#This Row],[Cambio en los gastos]]>0,Respuestas_de_formulario_1[[#This Row],[Cambio en los gastos]],0) -> 0 | AF15: =-IF(Respuestas_de_formulario_1[[#This Row],[Cambio en los pasivos (si es negativo, coloque el signo)]]<0,Respuestas_de_formulario_1[[#This Row],[Cambio en los pasivos (si es negativo, coloque el signo)]],0) -> 0 | AG15: =+IF(Respuestas_de_formulario_1[[#This Row],[Cambio en los activos (si es negativo, coloque el signo)]]>0,Respuestas_de_formulario_1[[#This Row],[Cambio en los activos (si es negativo, coloque el signo)]],0) -> 0 | AH15: =+Respuestas_de_formulario_1[[#This Row],[Ajustes sobre periodos anteriores (si es negativo, coloque el signo)]] -> 0 | AI15: 0 | AK15: 0 | AL15: =+INDEX(AO:AP,MATCH(Respuestas_de_formulario_1[[#This Row],[Nombre del partido político]],AO:AO,0),2) -> 2. Provincial | AM15: =+Respuestas_de_formulario_1[[#This Row],[Periodo de reporte]] -> Abr.-Jun., 2019 | AO15: Nuestro Pueblo (PNP) | AP15: 1. Nacional | AR15: Liberación Nacional (PLN) | AS15: Sí
A16: 2022-07-26T10:11:15.170 | B16: rarias@tse.go.cr | C16: Rigoberto Arias Fajardo | D16: 19-0786 | E16: Abr.-Jun., 2019 | F16: abr.-jun.,19 | G16: Restauración Nacional (PRN) | H16: 18707156.99 | I16: -677021996.3 | J16: 3260192 | K16: 74090064.32 | L16: 171035735.6 | M16: 789414632.6 | N16: 166615523.6 | O16: 0 | P16: 4420212 | Q16: 0 | R16: =+Respuestas_de_formulario_1[[#This Row],[Cambio en las Donaciones]]+Respuestas_de_formulario_1[[#This Row],[Cambio en los Ingresos]]+IF(Respuestas_de_formulario_1[[#This Row],[Cambio en los activos (si es negativo, coloque el signo)]]<0,-Respuestas_de_formulario_1[[#This Row],[Cambio en los activos (si es negativo, coloque el signo)]],0)+IF(Respuestas_de_formulario_1[[#This Row],[Cambio en los pasivos (si es negativo, coloque el signo)]]>0,Respuestas_de_formulario_1[[#This Row],[Cambio en los pasivos (si es negativo, coloque el signo)]],0)+IF(Respuestas_de_formulario_1[[#This Row],[Ajustes sobre periodos anteriores (si es negativo, coloque el signo)]]>0,Respuestas_de_formulario_1[[#This Row],[Ajustes sobre periodos anteriores (si es negativo, coloque el signo)]],0) -> 866764888.9 | S16: =+Respuestas_de_formulario_1[[#This Row],[Cambio en los gastos]]+IF(Respuestas_de_formulario_1[[#This Row],[Cambio en los activos (si es negativo, coloque el signo)]]>0,Respuestas_de_formulario_1[[#This Row],[Cambio en los activos (si es negativo, coloque el signo)]],0)-IF(Respuestas_de_formulario_1[[#This Row],[Cambio en los pasivos (si es negativo, coloque el signo)]]<0,Respuestas_de_formulario_1[[#This Row],[Cambio en los pasivos (si es negativo, coloque el signo)]],0)-IF(Respuestas_de_formulario_1[[#This Row],[Ajustes sobre periodos anteriores (si es negativo, coloque el signo)]]<0,Respuestas_de_formulario_1[[#This Row],[Ajustes sobre periodos anteriores (si es negativo, coloque el signo)]],0) -> 866764888.9 | T16: =+Respuestas_de_formulario_1[[#This Row],[Origen]]-Respuestas_de_formulario_1[[#This Row],[Aplicación]] -> 0 | U16: =+Respuestas_de_formulario_1[[#This Row],[Cambio en los gastos]]-SUM(Respuestas_de_formulario_1[[#This Row],[Gastos de Organización]:[Gastos no redimibles]]) -> 0 | V16: =+VLOOKUP(Respuestas_de_formulario_1[[#This Row],[Nombre del partido político]],$AR$2:$AS$37,2,FALSE) -> No | X16: =+Respuestas_de_formulario_1[[#This Row],[Nombre del partido político]] -> Restauración Nacional (PRN) | Y16: =+Respuestas_de_formulario_1[[#This Row],[Cambio en las Donaciones]] -> 3260192 | Z16: =+IF(Respuestas_de_formulario_1[[#This Row],[Cambio en los pasivos (si es negativo, coloque el signo)]]>0,Respuestas_de_formulario_1[[#This Row],[Cambio en los pasivos (si es negativo, coloque el signo)]],0) -> 0 | AA16: =+IF(Respuestas_de_formulario_1[[#This Row],[Cambio en los Ingresos]]>0,Respuestas_de_formulario_1[[#This Row],[Cambio en los Ingresos]],0) -> 74090064.32 | AB16: =-IF(Respuestas_de_formulario_1[[#This Row],[Cambio en los activos (si es negativo, coloque el signo)]]<0,Respuestas_de_formulario_1[[#This Row],[Cambio en los activos (si es negativo, coloque el signo)]],0) -> 0 | AC16: 866764888.9 | AE16: =+IF(Respuestas_de_formulario_1[[#This Row],[Cambio en los gastos]]>0,Respuestas_de_formulario_1[[#This Row],[Cambio en los gastos]],0) -> 171035735.6 | AF16: =-IF(Respuestas_de_formulario_1[[#This Row],[Cambio en los pasivos (si es negativo, coloque el signo)]]<0,Respuestas_de_formulario_1[[#This Row],[Cambio en los pasivos (si es negativo, coloque el signo)]],0) -> 677021996.3 | AG16: =+IF(Respuestas_de_formulario_1[[#This Row],[Cambio en los activos (si es negativo, coloque el signo)]]>0,Respuestas_de_formulario_1[[#This Row],[Cambio en los activos (si es negativo, coloque el signo)]],0) -> 18707156.99 | AH16: =+Respuestas_de_formulario_1[[#This Row],[Ajustes sobre periodos anteriores (si es negativo, coloque el signo)]] -> 789414632.6 | AI16: 866764888.9 | AK16: 0 | AL16: =+INDEX(AO:AP,MATCH(Respuestas_de_formulario_1[[#This Row],[Nombre del partido político]],AO:AO,0),2) -> 1. Nacional | AM16: =+Respuestas_de_formulario_1[[#This Row],[Periodo de reporte]] -> Abr.-Jun., 2019 | AO16: Nueva República (PNR) | AP16: 1. Nacional | AR16: Liberal Progresista (PLP) | AS16: Sí
A17: 2022-07-26T13:16:52.981 | B17: rarias@tse.go.cr | C17: Rigoberto Arias Fajardo | D17: 20-1589 | E17: Abr.-Jun., 2019 | F17: abr.-jun.,20 | G17: Nueva República (PNR) | H17: -2839320 | I17: -2835824 | J17: 0 | K17: 0 | L17: 3496 | M17: 0 | N17: 1738 | O17: 0 | P17: 0 | Q17: 1738 | R17: =+Respuestas_de_formulario_1[[#This Row],[Cambio en las Donaciones]]+Respuestas_de_formulario_1[[#This Row],[Cambio en los Ingresos]]+IF(Respuestas_de_formulario_1[[#This Row],[Cambio en los activos (si es negativo, coloque el signo)]]<0,-Respuestas_de_formulario_1[[#This Row],[Cambio en los activos (si es negativo, coloque el signo)]],0)+IF(Respuestas_de_formulario_1[[#This Row],[Cambio en los pasivos (si es negativo, coloque el signo)]]>0,Respuestas_de_formulario_1[[#This Row],[Cambio en los pasivos (si es negativo, coloque el signo)]],0)+IF(Respuestas_de_formulario_1[[#This Row],[Ajustes sobre periodos anteriores (si es negativo, coloque el signo)]]>0,Respuestas_de_formulario_1[[#This Row],[Ajustes sobre periodos anteriores (si es negativo, coloque el signo)]],0) -> 2839320 | S17: =+Respuestas_de_formulario_1[[#This Row],[Cambio en los gastos]]+IF(Respuestas_de_formulario_1[[#This Row],[Cambio en los activos (si es negativo, coloque el signo)]]>0,Respuestas_de_formulario_1[[#This Row],[Cambio en los activos (si es negativo, coloque el signo)]],0)-IF(Respuestas_de_formulario_1[[#This Row],[Cambio en los pasivos (si es negativo, coloque el signo)]]<0,Respuestas_de_formulario_1[[#This Row],[Cambio en los pasivos (si es negativo, coloque el signo)]],0)-IF(Respuestas_de_formulario_1[[#This Row],[Ajustes sobre periodos anteriores (si es negativo, coloque el signo)]]<0,Respuestas_de_formulario_1[[#This Row],[Ajustes sobre periodos anteriores (si es negativo, coloque el signo)]],0) -> 2839320 | T17: =+Respuestas_de_formulario_1[[#This Row],[Origen]]-Respuestas_de_formulario_1[[#This Row],[Aplicación]] -> 0 | U17: =+Respuestas_de_formulario_1[[#This Row],[Cambio en los gastos]]-SUM(Respuestas_de_formulario_1[[#This Row],[Gastos de Organización]:[Gastos no redimibles]]) -> 20 | V17: =+VLOOKUP(Respuestas_de_formulario_1[[#This Row],[Nombre del partido político]],$AR$2:$AS$37,2,FALSE) -> Sí | X17: =+Respuestas_de_formulario_1[[#This Row],[Nombre del partido político]] -> Nueva República (PNR) | Y17: =+Respuestas_de_formulario_1[[#This Row],[Cambio en las Donaciones]] -> 0 | Z17: =+IF(Respuestas_de_formulario_1[[#This Row],[Cambio en los pasivos (si es negativo, coloque el signo)]]>0,Respuestas_de_formulario_1[[#This Row],[Cambio en los pasivos (si es negativo, coloque el signo)]],0) -> 0 | AA17: =+IF(Respuestas_de_formulario_1[[#This Row],[Cambio en los Ingresos]]>0,Respuestas_de_formulario_1[[#This Row],[Cambio en los Ingresos]],0) -> 0 | AB17: =-IF(Respuestas_de_formulario_1[[#This Row],[Cambio en los activos (si es negativo, coloque el signo)]]<0,Respuestas_de_formulario_1[[#This Row],[Cambio en los activos (si es negativo, coloque el signo)]],0) -> 2839320 | AC17: 2839320 | AE17: =+IF(Respuestas_de_formulario_1[[#This Row],[Cambio en los gastos]]>0,Respuestas_de_formulario_1[[#This Row],[Cambio en los gastos]],0) -> 3496 | AF17: =-IF(Respuestas_de_formulario_1[[#This Row],[Cambio en los pasivos (si es negativo, coloque el signo)]]<0,Respuestas_de_formulario_1[[#This Row],[Cambio en los pasivos (si es negativo, coloque el signo)]],0) -> 2835824 | AG17: =+IF(Respuestas_de_formulario_1[[#This Row],[Cambio en los activos (si es negativo, coloque el signo)]]>0,Respuestas_de_formulario_1[[#This Row],[Cambio en los activos (si es negativo, coloque el signo)]],0) -> 0 | AH17: =+Respuestas_de_formulario_1[[#This Row],[Ajustes sobre periodos anteriores (si es negativo, coloque el signo)]] -> 0 | AI17: 2839320 | AK17: 0 | AL17: =+INDEX(AO:AP,MATCH(Respuestas_de_formulario_1[[#This Row],[Nombre del partido político]],AO:AO,0),2) -> 1. Nacional | AM17: =+Respuestas_de_formulario_1[[#This Row],[Periodo de reporte]] -> Abr.-Jun., 2019 | AO17: Pueblo Unido (PU) | AP17: 1. Nacional | AR17: Movimiento Libertario (PML) | AS17: No
A18: 2022-07-27T08:17:26.128 | B18: imadrigalperez@gmail.com | C18: Ileana Madrigal Mora | D18: 19-0853 | E18: Abr.-Jun., 2019 | F18: abr-jun 19 | G18: Acción Ciudadana (PAC) | H18: 224119066 | I18: -1167950379 | J18: 12535726 | K18: 1523556040 | L18: 144022320 | M18: 0 | N18: 134005556 | O18: 0 | P18: 0 | Q18: 10016763 | R18: =+Respuestas_de_formulario_1[[#This Row],[Cambio en las Donaciones]]+Respuestas_de_formulario_1[[#This Row],[Cambio en los Ingresos]]+IF(Respuestas_de_formulario_1[[#This Row],[Cambio en los activos (si es negativo, coloque el signo)]]<0,-Respuestas_de_formulario_1[[#This Row],[Cambio en los activos (si es negativo, coloque el signo)]],0)+IF(Respuestas_de_formulario_1[[#This Row],[Cambio en los pasivos (si es negativo, coloque el signo)]]>0,Respuestas_de_formulario_1[[#This Row],[Cambio en los pasivos (si es negativo, coloque el signo)]],0)+IF(Respuestas_de_formulario_1[[#This Row],[Ajustes sobre periodos anteriores (si es negativo, coloque el signo)]]>0,Respuestas_de_formulario_1[[#This Row],[Ajustes sobre periodos anteriores (si es negativo, coloque el signo)]],0) -> 1536091766 | S18: =+Respuestas_de_formulario_1[[#This Row],[Cambio en los gastos]]+IF(Respuestas_de_formulario_1[[#This Row],[Cambio en los activos (si es negativo, coloque el signo)]]>0,Respuestas_de_formulario_1[[#This Row],[Cambio en los activos (si es negativo, coloque el signo)]],0)-IF(Respuestas_de_formulario_1[[#This Row],[Cambio en los pasivos (si es negativo, coloque el signo)]]<0,Respuestas_de_formulario_1[[#This Row],[Cambio en los pasivos (si es negativo, coloque el signo)]],0)-IF(Respuestas_de_formulario_1[[#This Row],[Ajustes sobre periodos anteriores (si es negativo, coloque el signo)]]<0,Respuestas_de_formulario_1[[#This Row],[Ajustes sobre periodos anteriores (si es negativo, coloque el signo)]],0) -> 1536091765 | T18: =+Respuestas_de_formulario_1[[#This Row],[Origen]]-Respuestas_de_formulario_1[[#This Row],[Aplicación]] -> 1 | U18: =+Respuestas_de_formulario_1[[#This Row],[Cambio en los gastos]]-SUM(Respuestas_de_formulario_1[[#This Row],[Gastos de Organización]:[Gastos no redimibles]]) -> 1 | V18: =+VLOOKUP(Respuestas_de_formulario_1[[#This Row],[Nombre del partido político]],$AR$2:$AS$37,2,FALSE) -> No | X18: =+Respuestas_de_formulario_1[[#This Row],[Nombre del partido político]] -> Acción Ciudadana (PAC) | Y18: =+Respuestas_de_formulario_1[[#This Row],[Cambio en las Donaciones]] -> 12535726 | Z18: =+IF(Respuestas_de_formulario_1[[#This Row],[Cambio en los pasivos (si es negativo, coloque el signo)]]>0,Respuestas_de_formulario_1[[#This Row],[Cambio en los pasivos (si es negativo, coloque el signo)]],0) -> 0 | AA18: =+IF(Respuestas_de_formulario_1[[#This Row],[Cambio en los Ingresos]]>0,Respuestas_de_formulario_1[[#This Row],[Cambio en los Ingresos]],0) -> 1523556040 | AB18: =-IF(Respuestas_de_formulario_1[[#This Row],[Cambio en los activos (si es negativo, coloque el signo)]]<0,Respuestas_de_formulario_1[[#This Row],[Cambio en los activos (si es negativo, coloque el signo)]],0) -> 0 | AC18: 1536091766 | AE18: =+IF(Respuestas_de_formulario_1[[#This Row],[Cambio en los gastos]]>0,Respuestas_de_formulario_1[[#This Row],[Cambio en los gastos]],0) -> 144022320 | AF18: =-IF(Respuestas_de_formulario_1[[#This Row],[Cambio en los pasivos (si es negativo, coloque el signo)]]<0,Respuestas_de_formulario_1[[#This Row],[Cambio en los pasivos (si es negativo, coloque el signo)]],0) -> 1167950379 | AG18: =+IF(Respuestas_de_formulario_1[[#This Row],[Cambio en los activos (si es negativo, coloque el signo)]]>0,Respuestas_de_formulario_1[[#This Row],[Cambio en los activos (si es negativo, coloque el signo)]],0) -> 224119066 | AH18: =+Respuestas_de_formulario_1[[#This Row],[Ajustes sobre periodos anteriores (si es negativo, coloque el signo)]] -> 0 | AI18: 1536091765 | AK18: 1 | AL18: =+INDEX(AO:AP,MATCH(Respuestas_de_formulario_1[[#This Row],[Nombre del partido político]],AO:AO,0),2) -> 1. Nacional | AM18: =+Respuestas_de_formulario_1[[#This Row],[Periodo de reporte]] -> Abr.-Jun., 2019 | AO18: Renovación Costarricense (PRC) | AP18: 1. Nacional | AR18: Movimiento Social Demócrata Costarricense (MSDC) | AS18: No
A19: 2022-07-27T08:43:16.394 | B19: rarias@tse.go.cr | C19: Rigoberto Arias Fajardo | D19: N/A | E19: Abr.-Jun., 2019 | F19: abr.-jun.,19 | G19: Progreso Social Democrático (PSD) | H19: 0 | I19: 0 | J19: 0 | K19: 0 | L19: 0 | M19: 0 | N19: 0 | O19: 0 | P19: 0 | Q19: 0 | R19: =+Respuestas_de_formulario_1[[#This Row],[Cambio en las Donaciones]]+Respuestas_de_formulario_1[[#This Row],[Cambio en los Ingresos]]+IF(Respuestas_de_formulario_1[[#This Row],[Cambio en los activos (si es negativo, coloque el signo)]]<0,-Respuestas_de_formulario_1[[#This Row],[Cambio en los activos (si es negativo, coloque el signo)]],0)+IF(Respuestas_de_formulario_1[[#This Row],[Cambio en los pasivos (si es negativo, coloque el signo)]]>0,Respuestas_de_formulario_1[[#This Row],[Cambio en los pasivos (si es negativo, coloque el signo)]],0)+IF(Respuestas_de_formulario_1[[#This Row],[Ajustes sobre periodos anteriores (si es negativo, coloque el signo)]]>0,Respuestas_de_formulario_1[[#This Row],[Ajustes sobre periodos anteriores (si es negativo, coloque el signo)]],0) -> 0 | S19: =+Respuestas_de_formulario_1[[#This Row],[Cambio en los gastos]]+IF(Respuestas_de_formulario_1[[#This Row],[Cambio en los activos (si es negativo, coloque el signo)]]>0,Respuestas_de_formulario_1[[#This Row],[Cambio en los activos (si es negativo, coloque el signo)]],0)-IF(Respuestas_de_formulario_1[[#This Row],[Cambio en los pasivos (si es negativo, coloque el signo)]]<0,Respuestas_de_formulario_1[[#This Row],[Cambio en los pasivos (si es negativo, coloque el signo)]],0)-IF(Respuestas_de_formulario_1[[#This Row],[Ajustes sobre periodos anteriores (si es negativo, coloque el signo)]]<0,Respuestas_de_formulario_1[[#This Row],[Ajustes sobre periodos anteriores (si es negativo, coloque el signo)]],0) -> 0 | T19: =+Respuestas_de_formulario_1[[#This Row],[Origen]]-Respuestas_de_formulario_1[[#This Row],[Aplicación]] -> 0 | U19: =+Respuestas_de_formulario_1[[#This Row],[Cambio en los gastos]]-SUM(Respuestas_de_formulario_1[[#This Row],[Gastos de Organización]:[Gastos no redimibles]]) -> 0 | V19: =+VLOOKUP(Respuestas_de_formulario_1[[#This Row],[Nombre del partido político]],$AR$2:$AS$37,2,FALSE) -> Sí | X19: =+Respuestas_de_formulario_1[[#This Row],[Nombre del partido político]] -> Progreso Social Democrático (PSD) | Y19: =+Respuestas_de_formulario_1[[#This Row],[Cambio en las Donaciones]] -> 0 | Z19: =+IF(Respuestas_de_formulario_1[[#This Row],[Cambio en los pasivos (si es negativo, coloque el signo)]]>0,Respuestas_de_formulario_1[[#This Row],[Cambio en los pasivos (si es negativo, coloque el signo)]],0) -> 0 | AA19: =+IF(Respuestas_de_formulario_1[[#This Row],[Cambio en los Ingresos]]>0,Respuestas_de_formulario_1[[#This Row],[Cambio en los Ingresos]],0) -> 0 | AB19: =-IF(Respuestas_de_formulario_1[[#This Row],[Cambio en los activos (si es negativo, coloque el signo)]]<0,Respuestas_de_formulario_1[[#This Row],[Cambio en los activos (si es negativo, coloque el signo)]],0) -> 0 | AC19: 0 | AE19: =+IF(Respuestas_de_formulario_1[[#This Row],[Cambio en los gastos]]>0,Respuestas_de_formulario_1[[#This Row],[Cambio en los gastos]],0) -> 0 | AF19: =-IF(Respuestas_de_formulario_1[[#This Row],[Cambio en los pasivos (si es negativo, coloque el signo)]]<0,Respuestas_de_formulario_1[[#This Row],[Cambio en los pasivos (si es negativo, coloque el signo)]],0) -> 0 | AG19: =+IF(Respuestas_de_formulario_1[[#This Row],[Cambio en los activos (si es negativo, coloque el signo)]]>0,Respuestas_de_formulario_1[[#This Row],[Cambio en los activos (si es negativo, coloque el signo)]],0) -> 0 | AH19: =+Respuestas_de_formulario_1[[#This Row],[Ajustes sobre periodos anteriores (si es negativo, coloque el signo)]] -> 0 | AI19: 0 | AK19: 0 | AL19: =+INDEX(AO:AP,MATCH(Respuestas_de_formulario_1[[#This Row],[Nombre del partido político]],AO:AO,0),2) -> 1. Nacional | AM19: =+Respuestas_de_formulario_1[[#This Row],[Periodo de reporte]] -> Abr.-Jun., 2019 | AO19: Republicano Social Cristiano (PRSC) | AP19: 1. Nacional | AR19: Nuestro Pueblo (PNP) | AS19: No
A20: 2022-07-28T12:53:08.404 | B20: gzelaya@tse.go.cr | C20: Gabriela Zelaya Vallecillo | D20: 19-0852 | E20: Abr.-Jun., 2019 | F20: abr.19-jun.19 | G20: Liberación Nacional (PLN) | H20: 29405531 | I20: -772643761 | J20: 59303672 | K20: 796628796 | L20: 53883176 | M20: 0 | N20: 63731473 | O20: 0 | P20: 1885185 | Q20: -11733482 | R20: =+Respuestas_de_formulario_1[[#This Row],[Cambio en las Donaciones]]+Respuestas_de_formulario_1[[#This Row],[Cambio en los Ingresos]]+IF(Respuestas_de_formulario_1[[#This Row],[Cambio en los activos (si es negativo, coloque el signo)]]<0,-Respuestas_de_formulario_1[[#This Row],[Cambio en los activos (si es negativo, coloque el signo)]],0)+IF(Respuestas_de_formulario_1[[#This Row],[Cambio en los pasivos (si es negativo, coloque el signo)]]>0,Respuestas_de_formulario_1[[#This Row],[Cambio en los pasivos (si es negativo, coloque el signo)]],0)+IF(Respuestas_de_formulario_1[[#This Row],[Ajustes sobre periodos anteriores (si es negativo, coloque el signo)]]>0,Respuestas_de_formulario_1[[#This Row],[Ajustes sobre periodos anteriores (si es negativo, coloque el signo)]],0) -> 855932468 | S20: =+Respuestas_de_formulario_1[[#This Row],[Cambio en los gastos]]+IF(Respuestas_de_formulario_1[[#This Row],[Cambio en los activos (si es negativo, coloque el signo)]]>0,Respuestas_de_formulario_1[[#This Row],[Cambio en los activos (si es negativo, coloque el signo)]],0)-IF(Respuestas_de_formulario_1[[#This Row],[Cambio en los pasivos (si es negativo, coloque el signo)]]<0,Respuestas_de_formulario_1[[#This Row],[Cambio en los pasivos (si es negativo, coloque el signo)]],0)-IF(Respuestas_de_formulario_1[[#This Row],[Ajustes sobre periodos anteriores (si es negativo, coloque el signo)]]<0,Respuestas_de_formulario_1[[#This Row],[Ajustes sobre periodos anteriores (si es negativo, coloque el signo)]],0) -> 855932468 | T20: =+Respuestas_de_formulario_1[[#This Row],[Origen]]-Respuestas_de_formulario_1[[#This Row],[Aplicación]] -> 0 | U20: =+Respuestas_de_formulario_1[[#This Row],[Cambio en los gastos]]-SUM(Respuestas_de_formulario_1[[#This Row],[Gastos de Organización]:[Gastos no redimibles]]) -> 0 | V20: =+VLOOKUP(Respuestas_de_formulario_1[[#This Row],[Nombre del partido político]],$AR$2:$AS$37,2,FALSE) -> Sí | X20: =+Respuestas_de_formulario_1[[#This Row],[Nombre del partido político]] -> Liberación Nacional (PLN) | Y20: =+Respuestas_de_formulario_1[[#This Row],[Cambio en las Donaciones]] -> 59303672 | Z20: =+IF(Respuestas_de_formulario_1[[#This Row],[Cambio en los pasivos (si es negativo, coloque el signo)]]>0,Respuestas_de_formulario_1[[#This Row],[Cambio en los pasivos (si es negativo, coloque el signo)]],0) -> 0 | AA20: =+IF(Respuestas_de_formulario_1[[#This Row],[Cambio en los Ingresos]]>0,Respuestas_de_formulario_1[[#This Row],[Cambio en los Ingresos]],0) -> 796628796 | AB20: =-IF(Respuestas_de_formulario_1[[#This Row],[Cambio en los activos (si es negativo, coloque el signo)]]<0,Respuestas_de_formulario_1[[#This Row],[Cambio en los activos (si es negativo, coloque el signo)]],0) -> 0 | AC20: 855932468 | AE20: =+IF(Respuestas_de_formulario_1[[#This Row],[Cambio en los gastos]]>0,Respuestas_de_formulario_1[[#This Row],[Cambio en los gastos]],0) -> 53883176 | AF20: =-IF(Respuestas_de_formulario_1[[#This Row],[Cambio en los pasivos (si es negativo, coloque el signo)]]<0,Respuestas_de_formulario_1[[#This Row],[Cambio en los pasivos (si es negativo, coloque el signo)]],0) -> 772643761 | AG20: =+IF(Respuestas_de_formulario_1[[#This Row],[Cambio en los activos (si es negativo, coloque el signo)]]>0,Respuestas_de_formulario_1[[#This Row],[Cambio en los activos (si es negativo, coloque el signo)]],0) -> 29405531 | AH20: =+Respuestas_de_formulario_1[[#This Row],[Ajustes sobre periodos anteriores (si es negativo, coloque el signo)]] -> 0 | AI20: 855932468 | AK20: 0 | AL20: =+INDEX(AO:AP,MATCH(Respuestas_de_formulario_1[[#This Row],[Nombre del partido político]],AO:AO,0),2) -> 1. Nacional | AM20: =+Respuestas_de_formulario_1[[#This Row],[Periodo de reporte]] -> Abr.-Jun., 2019 | AO20: Restauración Nacional (PRN) | AP20: 1. Nacional | AR20: Nueva Generación (PNG) | AS20: No
A21: 2022-08-04T13:08:25.440 | B21: hcordero@tse.go.cr | C21: Humberto Cordero Arguedas | D21: 19-0855 | E21: Abr.-Jun., 2019 | F21: abr.19-jun.19 | G21: Unidad Social Cristiana (PUSC) | H21: -78237.65 | I21: 18213239.61 | J21: 4042756.4 | K21: 34678651.63 | L21: 57420233.34 | M21: 407348.05 | N21: 31213005.22 | O21: 0 | P21: 26208899.7 | Q21: -1671.58 | R21: =+Respuestas_de_formulario_1[[#This Row],[Cambio en las Donaciones]]+Respuestas_de_formulario_1[[#This Row],[Cambio en los Ingresos]]+IF(Respuestas_de_formulario_1[[#This Row],[Cambio en los activos (si es negativo, coloque el signo)]]<0,-Respuestas_de_formulario_1[[#This Row],[Cambio en los activos (si es negativo, coloque el signo)]],0)+IF(Respuestas_de_formulario_1[[#This Row],[Cambio en los pasivos (si es negativo, coloque el signo)]]>0,Respuestas_de_formulario_1[[#This Row],[Cambio en los pasivos (si es negativo, coloque el signo)]],0)+IF(Respuestas_de_formulario_1[[#This Row],[Ajustes sobre periodos anteriores (si es negativo, coloque el signo)]]>0,Respuestas_de_formulario_1[[#This Row],[Ajustes sobre periodos anteriores (si es negativo, coloque el signo)]],0) -> 57420233.34 | S21: =+Respuestas_de_formulario_1[[#This Row],[Cambio en los gastos]]+IF(Respuestas_de_formulario_1[[#This Row],[Cambio en los activos (si es negativo, coloque el signo)]]>0,Respuestas_de_formulario_1[[#This Row],[Cambio en los activos (si es negativo, coloque el signo)]],0)-IF(Respuestas_de_formulario_1[[#This Row],[Cambio en los pasivos (si es negativo, coloque el signo)]]<0,Respuestas_de_formulario_1[[#This Row],[Cambio en los pasivos (si es negativo, coloque el signo)]],0)-IF(Respuestas_de_formulario_1[[#This Row],[Ajustes sobre periodos anteriores (si es negativo, coloque el signo)]]<0,Respuestas_de_formulario_1[[#This Row],[Ajustes sobre periodos anteriores (si es negativo, coloque el signo)]],0) -> 57420233.34 | T21: =+Respuestas_de_formulario_1[[#This Row],[Origen]]-Respuestas_de_formulario_1[[#This Row],[Aplicación]] -> 0 | U21: =+Respuestas_de_formulario_1[[#This Row],[Cambio en los gastos]]-SUM(Respuestas_de_formulario_1[[#This Row],[Gastos de Organización]:[Gastos no redimibles]]) -> 0 | V21: =+VLOOKUP(Respuestas_de_formulario_1[[#This Row],[Nombre del partido político]],$AR$2:$AS$37,2,FALSE) -> Sí | X21: =+Respuestas_de_formulario_1[[#This Row],[Nombre del partido político]] -> Unidad Social Cristiana (PUSC) | Y21: =+Respuestas_de_formulario_1[[#This Row],[Cambio en las Donaciones]] -> 4042756.4 | Z21: =+IF(Respuestas_de_formulario_1[[#This Row],[Cambio en los pasivos (si es negativo, coloque el signo)]]>0,Respuestas_de_formulario_1[[#This Row],[Cambio en los pasivos (si es negativo, coloque el signo)]],0) -> 18213239.61 | AA21: =+IF(Respuestas_de_formulario_1[[#This Row],[Cambio en los Ingresos]]>0,Respuestas_de_formulario_1[[#This Row],[Cambio en los Ingresos]],0) -> 34678651.63 | AB21: =-IF(Respuestas_de_formulario_1[[#This Row],[Cambio en los activos (si es negativo, coloque el signo)]]<0,Respuestas_de_formulario_1[[#This Row],[Cambio en los activos (si es negativo, coloque el signo)]],0) -> 78237.65 | AC21: 57420233.34 | AE21: =+IF(Respuestas_de_formulario_1[[#This Row],[Cambio en los gastos]]>0,Respuestas_de_formulario_1[[#This Row],[Cambio en los gastos]],0) -> 57420233.34 | AF21: =-IF(Respuestas_de_formulario_1[[#This Row],[Cambio en los pasivos (si es negativo, coloque el signo)]]<0,Respuestas_de_formulario_1[[#This Row],[Cambio en los pasivos (si es negativo, coloque el signo)]],0) -> 0 | AG21: =+IF(Respuestas_de_formulario_1[[#This Row],[Cambio en los activos (si es negativo, coloque el signo)]]>0,Respuestas_de_formulario_1[[#This Row],[Cambio en los activos (si es negativo, coloque el signo)]],0) -> 0 | AH21: =+Respuestas_de_formulario_1[[#This Row],[Ajustes sobre periodos anteriores (si es negativo, coloque el signo)]] -> 407348.05 | AI21: 57420233.34 | AK21: 0 | AL21: =+INDEX(AO:AP,MATCH(Respuestas_de_formulario_1[[#This Row],[Nombre del partido político]],AO:AO,0),2) -> 1. Nacional | AM21: =+Respuestas_de_formulario_1[[#This Row],[Periodo de reporte]] -> Abr.-Jun., 2019 | AO21: Unidos Podemos (UP) | AP21: 1. Nacional | AR21: Nueva República (PNR) | AS21: Sí
A22: 2022-08-04T11:49:26.812 | B22: imadrigalperez@gmail.com | C22: Ileana Madrigal Mora | D22: 19-0799 | E22: Abr.-Jun., 2019 | F22: abr-jun 19 | G22: Integración Nacional (PIN) | H22: 6892863.58 | I22: -1832942.97 | J22: 0 | K22: 11369892.67 | L22: 2644086.22 | M22: 0 | N22: 2644086.22 | O22: 0 | P22: 0 | Q22: 0 | R22: =+Respuestas_de_formulario_1[[#This Row],[Cambio en las Donaciones]]+Respuestas_de_formulario_1[[#This Row],[Cambio en los Ingresos]]+IF(Respuestas_de_formulario_1[[#This Row],[Cambio en los activos (si es negativo, coloque el signo)]]<0,-Respuestas_de_formulario_1[[#This Row],[Cambio en los activos (si es negativo, coloque el signo)]],0)+IF(Respuestas_de_formulario_1[[#This Row],[Cambio en los pasivos (si es negativo, coloque el signo)]]>0,Respuestas_de_formulario_1[[#This Row],[Cambio en los pasivos (si es negativo, coloque el signo)]],0)+IF(Respuestas_de_formulario_1[[#This Row],[Ajustes sobre periodos anteriores (si es negativo, coloque el signo)]]>0,Respuestas_de_formulario_1[[#This Row],[Ajustes sobre periodos anteriores (si es negativo, coloque el signo)]],0) -> 11369892.67 | S22: =+Respuestas_de_formulario_1[[#This Row],[Cambio en los gastos]]+IF(Respuestas_de_formulario_1[[#This Row],[Cambio en los activos (si es negativo, coloque el signo)]]>0,Respuestas_de_formulario_1[[#This Row],[Cambio en los activos (si es negativo, coloque el signo)]],0)-IF(Respuestas_de_formulario_1[[#This Row],[Cambio en los pasivos (si es negativo, coloque el signo)]]<0,Respuestas_de_formulario_1[[#This Row],[Cambio en los pasivos (si es negativo, coloque el signo)]],0)-IF(Respuestas_de_formulario_1[[#This Row],[Ajustes sobre periodos anteriores (si es negativo, coloque el signo)]]<0,Respuestas_de_formulario_1[[#This Row],[Ajustes sobre periodos anteriores (si es negativo, coloque el signo)]],0) -> 11369892.77 | T22: =+Respuestas_de_formulario_1[[#This Row],[Origen]]-Respuestas_de_formulario_1[[#This Row],[Aplicación]] -> -0.1000000015 | U22: =+Respuestas_de_formulario_1[[#This Row],[Cambio en los gastos]]-SUM(Respuestas_de_formulario_1[[#This Row],[Gastos de Organización]:[Gastos no redimibles]]) -> 0 | V22: =+VLOOKUP(Respuestas_de_formulario_1[[#This Row],[Nombre del partido político]],$AR$2:$AS$37,2,FALSE) -> No | X22: =+Respuestas_de_formulario_1[[#This Row],[Nombre del partido político]] -> Integración Nacional (PIN) | Y22: =+Respuestas_de_formulario_1[[#This Row],[Cambio en las Donaciones]] -> 0 | Z22: =+IF(Respuestas_de_formulario_1[[#This Row],[Cambio en los pasivos (si es negativo, coloque el signo)]]>0,Respuestas_de_formulario_1[[#This Row],[Cambio en los pasivos (si es negativo, coloque el signo)]],0) -> 0 | AA22: =+IF(Respuestas_de_formulario_1[[#This Row],[Cambio en los Ingresos]]>0,Respuestas_de_formulario_1[[#This Row],[Cambio en los Ingresos]],0) -> 11369892.67 | AB22: =-IF(Respuestas_de_formulario_1[[#This Row],[Cambio en los activos (si es negativo, coloque el signo)]]<0,Respuestas_de_formulario_1[[#This Row],[Cambio en los activos (si es negativo, coloque el signo)]],0) -> 0 | AC22: 11369892.67 | AE22: =+IF(Respuestas_de_formulario_1[[#This Row],[Cambio en los gastos]]>0,Respuestas_de_formulario_1[[#This Row],[Cambio en los gastos]],0) -> 2644086.22 | AF22: =-IF(Respuestas_de_formulario_1[[#This Row],[Cambio en los pasivos (si es negativo, coloque el signo)]]<0,Respuestas_de_formulario_1[[#This Row],[Cambio en los pasivos (si es negativo, coloque el signo)]],0) -> 1832942.97 | AG22: =+IF(Respuestas_de_formulario_1[[#This Row],[Cambio en los activos (si es negativo, coloque el signo)]]>0,Respuestas_de_formulario_1[[#This Row],[Cambio en los activos (si es negativo, coloque el signo)]],0) -> 6892863.58 | AH22: =+Respuestas_de_formulario_1[[#This Row],[Ajustes sobre periodos anteriores (si es negativo, coloque el signo)]] -> 0 | AI22: 11369892.77 | AK22: -0.09999999963 | AL22: =+INDEX(AO:AP,MATCH(Respuestas_de_formulario_1[[#This Row],[Nombre del partido político]],AO:AO,0),2) -> 1. Nacional | AM22: =+Respuestas_de_formulario_1[[#This Row],[Periodo de reporte]] -> Abr.-Jun., 2019 | AO22: Unión Costarricense Democrática (PUCD) | AP22: 1. Nacional | AR22: Nuevo Partido Socialista (Cartago) (NPS-C) | AS22: No
A23: 2022-08-01T12:51:16.517 | B23: ceaguilard@gmail.com | C23: Carlos Aguilar Durán | D23: 19-0903 | E23: Abr.-Jun., 2019 | F23: abr.19-jun.19 | G23: Auténtico Limonense | H23: 0 | I23: 0 | J23: 0 | K23: 0 | L23: 0 | M23: 0 | N23: 0 | O23: 0 | P23: 0 | Q23: 0 | R23: =+Respuestas_de_formulario_1[[#This Row],[Cambio en las Donaciones]]+Respuestas_de_formulario_1[[#This Row],[Cambio en los Ingresos]]+IF(Respuestas_de_formulario_1[[#This Row],[Cambio en los activos (si es negativo, coloque el signo)]]<0,-Respuestas_de_formulario_1[[#This Row],[Cambio en los activos (si es negativo, coloque el signo)]],0)+IF(Respuestas_de_formulario_1[[#This Row],[Cambio en los pasivos (si es negativo, coloque el signo)]]>0,Respuestas_de_formulario_1[[#This Row],[Cambio en los pasivos (si es negativo, coloque el signo)]],0)+IF(Respuestas_de_formulario_1[[#This Row],[Ajustes sobre periodos anteriores (si es negativo, coloque el signo)]]>0,Respuestas_de_formulario_1[[#This Row],[Ajustes sobre periodos anteriores (si es negativo, coloque el signo)]],0) -> 0 | S23: =+Respuestas_de_formulario_1[[#This Row],[Cambio en los gastos]]+IF(Respuestas_de_formulario_1[[#This Row],[Cambio en los activos (si es negativo, coloque el signo)]]>0,Respuestas_de_formulario_1[[#This Row],[Cambio en los activos (si es negativo, coloque el signo)]],0)-IF(Respuestas_de_formulario_1[[#This Row],[Cambio en los pasivos (si es negativo, coloque el signo)]]<0,Respuestas_de_formulario_1[[#This Row],[Cambio en los pasivos (si es negativo, coloque el signo)]],0)-IF(Respuestas_de_formulario_1[[#This Row],[Ajustes sobre periodos anteriores (si es negativo, coloque el signo)]]<0,Respuestas_de_formulario_1[[#This Row],[Ajustes sobre periodos anteriores (si es negativo, coloque el signo)]],0) -> 0 | T23: =+Respuestas_de_formulario_1[[#This Row],[Origen]]-Respuestas_de_formulario_1[[#This Row],[Aplicación]] -> 0 | U23: =+Respuestas_de_formulario_1[[#This Row],[Cambio en los gastos]]-SUM(Respuestas_de_formulario_1[[#This Row],[Gastos de Organización]:[Gastos no redimibles]]) -> 0 | V23: =+VLOOKUP(Respuestas_de_formulario_1[[#This Row],[Nombre del partido político]],$AR$2:$AS$37,2,FALSE) ->  | X23: =+Respuestas_de_formulario_1[[#This Row],[Nombre del partido político]] -> Auténtico Limonense | Y23: =+Respuestas_de_formulario_1[[#This Row],[Cambio en las Donaciones]] -> 0 | Z23: =+IF(Respuestas_de_formulario_1[[#This Row],[Cambio en los pasivos (si es negativo, coloque el signo)]]>0,Respuestas_de_formulario_1[[#This Row],[Cambio en los pasivos (si es negativo, coloque el signo)]],0) -> 0 | AA23: =+IF(Respuestas_de_formulario_1[[#This Row],[Cambio en los Ingresos]]>0,Respuestas_de_formulario_1[[#This Row],[Cambio en los Ingresos]],0) -> 0 | AB23: =-IF(Respuestas_de_formulario_1[[#This Row],[Cambio en los activos (si es negativo, coloque el signo)]]<0,Respuestas_de_formulario_1[[#This Row],[Cambio en los activos (si es negativo, coloque el signo)]],0) -> 0 | AC23: 0 | AE23: =+IF(Respuestas_de_formulario_1[[#This Row],[Cambio en los gastos]]>0,Respuestas_de_formulario_1[[#This Row],[Cambio en los gastos]],0) -> 0 | AF23: =-IF(Respuestas_de_formulario_1[[#This Row],[Cambio en los pasivos (si es negativo, coloque el signo)]]<0,Respuestas_de_formulario_1[[#This Row],[Cambio en los pasivos (si es negativo, coloque el signo)]],0) -> 0 | AG23: =+IF(Respuestas_de_formulario_1[[#This Row],[Cambio en los activos (si es negativo, coloque el signo)]]>0,Respuestas_de_formulario_1[[#This Row],[Cambio en los activos (si es negativo, coloque el signo)]],0) -> 0 | AH23: =+Respuestas_de_formulario_1[[#This Row],[Ajustes sobre periodos anteriores (si es negativo, coloque el signo)]] -> 0 | AI23: 0 | AK23: 0 | AL23: =+INDEX(AO:AP,MATCH(Respuestas_de_formulario_1[[#This Row],[Nombre del partido político]],AO:AO,0),2) ->  | AM23: =+Respuestas_de_formulario_1[[#This Row],[Periodo de reporte]] -> Abr.-Jun., 2019 | AO23: Unión Liberal (PUL) | AP23: 1. Nacional | AR23: Nuevo Partido Socialista (San José) (NPS-SJ) | AS23: No
A24: 2022-08-01T13:52:22.505 | B24: ceaguilard@gmail.com | C24: Carlos Aguilar Durán | D24: 19-0751 | E24: Abr.-Jun., 2019 | F24: abri.19-jun.19 | G24: Unión Guanacasteca (Guanacaste) (PUG) | H24: 0 | I24: 0 | J24: 0 | K24: 0 | L24: 0 | M24: 0 | N24: 0 | O24: 0 | P24: 0 | Q24: 0 | R24: =+Respuestas_de_formulario_1[[#This Row],[Cambio en las Donaciones]]+Respuestas_de_formulario_1[[#This Row],[Cambio en los Ingresos]]+IF(Respuestas_de_formulario_1[[#This Row],[Cambio en los activos (si es negativo, coloque el signo)]]<0,-Respuestas_de_formulario_1[[#This Row],[Cambio en los activos (si es negativo, coloque el signo)]],0)+IF(Respuestas_de_formulario_1[[#This Row],[Cambio en los pasivos (si es negativo, coloque el signo)]]>0,Respuestas_de_formulario_1[[#This Row],[Cambio en los pasivos (si es negativo, coloque el signo)]],0)+IF(Respuestas_de_formulario_1[[#This Row],[Ajustes sobre periodos anteriores (si es negativo, coloque el signo)]]>0,Respuestas_de_formulario_1[[#This Row],[Ajustes sobre periodos anteriores (si es negativo, coloque el signo)]],0) -> 0 | S24: =+Respuestas_de_formulario_1[[#This Row],[Cambio en los gastos]]+IF(Respuestas_de_formulario_1[[#This Row],[Cambio en los activos (si es negativo, coloque el signo)]]>0,Respuestas_de_formulario_1[[#This Row],[Cambio en los activos (si es negativo, coloque el signo)]],0)-IF(Respuestas_de_formulario_1[[#This Row],[Cambio en los pasivos (si es negativo, coloque el signo)]]<0,Respuestas_de_formulario_1[[#This Row],[Cambio en los pasivos (si es negativo, coloque el signo)]],0)-IF(Respuestas_de_formulario_1[[#This Row],[Ajustes sobre periodos anteriores (si es negativo, coloque el signo)]]<0,Respuestas_de_formulario_1[[#This Row],[Ajustes sobre periodos anteriores (si es negativo, coloque el signo)]],0) -> 0 | T24: =+Respuestas_de_formulario_1[[#This Row],[Origen]]-Respuestas_de_formulario_1[[#This Row],[Aplicación]] -> 0 | U24: =+Respuestas_de_formulario_1[[#This Row],[Cambio en los gastos]]-SUM(Respuestas_de_formulario_1[[#This Row],[Gastos de Organización]:[Gastos no redimibles]]) -> 0 | V24: =+VLOOKUP(Respuestas_de_formulario_1[[#This Row],[Nombre del partido político]],$AR$2:$AS$37,2,FALSE) -> Sí | X24: =+Respuestas_de_formulario_1[[#This Row],[Nombre del partido político]] -> Unión Guanacasteca (Guanacaste) (PUG) | Y24: =+Respuestas_de_formulario_1[[#This Row],[Cambio en las Donaciones]] -> 0 | Z24: =+IF(Respuestas_de_formulario_1[[#This Row],[Cambio en los pasivos (si es negativo, coloque el signo)]]>0,Respuestas_de_formulario_1[[#This Row],[Cambio en los pasivos (si es negativo, coloque el signo)]],0) -> 0 | AA24: =+IF(Respuestas_de_formulario_1[[#This Row],[Cambio en los Ingresos]]>0,Respuestas_de_formulario_1[[#This Row],[Cambio en los Ingresos]],0) -> 0 | AB24: =-IF(Respuestas_de_formulario_1[[#This Row],[Cambio en los activos (si es negativo, coloque el signo)]]<0,Respuestas_de_formulario_1[[#This Row],[Cambio en los activos (si es negativo, coloque el signo)]],0) -> 0 | AC24: 0 | AE24: =+IF(Respuestas_de_formulario_1[[#This Row],[Cambio en los gastos]]>0,Respuestas_de_formulario_1[[#This Row],[Cambio en los gastos]],0) -> 0 | AF24: =-IF(Respuestas_de_formulario_1[[#This Row],[Cambio en los pasivos (si es negativo, coloque el signo)]]<0,Respuestas_de_formulario_1[[#This Row],[Cambio en los pasivos (si es negativo, coloque el signo)]],0) -> 0 | AG24: =+IF(Respuestas_de_formulario_1[[#This Row],[Cambio en los activos (si es negativo, coloque el signo)]]>0,Respuestas_de_formulario_1[[#This Row],[Cambio en los activos (si es negativo, coloque el signo)]],0) -> 0 | AH24: =+Respuestas_de_formulario_1[[#This Row],[Ajustes sobre periodos anteriores (si es negativo, coloque el signo)]] -> 0 | AI24: 0 | AK24: 0 | AL24: =+INDEX(AO:AP,MATCH(Respuestas_de_formulario_1[[#This Row],[Nombre del partido político]],AO:AO,0),2) -> 2. Provincial | AM24: =+Respuestas_de_formulario_1[[#This Row],[Periodo de reporte]] -> Abr.-Jun., 2019 | AO24: Actuemos Ya (Cartago) (PAY) | AP24: 2. Provincial | AR24: Progreso Social Democrático (PSD) | AS24: Sí
A25: 2022-08-03T10:55:02.890 | B25: gzelaya@tse.go.cr | C25: Gabriela Zelaya Vallecillo | D25: 19-0787 | E25: Abr.-Jun., 2019 | F25: abr.19-jun.19 | G25: Republicano Social Cristiano (PRSC) | H25: -71650933.89 | I25: 55071683.64 | J25: 0 | K25: 10530292.42 | L25: 137252909.9 | M25: 0 | N25: 56572015.17 | O25: 74434871.1 | P25: 0 | Q25: 6246023.68 | R25: =+Respuestas_de_formulario_1[[#This Row],[Cambio en las Donaciones]]+Respuestas_de_formulario_1[[#This Row],[Cambio en los Ingresos]]+IF(Respuestas_de_formulario_1[[#This Row],[Cambio en los activos (si es negativo, coloque el signo)]]<0,-Respuestas_de_formulario_1[[#This Row],[Cambio en los activos (si es negativo, coloque el signo)]],0)+IF(Respuestas_de_formulario_1[[#This Row],[Cambio en los pasivos (si es negativo, coloque el signo)]]>0,Respuestas_de_formulario_1[[#This Row],[Cambio en los pasivos (si es negativo, coloque el signo)]],0)+IF(Respuestas_de_formulario_1[[#This Row],[Ajustes sobre periodos anteriores (si es negativo, coloque el signo)]]>0,Respuestas_de_formulario_1[[#This Row],[Ajustes sobre periodos anteriores (si es negativo, coloque el signo)]],0) -> 137252909.9 | S25: =+Respuestas_de_formulario_1[[#This Row],[Cambio en los gastos]]+IF(Respuestas_de_formulario_1[[#This Row],[Cambio en los activos (si es negativo, coloque el signo)]]>0,Respuestas_de_formulario_1[[#This Row],[Cambio en los activos (si es negativo, coloque el signo)]],0)-IF(Respuestas_de_formulario_1[[#This Row],[Cambio en los pasivos (si es negativo, coloque el signo)]]<0,Respuestas_de_formulario_1[[#This Row],[Cambio en los pasivos (si es negativo, coloque el signo)]],0)-IF(Respuestas_de_formulario_1[[#This Row],[Ajustes sobre periodos anteriores (si es negativo, coloque el signo)]]<0,Respuestas_de_formulario_1[[#This Row],[Ajustes sobre periodos anteriores (si es negativo, coloque el signo)]],0) -> 137252909.9 | T25: =+Respuestas_de_formulario_1[[#This Row],[Origen]]-Respuestas_de_formulario_1[[#This Row],[Aplicación]] -> 0 | U25: =+Respuestas_de_formulario_1[[#This Row],[Cambio en los gastos]]-SUM(Respuestas_de_formulario_1[[#This Row],[Gastos de Organización]:[Gastos no redimibles]]) -> 0 | V25: =+VLOOKUP(Respuestas_de_formulario_1[[#This Row],[Nombre del partido político]],$AR$2:$AS$37,2,FALSE) -> No | X25: =+Respuestas_de_formulario_1[[#This Row],[Nombre del partido político]] -> Republicano Social Cristiano (PRSC) | Y25: =+Respuestas_de_formulario_1[[#This Row],[Cambio en las Donaciones]] -> 0 | Z25: =+IF(Respuestas_de_formulario_1[[#This Row],[Cambio en los pasivos (si es negativo, coloque el signo)]]>0,Respuestas_de_formulario_1[[#This Row],[Cambio en los pasivos (si es negativo, coloque el signo)]],0) -> 55071683.64 | AA25: =+IF(Respuestas_de_formulario_1[[#This Row],[Cambio en los Ingresos]]>0,Respuestas_de_formulario_1[[#This Row],[Cambio en los Ingresos]],0) -> 10530292.42 | AB25: =-IF(Respuestas_de_formulario_1[[#This Row],[Cambio en los activos (si es negativo, coloque el signo)]]<0,Respuestas_de_formulario_1[[#This Row],[Cambio en los activos (si es negativo, coloque el signo)]],0) -> 71650933.89 | AC25: 137252909.9 | AE25: =+IF(Respuestas_de_formulario_1[[#This Row],[Cambio en los gastos]]>0,Respuestas_de_formulario_1[[#This Row],[Cambio en los gastos]],0) -> 137252909.9 | AF25: =-IF(Respuestas_de_formulario_1[[#This Row],[Cambio en los pasivos (si es negativo, coloque el signo)]]<0,Respuestas_de_formulario_1[[#This Row],[Cambio en los pasivos (si es negativo, coloque el signo)]],0) -> 0 | AG25: =+IF(Respuestas_de_formulario_1[[#This Row],[Cambio en los activos (si es negativo, coloque el signo)]]>0,Respuestas_de_formulario_1[[#This Row],[Cambio en los activos (si es negativo, coloque el signo)]],0) -> 0 | AH25: =+Respuestas_de_formulario_1[[#This Row],[Ajustes sobre periodos anteriores (si es negativo, coloque el signo)]] -> 0 | AI25: 137252909.9 | AK25: 0 | AL25: =+INDEX(AO:AP,MATCH(Respuestas_de_formulario_1[[#This Row],[Nombre del partido político]],AO:AO,0),2) -> 1. Nacional | AM25: =+Respuestas_de_formulario_1[[#This Row],[Periodo de reporte]] -> Abr.-Jun., 2019 | AO25: Izquierda Costarricense (Limón) (IZCO) | AP25: 2. Provincial | AR25: Pueblo Unido (PU) | AS25: No
A26: 2022-07-26T08:13:54.990 | B26: rarias@tse.go.cr | C26: Rigoberto Arias Fajardo | D26: 20-1405 | E26: Abr.-Jun., 2020 | F26: abr.-jun.,20 | G26: Frente Amplio (FA) | H26: -70821533.28 | I26: -37161256.25 | J26: 4996150 | K26: 0 | L26: 38656427.03 | M26: 0 | N26: 38624427.03 | O26: 0 | P26: 0 | Q26: 32000 | R26: =+Respuestas_de_formulario_1[[#This Row],[Cambio en las Donaciones]]+Respuestas_de_formulario_1[[#This Row],[Cambio en los Ingresos]]+IF(Respuestas_de_formulario_1[[#This Row],[Cambio en los activos (si es negativo, coloque el signo)]]<0,-Respuestas_de_formulario_1[[#This Row],[Cambio en los activos (si es negativo, coloque el signo)]],0)+IF(Respuestas_de_formulario_1[[#This Row],[Cambio en los pasivos (si es negativo, coloque el signo)]]>0,Respuestas_de_formulario_1[[#This Row],[Cambio en los pasivos (si es negativo, coloque el signo)]],0)+IF(Respuestas_de_formulario_1[[#This Row],[Ajustes sobre periodos anteriores (si es negativo, coloque el signo)]]>0,Respuestas_de_formulario_1[[#This Row],[Ajustes sobre periodos anteriores (si es negativo, coloque el signo)]],0) -> 75817683.28 | S26: =+Respuestas_de_formulario_1[[#This Row],[Cambio en los gastos]]+IF(Respuestas_de_formulario_1[[#This Row],[Cambio en los activos (si es negativo, coloque el signo)]]>0,Respuestas_de_formulario_1[[#This Row],[Cambio en los activos (si es negativo, coloque el signo)]],0)-IF(Respuestas_de_formulario_1[[#This Row],[Cambio en los pasivos (si es negativo, coloque el signo)]]<0,Respuestas_de_formulario_1[[#This Row],[Cambio en los pasivos (si es negativo, coloque el signo)]],0)-IF(Respuestas_de_formulario_1[[#This Row],[Ajustes sobre periodos anteriores (si es negativo, coloque el signo)]]<0,Respuestas_de_formulario_1[[#This Row],[Ajustes sobre periodos anteriores (si es negativo, coloque el signo)]],0) -> 75817683.28 | T26: =+Respuestas_de_formulario_1[[#This Row],[Origen]]-Respuestas_de_formulario_1[[#This Row],[Aplicación]] -> 0 | U26: =+Respuestas_de_formulario_1[[#This Row],[Cambio en los gastos]]-SUM(Respuestas_de_formulario_1[[#This Row],[Gastos de Organización]:[Gastos no redimibles]]) -> 0 | V26: =+VLOOKUP(Respuestas_de_formulario_1[[#This Row],[Nombre del partido político]],$AR$2:$AS$37,2,FALSE) -> Sí | X26: =+Respuestas_de_formulario_1[[#This Row],[Nombre del partido político]] -> Frente Amplio (FA) | Y26: =+Respuestas_de_formulario_1[[#This Row],[Cambio en las Donaciones]] -> 4996150 | Z26: =+IF(Respuestas_de_formulario_1[[#This Row],[Cambio en los pasivos (si es negativo, coloque el signo)]]>0,Respuestas_de_formulario_1[[#This Row],[Cambio en los pasivos (si es negativo, coloque el signo)]],0) -> 0 | AA26: =+IF(Respuestas_de_formulario_1[[#This Row],[Cambio en los Ingresos]]>0,Respuestas_de_formulario_1[[#This Row],[Cambio en los Ingresos]],0) -> 0 | AB26: =-IF(Respuestas_de_formulario_1[[#This Row],[Cambio en los activos (si es negativo, coloque el signo)]]<0,Respuestas_de_formulario_1[[#This Row],[Cambio en los activos (si es negativo, coloque el signo)]],0) -> 70821533.28 | AC26: 75817683.28 | AE26: =+IF(Respuestas_de_formulario_1[[#This Row],[Cambio en los gastos]]>0,Respuestas_de_formulario_1[[#This Row],[Cambio en los gastos]],0) -> 38656427.03 | AF26: =-IF(Respuestas_de_formulario_1[[#This Row],[Cambio en los pasivos (si es negativo, coloque el signo)]]<0,Respuestas_de_formulario_1[[#This Row],[Cambio en los pasivos (si es negativo, coloque el signo)]],0) -> 37161256.25 | AG26: =+IF(Respuestas_de_formulario_1[[#This Row],[Cambio en los activos (si es negativo, coloque el signo)]]>0,Respuestas_de_formulario_1[[#This Row],[Cambio en los activos (si es negativo, coloque el signo)]],0) -> 0 | AH26: =+Respuestas_de_formulario_1[[#This Row],[Ajustes sobre periodos anteriores (si es negativo, coloque el signo)]] -> 0 | AI26: 75817683.28 | AK26: 0 | AL26: =+INDEX(AO:AP,MATCH(Respuestas_de_formulario_1[[#This Row],[Nombre del partido político]],AO:AO,0),2) -> 1. Nacional | AM26: =+Respuestas_de_formulario_1[[#This Row],[Periodo de reporte]] -> Abr.-Jun., 2020 | AO26: Nuevo Partido Socialista (San José) (NPS-SJ) | AP26: 2. Provincial | AR26: Recuperando Valores (Limón) (PAREVA) | AS26: Sí
A27: 2022-07-26T10:32:28.787 | B27: rarias@tse.go.cr | C27: Rigoberto Arias Fajardo | D27: 20-1304 | E27: Abr.-Jun., 2020 | F27: abr.-jun.,20 | G27: Restauración Nacional (PRN) | H27: 160296198.5 | I27: 136816533.2 | J27: 3113147 | K27: 219028538.4 | L27: 353869431.6 | M27: 155207411.5 | N27: 353499751.9 | O27: 0 | P27: 0 | Q27: 369679.66 | R27: =+Respuestas_de_formulario_1[[#This Row],[Cambio en las Donaciones]]+Respuestas_de_formulario_1[[#This Row],[Cambio en los Ingresos]]+IF(Respuestas_de_formulario_1[[#This Row],[Cambio en los activos (si es negativo, coloque el signo)]]<0,-Respuestas_de_formulario_1[[#This Row],[Cambio en los activos (si es negativo, coloque el signo)]],0)+IF(Respuestas_de_formulario_1[[#This Row],[Cambio en los pasivos (si es negativo, coloque el signo)]]>0,Respuestas_de_formulario_1[[#This Row],[Cambio en los pasivos (si es negativo, coloque el signo)]],0)+IF(Respuestas_de_formulario_1[[#This Row],[Ajustes sobre periodos anteriores (si es negativo, coloque el signo)]]>0,Respuestas_de_formulario_1[[#This Row],[Ajustes sobre periodos anteriores (si es negativo, coloque el signo)]],0) -> 514165630.1 | S27: =+Respuestas_de_formulario_1[[#This Row],[Cambio en los gastos]]+IF(Respuestas_de_formulario_1[[#This Row],[Cambio en los activos (si es negativo, coloque el signo)]]>0,Respuestas_de_formulario_1[[#This Row],[Cambio en los activos (si es negativo, coloque el signo)]],0)-IF(Respuestas_de_formulario_1[[#This Row],[Cambio en los pasivos (si es negativo, coloque el signo)]]<0,Respuestas_de_formulario_1[[#This Row],[Cambio en los pasivos (si es negativo, coloque el signo)]],0)-IF(Respuestas_de_formulario_1[[#This Row],[Ajustes sobre periodos anteriores (si es negativo, coloque el signo)]]<0,Respuestas_de_formulario_1[[#This Row],[Ajustes sobre periodos anteriores (si es negativo, coloque el signo)]],0) -> 514165630.1 | T27: =+Respuestas_de_formulario_1[[#This Row],[Origen]]-Respuestas_de_formulario_1[[#This Row],[Aplicación]] -> 0 | U27: =+Respuestas_de_formulario_1[[#This Row],[Cambio en los gastos]]-SUM(Respuestas_de_formulario_1[[#This Row],[Gastos de Organización]:[Gastos no redimibles]]) -> 0 | V27: =+VLOOKUP(Respuestas_de_formulario_1[[#This Row],[Nombre del partido político]],$AR$2:$AS$37,2,FALSE) -> No | X27: =+Respuestas_de_formulario_1[[#This Row],[Nombre del partido político]] -> Restauración Nacional (PRN) | Y27: =+Respuestas_de_formulario_1[[#This Row],[Cambio en las Donaciones]] -> 3113147 | Z27: =+IF(Respuestas_de_formulario_1[[#This Row],[Cambio en los pasivos (si es negativo, coloque el signo)]]>0,Respuestas_de_formulario_1[[#This Row],[Cambio en los pasivos (si es negativo, coloque el signo)]],0) -> 136816533.2 | AA27: =+IF(Respuestas_de_formulario_1[[#This Row],[Cambio en los Ingresos]]>0,Respuestas_de_formulario_1[[#This Row],[Cambio en los Ingresos]],0) -> 219028538.4 | AB27: =-IF(Respuestas_de_formulario_1[[#This Row],[Cambio en los activos (si es negativo, coloque el signo)]]<0,Respuestas_de_formulario_1[[#This Row],[Cambio en los activos (si es negativo, coloque el signo)]],0) -> 0 | AC27: 514165630.1 | AE27: =+IF(Respuestas_de_formulario_1[[#This Row],[Cambio en los gastos]]>0,Respuestas_de_formulario_1[[#This Row],[Cambio en los gastos]],0) -> 353869431.6 | AF27: =-IF(Respuestas_de_formulario_1[[#This Row],[Cambio en los pasivos (si es negativo, coloque el signo)]]<0,Respuestas_de_formulario_1[[#This Row],[Cambio en los pasivos (si es negativo, coloque el signo)]],0) -> 0 | AG27: =+IF(Respuestas_de_formulario_1[[#This Row],[Cambio en los activos (si es negativo, coloque el signo)]]>0,Respuestas_de_formulario_1[[#This Row],[Cambio en los activos (si es negativo, coloque el signo)]],0) -> 160296198.5 | AH27: =+Respuestas_de_formulario_1[[#This Row],[Ajustes sobre periodos anteriores (si es negativo, coloque el signo)]] -> 155207411.5 | AI27: 514165630.1 | AK27: 0 | AL27: =+INDEX(AO:AP,MATCH(Respuestas_de_formulario_1[[#This Row],[Nombre del partido político]],AO:AO,0),2) -> 1. Nacional | AM27: =+Respuestas_de_formulario_1[[#This Row],[Periodo de reporte]] -> Abr.-Jun., 2020 | AO27: Recuperando Valores (Limón) (PAREVA) | AP27: 2. Provincial | AR27: Renovación Cartago (Cartago) (PRCA) | AS27: No
A28: 2022-07-27T08:54:24.383 | B28: rarias@tse.go.cr | C28: Rigoberto Arias Fajardo | D28: 20-0971 | E28: Abr.-Jun., 2020 | F28: abr.-jun.,20 | G28: Progreso Social Democrático (PSD) | H28: 0 | I28: 0 | J28: 71949 | K28: 0 | L28: 71949 | M28: 0 | N28: 71949 | O28: 0 | P28: 0 | Q28: 0 | R28: =+Respuestas_de_formulario_1[[#This Row],[Cambio en las Donaciones]]+Respuestas_de_formulario_1[[#This Row],[Cambio en los Ingresos]]+IF(Respuestas_de_formulario_1[[#This Row],[Cambio en los activos (si es negativo, coloque el signo)]]<0,-Respuestas_de_formulario_1[[#This Row],[Cambio en los activos (si es negativo, coloque el signo)]],0)+IF(Respuestas_de_formulario_1[[#This Row],[Cambio en los pasivos (si es negativo, coloque el signo)]]>0,Respuestas_de_formulario_1[[#This Row],[Cambio en los pasivos (si es negativo, coloque el signo)]],0)+IF(Respuestas_de_formulario_1[[#This Row],[Ajustes sobre periodos anteriores (si es negativo, coloque el signo)]]>0,Respuestas_de_formulario_1[[#This Row],[Ajustes sobre periodos anteriores (si es negativo, coloque el signo)]],0) -> 71949 | S28: =+Respuestas_de_formulario_1[[#This Row],[Cambio en los gastos]]+IF(Respuestas_de_formulario_1[[#This Row],[Cambio en los activos (si es negativo, coloque el signo)]]>0,Respuestas_de_formulario_1[[#This Row],[Cambio en los activos (si es negativo, coloque el signo)]],0)-IF(Respuestas_de_formulario_1[[#This Row],[Cambio en los pasivos (si es negativo, coloque el signo)]]<0,Respuestas_de_formulario_1[[#This Row],[Cambio en los pasivos (si es negativo, coloque el signo)]],0)-IF(Respuestas_de_formulario_1[[#This Row],[Ajustes sobre periodos anteriores (si es negativo, coloque el signo)]]<0,Respuestas_de_formulario_1[[#This Row],[Ajustes sobre periodos anteriores (si es negativo, coloque el signo)]],0) -> 71949 | T28: =+Respuestas_de_formulario_1[[#This Row],[Origen]]-Respuestas_de_formulario_1[[#This Row],[Aplicación]] -> 0 | U28: =+Respuestas_de_formulario_1[[#This Row],[Cambio en los gastos]]-SUM(Respuestas_de_formulario_1[[#This Row],[Gastos de Organización]:[Gastos no redimibles]]) -> 0 | V28: =+VLOOKUP(Respuestas_de_formulario_1[[#This Row],[Nombre del partido político]],$AR$2:$AS$37,2,FALSE) -> Sí | X28: =+Respuestas_de_formulario_1[[#This Row],[Nombre del partido político]] -> Progreso Social Democrático (PSD) | Y28: =+Respuestas_de_formulario_1[[#This Row],[Cambio en las Donaciones]] -> 71949 | Z28: =+IF(Respuestas_de_formulario_1[[#This Row],[Cambio en los pasivos (si es negativo, coloque el signo)]]>0,Respuestas_de_formulario_1[[#This Row],[Cambio en los pasivos (si es negativo, coloque el signo)]],0) -> 0 | AA28: =+IF(Respuestas_de_formulario_1[[#This Row],[Cambio en los Ingresos]]>0,Respuestas_de_formulario_1[[#This Row],[Cambio en los Ingresos]],0) -> 0 | AB28: =-IF(Respuestas_de_formulario_1[[#This Row],[Cambio en los activos (si es negativo, coloque el signo)]]<0,Respuestas_de_formulario_1[[#This Row],[Cambio en los activos (si es negativo, coloque el signo)]],0) -> 0 | AC28: 71949 | AE28: =+IF(Respuestas_de_formulario_1[[#This Row],[Cambio en los gastos]]>0,Respuestas_de_formulario_1[[#This Row],[Cambio en los gastos]],0) -> 71949 | AF28: =-IF(Respuestas_de_formulario_1[[#This Row],[Cambio en los pasivos (si es negativo, coloque el signo)]]<0,Respuestas_de_formulario_1[[#This Row],[Cambio en los pasivos (si es negativo, coloque el signo)]],0) -> 0 | AG28: =+IF(Respuestas_de_formulario_1[[#This Row],[Cambio en los activos (si es negativo, coloque el signo)]]>0,Respuestas_de_formulario_1[[#This Row],[Cambio en los activos (si es negativo, coloque el signo)]],0) -> 0 | AH28: =+Respuestas_de_formulario_1[[#This Row],[Ajustes sobre periodos anteriores (si es negativo, coloque el signo)]] -> 0 | AI28: 71949 | AK28: 0 | AL28: =+INDEX(AO:AP,MATCH(Respuestas_de_formulario_1[[#This Row],[Nombre del partido político]],AO:AO,0),2) -> 1. Nacional | AM28: =+Respuestas_de_formulario_1[[#This Row],[Periodo de reporte]] -> Abr.-Jun., 2020 | AO28: Renovación Cartago (Cartago) (PRCA) | AP28: 2. Provincial | AR28: Republicano Social Cristiano (PRSC) | AS28: No
A29: 2022-09-28T20:39:25.483 | B29: imadrigalperez@gmail.com | C29: Ileana Madrigal Mora | D29: 20-1388 | E29: Abr.-Jun., 2020 | F29: abr-jun 20 | G29: Acción Ciudadana (PAC) | H29: -173050367 | I29: -86062709 | J29: 5077221.63 | K29: 513191.39 | L29: 92578070.97 | M29: 0 | N29: 89208140.96 | O29: 3769536.03 | P29: 0 | Q29: 399606.06 | R29: =+Respuestas_de_formulario_1[[#This Row],[Cambio en las Donaciones]]+Respuestas_de_formulario_1[[#This Row],[Cambio en los Ingresos]]+IF(Respuestas_de_formulario_1[[#This Row],[Cambio en los activos (si es negativo, coloque el signo)]]<0,-Respuestas_de_formulario_1[[#This Row],[Cambio en los activos (si es negativo, coloque el signo)]],0)+IF(Respuestas_de_formulario_1[[#This Row],[Cambio en los pasivos (si es negativo, coloque el signo)]]>0,Respuestas_de_formulario_1[[#This Row],[Cambio en los pasivos (si es negativo, coloque el signo)]],0)+IF(Respuestas_de_formulario_1[[#This Row],[Ajustes sobre periodos anteriores (si es negativo, coloque el signo)]]>0,Respuestas_de_formulario_1[[#This Row],[Ajustes sobre periodos anteriores (si es negativo, coloque el signo)]],0) -> 178640780 | S29: =+Respuestas_de_formulario_1[[#This Row],[Cambio en los gastos]]+IF(Respuestas_de_formulario_1[[#This Row],[Cambio en los activos (si es negativo, coloque el signo)]]>0,Respuestas_de_formulario_1[[#This Row],[Cambio en los activos (si es negativo, coloque el signo)]],0)-IF(Respuestas_de_formulario_1[[#This Row],[Cambio en los pasivos (si es negativo, coloque el signo)]]<0,Respuestas_de_formulario_1[[#This Row],[Cambio en los pasivos (si es negativo, coloque el signo)]],0)-IF(Respuestas_de_formulario_1[[#This Row],[Ajustes sobre periodos anteriores (si es negativo, coloque el signo)]]<0,Respuestas_de_formulario_1[[#This Row],[Ajustes sobre periodos anteriores (si es negativo, coloque el signo)]],0) -> 178640780 | T29: =+Respuestas_de_formulario_1[[#This Row],[Origen]]-Respuestas_de_formulario_1[[#This Row],[Aplicación]] -> 0.05000001192 | U29: =+Respuestas_de_formulario_1[[#This Row],[Cambio en los gastos]]-SUM(Respuestas_de_formulario_1[[#This Row],[Gastos de Organización]:[Gastos no redimibles]]) -> -799212.08 | V29: =+VLOOKUP(Respuestas_de_formulario_1[[#This Row],[Nombre del partido político]],$AR$2:$AS$37,2,FALSE) -> No | X29: =+Respuestas_de_formulario_1[[#This Row],[Nombre del partido político]] -> Acción Ciudadana (PAC) | Y29: =+Respuestas_de_formulario_1[[#This Row],[Cambio en las Donaciones]] -> 5077221.63 | Z29: =+IF(Respuestas_de_formulario_1[[#This Row],[Cambio en los pasivos (si es negativo, coloque el signo)]]>0,Respuestas_de_formulario_1[[#This Row],[Cambio en los pasivos (si es negativo, coloque el signo)]],0) -> 0 | AA29: =+IF(Respuestas_de_formulario_1[[#This Row],[Cambio en los Ingresos]]>0,Respuestas_de_formulario_1[[#This Row],[Cambio en los Ingresos]],0) -> 513191.39 | AB29: =-IF(Respuestas_de_formulario_1[[#This Row],[Cambio en los activos (si es negativo, coloque el signo)]]<0,Respuestas_de_formulario_1[[#This Row],[Cambio en los activos (si es negativo, coloque el signo)]],0) -> 173050367 | AC29: 178640780 | AE29: =+IF(Respuestas_de_formulario_1[[#This Row],[Cambio en los gastos]]>0,Respuestas_de_formulario_1[[#This Row],[Cambio en los gastos]],0) -> 92578070.97 | AF29: =-IF(Respuestas_de_formulario_1[[#This Row],[Cambio en los pasivos (si es negativo, coloque el signo)]]<0,Respuestas_de_formulario_1[[#This Row],[Cambio en los pasivos (si es negativo, coloque el signo)]],0) -> 86062709 | AG29: =+IF(Respuestas_de_formulario_1[[#This Row],[Cambio en los activos (si es negativo, coloque el signo)]]>0,Respuestas_de_formulario_1[[#This Row],[Cambio en los activos (si es negativo, coloque el signo)]],0) -> 0 | AH29: =+Respuestas_de_formulario_1[[#This Row],[Ajustes sobre periodos anteriores (si es negativo, coloque el signo)]] -> 0 | AI29: =+SUM(AE29:AG29)-IF(AH29<0,AH29,0) -> 178640780 | AK29: 0.05000001192 | AL29: =+INDEX(AO:AP,MATCH(Respuestas_de_formulario_1[[#This Row],[Nombre del partido político]],AO:AO,0),2) -> 1. Nacional | AM29: =+Respuestas_de_formulario_1[[#This Row],[Periodo de reporte]] -> Abr.-Jun., 2020 | AO29: Somos (Alajuela) (SOMOS) | AP29: 2. Provincial | AR29: Restauración Nacional (PRN) | AS29: No
A30: 2022-08-04T11:39:14.479 | B30: jgarciad@tse.go.cr | C30: Jessica García Díaz | D30: 20-1601 | E30: Abr.-Jun., 2020 | F30: abr.20-jun.20 | G30: Recuperando Valores (Limón) (PAREVA) | H30: -299713.28 | I30: 0 | J30: 0 | K30: 286.72 | L30: 300000 | M30: 0 | N30: 0 | O30: 0 | P30: 0 | Q30: 300000 | R30: =+Respuestas_de_formulario_1[[#This Row],[Cambio en las Donaciones]]+Respuestas_de_formulario_1[[#This Row],[Cambio en los Ingresos]]+IF(Respuestas_de_formulario_1[[#This Row],[Cambio en los activos (si es negativo, coloque el signo)]]<0,-Respuestas_de_formulario_1[[#This Row],[Cambio en los activos (si es negativo, coloque el signo)]],0)+IF(Respuestas_de_formulario_1[[#This Row],[Cambio en los pasivos (si es negativo, coloque el signo)]]>0,Respuestas_de_formulario_1[[#This Row],[Cambio en los pasivos (si es negativo, coloque el signo)]],0)+IF(Respuestas_de_formulario_1[[#This Row],[Ajustes sobre periodos anteriores (si es negativo, coloque el signo)]]>0,Respuestas_de_formulario_1[[#This Row],[Ajustes sobre periodos anteriores (si es negativo, coloque el signo)]],0) -> 300000 | S30: =+Respuestas_de_formulario_1[[#This Row],[Cambio en los gastos]]+IF(Respuestas_de_formulario_1[[#This Row],[Cambio en los activos (si es negativo, coloque el signo)]]>0,Respuestas_de_formulario_1[[#This Row],[Cambio en los activos (si es negativo, coloque el signo)]],0)-IF(Respuestas_de_formulario_1[[#This Row],[Cambio en los pasivos (si es negativo, coloque el signo)]]<0,Respuestas_de_formulario_1[[#This Row],[Cambio en los pasivos (si es negativo, coloque el signo)]],0)-IF(Respuestas_de_formulario_1[[#This Row],[Ajustes sobre periodos anteriores (si es negativo, coloque el signo)]]<0,Respuestas_de_formulario_1[[#This Row],[Ajustes sobre periodos anteriores (si es negativo, coloque el signo)]],0) -> 300000 | T30: =+Respuestas_de_formulario_1[[#This Row],[Origen]]-Respuestas_de_formulario_1[[#This Row],[Aplicación]] -> 0 | U30: =+Respuestas_de_formulario_1[[#This Row],[Cambio en los gastos]]-SUM(Respuestas_de_formulario_1[[#This Row],[Gastos de Organización]:[Gastos no redimibles]]) -> 0 | V30: =+VLOOKUP(Respuestas_de_formulario_1[[#This Row],[Nombre del partido político]],$AR$2:$AS$37,2,FALSE) -> Sí | X30: =+Respuestas_de_formulario_1[[#This Row],[Nombre del partido político]] -> Recuperando Valores (Limón) (PAREVA) | Y30: =+Respuestas_de_formulario_1[[#This Row],[Cambio en las Donaciones]] -> 0 | Z30: =+IF(Respuestas_de_formulario_1[[#This Row],[Cambio en los pasivos (si es negativo, coloque el signo)]]>0,Respuestas_de_formulario_1[[#This Row],[Cambio en los pasivos (si es negativo, coloque el signo)]],0) -> 0 | AA30: =+IF(Respuestas_de_formulario_1[[#This Row],[Cambio en los Ingresos]]>0,Respuestas_de_formulario_1[[#This Row],[Cambio en los Ingresos]],0) -> 286.72 | AB30: =-IF(Respuestas_de_formulario_1[[#This Row],[Cambio en los activos (si es negativo, coloque el signo)]]<0,Respuestas_de_formulario_1[[#This Row],[Cambio en los activos (si es negativo, coloque el signo)]],0) -> 299713.28 | AC30: 300000 | AE30: =+IF(Respuestas_de_formulario_1[[#This Row],[Cambio en los gastos]]>0,Respuestas_de_formulario_1[[#This Row],[Cambio en los gastos]],0) -> 300000 | AF30: =-IF(Respuestas_de_formulario_1[[#This Row],[Cambio en los pasivos (si es negativo, coloque el signo)]]<0,Respuestas_de_formulario_1[[#This Row],[Cambio en los pasivos (si es negativo, coloque el signo)]],0) -> 0 | AG30: =+IF(Respuestas_de_formulario_1[[#This Row],[Cambio en los activos (si es negativo, coloque el signo)]]>0,Respuestas_de_formulario_1[[#This Row],[Cambio en los activos (si es negativo, coloque el signo)]],0) -> 0 | AH30: =+Respuestas_de_formulario_1[[#This Row],[Ajustes sobre periodos anteriores (si es negativo, coloque el signo)]] -> 0 | AI30: 300000 | AK30: 0 | AL30: =+INDEX(AO:AP,MATCH(Respuestas_de_formulario_1[[#This Row],[Nombre del partido político]],AO:AO,0),2) -> 2. Provincial | AM30: =+Respuestas_de_formulario_1[[#This Row],[Periodo de reporte]] -> Abr.-Jun., 2020 | AO30: Unidos por Costa Rica (San José) (PUPCR) | AP30: 2. Provincial | AR30: Somos (Alajuela) (SOMOS) | AS30: No
A31: 2022-07-29T08:09:20.629 | B31: imadrigalperez@gmail.com | C31: Ileana Madrigal Mora | D31: 20-1113 | E31: Abr.-Jun., 2020 | F31: abr-jun 20 | G31: Liberal Progresista (PLP) | H31: 1651282.45 | I31: 61000 | J31: 952821.1 | K31: 3815.2 | L31: -155203.2 | M31: 478442.7 | N31: 4723467.72 | O31: -4878670.92 | P31: 0 | Q31: 0 | R31: =+Respuestas_de_formulario_1[[#This Row],[Cambio en las Donaciones]]+Respuestas_de_formulario_1[[#This Row],[Cambio en los Ingresos]]+IF(Respuestas_de_formulario_1[[#This Row],[Cambio en los activos (si es negativo, coloque el signo)]]<0,-Respuestas_de_formulario_1[[#This Row],[Cambio en los activos (si es negativo, coloque el signo)]],0)+IF(Respuestas_de_formulario_1[[#This Row],[Cambio en los pasivos (si es negativo, coloque el signo)]]>0,Respuestas_de_formulario_1[[#This Row],[Cambio en los pasivos (si es negativo, coloque el signo)]],0)+IF(Respuestas_de_formulario_1[[#This Row],[Ajustes sobre periodos anteriores (si es negativo, coloque el signo)]]>0,Respuestas_de_formulario_1[[#This Row],[Ajustes sobre periodos anteriores (si es negativo, coloque el signo)]],0) -> 1496079 | S31: =+Respuestas_de_formulario_1[[#This Row],[Cambio en los gastos]]+IF(Respuestas_de_formulario_1[[#This Row],[Cambio en los activos (si es negativo, coloque el signo)]]>0,Respuestas_de_formulario_1[[#This Row],[Cambio en los activos (si es negativo, coloque el signo)]],0)-IF(Respuestas_de_formulario_1[[#This Row],[Cambio en los pasivos (si es negativo, coloque el signo)]]<0,Respuestas_de_formulario_1[[#This Row],[Cambio en los pasivos (si es negativo, coloque el signo)]],0)-IF(Respuestas_de_formulario_1[[#This Row],[Ajustes sobre periodos anteriores (si es negativo, coloque el signo)]]<0,Respuestas_de_formulario_1[[#This Row],[Ajustes sobre periodos anteriores (si es negativo, coloque el signo)]],0) -> 1496079.25 | T31: =+Respuestas_de_formulario_1[[#This Row],[Origen]]-Respuestas_de_formulario_1[[#This Row],[Aplicación]] -> -0.25 | U31: =+Respuestas_de_formulario_1[[#This Row],[Cambio en los gastos]]-SUM(Respuestas_de_formulario_1[[#This Row],[Gastos de Organización]:[Gastos no redimibles]]) -> 0 | V31: =+VLOOKUP(Respuestas_de_formulario_1[[#This Row],[Nombre del partido político]],$AR$2:$AS$37,2,FALSE) -> Sí | X31: =+Respuestas_de_formulario_1[[#This Row],[Nombre del partido político]] -> Liberal Progresista (PLP) | Y31: =+Respuestas_de_formulario_1[[#This Row],[Cambio en las Donaciones]] -> 952821.1 | Z31: =+IF(Respuestas_de_formulario_1[[#This Row],[Cambio en los pasivos (si es negativo, coloque el signo)]]>0,Respuestas_de_formulario_1[[#This Row],[Cambio en los pasivos (si es negativo, coloque el signo)]],0) -> 61000 | AA31: =+IF(Respuestas_de_formulario_1[[#This Row],[Cambio en los Ingresos]]>0,Respuestas_de_formulario_1[[#This Row],[Cambio en los Ingresos]],0) -> 3815.2 | AB31: =-IF(Respuestas_de_formulario_1[[#This Row],[Cambio en los activos (si es negativo, coloque el signo)]]<0,Respuestas_de_formulario_1[[#This Row],[Cambio en los activos (si es negativo, coloque el signo)]],0) -> 0 | AC31: 1496079 | AE31: =+IF(Respuestas_de_formulario_1[[#This Row],[Cambio en los gastos]]>0,Respuestas_de_formulario_1[[#This Row],[Cambio en los gastos]],0) -> 0 | AF31: =-IF(Respuestas_de_formulario_1[[#This Row],[Cambio en los pasivos (si es negativo, coloque el signo)]]<0,Respuestas_de_formulario_1[[#This Row],[Cambio en los pasivos (si es negativo, coloque el signo)]],0) -> 0 | AG31: =+IF(Respuestas_de_formulario_1[[#This Row],[Cambio en los activos (si es negativo, coloque el signo)]]>0,Respuestas_de_formulario_1[[#This Row],[Cambio en los activos (si es negativo, coloque el signo)]],0) -> 1651282.45 | AH31: =+Respuestas_de_formulario_1[[#This Row],[Ajustes sobre periodos anteriores (si es negativo, coloque el signo)]] -> 478442.7 | AI31: 1651282.45 | AK31: -155203.45 | AL31: =+INDEX(AO:AP,MATCH(Respuestas_de_formulario_1[[#This Row],[Nombre del partido político]],AO:AO,0),2) -> 1. Nacional | AM31: =+Respuestas_de_formulario_1[[#This Row],[Periodo de reporte]] -> Abr.-Jun., 2020 | AO31: Unión Guanacasteca (Guanacaste) (PUG) | AP31: 2. Provincial | AR31: Unidad Social Cristiana (PUSC) | AS31: Sí
